Workbook

Sheet Index
A1: 53
A7: Economic Contribution | B7: : | C7: Mining Economic Impact | D7: Historic and current mining industry gross value added in mining in WA and the rest of Australia.
B8: : | C8: Exports 2-years | D8: Comparison of mineral and petroleum exports for WA and the rest of Australia over the past two years.
B9: : | C9: Exports Historic | D9: Historic mineral and petroleum exports for WA and the rest of Australia from 2015.
B10: : | C10: Mining Investment | D10: Historic investment in mining in WA and the rest of Australia.
A11: Exploration | B11: : | C11: Mineral Exploration By Commodity | D11: WA's exploration spend by commodity compared to the rest of Australia.
B12: : | C12: Mineral Exploration By Type | D12: WA's exploration spend by type (i.e. new deposits and existing deposits) compared to the rest of Australia.
B13: : | C13: Mineral Exploration Metres Drilled | D13: Historic exploration drilling and expenditure on new and existing mineral deposits.
B14: : | C14: Petroleum Exploration Expenditure | D14: Historic expenditure on petroleum exploration in WA and the rest of Australia.
B15: : | C15: Petroleum Exploration By Location | D15: Historic expenditure on offshore and onshore petroleum exploration in Australia.
A16: Royalties | B16: : | C16: Royalties 2-years | D16: Comparison of royalty receipts and North West Shelf grants over the past two years.
B17: : | C17: Royalties Historic | D17: Historic royalty receipts and North West Shelf grants.
A18: Employment | B18: : | C18: Mining Employment Calendar Year | D18: Calendar year employment by commodity in the WA mining and mineral exploration sector from 2001.
B19: : | C19: Mining Employment Financial Year | D19: Financial year employment by commodity in the WA mining and mineral exploration sector from 2001-02.
B20: : | C20: Mining Employment Report Period | D20: Monthly employment in the WA mining and exploration industries by commodity from 2001.
B21: : | C21: Mining Employment By Site | D21: Employment in the WA mining and mineral exploration industry in WA by site over the past two years.
B22: : | C22: Mining Employment By Calendar Year Pre-2001 | D22: Calendar year employment in the WA mining industry by commodity from 1987-2000.
B23: : | C23: Petroleum Employment | D23: Historic employment in the WA petroleum industry (onshore, State waters and offshore) from 1985.
B24: : | C24: Petroleum Employment Monthly January 2010 to March 2022 | D24: Monthly employment in the WA petroleum industry (onshore and State waters only) by commodity from January 2010 to March 2022.
A25: How to Use | B25: : | C25: How to Use | D25: Details about how to use this file, and access the information held within it.
A26: Data | B26: : | C26: Sources

Sheet Data Sources
A6: Data | C6: Source | D6: Link
A7: Gross Domestic Product | B7: : | C7: Australian Bureau of Statistics (ABS) | D7: Australian National Accounts: State Accounts
A8: Gross State Product WA | B8: : | C8: ABS | D8: Australian National Accounts: State Accounts
A9: Mining investment | B9: : | C9: ABS | D9: Private New Capital Expenditure and Expected Expenditure, Australia
A10: New capital expenditure | B10: : | C10: ABS | D10: Private New Capital Expenditure and Expected Expenditure, Australia
A11: Australia merchandise exports by State and by Destination | B11: : | C11: ABS | D11: International Trade in Goods and Services, Australia
A12: Australia mineral and energy exports | B12: : | C12: Office of the Chief Economist, Department of Industry, Science and Resources | D12: Resources and Energy Quarterly
A13: Mineral exploration expenditure and metres drilled | B13: : | C13: ABS | D13: Mineral and Petroleum Exploration, Australia
A14: Petroleum exploration expenditure | B14: : | C14: ABS | D14: Mineral and Petroleum Exploration, Australia
A15: Royalties | B15: : | C15: DMIRS
A16: Mining employment | B16: : | C16: DMIRS
A17: Petroleum employment monthly January 2010 to March 2022 | B17: : | C17: DMIRS
A18: Petroleum employment quarterly 1985 to Now | B18: : | C18: ABS | D18: Labour Force, Australia, Detailed

Sheet How To Use
Y1: Click here to select an option
Y2: A menu will drop down showing your choices
Y3: Click to Select: Click anywhere in this tab to bring up the menu
Y4: A menu will drop down showing your choices
H9: Chart Data
H10: A menu will drop down showing your choices
H11: Click above to change chart data
H13: Select: | I13: A menu will drop down showing your choices
H15: A menu will drop down showing your choices

Sheet Mining Economic Impact
A6: Mining Economic Impact | J6: Last 10 Financial Years
A7: Year | B7: Western Australia ($ Million) | C7: Rest Of Australia ($ Million) | D7: Australia ($ Million) | E7: Western Australia Share Of Australia | F7: Western Australia GSP ($Million) | G7: Mining Share of Western Australia Gross State Product | J7: Year | K7: Western Australia ($ Million) | L7: Rest of Australia ($ Million) | M7: Australia ($ Million) | N7: Western Australia Share Of Australia | O7: Western Australia GSP ($Million) | P7: Mining Share of Western Australia Gross State Product
A8: 1989-1990 | B8: 5519 | C8: =D8-B8 -> 12674 | D8: 18193 | E8: =B8/D8 -> 0.3033584346 | F8: 39462 | G8: =IFERROR(B8/F8,"N/A") -> 0.1398560641 | J8: 2012-2013 | K8: =SUM(B31) -> 75200 | L8: =SUM(C31) -> 43054 | M8: 118254 | N8: =K8/M8 -> 0.6359192924 | O8: 245666 | P8: =K8/O8 -> 0.3061066651
A9: 1990-1991 | B9: 6988 | C9: 12787 | D9: 19775 | E9: 0.3533754741 | F9: 40342 | G9: 0.1732189777 | J9: 2013-2014 | K9: =SUM(B32) -> 89762 | L9: =SUM(C32) -> 44262 | M9: =SUM(D32) -> 134024 | N9: =K9/M9 -> 0.6697457172 | O9: =SUM(F32) -> 268260 | P9: =K9/O9 -> 0.3346082159
A10: 1991-1992 | B10: 7239 | C10: 12457 | D10: 19696 | E10: 0.3675365556 | F10: 41705 | G10: 0.1735763098 | J10: 2014-2015 | K10: 67688 | L10: 40197 | M10: 107885 | N10: 0.6274088149 | O10: 249725 | P10: 0.2710501552
A11: 1992-1993 | B11: 7168 | C11: 13467 | D11: 20635 | E11: 0.3473709717 | F11: 43801 | G11: 0.1636492318 | J11: 2015-2016 | K11: 57124 | L11: 39647 | M11: 96771 | N11: 0.5903008133 | O11: 237115 | P11: 0.2409126373
A12: 1993-1994 | B12: 7427 | C12: 12741 | D12: 20168 | E12: 0.3682566442 | F12: 47214 | G12: 0.1573050366 | J12: 2016-2017 | K12: 71937 | L12: 61480 | M12: 133417 | N12: 0.5391891588 | O12: 248065 | P12: 0.2899925423
A13: 1994-1995 | B13: 8779 | C13: 12489 | D13: 21268 | E13: 0.412779763 | F13: 51192 | G13: 0.1714916393 | J13: 2017-2018 | K13: 77777 | L13: 72525 | M13: 150302 | N13: 0.5174714907 | O13: 255674 | P13: 0.3042037908
A14: 1995-1996 | B14: 10166 | C14: 13964 | D14: 24130 | E14: 0.4213012847 | F14: 55496 | G14: 0.1831843736 | J14: 2018-2019 | K14: 107278 | L14: 84609 | M14: 191887 | N14: 0.5590686185 | O14: 286512 | P14: 0.3744275981
A15: 1996-1997 | B15: 10037 | C15: 13956 | D15: 23993 | E15: 0.4183303464 | F15: 56931 | G15: 0.1763011365 | J15: 2019-2020 | K15: 130415 | L15: 72599 | M15: 203014 | N15: 0.6423941206 | O15: 312394 | P15: 0.4174696057
A16: 1997-1998 | B16: 10700 | C16: 14919 | D16: 25619 | E16: 0.4176587689 | F16: 61079 | G16: 0.1751829598 | J16: 2020-2021 | K16: 172550 | L16: 51803 | M16: 224353 | N16: 0.76910048 | O16: 365904 | P16: 0.4715717784
A17: 1998-1999 | B17: 10323 | C17: 15119 | D17: 25442 | E17: 0.4057464036 | F17: 62400 | G17: 0.1654326923 | J17: 2021-2022 | K17: 186798 | L17: 128161 | M17: 314959 | N17: 0.5930867192 | O17: 404454 | P17: 0.4618522749
A18: 1999-2000 | B18: 12906 | C18: 15174 | D18: 28080 | E18: 0.4596153846 | F18: 69273 | G18: 0.1863063531
A19: 2000-2001 | B19: 16723 | C19: 18750 | D19: 35473 | E19: 0.4714289741 | F19: 75737 | G19: 0.2208035702
A20: 2001-2002 | B20: 16600 | C20: 20048 | D20: 36648 | E20: 0.4529578695 | F20: 81762 | G20: 0.2030283017
A21: 2002-2003 | B21: 17378 | C21: 19278 | D21: 36656 | E21: 0.4740833697 | F21: 88286 | G21: 0.1968375507
A22: 2003-2004 | B22: 16472 | C22: 18016 | D22: 34488 | E22: 0.4776154025 | F22: 95816 | G22: 0.1719128329
A23: 2004-2005 | B23: 21616 | C23: 24891 | D23: 46507 | E23: 0.4647902466 | F23: 105957 | G23: 0.204007286
A24: 2005-2006 | B24: 29099 | C24: 36884 | D24: 65983 | E24: 0.4410075322 | F24: 122743 | G24: 0.2370725826
A25: 2006-2007 | B25: 38223 | C25: 38787 | D25: 77010 | E25: 0.4963381379 | F25: 143249 | G25: 0.2668290878
A26: 2007-2008 | B26: 42399 | C26: 41383 | D26: 83782 | E26: 0.5060633549 | F26: 160770 | G26: 0.2637245755
A27: 2008-2009 | B27: 51074 | C27: 64209 | D27: 115283 | E27: 0.4430314964 | F27: 176195 | G27: 0.2898720168
A28: 2009-2010 | B28: 54072 | C28: 41906 | D28: 95978 | E28: 0.5633791077 | F28: 184897 | G28: 0.2924439012
A29: 2010-2011 | B29: 80921 | C29: 51095 | D29: 132016 | E29: 0.6129635802 | F29: 221778 | G29: 0.3648738829
A30: 2011-2012 | B30: 83262 | C30: 51168 | D30: 134430 | E30: 0.6193706762 | F30: 241473 | G30: 0.3448087364
A31: 2012-2013 | B31: 75200 | C31: 43054 | D31: 118254 | E31: 0.6359192924 | F31: 245666 | G31: 0.3061066651
A32: 2013-2014 | B32: 89762 | C32: 44262 | D32: 134024 | E32: 0.6697457172 | F32: 268260 | G32: 0.3346082159
A33: 2014-2015 | B33: 67688 | C33: 40197 | D33: 107885 | E33: 0.6274088149 | F33: 249725 | G33: 0.2710501552
A34: 2015-2016 | B34: 57124 | C34: 39647 | D34: 96771 | E34: 0.5903008133 | F34: 237115 | G34: 0.2409126373
A35: 2016-2017 | B35: 71937 | C35: 61480 | D35: 133417 | E35: 0.5391891588 | F35: 248065 | G35: 0.2899925423
A36: 2017-2018 | B36: 77777 | C36: 72525 | D36: 150302 | E36: 0.5174714907 | F36: 255674 | G36: 0.3042037908
A37: 2018-2019 | B37: 107278 | C37: 84609 | D37: 191887 | E37: 0.5590686185 | F37: 286512 | G37: 0.3744275981
A38: 2019-2020 | B38: 130415 | C38: 72599 | D38: 203014 | E38: 0.6423941206 | F38: 312394 | G38: 0.4174696057
A39: 2020-2021 | B39: 172550 | C39: 51803 | D39: 224353 | E39: 0.76910048 | F39: 365904 | G39: 0.4715717784
A40: 2021-2022 | B40: 186798 | C40: =D40-B40 -> 128161 | D40: 314959 | E40: =B40/D40 -> 0.5930867192 | F40: 404454 | G40: =IFERROR(B40/F40,"N/A") -> 0.4618522749

Sheet Exports 2-years
D1: Select: | E1: Financial Year | U1: Financial Year | V1: Financial Year
U2: Calendar Year
A6: =CONCATENATE("Western Australia Mineral and Petroleum Exports ",B7," and ",C7) -> Western Australia Mineral and Petroleum Exports 2021-22 and 2022-23
B7: =IF(E1="Calendar Year",LARGE('Exports Historic'!B25:CA25,2),INDIRECT(CONCATENATE("'Exports Historic'!",ADDRESS(8,('Exports Historic'!A3-2),1,)))) -> 2021-22 | C7: =IF(E1="Calendar Year",LARGE('Exports Historic'!B25:CA25,1),INDIRECT(CONCATENATE("'Exports Historic'!",ADDRESS(8,('Exports Historic'!A3-1),1,)))) -> 2022-23 | D7: =CONCATENATE(C7," Growth") -> 2022-23 Growth | T7: =CONCATENATE("Western Australia Mineral and Petroleum Exports Growth "&CHAR(10)&B7&" to "&C7) -> Western Australia Mineral and Petroleum Exports Growth 2021-22 to 2022-23 | U7: =CONCATENATE("Western Australia Mineral and Petroleum Exports "&CHAR(10)&C7) -> Western Australia Mineral and Petroleum Exports 2022-23
A8: Commodity | B8: $ | C8: $ | D8: $ | E8: %
A9: Alumina and Bauxite | B9: =IF($E$1="Financial Year",'Exports Historic'!H10,'Exports Historic'!H27) -> 7912086501 | C9: =IF($E$1="Financial Year", 'Exports Historic'!I10,'Exports Historic'!I27) -> 7603282144 | D9: =IFERROR(C9-B9,"n/a") -> -308804356.7 | E9: =IFERROR(D9/B9,"n/a") -> -0.03902944649 | J9: ="Mineral and Petroleum Exports"&CHAR(10)&C7 -> Mineral and Petroleum Exports 2022-23
A10: Copper-Lead-Zinc | B10: =IF($E$1="Financial Year",'Exports Historic'!H11,'Exports Historic'!H28) -> n/a | C10: =IF($E$1="Financial Year", 'Exports Historic'!I11,'Exports Historic'!I28) -> n/a | D10: n/a | E10: n/a
A11: Gold | B11: =IF($E$1="Financial Year",'Exports Historic'!H12,'Exports Historic'!H29) -> 18736895000 | C11: =IF($E$1="Financial Year", 'Exports Historic'!I12,'Exports Historic'!I29) -> 20004210000 | D11: 1267315000 | E11: 0.06763740737
A12: Iron Ore | B12: =IF($E$1="Financial Year",'Exports Historic'!H13,'Exports Historic'!H30) -> 130967158000 | C12: =IF($E$1="Financial Year", 'Exports Historic'!I13,'Exports Historic'!I30) -> 123195780000 | D12: -7771378000 | E12: -0.05933837245
A13: Lithium | B13: =IF($E$1="Financial Year",'Exports Historic'!H14,'Exports Historic'!H31) -> 4914857218 | C13: =IF($E$1="Financial Year", 'Exports Historic'!I14,'Exports Historic'!I31) -> 20104245909 | D13: 15189388691 | E13: 3.09050457
A14: Mineral Sands | B14: =IF($E$1="Financial Year",'Exports Historic'!H15,'Exports Historic'!H32) -> 2123092734 | C14: =IF($E$1="Financial Year", 'Exports Historic'!I15,'Exports Historic'!I32) -> 2214275527 | D14: 91182792.56 | E14: 0.04294809694 | M14: =CONCATENATE("Royalty Receipts and North West Shelf Grants ",C7) -> Royalty Receipts and North West Shelf Grants 2022-23
A15: Nickel | B15: =IF($E$1="Financial Year",'Exports Historic'!H16,'Exports Historic'!H33) -> n/a | C15: =IF($E$1="Financial Year", 'Exports Historic'!I16,'Exports Historic'!I33) -> n/a | D15: n/a | E15: n/a
A16: Petroleum | B16: =IF($E$1="Financial Year",'Exports Historic'!H17,'Exports Historic'!H34) -> n/a | C16: =IF($E$1="Financial Year", 'Exports Historic'!I17,'Exports Historic'!I34) -> n/a | D16: n/a | E16: n/a
A17: Other | B17: =IF($E$1="Financial Year",'Exports Historic'!H18,'Exports Historic'!H35) -> 6.081002688e+10 | C17: =IF($E$1="Financial Year", 'Exports Historic'!I18,'Exports Historic'!I35) -> 7.835519231e+10 | D17: 1.754516543e+10 | E17: 0.2885242177
A18: Western Australia Mineral and Petroleum Exports | B18: =IF($E$1="Financial Year",'Exports Historic'!H19,'Exports Historic'!H36) -> 2.254641163e+11 | C18: =IF($E$1="Financial Year", 'Exports Historic'!I19,'Exports Historic'!I36) -> 2.514769859e+11 | D18: =C18-B18 -> 2.601286956e+10 | E18: =D18/B18 -> 0.1153747656
A19: Mineral and Petroleum Exports Share of Western Australia | B19: =IF($E$1="Financial Year",'Exports Historic'!H20,'Exports Historic'!H37) -> 0.9379409287 | C19: =IF($E$1="Financial Year", 'Exports Historic'!I20,'Exports Historic'!I37) -> 0.9301697979 | D19: n/a | E19: =C19-B19 -> -0.007771130791
A20: Australia Mineral and Energy Exports | B20: =IF($E$1="Financial Year",'Exports Historic'!H21,'Exports Historic'!H38) -> 4.216907645e+11 | C20: =IF($E$1="Financial Year", 'Exports Historic'!I21,'Exports Historic'!I38) -> 4.667366543e+11 | D20: 4.504588981e+10 | E20: 0.1068220924
A21: Western Australia Share of Australia | B21: =B18/B20 -> 0.5346669534 | C21: =C18/C20 -> 0.53879845 | D21: n/a | E21: =C21-B21 -> 0.004131496586
B234: 63.54
B235: 63.86
B236: 63.7
B237: 64.67
B238: 65.03
B239: 64.67
B240: 65.26
B241: 66.6
B242: 66.28
B243: 65.11
B244: 64.04
B245: 64.57

Sheet Exports Historic
B1: =IFERROR(SUM(LEFT(INDIRECT(ADDRESS(8,COLUMN(),1,0),FALSE),4)),"") -> 2015 | C1: 2016 | D1: 2017 | E1: 2018 | F1: 2019 | J1: =IFERROR(SUM(LEFT(INDIRECT(ADDRESS(8,COLUMN(),1,0),FALSE),4)),"") -> 
A2: =ADDRESS(8,(A3-1),1,) -> $I$8
A3: =MATCH("Cumulative Total",A8:BY8) -> 10
A7: Historic Mineral and Petroleum Exports Financial Year
A8: Commodity | B8: 2015-16 | C8: 2016-17 | D8: 2017-18 | E8: 2018-19 | F8: 2019-20 | G8: 2020-21 | H8: 2021-22 | I8: 2022-23 | J8: Cumulative Total
B9: $ | C9: $ | D9: $ | E9: $ | F9: $ | G9: $ | H9: $ | J9: $ | K9: Total Share
A10: Alumina and Bauxite | B10: 4466034361 | C10: 5324077335 | D10: 6568681704 | E10: 9265892697 | F10: 6014172600 | G10: 5759591761 | H10: 7912086501 | I10: 7603282144 | J10: =SUM(B10:I10) -> 5.29138191e+10 | K10: =J10/J$19 -> 0.03997088747
A11: Copper-Lead-Zinc | B11: 1483207183 | C11: 1383583496 | D11: 1738118695 | E11: 3234659683 | F11: n/a | G11: n/a | H11: n/a | I11: n/a | J11: =SUM(B11:I11) -> 7839569057 | K11: 0.005921979133
A12: Gold | B12: 16373219000 | C12: 17741122000 | D12: 17700149000 | E12: 16626054000 | F12: 21515648000 | G12: 22012884000 | H12: 18736895000 | I12: 20004210000 | J12: 150710181000 | K12: 0.1138458684
A13: Iron Ore | B13: 4.899125061e+10 | C13: 61910540000 | D13: 60702755000 | E13: 76201421000 | F13: 101097606000 | G13: 151155043000 | H13: 130967158000 | I13: 123195780000 | J13: 7.542215536e+11 | K13: 0.5697359471
A14: Lithium | B14: n/a | C14: n/a | D14: n/a | E14: n/a | F14: n/a | G14: n/a | H14: 4914857218 | I14: 20104245909 | J14: 25019103127 | K14: 0.01889933051
A15: Mineral Sands | B15: 841133341 | C15: 806474228 | D15: 1008022356 | E15: 1496378534 | F15: 1197954590 | G15: 1469630089 | H15: 2123092734 | I15: 2214275527 | J15: 1.11569614e+10 | K15: 0.008427924049
A16: Nickel | B16: 1920448656 | C16: 1729825092 | D16: 1698535191 | E16: 2708091037 | F16: 3937634801 | G16: 2750976563 | H16: n/a | I16: n/a | J16: 1.474551134e+10 | K16: 0.01113870033
A17: Petroleum | B17: 1.4245957e+10 | C17: 1.685092769e+10 | D17: 2.47316559e+10 | E17: 3.642876613e+10 | F17: 34729631856 | G17: n/a | H17: n/a | I17: n/a | J17: 1.269869386e+11 | K17: 0.09592542586
A18: Other | B18: 1601787044 | C18: 1827111079 | D18: 3559295555 | E18: 3518364824 | F18: 4382927354 | G18: 2.616062117e+10 | H18: 6.081002688e+10 | I18: 7.835519231e+10 | J18: 1.802153262e+11 | K18: 0.1361339371
A19: Western Australia Mineral and Petroleum Exports | B19: =SUM(B10:B18) -> 8.99230372e+10 | C19: 1.075736609e+11 | D19: 1.177072134e+11 | E19: 1.494796279e+11 | F19: 1.728755752e+11 | G19: =SUM(G10:G18) -> 2.093087466e+11 | H19: =SUM(H10:H18) -> 2.254641163e+11 | I19: =SUM(I10:I18) -> 2.514769859e+11 | J19: 1.323808963e+12 | K19: =J19/J$19 -> 1
A20: Mineral and Petroleum Exports Share of Western Australia | B20: =B19/99365000000 -> 0.9049769758 | C20: =C19/120398000000 -> 0.8934837865 | D20: =D19/129698000000 -> 0.9075484078 | E20: =E19/162318000000 -> 0.920906048 | F20: =F19/184337000000 -> 0.9378235254 | G20: =G19/223000995000 -> 0.9386000568 | H20: =H19/240382000000 -> 0.9379409287 | I20: =I19/270356000000 -> 0.9301697979 | J20: n/a | K20: =J19/1429854995000 -> 0.9258344154
A21: Australia Mineral and Energy Exports | B21: 1.615571041e+11 | C21: 2.052997989e+11 | D21: 2.285301117e+11 | E21: 2.80071366e+11 | F21: 2.894890513e+11 | G21: 3.084939601e+11 | H21: 4.216907645e+11 | I21: 4.667366543e+11 | J21: =SUM(B21:I21) -> 2.361868811e+12 | K21: =J21/J21 -> 1
A22: Western Australia Share of Australia | B22: =B19/B21 -> 0.5566021853 | C22: =C19/C21 -> 0.5239832746 | D22: 0.515062162 | E22: 0.5337197802 | F22: 0.5971748306 | G22: =G19/G21 -> 0.6784857198 | H22: 0.5346669534 | I22: 0.53879845 | J22: n/a | K22: =J19/J21 -> 0.5604921651
A24: Historic Mineral and Petroleum Exports Calendar Year
A25: Commodity | B25: 2015 | C25: 2016 | D25: 2017 | E25: 2018 | F25: 2019 | G25: 2020 | H25: 2021 | I25: 2022 | J25: Cumulative Total
B26: $ | C26: $ | D26: $ | E26: $ | F26: $ | G26: $ | H26: $ | I26: $ | J26: $ | K26: Total Share
A27: Alumina and Bauxite | B27: 4632530370 | C27: 4515825079 | D27: 6039800894 | E27: 8724648652 | F27: 6948705988 | G27: 6467912057 | H27: 6570015392 | I27: 8205711652 | J27: =SUM(B27:I27) -> 5.210515008e+10 | K27: =J27/J$36 -> 0.04177286566
A28: Copper-Lead-Zinc | B28: 1147524680 | C28: 1628967103 | D28: 1673012040 | E28: 1378736329 | F28: 2282407519 | G28: n/a | H28: n/a | I28: n/a | J28: 8110647672 | K28: =J28/J$36 -> 0.006502332208
A29: Gold | B29: 13794615000 | C29: 17751200000 | D29: 16083518000 | E29: 17465895000 | F29: 20603838000 | G29: 21793960000 | H29: 19233013000 | I29: 18777658000 | J29: 145503697000 | K29: 0.1166507798
A30: Iron Ore | B30: 4.967186298e+10 | C30: 5.388214238e+10 | D30: 62659171000 | E30: 62336376000 | F30: 95807277000 | G30: 115680597000 | H30: 152753153000 | I30: 122681541000 | J30: 7.154721204e+11 | K30: 0.5735962897
A31: Lithium | B31: n/a | C31: n/a | D31: n/a | E31: n/a | F31: n/a | G31: n/a | H31: 1640564024 | I31: 12119998154 | J31: 13760562178 | K31: 0.01103188676
A32: Mineral Sands | B32: 825915506 | C32: 751103653.2 | D32: 917640490.2 | E32: 1433470433 | F32: 1178695116 | G32: 1379053730 | H32: 1888876202 | I32: 2188103396 | J32: 1.056285853e+10 | K32: 0.008468277502
A33: Nickel | B33: 2516514208 | C33: 2006080401 | D33: 1998513295 | E33: 2615435735 | F33: 4029555488 | G33: 3071449367 | H33: n/a | I33: n/a | J33: 1.623754849e+10 | K33: 0.01301769462
A34: Petroleum | B34: 1.644117957e+10 | C34: 14252654720 | D34: 1.960972664e+10 | E34: 3.378522438e+10 | F34: 3.688305986e+10 | G34: 2.505741952e+10 | H34: n/a | I34: n/a | J34: 1.460292647e+11 | K34: 0.1170721291
A35: Other | B35: 1670607188 | C35: 1490685625 | D35: 2674140707 | E35: 3910421841 | F35: 3130942159 | G35: 4063950589 | H35: 4.490342624e+10 | I35: 7.771837751e+10 | J35: 1.395625519e+11 | K35: 0.1118877447
A36: Western Australia Mineral and Petroleum Exports | B36: =SUM(B27:B35) -> 9.07007495e+10 | C36: =SUM(C27:C35) -> 9.627865896e+10 | D36: 1.116555231e+11 | E36: 1.316502084e+11 | F36: 1.708644811e+11 | G36: =SUM(G27:G35) -> 1.775143423e+11 | H36: =SUM(H27:H35) -> 2.269890479e+11 | I36: 2.416913897e+11 | J36: =SUM(B36:I36) -> 1.247344401e+12 | K36: =J36/J36 -> 1
A37: Mineral and Petroleum Exports Share of Western Australia | B37: =B36/102728000000 -> 0.8829213993 | C37: =C36/106493000000 -> 0.9040843901 | D37: =D36/123093000000 -> 0.9070826372 | E37: =E36/145190684000 -> 0.9067400521 | F37: =F36/181228295000 -> 0.9428134891 | G37: =G36/187308077000 -> 0.9477132279 | H37: =H36/239818000000 -> 0.9465054661 | I37: =I36/260575000000 -> 0.9275309976 | J37: n/a | K37: =J36/1346434056000 -> 0.9264058609
A38: Australia Mineral and Energy Exports | B38: 166576507214 | C38: 176569739078 | D38: 214414259777 | E38: 256012642221 | F38: 2.953488085e+11 | G38: 2.782326655e+11 | H38: 3.598998385e+11 | I38: 4.73016165e+11 | J38: =SUM(B38:I38) -> 2.220070626e+12 | K38: =J38/J38 -> 1
A39: Western Australia Share of Australia | B39: =B36/B38 -> 0.5444990474 | C39: =C36/C38 -> 0.5452727033 | D39: 0.5207467226 | E39: 0.5142332317 | F39: 0.5785175908 | G39: 0.6380068348 | H39: =H36/H38 -> 0.6307006105 | I39: 0.5109579918 | J39: n/a | K39: =J36/J38 -> 0.5618489729

Sheet Mining Investment
A6: Mining Investment | K6: Last 10 Calendar Years | S6: Last 10 Financial Years
B7: Quarter | C7: Western Australia ($ Million) | D7: Rest Of Australia ($ Million) | E7: Australia ($ Million) | F7: Western Australia Share Of Australia | G7: Western Australia New Capital Expenditure ($ Million) | H7: Mining Share of Western Australia New Capital Expenditure | K7: Year | L7: Western Australia ($ Million) | M7: Rest Of Australia ($ Million) | N7: Australia ($ Million) | O7: Western Australia Share Of Australia | P7: Western Australia New Capital Expenditure ($ Million) | Q7: Mining Share of Western Australia New Capital Expenditure | S7: Year | T7: Western Australia ($ Million) | U7: Rest of Australia ($ Million) | V7: Australia ($ Million) | W7: Western Australia Share Of Australia | X7: Western Australia New Capital Expenditure ($ Million) | Y7: Mining Share of Western Australia New Capital Expenditure
A8: =YEAR(B8) -> 1989 | B8: 1989-06-01 | C8: 527 | D8: =E8-C8 -> 479 | E8: 1006 | F8: =C8/E8 -> 0.5238568588 | G8: 1370 | H8: =IFERROR(C8/G8,"n/a") -> 0.3846715328 | K8: =K9-1 -> 2013 | L8: =SUMIF($A$8:$A$507,$K8,C$8:C$510) -> 46786 | M8: =N8-L8 -> 47112 | N8: =SUMIF($A$8:$A$507,$K8,E$8:E$510) -> 93898 | O8: =L8/N8 -> 0.4982640738 | P8: =SUMIF($A$8:$A$507,$K8,G$8:G$510) -> 56987 | Q8: =L8/P8 -> 0.8209942618 | S8: =LEFT(S9, 4)-1 & "-" & LEFT(S9, 4) -> 2013-2014 | T8: =SUMIFS(C:C, $B:$B, ">=" & DATE(LEFT($S8, 4), 7, 1), $B:$B, "<" & DATE(RIGHT($S8, 4), 7, 1)) -> 46759 | U8: =SUMIFS(D:D, $B:$B, ">=" & DATE(LEFT($S8, 4), 7, 1), $B:$B, "<" & DATE(RIGHT($S8, 4), 7, 1)) -> 43633 | V8: =SUMIFS(E:E, $B:$B, ">=" & DATE(LEFT($S8, 4), 7, 1), $B:$B, "<" & DATE(RIGHT($S8, 4), 7, 1)) -> 90392 | W8: =T8/V8 -> 0.5172913532 | X8: =SUMIFS(G:G, $B:$B, ">=" & DATE(LEFT($S8, 4), 7, 1), $B:$B, "<" & DATE(RIGHT($S8, 4), 7, 1)) -> 56968 | Y8: =T8/X8 -> 0.82079413
A9: =YEAR(B9) -> 1989 | B9: 1989-09-01 | C9: 594 | D9: 452 | E9: 1046 | F9: 0.5678776291 | G9: 1597 | H9: 0.3719474014 | K9: 2014 | L9: 46211 | M9: 37335 | N9: 83546 | O9: 0.5531204366 | P9: 56931 | Q9: =L9/P9 -> 0.8117018847 | S9: 2014-2015 | T9: =SUMIFS(C:C, $B:$B, ">=" & DATE(LEFT($S9, 4), 7, 1), $B:$B, "<" & DATE(RIGHT($S9, 4), 7, 1)) -> 45990 | U9: 30127 | V9: 76117 | W9: 0.6042014268 | X9: =SUMIFS(G:G, $B:$B, ">=" & DATE(LEFT($S9, 4), 7, 1), $B:$B, "<" & DATE(RIGHT($S9, 4), 7, 1)) -> 56228 | Y9: 0.8179198976
A10: 1989 | B10: 1989-12-01 | C10: 576 | D10: 548 | E10: 1124 | F10: 0.512455516 | G10: 1257 | H10: 0.4582338902 | K10: 2015 | L10: 42384 | M10: 22784 | N10: 65168 | O10: 0.6503805549 | P10: 51869 | Q10: 0.8171354759 | S10: 2015-2016 | T10: 35211 | U10: 18178 | V10: 53389 | W10: 0.6595178782 | X10: 44142 | Y10: 0.797675683
A11: 1990 | B11: 1990-03-01 | C11: 465 | D11: 431 | E11: 896 | F11: 0.5189732143 | G11: 1101 | H11: 0.4223433243 | K11: 2016 | L11: 26880 | M11: 16045 | N11: 42925 | O11: 0.6262085032 | P11: 34601 | Q11: 0.7768561602 | S11: 2016-2017 | T11: 22230 | U11: 16520 | V11: 38750 | W11: 0.5736774194 | X11: 29836 | Y11: 0.7450730661
A12: 1990 | B12: 1990-06-01 | C12: 469 | D12: 570 | E12: 1039 | F12: 0.4513955727 | G12: 1079 | H12: 0.4346617238 | K12: 2017 | L12: 20458 | M12: 16879 | N12: 37337 | O12: 0.5479283285 | P12: 28807 | Q12: 0.7101746103 | S12: 2017-2018 | T12: 19173 | U12: 17215 | V12: 36388 | W12: 0.526904474 | X12: 27986 | Y12: 0.6850925463
A13: 1990 | B13: 1990-09-01 | C13: 513 | D13: 631 | E13: 1144 | F13: 0.4484265734 | G13: 1280 | H13: 0.40078125 | K13: 2018 | L13: 17793 | M13: 16802 | N13: 34595 | O13: 0.514322879 | P13: 26406 | Q13: 0.6738241309 | S13: 2018-2019 | T13: 16968 | U13: 16386 | V13: 33354 | W13: 0.5087245908 | X13: 25167 | Y13: 0.6742162355
A14: 1990 | B14: 1990-12-01 | C14: 490 | D14: 770 | E14: 1260 | F14: 0.3888888889 | G14: 1252 | H14: 0.3913738019 | K14: 2019 | L14: 17236 | M14: 16656 | N14: 33892 | O14: 0.5085565915 | P14: 25302 | Q14: 0.6812109715 | S14: 2019-2020 | T14: 18961 | U14: 16194 | V14: 35155 | W14: 0.5393542882 | X14: 26864 | Y14: 0.7058144729
A15: 1991 | B15: 1991-03-01 | C15: 457 | D15: 612 | E15: 1069 | F15: 0.4275023386 | G15: 1068 | H15: 0.4279026217 | K15: 2020 | L15: 19993 | M15: 15165 | N15: 35158 | O15: 0.5686614711 | P15: 27633 | Q15: 0.7235189809 | S15: 2020-2021 | T15: 20671 | U15: 14789 | V15: 35460 | W15: =T15/V15 -> 0.5829385223 | X15: 29334 | Y15: 0.7046771664
A16: 1991 | B16: 1991-06-01 | C16: 473 | D16: 677 | E16: 1150 | F16: 0.4113043478 | G16: 1086 | H16: 0.4355432781 | K16: 2021 | L16: 22258 | M16: =N16-L16 -> 15805 | N16: 38063 | O16: =L16/N16 -> 0.5847673594 | P16: 31900 | Q16: 0.6977429467 | S16: =LEFT(S17, 4)-1 & "-" & LEFT(S17, 4) -> 2021-2022 | T16: 24459 | U16: 17229 | V16: 41688 | W16: =T16/V16 -> 0.5867156016 | X16: 34286 | Y16: 0.7133815552
A17: 1991 | B17: 1991-09-01 | C17: 444 | D17: 596 | E17: 1040 | F17: 0.4269230769 | G17: 1181 | H17: 0.3759525826 | K17: =YEAR(LARGE(B:B, 4)) -> 2022 | L17: 25834 | M17: 18398 | N17: 44232 | O17: 0.5840567915 | P17: 35911 | Q17: 0.7193896021 | S17: =YEAR(MAX(B:B))-1 & "-" & YEAR(MAX(B:B)) -> 2022-2023 | T17: 27296 | U17: 19470 | V17: 46766 | W17: 0.5836718984 | X17: 38215 | Y17: 0.7142744995
A18: 1991 | B18: 1991-12-01 | C18: 506 | D18: 640 | E18: 1146 | F18: 0.4415357766 | G18: 1250 | H18: 0.4048
A19: 1992 | B19: 1992-03-01 | C19: 428 | D19: 465 | E19: 893 | F19: 0.4792833147 | G19: 1063 | H19: 0.4026340546
A20: 1992 | B20: 1992-06-01 | C20: 556 | D20: 632 | E20: 1188 | F20: 0.468013468 | G20: 1113 | H20: 0.4995507637
A21: 1992 | B21: 1992-09-01 | C21: 672 | D21: 593 | E21: 1265 | F21: 0.5312252964 | G21: 1316 | H21: 0.5106382979
A22: 1992 | B22: 1992-12-01 | C22: 840 | D22: 602 | E22: 1442 | F22: 0.5825242718 | G22: 1571 | H22: 0.5346912794
A23: 1993 | B23: 1993-03-01 | C23: 732 | D23: 574 | E23: 1306 | F23: 0.5604900459 | G23: 1629 | H23: 0.4493554328
A24: 1993 | B24: 1993-06-01 | C24: 800 | D24: 735 | E24: 1535 | F24: 0.5211726384 | G24: 1458 | H24: 0.548696845
A25: 1993 | B25: 1993-09-01 | C25: 763 | D25: 582 | E25: 1345 | F25: 0.5672862454 | G25: 1416 | H25: 0.5388418079
A26: 1993 | B26: 1993-12-01 | C26: 980 | D26: 637 | E26: 1617 | F26: 0.6060606061 | G26: 1866 | H26: 0.525187567
A27: 1994 | B27: 1994-03-01 | C27: 671 | D27: 606 | E27: 1277 | F27: 0.5254502741 | G27: 1288 | H27: 0.5209627329
A28: 1994 | B28: 1994-06-01 | C28: 772 | D28: 640 | E28: 1412 | F28: 0.5467422096 | G28: 1686 | H28: 0.4578884935
A29: 1994 | B29: 1994-09-01 | C29: 662 | D29: 668 | E29: 1330 | F29: 0.4977443609 | G29: 1302 | H29: 0.5084485407
A30: 1994 | B30: 1994-12-01 | C30: 1152 | D30: 719 | E30: 1871 | F30: 0.6157135222 | G30: 2352 | H30: 0.4897959184
A31: 1995 | B31: 1995-03-01 | C31: 989 | D31: 558 | E31: 1547 | F31: 0.6393018746 | G31: 1623 | H31: 0.6093653728
A32: 1995 | B32: 1995-06-01 | C32: 859 | D32: 831 | E32: 1690 | F32: 0.5082840237 | G32: 1756 | H32: 0.4891799544
A33: 1995 | B33: 1995-09-01 | C33: 976 | D33: 695 | E33: 1671 | F33: 0.5840813884 | G33: 1973 | H33: 0.4946781551
A34: 1995 | B34: 1995-12-01 | C34: 1205 | D34: 806 | E34: 2011 | F34: 0.5992043759 | G34: 2476 | H34: 0.4866720517
A35: 1996 | B35: 1996-03-01 | C35: 901 | D35: 813 | E35: 1714 | F35: 0.5256709452 | G35: 1837 | H35: 0.4904735983
A36: 1996 | B36: 1996-06-01 | C36: 1079 | D36: 1191 | E36: 2270 | F36: 0.4753303965 | G36: 2311 | H36: 0.466897447
A37: 1996 | B37: 1996-09-01 | C37: 815 | D37: 1194 | E37: 2009 | F37: 0.4056744649 | G37: 1690 | H37: 0.4822485207
A38: 1996 | B38: 1996-12-01 | C38: 983 | D38: 1375 | E38: 2358 | F38: 0.4168787108 | G38: 2001 | H38: 0.4912543728
A39: 1997 | B39: 1997-03-01 | C39: 995 | D39: 1241 | E39: 2236 | F39: 0.4449910555 | G39: 1650 | H39: 0.603030303
A40: 1997 | B40: 1997-06-01 | C40: 1107 | D40: =E40-C40 -> 1276 | E40: 2383 | F40: =C40/E40 -> 0.4645404952 | G40: 1868 | H40: 0.5926124197
A41: 1997 | B41: 1997-09-01 | C41: 1145 | D41: 1417 | E41: 2562 | F41: 0.4469164715 | G41: 1944 | H41: 0.5889917695
A42: 1997 | B42: 1997-12-01 | C42: 1455 | D42: 1655 | E42: 3110 | F42: 0.4678456592 | G42: 2566 | H42: 0.5670303975
A43: 1998 | B43: 1998-03-01 | C43: 1439 | D43: 1207 | E43: 2646 | F43: 0.5438397581 | G43: 2359 | H43: 0.6100042391
A44: 1998 | B44: 1998-06-01 | C44: 1539 | D44: 1503 | E44: 3042 | F44: 0.5059171598 | G44: 2599 | H44: 0.5921508272
A45: 1998 | B45: 1998-09-01 | C45: 1132 | D45: 1510 | E45: 2642 | F45: 0.4284632854 | G45: 2458 | H45: 0.460537022
A46: 1998 | B46: 1998-12-01 | C46: 736 | D46: 1760 | E46: 2496 | F46: 0.2948717949 | G46: 1844 | H46: 0.399132321
A47: 1999 | B47: 1999-03-01 | C47: 818 | D47: 1177 | E47: 1995 | F47: 0.4100250627 | G47: 1816 | H47: 0.4504405286
A48: 1999 | B48: 1999-06-01 | C48: 681 | D48: 1251 | E48: 1932 | F48: 0.352484472 | G48: 1677 | H48: 0.4060822898
A49: 1999 | B49: 1999-09-01 | C49: 683 | D49: 1238 | E49: 1921 | F49: 0.3555439875 | G49: 1675 | H49: 0.407761194
A50: 1999 | B50: 1999-12-01 | C50: 488 | D50: 861 | E50: 1349 | F50: 0.361749444 | G50: 1564 | H50: 0.3120204604
A51: 2000 | B51: 2000-03-01 | C51: 356 | D51: 699 | E51: 1055 | F51: 0.3374407583 | G51: 1276 | H51: 0.2789968652
A52: 2000 | B52: 2000-06-01 | C52: 641 | D52: 706 | E52: 1347 | F52: 0.4758723088 | G52: 1648 | H52: 0.3889563107
A53: 2000 | B53: 2000-09-01 | C53: 405 | D53: 715 | E53: 1120 | F53: 0.3616071429 | G53: 1081 | H53: 0.374653099
A54: 2000 | B54: 2000-12-01 | C54: 472 | D54: 925 | E54: 1397 | F54: 0.3378668576 | G54: 1591 | H54: 0.2966687618
A55: 2001 | B55: 2001-03-01 | C55: 690 | D55: 757 | E55: 1447 | F55: 0.4768486524 | G55: 1672 | H55: 0.4126794258
A56: 2001 | B56: 2001-06-01 | C56: 778 | D56: 987 | E56: 1765 | F56: 0.4407932011 | G56: 1640 | H56: 0.4743902439
A57: 2001 | B57: 2001-09-01 | C57: 805 | D57: 1010 | E57: 1815 | F57: 0.4435261708 | G57: 1676 | H57: 0.4803102625
A58: 2001 | B58: 2001-12-01 | C58: 749 | D58: 1234 | E58: 1983 | F58: 0.3777105396 | G58: 1727 | H58: 0.4337000579
A59: 2002 | B59: 2002-03-01 | C59: 532 | D59: 1165 | E59: 1697 | F59: 0.3134944019 | G59: 1450 | H59: 0.3668965517
A60: 2002 | B60: 2002-06-01 | C60: 731 | D60: 1370 | E60: 2101 | F60: 0.3479295574 | G60: 1849 | H60: 0.3953488372
A61: 2002 | B61: 2002-09-01 | C61: 707 | D61: 1368 | E61: 2075 | F61: 0.3407228916 | G61: 1673 | H61: 0.4225941423
A62: 2002 | B62: 2002-12-01 | C62: 882 | D62: 1632 | E62: 2514 | F62: 0.3508353222 | G62: 2071 | H62: 0.4258812168
A63: 2003 | B63: 2003-03-01 | C63: 928 | D63: 1131 | E63: 2059 | F63: 0.4507042254 | G63: 1918 | H63: 0.4838373306
A64: 2003 | B64: 2003-06-01 | C64: 1093 | D64: 1474 | E64: 2567 | F64: 0.4257888586 | G64: 2320 | H64: 0.4711206897
A65: 2003 | B65: 2003-09-01 | C65: 1295 | D65: 1169 | E65: 2464 | F65: 0.5255681818 | G65: 2484 | H65: 0.5213365539
A66: 2003 | B66: 2003-12-01 | C66: 1364 | D66: 1502 | E66: 2866 | F66: 0.4759246336 | G66: 2875 | H66: 0.4744347826
A67: 2004 | B67: 2004-03-01 | C67: 992 | D67: 1106 | E67: 2098 | F67: 0.4728312679 | G67: 2113 | H67: 0.4694746805
A68: 2004 | B68: 2004-06-01 | C68: 1170 | D68: 1197 | E68: 2367 | F68: 0.4942965779 | G68: 2573 | H68: 0.4547221143
A69: 2004 | B69: 2004-09-01 | C69: 1282 | D69: 1231 | E69: 2513 | F69: 0.5101472344 | G69: 2570 | H69: 0.4988326848
A70: 2004 | B70: 2004-12-01 | C70: 1380 | D70: 1375 | E70: 2755 | F70: 0.500907441 | G70: 3043 | H70: 0.4534998357
A71: 2005 | B71: 2005-03-01 | C71: 1174 | D71: 1188 | E71: 2362 | F71: 0.4970364098 | G71: 2681 | H71: 0.4378963073
A72: 2005 | B72: 2005-06-01 | C72: 1469 | D72: =E72-C72 -> 1744 | E72: 3213 | F72: =C72/E72 -> 0.4572051043 | G72: 2949 | H72: =IFERROR(C72/G72,"n/a") -> 0.498134961
A73: =YEAR(B73) -> 2005 | B73: 2005-09-01 | C73: 1865 | D73: 1837 | E73: 3702 | F73: 0.5037817396 | G73: 3636 | H73: 0.5129262926
A74: 2005 | B74: 2005-12-01 | C74: 2573 | D74: 2393 | E74: 4966 | F74: 0.518123238 | G74: 4480 | H74: 0.5743303571
A75: 2006 | B75: 2006-03-01 | C75: 2601 | D75: 2277 | E75: 4878 | F75: 0.5332103321 | G75: 4308 | H75: 0.6037604457
A76: 2006 | B76: 2006-06-01 | C76: 3699 | D76: 2414 | E76: 6113 | F76: 0.605103877 | G76: 5747 | H76: 0.6436401601
A77: 2006 | B77: 2006-09-01 | C77: 2876 | D77: 2070 | E77: 4946 | F77: 0.5814799838 | G77: 4567 | H77: 0.6297350558
A78: 2006 | B78: 2006-12-01 | C78: 3675 | D78: 2564 | E78: 6239 | F78: 0.5890367046 | G78: 5618 | H78: 0.6541473834
A79: 2007 | B79: 2007-03-01 | C79: 3307 | D79: 2184 | E79: 5491 | F79: 0.6022582408 | G79: 5301 | H79: 0.6238445576
A80: 2007 | B80: 2007-06-01 | C80: 3982 | D80: 2963 | E80: 6945 | F80: 0.573362131 | G80: 6613 | H80: 0.6021472856
A81: 2007 | B81: 2007-09-01 | C81: 3666 | D81: 2500 | E81: 6166 | F81: 0.5945507622 | G81: 5661 | H81: 0.6475887652
A82: 2007 | B82: 2007-12-01 | C82: 4319 | D82: 3215 | E82: 7534 | F82: 0.5732678524 | G82: 6798 | H82: 0.6353339217
A83: 2008 | B83: 2008-03-01 | C83: 4318 | D83: 2404 | E83: 6722 | F83: 0.6423683428 | G83: 6178 | H83: 0.6989316931
A84: 2008 | B84: 2008-06-01 | C84: 5047 | D84: 3732 | E84: 8779 | F84: 0.5748946349 | G84: 7343 | H84: 0.6873212583
A85: 2008 | B85: 2008-09-01 | C85: 5463 | D85: 3109 | E85: 8572 | F85: 0.6373075128 | G85: 7629 | H85: 0.7160833661
A86: 2008 | B86: 2008-12-01 | C86: 6710 | D86: 4332 | E86: 11042 | F86: 0.6076797682 | G86: 9494 | H86: 0.7067621656
A87: 2009 | B87: 2009-03-01 | C87: 5354 | D87: 3736 | E87: 9090 | F87: 0.5889988999 | G87: 7379 | H87: 0.7255725708
A88: 2009 | B88: 2009-06-01 | C88: 5879 | D88: 3394 | E88: 9273 | F88: 0.6339911571 | G88: 9564 | H88: 0.6147009619
A89: 2009 | B89: 2009-09-01 | C89: 5100 | D89: 2861 | E89: 7961 | F89: 0.6406230373 | G89: 7254 | H89: 0.7030603805
A90: 2009 | B90: 2009-12-01 | C90: 5385 | D90: 3941 | E90: 9326 | F90: 0.5774179713 | G90: 8191 | H90: 0.6574288854
A91: 2010 | B91: 2010-03-01 | C91: 5335 | D91: 2753 | E91: 8088 | F91: 0.6596191889 | G91: 7368 | H91: 0.7240770901
A92: 2010 | B92: 2010-06-01 | C92: 6108 | D92: 3702 | E92: 9810 | F92: 0.6226299694 | G92: 8594 | H92: 0.7107284152
A93: 2010 | B93: 2010-09-01 | C93: 6452 | D93: 3968 | E93: 10420 | F93: 0.619193858 | G93: 8532 | H93: 0.7562119081
A94: 2010 | B94: 2010-12-01 | C94: 6801 | D94: 4742 | E94: 11543 | F94: 0.5891882526 | G94: 9284 | H94: 0.7325506247
A95: 2011 | B95: 2011-03-01 | C95: 6577 | D95: 3948 | E95: 10525 | F95: 0.6248931116 | G95: 8785 | H95: 0.7486624929
A96: 2011 | B96: 2011-06-01 | C96: 8463 | D96: 5896 | E96: 14359 | F96: 0.5893864475 | G96: 11054 | H96: 0.7656052108
A97: 2011 | B97: 2011-09-01 | C97: 9539 | D97: 7759 | E97: 17298 | F97: 0.5514510348 | G97: 12246 | H97: 0.778948228
A98: 2011 | B98: 2011-12-01 | C98: 10452 | D98: 9488 | E98: 19940 | F98: 0.5241725176 | G98: 13673 | H98: 0.7644262415
A99: 2012 | B99: 2012-03-01 | C99: 10922 | D99: 8690 | E99: 19612 | F99: 0.5569039364 | G99: 13781 | H99: 0.7925404542
A100: 2012 | B100: 2012-06-01 | C100: 14158 | D100: 10989 | E100: 25147 | F100: 0.5630095041 | G100: 17379 | H100: 0.8146613729
A101: 2012 | B101: 2012-09-01 | C101: 12757 | D101: 10919 | E101: 23676 | F101: 0.5388156783 | G101: 15594 | H101: 0.818071053
A102: 2012 | B102: 2012-12-01 | C102: 13203 | D102: 12842 | E102: 26045 | F102: 0.5069303129 | G102: 16372 | H102: 0.8064378207
A103: 2013 | B103: 2013-03-01 | C103: 9733 | D103: 10901 | E103: 20634 | F103: 0.4716971988 | G103: 12082 | H103: 0.8055785466
A104: 2013 | B104: 2013-06-01 | C104: 12507 | D104: =E104-C104 -> 11847 | E104: 24354 | F104: =C104/E104 -> 0.5135501355 | G104: 15182 | H104: 0.8238045053
A105: 2013 | B105: 2013-09-01 | C105: 12245 | D105: 11958 | E105: 24203 | F105: 0.5059290171 | G105: 14810 | H105: 0.826806212
A106: 2013 | B106: 2013-12-01 | C106: 12301 | D106: 12406 | E106: 24707 | F106: 0.4978750961 | G106: 14913 | H106: 0.8248508013
A107: 2014 | B107: 2014-03-01 | C107: 10246 | D107: 8846 | E107: 19092 | F107: 0.5366645715 | G107: 12609 | H107: 0.8125941788
A108: 2014 | B108: 2014-06-01 | C108: 11967 | D108: 10423 | E108: 22390 | F108: 0.5344796784 | G108: 14636 | H108: 0.8176414321
A109: 2014 | B109: 2014-09-01 | C109: 11785 | D109: 9022 | E109: 20807 | F109: 0.5663959244 | G109: 14505 | H109: 0.8124784557
A110: 2014 | B110: 2014-12-01 | C110: 12213 | D110: 9044 | E110: 21257 | F110: 0.5745401515 | G110: 15181 | H110: 0.8044924577
A111: 2015 | B111: 2015-03-01 | C111: 10737 | D111: 6074 | E111: 16811 | F111: 0.6386889537 | G111: 12835 | H111: 0.836540709
A112: 2015 | B112: 2015-06-01 | C112: 11255 | D112: 5987 | E112: 17242 | F112: 0.6527665004 | G112: 13707 | H112: 0.8211132998
A113: 2015 | B113: 2015-09-01 | C113: 9813 | D113: 5075 | E113: 14888 | F113: 0.6591214401 | G113: 12165 | H113: 0.8066584464
A114: 2015 | B114: 2015-12-01 | C114: 10579 | D114: 5648 | E114: 16227 | F114: 0.6519381278 | G114: 13162 | H114: 0.803753229
A115: 2016 | B115: 2016-03-01 | C115: 7824 | D115: 3576 | E115: 11400 | F115: 0.6863157895 | G115: 9666 | H115: 0.8094351335
A116: 2016 | B116: 2016-06-01 | C116: 6995 | D116: 3879 | E116: 10874 | F116: 0.6432775428 | G116: 9149 | H116: 0.7645644333
A117: 2016 | B117: 2016-09-01 | C117: 5869 | D117: 4200 | E117: 10069 | F117: 0.5828781408 | G117: 7593 | H117: 0.7729487686
A118: 2016 | B118: 2016-12-01 | C118: 6192 | D118: 4390 | E118: 10582 | F118: 0.5851445851 | G118: 8193 | H118: 0.7557671183
A119: 2017 | B119: 2017-03-01 | C119: 4820 | D119: 3771 | E119: 8591 | F119: 0.561052264 | G119: 6616 | H119: 0.7285368803
A120: 2017 | B120: 2017-06-01 | C120: 5349 | D120: 4159 | E120: 9508 | F120: 0.5625788809 | G120: 7434 | H120: 0.7195318805
A121: 2017 | B121: 2017-09-01 | C121: 5055 | D121: 4310 | E121: 9365 | F121: 0.5397757608 | G121: 7211 | H121: 0.7010123423
A122: 2017 | B122: 2017-12-01 | C122: 5234 | D122: 4639 | E122: 9873 | F122: 0.5301326851 | G122: 7546 | H122: 0.6936125099
A123: 2018 | B123: 2018-03-01 | C123: 4268 | D123: 3907 | E123: 8175 | F123: 0.5220795107 | G123: 6436 | H123: 0.6631448104
A124: 2018 | B124: 2018-06-01 | C124: 4616 | D124: 4359 | E124: 8975 | F124: 0.5143175487 | G124: 6793 | H124: 0.6795230384
A125: 2018 | B125: 2018-09-01 | C125: 4249 | D125: 4173 | E125: 8422 | F125: 0.5045119924 | G125: 6312 | H125: 0.6731622307
A126: 2018 | B126: 2018-12-01 | C126: 4660 | D126: 4363 | E126: 9023 | F126: 0.5164579408 | G126: 6865 | H126: 0.6788055353
A127: 2019 | B127: 2019-03-01 | C127: 3730 | D127: 3575 | E127: 7305 | F127: 0.5106091718 | G127: 5378 | H127: 0.6935663816
A128: 2019 | B128: 2019-06-01 | C128: 4329 | D128: 4275 | E128: 8604 | F128: 0.5031380753 | G128: 6612 | H128: 0.6547186933
A129: 2019 | B129: 2019-09-01 | C129: 4429 | D129: 4208 | E129: 8637 | F129: 0.5127937941 | G129: 6287 | H129: 0.7044695403
A130: 2019 | B130: 2019-12-01 | C130: 4748 | D130: 4598 | E130: 9346 | F130: 0.5080248235 | G130: 7025 | H130: 0.6758718861
A131: 2020 | B131: 2020-03-01 | C131: 4592 | D131: 3399 | E131: 7991 | F131: 0.5746464773 | G131: 6304 | H131: 0.7284263959
A132: 2020 | B132: 2020-06-01 | C132: 5192 | D132: =E132-C132 -> 3989 | E132: 9181 | F132: =C132/E132 -> 0.565515739 | G132: 7248 | H132: 0.7163355408
A133: 2020 | B133: 2020-09-01 | C133: 4954 | D133: 3653 | E133: 8607 | F133: 0.5755780179 | G133: 6720 | H133: 0.737202381
A134: 2020 | B134: 2020-12-01 | C134: 5255 | D134: 4124 | E134: 9379 | F134: 0.5602942744 | G134: 7361 | H134: 0.7138975683
A135: 2021 | B135: 2021-03-01 | C135: 4949 | D135: 3111 | E135: 8060 | F135: 0.6140198511 | G135: 6991 | H135: 0.7079101702
A136: 2021 | B136: 2021-06-01 | C136: 5513 | D136: 3901 | E136: 9414 | F136: 0.5856171659 | G136: 8262 | H136: =IFERROR(C136/G136,"n/a") -> 0.667271847
A137: 2021 | B137: 2021-09-01 | C137: 5538 | D137: =E137-C137 -> 3860 | E137: 9398 | F137: =C137/E137 -> 0.5892743137 | G137: 7997 | H137: 0.6925096911
A138: =YEAR(B138) -> 2021 | B138: 2021-12-01 | C138: 6258 | D138: 4933 | E138: 11191 | F138: 0.5591993566 | G138: 8650 | H138: 0.7234682081
A139: 2022 | B139: 2022-03-01 | C139: 5876 | D139: 3746 | E139: 9622 | F139: 0.6106838495 | G139: 7971 | H139: 0.7371722494
A140: 2022 | B140: 2022-06-01 | C140: 6787 | D140: 4690 | E140: 11477 | F140: 0.5913566263 | G140: 9668 | H140: 0.7020066198
A141: 2022 | B141: 2022-09-01 | C141: 6199 | D141: 4386 | E141: 10585 | F141: 0.5856400567 | G141: 8476 | H141: 0.7313591317
A142: 2022 | B142: 2022-12-01 | C142: 6972 | D142: 5576 | E142: 12548 | F142: 0.5556263946 | G142: 9796 | H142: 0.711719069
A143: 2023 | B143: 2023-03-01 | C143: 6592 | D143: 4198 | E143: 10790 | F143: 0.6109360519 | G143: 8817 | H143: 0.7476465918
A144: 2023 | B144: 2023-06-01 | C144: 7533 | D144: 5310 | E144: 12843 | F144: 0.5865451997 | G144: 11126 | H144: 0.6770627359
A145: 1900
A146: 1900
A147: 1900
A148: 1900
A149: 1900
A150: 1900
A151: 1900
A152: 1900
A153: 1900
A154: 1900
A155: 1900
A156: 1900
A157: 1900
A158: 1900
A159: 1900
A160: 1900
A161: 1900
A162: 1900
A163: 1900
A164: 1900
A165: 1900
A166: 1900
A167: 1900
A168: 1900
A169: 1900
A170: 1900
A171: 1900
A172: 1900
A173: 1900
A174: 1900
A175: 1900
A176: 1900
A177: 1900
A178: 1900
A179: 1900
A180: 1900
A181: 1900
A182: 1900
A183: 1900
A184: 1900
A185: 1900
A186: 1900
A187: 1900
A188: 1900
A189: 1900
A190: 1900
A191: 1900
A192: 1900
A193: 1900
A194: 1900
A195: 1900
A196: 1900
A197: 1900
A198: 1900
A199: 1900
A200: 1900
A201: 1900
A202: =YEAR(B202) -> 1900
A203: 1900
A204: 1900
A205: 1900
... 302 more rows

Sheet Min. Expl. By Commodity (Data) (hidden)
C1: Year | D1: Commodity | E1: Value | X1: State | Y1: Year | Z1: Commodity | AA1: Value | AB1: FY H1 | AH1: =MIN($C$2:$C$4) -> 2019
C2: 2019 | D2: Copper | E2: 233.9 | X2: WA | Y2: 2018-19 | Z2: Copper | AA2: 157.8 | AB2: 2018
C3: 2019 | D3: Silver, Lead, Zinc | E3: 22.7 | X3: WA | Y3: 2018-19 | Z3: Silver, Lead, Zinc | AA3: 24.1 | AB3: 2018 | AG3: =IFERROR(IF(#REF!=$AF$1,IF($AH$1<=(AG2-1),AG2-1,""),IF($AH$1=VALUE(LEFT(AG2,4)),"",CONCATENATE(VALUE(LEFT(AG2,4))-1,"-",RIGHT(LEFT(AG2,4),2)))),"") -> 
C4: 2019 | D4: Nickel, cobalt | E4: 145.6 | X4: WA | Y4: 2018-19 | Z4: Nickel, Cobalt | AA4: 116.8 | AB4: 2018 | AG4: =IFERROR(IF(#REF!=$AF$1,IF($AH$1<=(AG3-1),AG3-1,""),IF($AH$1=VALUE(LEFT(AG3,4)),"",CONCATENATE(VALUE(LEFT(AG3,4))-1,"-",RIGHT(LEFT(AG3,4),2)))),"") -> 
C7: Mineral Exploration Expenditure By Commodity ($ Million)
A8: Commodity | B8: Offset | D8: Copper | G8: Silver, Lead, Zinc | J8: Nickel, Cobalt | M8: Gold | P8: Iron Ore | S8: Mineral Sands | V8: Uranium | Y8: Coal | AB8: Diamonds | AE8: Other | AH8: Total
A9: Total | B9: 30 | C9: Quarter | D9: Western Australia | E9: Rest of Australia | F9: Australia | G9: Western Australia | H9: Rest of Australia | I9: Australia | J9: Western Australia | K9: Rest of Australia | L9: Australia | M9: Western Australia | N9: Rest of Australia | O9: Australia | P9: Western Australia | Q9: Rest of Australia | R9: Australia | S9: Western Australia | T9: Rest of Australia | U9: Australia | V9: Western Australia | W9: Rest of Australia | X9: Australia | Y9: Western Australia | Z9: Rest of Australia | AA9: Australia | AB9: Western Australia | AC9: Rest of Australia | AD9: Australia | AE9: Western Australia | AF9: Rest of Australia | AG9: Australia | AH9: Western Australia | AI9: Rest of Australia | AJ9: Australia
A10: Copper | B10: 0 | C10: 1999-09-01 | D10: 1.2 | E10: =IF(OR(ISBLANK(F10), ISBLANK(D10)), "", F10-D10) -> 5.3 | F10: 6.5 | G10: 6.3 | H10: =IF(OR(ISBLANK(I10), ISBLANK(G10)), "", I10-G10) -> 9.8 | I10: 16.1 | J10: 8.6 | K10: =IF(OR(ISBLANK(L10), ISBLANK(J10)), "", L10-J10) -> 2.5 | L10: 11.1 | M10: 67.9 | N10: =IF(OR(ISBLANK(O10), ISBLANK(M10)), "", O10-M10) -> 33.6 | O10: 101.5 | P10: 8.8 | Q10: =IF(OR(ISBLANK(R10), ISBLANK(P10)), "", R10-P10) -> 0 | R10: 8.8 | S10: 1.9 | T10: =IF(OR(ISBLANK(U10), ISBLANK(S10)), "", U10-S10) -> 2.6 | U10: 4.5 | V10: 0.5 | W10: =IF(OR(ISBLANK(X10), ISBLANK(V10)), "", X10-V10) -> 4.3 | X10: 4.8 | Y10: 0 | Z10: =IF(OR(ISBLANK(AA10), ISBLANK(Y10)), "", AA10-Y10) -> 9.5 | AA10: 9.5 | AB10: 10.6 | AC10: =IF(OR(ISBLANK(AD10), ISBLANK(AB10)), "", AD10-AB10) -> 1.6 | AD10: 12.2 | AE10: 2.1 | AF10: =IF(OR(ISBLANK(AG10), ISBLANK(AE10)), "", AG10-AE10) -> 3 | AG10: 5.1 | AH10: 107.9 | AI10: =IF(OR(ISBLANK(AJ10), ISBLANK(AH10)), "", AJ10-AH10) -> 72.2 | AJ10: 180.1
A11: Silver, Lead, Zinc | B11: 3 | C11: 1999-12-01 | D11: 1.6 | E11: 6.7 | F11: 8.3 | G11: 6.9 | H11: 7.8 | I11: 14.7 | J11: 18 | K11: 4 | L11: 22 | M11: 61.3 | N11: 30.3 | O11: 91.6 | S11: 1.9 | T11: 2.9 | U11: 4.8 | X11: 3.7 | AA11: 9.2 | AB11: 7.4 | AC11: 1.8 | AD11: 9.2 | AH11: 108.8 | AI11: 68.1 | AJ11: 176.9
A12: Nickel, Cobalt | B12: 6 | C12: 2000-03-01 | D12: 1.5 | E12: 5 | F12: 6.5 | G12: 4.7 | H12: 5.3 | I12: 10 | J12: 18.6 | K12: 3 | L12: 21.6 | M12: 47.2 | N12: 24.7 | O12: 71.9 | P12: 5 | Q12: 0 | R12: 5 | S12: 2.1 | T12: 2.5 | U12: 4.6 | AA12: 7.9 | AB12: 2.8 | AC12: 0.7 | AD12: 3.5 | AE12: 2.8 | AH12: 85 | AI12: 51.7 | AJ12: 136.7
A13: Gold | B13: 9 | C13: 2000-06-01 | D13: 0.7 | E13: 6.3 | F13: 7 | G13: 4.8 | H13: 9.8 | I13: 14.6 | J13: 15.5 | K13: 2.9 | L13: 18.4 | M13: 76.6 | N13: 33.2 | O13: 109.8 | U13: 7.6 | Y13: 0 | Z13: 8.7 | AA13: 8.7 | AB13: 4 | AC13: 0.9 | AD13: 4.9 | AE13: 1.6 | AF13: 1.5 | AG13: 3.1 | AH13: 113.3 | AI13: 69.4 | AJ13: 182.7
A14: Iron Ore | B14: 12 | C14: 2000-09-01 | D14: 0.4 | E14: 6.5 | F14: 6.9 | G14: 5.5 | H14: 9.4 | I14: 14.9 | J14: 14.3 | K14: 2.8 | L14: 17.1 | M14: 64.4 | N14: 28.1 | O14: 92.5 | P14: 7.2 | Q14: 0 | R14: 7.2 | U14: 4.9 | AA14: 9.2 | AB14: 9.2 | AC14: 2.1 | AD14: 11.3 | AE14: 1.5 | AH14: 104.4 | AI14: 65.4 | AJ14: 169.8
A15: Mineral Sands | B15: 15 | C15: 2000-12-01 | D15: 0.7 | E15: 7 | F15: 7.7 | G15: 6.2 | H15: 10.1 | I15: 16.3 | J15: 18.5 | K15: 5.6 | L15: 24.1 | M15: 71.6 | N15: 25.9 | O15: 97.5 | P15: 7.3 | Q15: 0.1 | R15: 7.4 | S15: 1.8 | T15: 4.3 | U15: 6.1 | V15: 0 | W15: 2.9 | X15: 2.9 | Y15: 0.1 | Z15: 9.2 | AA15: 9.3 | AB15: 8.2 | AC15: 1.5 | AD15: 9.7 | AE15: 3.5 | AF15: 2.5 | AG15: 6 | AH15: 118 | AI15: 69.2 | AJ15: 187.2
A16: Uranium | B16: 18 | C16: 2001-03-01 | D16: 0.6 | E16: 5.2 | F16: 5.8 | G16: 3.7 | H16: 9.4 | I16: 13.1 | J16: 12.3 | K16: 2.4 | L16: 14.7 | M16: 62.2 | N16: 21.1 | O16: 83.3 | P16: 3.4 | Q16: 0 | R16: 3.4 | S16: 2 | T16: 3.8 | U16: 5.8 | V16: 0 | W16: 1.1 | X16: 1.1 | AA16: 7.6 | AD16: 4.1 | AE16: 2.8 | AF16: 1.8 | AG16: 4.6 | AH16: 90.8 | AI16: 52.7 | AJ16: 143.5
A17: Coal | B17: 21 | C17: 2001-06-01 | D17: 1 | E17: 11.3 | F17: 12.3 | G17: 3.9 | H17: 11.6 | I17: 15.5 | J17: 15.4 | K17: 1.5 | L17: 16.9 | M17: 73.7 | N17: 23.1 | O17: 96.8 | P17: 5.3 | Q17: 0.1 | R17: 5.4 | S17: 2 | T17: 4.8 | U17: 6.8 | V17: 0 | AA17: 15.1 | AB17: 5.6 | AC17: 1.1 | AD17: 6.7 | AH17: 110.9 | AI17: 71.9 | AJ17: 182.8
A18: Diamonds | B18: 24 | C18: 2001-09-01 | D18: 1.4 | E18: 8.6 | F18: 10 | G18: 3.4 | H18: 8 | I18: 11.4 | J18: 13.3 | K18: 1.6 | L18: 14.9 | M18: 64.8 | N18: 21.6 | O18: 86.4 | P18: 4.4 | Q18: 0 | R18: 4.4 | S18: 2 | T18: 5.8 | U18: 7.8 | V18: 0 | W18: 3 | X18: 3 | AA18: 11.9 | AD18: 9.4 | AE18: 5.9 | AF18: 2.3 | AG18: 8.2 | AH18: 103.3 | AI18: 64.1 | AJ18: 167.4
A19: Other | B19: 27 | C19: 2001-12-01 | D19: 1.4 | E19: 8.9 | F19: 10.3 | G19: 2.6 | H19: 6.7 | I19: 9.3 | J19: 14.7 | K19: 2 | L19: 16.7 | M19: 60.4 | N19: 23.8 | O19: 84.2 | P19: 6.9 | Q19: 0 | R19: 6.9 | U19: 8.7 | V19: 0 | W19: 2.1 | X19: 2.1 | AA19: 14.4 | AB19: 9.8 | AC19: 0.9 | AD19: 10.7 | AE19: 6 | AF19: 1.3 | AG19: 7.3 | AH19: 103.5 | AI19: 67.2 | AJ19: 170.7
C20: 2002-03-01 | D20: 0.6 | E20: 7.5 | F20: 8.1 | G20: 2.1 | H20: 4.6 | I20: 6.7 | J20: 8.5 | K20: 1.3 | L20: 9.8 | M20: 53.5 | N20: 20.4 | O20: 73.9 | P20: 7.4 | Q20: 0 | R20: 7.4 | S20: 2.4 | T20: 4.6 | U20: 7 | V20: 0 | W20: 0.9 | X20: 0.9 | Y20: 0 | Z20: 10.2 | AA20: 10.2 | AB20: 4.3 | AC20: 1.4 | AD20: 5.7 | AE20: 3.7 | AF20: 0.9 | AG20: 4.6 | AH20: 82.5 | AI20: 51.7 | AJ20: 134.2
C21: 2002-06-01 | D21: 1.1 | E21: 12 | F21: 13.1 | G21: 2.3 | H21: 8 | I21: 10.3 | J21: 10.6 | K21: 1.7 | L21: 12.3 | M21: 59.4 | N21: 27.4 | O21: 86.8 | P21: 6.5 | Q21: 0 | R21: 6.5 | S21: 2.3 | T21: 7.4 | U21: 9.7 | X21: 2.7 | AA21: 13.9 | AB21: 7.1 | AC21: 2.5 | AD21: 9.6 | AE21: 1.9 | AF21: 1.5 | AG21: 3.4 | AH21: 91.8 | AI21: 76.5 | AJ21: 168.3
C22: 2002-09-01 | D22: 0.6 | E22: 10.5 | F22: 11.1 | G22: 2.9 | H22: 5.9 | I22: 8.8 | J22: 12.5 | K22: 2.2 | L22: 14.7 | M22: 70.1 | N22: 25.1 | O22: 95.2 | R22: 9 | S22: 1.9 | T22: 6.4 | U22: 8.3 | X22: 2.5 | AA22: 16 | AB22: 7.3 | AC22: 3.1 | AD22: 10.4 | AE22: 4.2 | AF22: 2.8 | AG22: 7 | AH22: 110.1 | AI22: 72.8 | AJ22: 182.9
C23: 2002-12-01 | D23: 1.1 | E23: 9 | F23: 10.1 | G23: 4.4 | H23: 5.9 | I23: 10.3 | J23: 13.8 | K23: 4.1 | L23: 17.9 | M23: 69.8 | N23: 29.5 | O23: 99.3 | R23: 14.1 | S23: 1.8 | T23: 3.9 | U23: 5.7 | X23: 2 | AA23: 21.1 | AB23: 3.9 | AC23: 3 | AD23: 6.9 | AE23: 2.6 | AF23: 2.8 | AG23: 5.4 | AH23: 111.1 | AI23: 81.7 | AJ23: 192.8
C24: 2003-03-01 | D24: 1 | E24: 7.6 | F24: 8.6 | G24: 2.2 | H24: 4.5 | I24: 6.7 | J24: 10.1 | K24: 2.2 | L24: 12.3 | M24: 58.5 | N24: 26.1 | O24: 84.6 | P24: 11.2 | Q24: 0 | R24: 11.2 | S24: 1.8 | T24: 3.5 | U24: 5.3 | X24: 0.7 | AA24: 14 | AB24: 2.8 | AC24: 1.8 | AD24: 4.6 | AE24: 3 | AF24: 2.5 | AG24: 5.5 | AH24: 90.8 | AI24: 62.6 | AJ24: 153.4
C25: 2003-06-01 | F25: 10 | I25: 10.9 | J25: 17.7 | K25: 3.3 | L25: 21 | M25: 67.2 | N25: 32.1 | O25: 99.3 | R25: 10.2 | U25: 8 | X25: 1.7 | AA25: 26.7 | AB25: 3.8 | AC25: 4.2 | AD25: 8 | AE25: 3.1 | AF25: 4.8 | AG25: 7.9 | AH25: 111.6 | AI25: 92.1 | AJ25: 203.7
C26: 2003-09-01 | D26: 0.3 | E26: 6.7 | F26: 7 | G26: 2.6 | H26: 3.2 | I26: 5.8 | J26: 12.9 | K26: 1.5 | L26: 14.4 | M26: 68 | N26: 28.7 | O26: 96.7 | R26: 13.1 | S26: 3 | T26: 3.9 | U26: 6.9 | V26: 0 | W26: 3.5 | X26: 3.5 | AA26: 19.9 | AB26: 4.9 | AC26: 2.2 | AD26: 7.1 | AE26: 3.6 | AF26: 1.8 | AG26: 5.4 | AH26: 108.5 | AI26: 71.2 | AJ26: 179.7
C27: 2003-12-01 | F27: 8.9 | I27: 6.3 | J27: 20 | K27: 2.8 | L27: 22.8 | M27: 66.4 | N27: 26.7 | O27: 93.1 | R27: 17.6 | S27: 2.4 | T27: 3.7 | U27: 6.1 | X27: 3 | AA27: 24.1 | AB27: 5.8 | AC27: 2.1 | AD27: 7.9 | AE27: 5.9 | AF27: 3.8 | AG27: 9.7 | AH27: 122 | AI27: 77.5 | AJ27: 199.5
C28: 2004-03-01 | D28: 0.7 | E28: 7.5 | F28: 8.2 | G28: 0.7 | H28: 5.5 | I28: 6.2 | J28: 14.3 | K28: 1.2 | L28: 15.5 | M28: 59.3 | N28: 31.9 | O28: 91.2 | R28: 13.8 | S28: 1.6 | T28: 2 | U28: 3.6 | X28: 1.3 | AA28: 13.7 | AB28: 2.7 | AC28: 2.3 | AD28: 5 | AE28: 3.2 | AF28: 5.6 | AG28: 8.8 | AH28: 96.5 | AI28: 70.8 | AJ28: 167.3
C29: 2004-06-01 | D29: 1.2 | E29: 12.6 | F29: 13.8 | G29: 0.6 | H29: 10.9 | I29: 11.5 | J29: 23.4 | K29: 8.1 | L29: 31.5 | M29: 83 | N29: 33.1 | O29: 116.1 | P29: 19.1 | Q29: 0.1 | R29: 19.2 | S29: 3.6 | T29: 3.6 | U29: 7.2 | X29: 2.8 | AA29: 23.8 | AB29: 3.5 | AC29: 2.4 | AD29: 5.9 | AE29: 4.1 | AF29: 4.5 | AG29: 8.6 | AH29: 138.8 | AI29: 101.4 | AJ29: 240.2
C30: 2004-09-01 | F30: 15.5 | I30: 7.8 | J30: 28.7 | K30: 2.1 | L30: 30.8 | M30: 73.9 | N30: 36 | O30: 109.9 | P30: 29.6 | Q30: 0.2 | R30: 29.8 | U30: 8 | X30: 6.1 | Y30: 0.4 | Z30: 27 | AA30: 27.4 | AB30: 4.6 | AC30: 2.3 | AD30: 6.9 | AE30: 4.9 | AF30: 3.9 | AG30: 8.8 | AH30: 147.9 | AI30: 103.2 | AJ30: 251.1
C31: 2004-12-01 | D31: 1.9 | E31: 16.4 | F31: 18.3 | G31: 0.6 | H31: 7.3 | I31: 7.9 | J31: 38 | K31: 2.4 | L31: 40.4 | M31: 67.5 | N31: 29.3 | O31: 96.8 | P31: 35 | Q31: 0.1 | R31: 35.1 | U31: 5.9 | V31: 0.1 | W31: 4.5 | X31: 4.6 | AA31: 32 | AB31: 5.3 | AC31: 2.3 | AD31: 7.6 | AE31: 5 | AF31: 7.2 | AG31: 12.2 | AH31: 156.7 | AI31: 104.1 | AJ31: 260.8
C32: 2005-03-01 | F32: 15.2 | I32: 7 | J32: 40.9 | K32: 2.4 | L32: 43.3 | M32: 54.1 | N32: 27.8 | O32: 81.9 | P32: 27.3 | Q32: 0 | R32: 27.3 | S32: 3.6 | T32: 3.1 | U32: 6.7 | X32: 3.2 | AA32: 29.8 | AB32: 2.2 | AC32: 1.4 | AD32: 3.6 | AE32: 3.3 | AF32: 4.5 | AG32: 7.8 | AH32: 134.4 | AI32: 91.4 | AJ32: 225.8
C33: 2005-06-01 | D33: 1.4 | E33: 21 | F33: 22.4 | G33: 1.8 | H33: 6.8 | I33: 8.6 | J33: 41.1 | K33: 3 | L33: 44.1 | M33: 64.1 | N33: 39 | O33: 103.1 | P33: 45.1 | Q33: 0.6 | R33: 45.7 | S33: 3.6 | T33: 3.4 | U33: 7 | V33: 0.1 | W33: 6.7 | X33: 6.8 | Y33: 0.3 | Z33: 37.3 | AA33: 37.6 | AB33: 3.8 | AC33: 1.8 | AD33: 5.6 | AE33: 5.6 | AF33: 4.2 | AG33: 9.8 | AH33: 167 | AI33: 123.7 | AJ33: 290.7
C34: 2005-09-01 | D34: 2.3 | E34: 29.2 | F34: 31.5 | G34: 1.7 | H34: 11.4 | I34: 13.1 | J34: 36.5 | K34: 3.5 | L34: 40 | M34: 62 | N34: 38 | O34: 100 | P34: 35.9 | Q34: 0.4 | R34: 36.3 | S34: 3.1 | T34: 5 | U34: 8.1 | V34: 0.2 | W34: 11.7 | X34: 11.9 | Y34: 0.2 | Z34: 32 | AA34: 32.2 | AB34: 4 | AC34: 2.3 | AD34: 6.3 | AE34: 8.4 | AF34: 4.3 | AG34: 12.7 | AH34: 154.4 | AI34: 137.6 | AJ34: 292
C35: 2005-12-01 | D35: 2.2 | E35: 34.5 | F35: 36.7 | G35: 4.4 | H35: 13.4 | I35: 17.8 | J35: 33.7 | K35: 7 | L35: 40.7 | M35: 61.1 | N35: 38 | O35: 99.1 | P35: 41.4 | Q35: 1.5 | R35: 42.9 | S35: 3.6 | T35: 4.7 | U35: 8.3 | X35: 15.8 | AA35: 46 | AB35: 4.6 | AC35: 2.7 | AD35: 7.3 | AE35: 6.5 | AF35: 6.4 | AG35: 12.9 | AH35: 158 | AI35: 169.6 | AJ35: 327.6
C36: 2006-03-01 | D36: 2 | E36: 22.6 | F36: 24.6 | G36: 2.1 | H36: 12.7 | I36: 14.8 | J36: 19.7 | K36: 9.6 | L36: 29.3 | M36: 53.7 | N36: 36.3 | O36: 90 | P36: 31 | Q36: 1.4 | R36: 32.4 | S36: 2.9 | T36: 2.7 | U36: 5.6 | X36: 10.1 | Y36: 0.5 | Z36: 41 | AA36: 41.5 | AD36: 4.4 | AE36: 6.8 | AF36: 4.4 | AG36: 11.2 | AH36: 121.5 | AI36: 142.2 | AJ36: 263.7
C37: 2006-06-01 | D37: 2.9 | E37: 43.8 | F37: 46.7 | G37: 5.8 | H37: 19.7 | I37: 25.5 | J37: 25 | K37: 11 | L37: 36 | M37: 63.5 | N37: 47 | O37: 110.5 | P37: 47.4 | Q37: 2.3 | R37: 49.7 | S37: 3.2 | T37: 4 | U37: 7.2 | X37: 18.3 | AA37: 46.7 | AB37: 2.5 | AC37: 2.1 | AD37: 4.6 | AE37: 4.3 | AF37: 8 | AG37: 12.3 | AH37: 156.3 | AI37: 201.1 | AJ37: 357.4
C38: 2006-09-01 | D38: 4.5 | E38: 48.2 | F38: 52.7 | G38: 8.7 | H38: 17.6 | I38: 26.3 | J38: 31.3 | K38: 8.5 | L38: 39.8 | M38: 64.7 | N38: 39.6 | O38: 104.3 | P38: 66.4 | Q38: 3.7 | R38: 70.1 | S38: 3.8 | T38: 3.9 | U38: 7.7 | V38: 1.7 | W38: 23 | X38: 24.7 | AA38: 50.5 | AB38: 4.7 | AC38: 3.9 | AD38: 8.6 | AG38: 9.9 | AH38: 190.2 | AI38: 204.4 | AJ38: 394.6
C39: 2006-12-01 | D39: 4.8 | E39: 48.7 | F39: 53.5 | G39: 8.8 | H39: 25.3 | I39: 34.1 | J39: 37.1 | K39: 5.7 | L39: 42.8 | M39: 77.8 | N39: 47.2 | O39: 125 | P39: 71 | Q39: 1.5 | R39: 72.5 | S39: 4.2 | T39: 6.6 | U39: 10.8 | X39: 27.6 | AA39: 60 | AB39: 6.7 | AC39: 3.5 | AD39: 10.2 | AE39: 4.9 | AF39: 7 | AG39: 11.9 | AH39: 217.3 | AI39: 230.9 | AJ39: 448.2
C40: 2007-03-01 | D40: 4.7 | E40: 46.5 | F40: 51.2 | G40: 9.5 | H40: 24 | I40: 33.5 | J40: 37.4 | K40: 3.2 | L40: 40.6 | M40: 63.7 | N40: 39.9 | O40: 103.6 | P40: 49.6 | Q40: 4.4 | R40: 54 | S40: 4.2 | T40: 5.3 | U40: 9.5 | V40: 2.9 | W40: 21.4 | X40: 24.3 | AA40: 38.8 | AD40: 3.3 | AE40: 6.1 | AF40: 4.5 | AG40: 10.6 | AH40: 179.9 | AI40: 189.4 | AJ40: 369.3
C41: 2007-06-01 | D41: 8.8 | E41: 68.3 | F41: 77.1 | G41: 14.8 | H41: 30.7 | I41: 45.5 | J41: 52.5 | K41: 5.4 | L41: 57.9 | M41: 70.3 | N41: 52.7 | O41: 123 | P41: 85.2 | Q41: 3.6 | R41: 88.8 | S41: 4.2 | T41: 5.1 | U41: 9.3 | V41: 4.6 | W41: 32.9 | X41: 37.5 | AA41: 43.9 | AD41: 4.8 | AG41: 14.5 | AH41: 251.8 | AI41: 250.7 | AJ41: 502.5
C42: 2007-09-01 | D42: 10.6 | E42: =IF(OR(ISBLANK(F42), ISBLANK(D42)), "", F42-D42) -> 54.6 | F42: 65.2 | G42: 16.4 | H42: =IF(OR(ISBLANK(I42), ISBLANK(G42)), "", I42-G42) -> 40.5 | I42: 56.9 | J42: 61.2 | K42: =IF(OR(ISBLANK(L42), ISBLANK(J42)), "", L42-J42) -> 5.6 | L42: 66.8 | M42: 76.5 | N42: =IF(OR(ISBLANK(O42), ISBLANK(M42)), "", O42-M42) -> 53.1 | O42: 129.6 | P42: 104.5 | Q42: =IF(OR(ISBLANK(R42), ISBLANK(P42)), "", R42-P42) -> 8.3 | R42: 112.8 | S42: 3.5 | T42: =IF(OR(ISBLANK(U42), ISBLANK(S42)), "", U42-S42) -> 3.7 | U42: 7.2 | V42: 6.6 | W42: =IF(OR(ISBLANK(X42), ISBLANK(V42)), "", X42-V42) -> 43.4 | X42: 50 | Z42: =IF(OR(ISBLANK(AA42), ISBLANK(Y42)), "", AA42-Y42) ->  | AA42: 50.1 | AC42: =IF(OR(ISBLANK(AD42), ISBLANK(AB42)), "", AD42-AB42) ->  | AD42: 5 | AE42: 11.3 | AF42: =IF(OR(ISBLANK(AG42), ISBLANK(AE42)), "", AG42-AE42) -> 8.3 | AG42: 19.6 | AH42: 293.3 | AI42: =IF(OR(ISBLANK(AJ42), ISBLANK(AH42)), "", AJ42-AH42) -> 270.1 | AJ42: 563.4
C43: 2007-12-01 | D43: 9 | E43: 61.2 | F43: 70.2 | G43: 19.7 | H43: 31.8 | I43: 51.5 | J43: 79.5 | K43: 6.4 | L43: 85.9 | M43: 85.8 | N43: 60.9 | O43: 146.7 | P43: 94 | Q43: 4.5 | R43: 98.5 | S43: 3.7 | T43: 6.8 | U43: 10.5 | V43: 6.4 | W43: 63.2 | X43: 69.6 | AA43: 59.8 | AD43: 5.3 | AE43: 12.4 | AF43: 15.4 | AG43: 27.8 | AH43: 313.8 | AI43: 312.1 | AJ43: 625.9
C44: 2008-03-01 | D44: 9 | E44: 55.8 | F44: 64.8 | G44: 9.7 | H44: 29.3 | I44: 39 | J44: 58.2 | K44: 5.8 | L44: 64 | M44: 85.2 | N44: 57.2 | O44: 142.4 | P44: 82.9 | Q44: 9 | R44: 91.9 | S44: 3.2 | T44: 5.7 | U44: 8.9 | X44: 49.2 | AA44: 54.1 | AB44: 3.2 | AC44: 2.9 | AD44: 6.1 | AE44: 12.8 | AF44: 10.7 | AG44: 23.5 | AH44: 271.4 | AI44: 272.6 | AJ44: 544
C45: 2008-06-01 | D45: 10.3 | E45: 83 | F45: 93.3 | G45: 10.5 | H45: 28.6 | I45: 39.1 | J45: 81 | K45: 5.5 | L45: 86.5 | M45: 100.3 | N45: 73.6 | O45: 173.9 | P45: 139.3 | Q45: 7.3 | R45: 146.6 | S45: 4.3 | T45: 6.1 | U45: 10.4 | X45: 62.7 | AA45: 70.8 | AD45: 5.3 | AE45: 23.7 | AF45: 15.7 | AG45: 39.4 | AH45: 381.2 | AI45: 346.9 | AJ45: 728.1
C46: 2008-09-01 | D46: 11 | E46: 68.2 | F46: 79.2 | G46: 13.1 | H46: 21.7 | I46: 34.8 | J46: 90.3 | K46: 4.7 | L46: 95 | M46: 75.9 | N46: 57.3 | O46: 133.2 | P46: 153.2 | Q46: 8.8 | R46: 162 | S46: 2.7 | T46: 6.4 | U46: 9.1 | X46: 56.7 | AA46: 68.5 | AB46: 1.3 | AC46: 1.1 | AD46: 2.4 | AE46: 27.9 | AF46: 18.9 | AG46: 46.8 | AH46: 383.8 | AI46: 303.9 | AJ46: 687.7
C47: 2008-12-01 | D47: 9.4 | E47: 46.3 | F47: 55.7 | G47: 6.5 | H47: 13.7 | I47: 20.2 | J47: 73.7 | K47: 4.8 | L47: 78.5 | M47: 67.7 | N47: 52.7 | O47: 120.4 | P47: 170.6 | Q47: 11.9 | R47: 182.5 | S47: 4.1 | T47: 5 | U47: 9.1 | X47: 51.9 | Y47: 4.5 | Z47: 78.4 | AA47: 82.9 | AD47: 3.5 | AE47: 19 | AF47: 24.7 | AG47: 43.7 | AH47: 364 | AI47: 284.5 | AJ47: 648.5
C48: 2009-03-01 | D48: 4.4 | E48: 21.4 | F48: 25.8 | G48: 3 | H48: 14.6 | I48: 17.6 | J48: 39.4 | K48: 1.8 | L48: 41.2 | M48: 56.6 | N48: 29 | O48: 85.6 | P48: 100.1 | Q48: 5.5 | R48: 105.6 | S48: 3.1 | T48: 2.3 | U48: 5.4 | V48: 5.6 | W48: 22.1 | X48: 27.7 | AA48: 69.2 | AD48: 2 | AE48: 10.1 | AF48: 13.2 | AG48: 23.3 | AH48: 224.2 | AI48: 179.3 | AJ48: 403.5
C49: 2009-06-01 | D49: 3.3 | E49: 14.7 | F49: 18 | G49: 2 | H49: 5.9 | I49: 7.9 | J49: 43.3 | K49: 1.9 | L49: 45.2 | M49: 62.5 | N49: 36.3 | O49: 98.8 | P49: 134.8 | Q49: 3.8 | R49: 138.6 | S49: 3.1 | T49: 3.9 | U49: 7 | V49: 9.9 | W49: 39 | X49: 48.9 | AA49: 76.7 | AD49: 2.1 | AE49: 14.2 | AF49: 26.1 | AG49: 40.3 | AH49: 274.8 | AI49: 208.7 | AJ49: 483.5
C50: 2009-09-01 | D50: 7.9 | E50: 29.1 | F50: 37 | G50: 4.4 | H50: 7.9 | I50: 12.3 | J50: 46.1 | K50: 2.5 | L50: 48.6 | M50: 70.7 | N50: 62.7 | O50: 133.4 | P50: 134.2 | Q50: 6.3 | R50: 140.5 | S50: 3.8 | T50: 5.7 | U50: 9.5 | V50: 10.6 | W50: 43.3 | X50: 53.9 | AA50: 82.1 | AD50: 2.7 | AE50: 20.1 | AF50: 17.3 | AG50: 37.4 | AH50: 298.9 | AI50: 258.5 | AJ50: 557.4
C51: 2009-12-01 | D51: 14.3 | E51: 39.7 | F51: 54 | G51: 3.7 | H51: 6.7 | I51: 10.4 | J51: 48 | K51: 3.3 | L51: 51.3 | M51: 87 | N51: 58.5 | O51: 145.5 | P51: 131.2 | Q51: 5.3 | R51: 136.5 | U51: 6.5 | V51: 18.7 | W51: 30.4 | X51: 49.1 | AA51: 84.7 | AB51: 0.1 | AC51: 0.9 | AD51: 1 | AE51: 15.3 | AF51: 24.4 | AG51: 39.7 | AH51: 321.7 | AI51: 257.1 | AJ51: 578.8
C52: 2010-03-01 | D52: 8.3 | E52: 38.7 | F52: 47 | G52: 6.2 | H52: 6.8 | I52: 13 | J52: 46.3 | K52: 1.3 | L52: 47.6 | M52: 81.8 | N52: 49 | O52: 130.8 | P52: 89.4 | Q52: 6.9 | R52: 96.3 | V52: 8.6 | W52: 15.1 | X52: 23.7 | Y52: 0.5 | Z52: 59.9 | AA52: 60.4 | AE52: 13.7 | AF52: 18.8 | AG52: 32.5 | AH52: 257.1 | AI52: 202.2 | AJ52: 459.3
C53: 2010-06-01 | D53: 15.4 | E53: 48.3 | F53: 63.7 | G53: 7.2 | H53: 8.7 | I53: 15.9 | J53: 54.3 | K53: 2.1 | L53: 56.4 | M53: 109 | N53: 56.7 | O53: 165.7 | P53: 142.3 | Q53: 8.5 | R53: 150.8 | S53: 3.1 | V53: 17.5 | W53: 24.9 | X53: 42.4 | AA53: 94 | AE53: 16.2 | AF53: 21.3 | AG53: 37.5 | AH53: 366.3 | AI53: 270.8 | AJ53: 637.1
C54: 2010-09-01 | D54: 19.2 | E54: 49.7 | F54: 68.9 | G54: 7.2 | H54: 11.8 | I54: 19 | J54: 67.4 | K54: 1.9 | L54: 69.3 | M54: 105.3 | N54: 55 | O54: 160.3 | P54: 136.2 | Q54: 15.8 | R54: 152 | S54: 2.1 | V54: 26.8 | W54: 31.8 | X54: 58.6 | AA54: 85.1 | AE54: 18.8 | AF54: 29.6 | AG54: 48.4 | AH54: 384.6 | AI54: 284.8 | AJ54: 669.4
C55: 2010-12-01 | D55: 22.9 | E55: 58.9 | F55: 81.8 | G55: 7.7 | H55: 11 | I55: 18.7 | J55: 59.8 | K55: 2.6 | L55: 62.4 | M55: 116 | N55: 51.3 | O55: 167.3 | P55: 134.5 | Q55: 19.7 | R55: 154.2 | S55: 2.4 | V55: 31.1 | W55: 34.2 | X55: 65.3 | AA55: 122.3 | AE55: 16.7 | AF55: 27.5 | AG55: 44.2 | AH55: 393.7 | AI55: 330.7 | AJ55: 724.4
C56: 2011-03-01 | D56: 15.6 | E56: 55.3 | F56: 70.9 | G56: 5.4 | H56: 12.6 | I56: 18 | J56: 65.1 | K56: 2.5 | L56: 67.6 | M56: 108.9 | N56: 37.5 | O56: 146.4 | P56: 124.4 | Q56: 19.7 | R56: 144.1 | S56: 2.6 | T56: 3.6 | U56: 6.2 | V56: 22.6 | W56: 20.8 | X56: 43.4 | AA56: 109.6 | AD56: 0.6 | AE56: 16.2 | AF56: 27.2 | AG56: 43.4 | AH56: 362.2 | AI56: 287.9 | AJ56: 650.1
C57: 2011-06-01 | D57: 21 | E57: 80.5 | F57: 101.5 | G57: 5.1 | H57: 14.7 | I57: 19.8 | J57: 68.8 | K57: 2.8 | L57: 71.6 | M57: 122.3 | N57: 55.9 | O57: 178.2 | P57: 189.9 | Q57: 24.8 | R57: 214.7 | S57: 3.7 | V57: 20.2 | W57: 26.4 | X57: 46.6 | AA57: 202.7 | AE57: 17.1 | AF57: 43.2 | AG57: 60.3 | AH57: 449.6 | AI57: 457.8 | AJ57: 907.4
C58: 2011-09-01 | D58: 20.8 | E58: 88.1 | F58: 108.9 | G58: 5 | H58: 17 | I58: 22 | J58: 71.5 | K58: 2.1 | L58: 73.6 | M58: 126.7 | N58: 57.5 | O58: 184.2 | P58: 208.8 | Q58: 25.9 | R58: 234.7 | S58: 2.8 | V58: 25.9 | W58: 28.1 | X58: 54 | AA58: 227.4 | AE58: 18.1 | AF58: 44.6 | AG58: 62.7 | AH58: 481.6 | AI58: 501.8 | AJ58: 983.4
C59: 2011-12-01 | D59: 20.4 | E59: 94.2 | F59: 114.6 | G59: 3.8 | H59: 19.1 | I59: 22.9 | J59: 46.6 | K59: 2.7 | L59: 49.3 | M59: 141.1 | N59: 58.9 | O59: 200 | P59: 279.3 | Q59: 32.5 | R59: 311.8 | S59: 2.6 | T59: 8.4 | U59: 11 | V59: 21.3 | W59: 24.3 | X59: 45.6 | AA59: 217.7 | AD59: 2.2 | AE59: 14.7 | AF59: 42.5 | AG59: 57.2 | AH59: 531.9 | AI59: 500.5 | AJ59: 1032.4
C60: 2012-03-01 | D60: 22.1 | E60: 76.6 | F60: 98.7 | G60: 5.2 | H60: 16 | I60: 21.2 | J60: 62.2 | K60: 1.9 | L60: 64.1 | M60: 128.4 | N60: 40.4 | O60: 168.8 | P60: 240.4 | Q60: 27.5 | R60: 267.9 | S60: 3.1 | T60: 6.2 | U60: 9.3 | V60: 17.7 | W60: 11.6 | X60: 29.3 | AA60: 177.5 | AD60: 1.1 | AE60: 10.4 | AF60: 27.8 | AG60: 38.2 | AH60: 490.1 | AI60: 386 | AJ60: 876.1
C61: 2012-06-01 | D61: 28.8 | E61: 91.6 | F61: 120.4 | G61: 5.4 | H61: 16 | I61: 21.4 | J61: 76.6 | K61: 1.8 | L61: 78.4 | M61: 161.2 | N61: 53.8 | O61: 215 | P61: 297.4 | Q61: 38.8 | R61: 336.2 | S61: 4.2 | V61: 13.4 | W61: 11.3 | X61: 24.7 | AA61: 211.7 | AE61: 14.4 | AF61: 26.7 | AG61: 41.1 | AH61: 603.2 | AI61: 457.9 | AJ61: 1061.1
C62: 2012-09-01 | D62: 22.2 | E62: 80.3 | F62: 102.5 | G62: 4.9 | H62: 16.2 | I62: 21.1 | J62: 42.3 | K62: 1.6 | L62: 43.9 | M62: 140.3 | N62: 54.1 | O62: 194.4 | P62: 248.7 | Q62: 31.8 | R62: 280.5 | U62: 10.9 | V62: 12 | W62: 11.5 | X62: 23.5 | Y62: 1.1 | Z62: 169.5 | AA62: 170.6 | AD62: 1.4 | AE62: 12.4 | AF62: 33.5 | AG62: 45.9 | AH62: 488.6 | AI62: 406.1 | AJ62: 894.7
C63: 2012-12-01 | D63: 20.2 | E63: 71.9 | F63: 92.1 | G63: 3.9 | H63: 15.7 | I63: 19.6 | J63: 47.3 | K63: 2 | L63: 49.3 | M63: 111 | N63: 51.7 | O63: 162.7 | P63: 254.3 | Q63: 24.1 | R63: 278.4 | U63: 11 | V63: 11.2 | W63: 9.6 | X63: 20.8 | AA63: 149.2 | AD63: 1.6 | AE63: 14.6 | AF63: 24.6 | AG63: 39.2 | AH63: 470.7 | AI63: 353.2 | AJ63: 823.9
C64: 2013-03-01 | D64: 17.5 | E64: 43.5 | F64: 61 | G64: 3.4 | H64: 15.1 | I64: 18.5 | J64: 29.9 | K64: 1.1 | L64: 31 | M64: 111.9 | N64: 42.8 | O64: 154.7 | P64: 232.5 | Q64: 15.7 | R64: 248.2 | U64: 7.2 | V64: 6.6 | W64: 5.8 | X64: 12.4 | Y64: 4.1 | Z64: 100.4 | AA64: 104.5 | AD64: 1.6 | AE64: 13.6 | AF64: 19.6 | AG64: 33.2 | AH64: 421.8 | AI64: 250.4 | AJ64: 672.2
C65: 2013-06-01 | D65: 16.7 | E65: 47 | F65: 63.7 | G65: 4.4 | H65: 16.2 | I65: 20.6 | J65: 37.8 | K65: 2.5 | L65: 40.3 | M65: 103.4 | N65: 46.6 | O65: 150 | P65: 186.3 | Q65: 17.9 | R65: 204.2 | S65: 3 | T65: 5.7 | U65: 8.7 | V65: 5.3 | W65: 7.5 | X65: 12.8 | AA65: 119.7 | AD65: 1.7 | AE65: 23.4 | AF65: 19.5 | AG65: 42.9 | AH65: 382.3 | AI65: 282.3 | AJ65: 664.6
C66: 2013-09-01 | D66: 21.5 | E66: 33.1 | F66: 54.6 | G66: 3.2 | H66: 9.9 | I66: 13.1 | J66: 36.7 | K66: 1.1 | L66: 37.8 | M66: 96.3 | N66: 35.9 | O66: 132.2 | P66: 206.1 | Q66: 16.1 | R66: 222.2 | S66: 4.3 | V66: 6.8 | W66: 9.3 | X66: 16.1 | AA66: 109.6 | AE66: 19.9 | AF66: 20.2 | AG66: 40.1 | AH66: 395.8 | AI66: 242.6 | AJ66: 638.4
C67: 2013-12-01 | D67: 16.9 | E67: 26.6 | F67: 43.5 | G67: 4.3 | H67: 8 | I67: 12.3 | J67: 17.9 | K67: 1.3 | L67: 19.2 | M67: 76.2 | N67: 40.3 | O67: 116.5 | P67: 158.9 | Q67: 25.3 | R67: 184.2 | S67: 5.6 | T67: 2.5 | U67: 8.1 | V67: 5.4 | W67: 5.6 | X67: 11 | AA67: 106.4 | AD67: 3.1 | AE67: 17.6 | AF67: 25.4 | AG67: 43 | AH67: 308.3 | AI67: 239.1 | AJ67: 547.4
C68: 2014-03-01 | D68: 6.6 | E68: 29.6 | F68: 36.2 | G68: 2.9 | H68: 7.2 | I68: 10.1 | J68: 15.5 | K68: 1.3 | L68: 16.8 | M68: 56.2 | N68: 25.5 | O68: 81.7 | P68: 102.1 | Q68: 13.1 | R68: 115.2 | S68: 3.7 | T68: 2.8 | U68: 6.5 | V68: 3.7 | W68: 2.7 | X68: 6.4 | AA68: 101.8 | AD68: 2.5 | AE68: 13.4 | AF68: 17.1 | AG68: 30.5 | AH68: 206.2 | AI68: 201.4 | AJ68: 407.6
C69: 2014-06-01 | D69: 13.3 | E69: 29.2 | F69: 42.5 | G69: 3.5 | H69: 6.8 | I69: 10.3 | J69: 24.8 | K69: 0.8 | L69: 25.6 | M69: 66.6 | N69: 37.3 | O69: 103.9 | P69: 167.3 | Q69: 21.7 | R69: 189 | S69: 2.8 | T69: 3.7 | U69: 6.5 | V69: 6.7 | W69: 3.7 | X69: 10.4 | AA69: 80.9 | AD69: 2.7 | AE69: 22.4 | AF69: 20.4 | AG69: 42.8 | AH69: 309.7 | AI69: 205.3 | AJ69: 515
C70: 2014-09-01 | D70: 13.6 | E70: 30.6 | F70: 44.2 | G70: 3.9 | H70: 9.2 | I70: 13.1 | J70: 23.8 | K70: 0.5 | L70: 24.3 | M70: 61.9 | N70: 28.1 | O70: 90 | P70: 130.3 | Q70: 12.6 | R70: 142.9 | S70: 6.3 | T70: 4.4 | U70: 10.7 | V70: 4.7 | W70: 5.2 | X70: 9.9 | Y70: 0.6 | Z70: 79.7 | AA70: 80.3 | AB70: 1 | AC70: 0.8 | AD70: 1.8 | AE70: 21.1 | AF70: 16.9 | AG70: 38 | AH70: 267.1 | AI70: 190.6 | AJ70: 457.7
C71: 2014-12-01 | D71: 9.6 | E71: 31.2 | F71: 40.8 | G71: 4.9 | H71: 12 | I71: 16.9 | J71: 21 | K71: 1.5 | L71: 22.5 | M71: 64 | N71: 37.7 | O71: 101.7 | P71: 131.5 | Q71: 13.6 | R71: 145.1 | S71: 2 | T71: 2.4 | U71: 4.4 | V71: 9 | W71: 3.8 | X71: 12.8 | AA71: 78 | AD71: 1.5 | AE71: 17.9 | AF71: 17.7 | AG71: 35.6 | AH71: 262.3 | AI71: 196.9 | AJ71: 459.2
C72: 2015-03-01 | D72: 4.6 | E72: 26.7 | F72: 31.3 | G72: 2.2 | H72: 6.5 | I72: 8.7 | J72: 18.1 | K72: 1.1 | L72: 19.2 | M72: 67.4 | N72: 24.2 | O72: 91.6 | P72: 70 | Q72: 12.5 | R72: 82.5 | S72: 3 | T72: 3.2 | U72: 6.2 | V72: 5.9 | W72: 1.6 | X72: 7.5 | AA72: 43.4 | AD72: 0.9 | AE72: 11.2 | AF72: 14.8 | AG72: 26 | AH72: 183.2 | AI72: 134.5 | AJ72: 317.7
C73: 2015-06-01 | D73: 5.7 | E73: 22.4 | F73: 28.1 | G73: 4.3 | H73: 8.9 | I73: 13.2 | J73: 15.6 | K73: 1.1 | L73: 16.7 | M73: 81 | N73: 31.4 | O73: 112.4 | P73: 74.4 | Q73: 2.8 | R73: 77.2 | S73: 2.8 | T73: 3 | U73: 5.8 | V73: 6.8 | W73: 3.6 | X73: 10.4 | AA73: 50.1 | AD73: 1.2 | AE73: 13.6 | AF73: 15.9 | AG73: 29.5 | AH73: 204.8 | AI73: 139.3 | AJ73: 344.1
C74: 2015-09-01 | D74: 8.4 | E74: =IF(OR(ISBLANK(F74), ISBLANK(D74)), "", F74-D74) -> 21.8 | F74: 30.2 | G74: 3.3 | H74: =IF(OR(ISBLANK(I74), ISBLANK(G74)), "", I74-G74) -> 13.1 | I74: 16.4 | J74: 13.9 | K74: =IF(OR(ISBLANK(L74), ISBLANK(J74)), "", L74-J74) -> 0.8 | L74: 14.7 | M74: 94.8 | N74: =IF(OR(ISBLANK(O74), ISBLANK(M74)), "", O74-M74) -> 38.9 | O74: 133.7 | P74: 79.1 | Q74: =IF(OR(ISBLANK(R74), ISBLANK(P74)), "", R74-P74) -> 3.1 | R74: 82.2 | S74: 3.5 | T74: =IF(OR(ISBLANK(U74), ISBLANK(S74)), "", U74-S74) -> 3.1 | U74: 6.6 | V74: 8.5 | W74: =IF(OR(ISBLANK(X74), ISBLANK(V74)), "", X74-V74) -> 6.9 | X74: 15.4 | Z74: =IF(OR(ISBLANK(AA74), ISBLANK(Y74)), "", AA74-Y74) ->  | AA74: 56.3 | AC74: =IF(OR(ISBLANK(AD74), ISBLANK(AB74)), "", AD74-AB74) ->  | AD74: 1.6 | AE74: 20.1 | AF74: =IF(OR(ISBLANK(AG74), ISBLANK(AE74)), "", AG74-AE74) -> 16.5 | AG74: 36.6 | AH74: 233.1 | AI74: =IF(OR(ISBLANK(AJ74), ISBLANK(AH74)), "", AJ74-AH74) -> 160.9 | AJ74: 394
C75: 2015-12-01 | D75: 9 | E75: 22.4 | F75: 31.4 | G75: 3.2 | H75: 9.1 | I75: 12.3 | J75: 13.5 | K75: 1.1 | L75: 14.6 | M75: 95.6 | N75: 42.6 | O75: 138.2 | P75: 71.8 | Q75: 2.7 | R75: 74.5 | S75: 2.9 | T75: 2.4 | U75: 5.3 | V75: 8.4 | W75: 2.3 | X75: 10.7 | AA75: 63.4 | AD75: 1.5 | AE75: 15.4 | AF75: 14.1 | AG75: 29.5 | AH75: 222.6 | AI75: 160.2 | AJ75: 382.8
C76: 2016-03-01 | D76: 13.7 | E76: 22.9 | F76: 36.6 | G76: 2.1 | H76: 7.1 | I76: 9.2 | J76: 10.2 | K76: 0.5 | L76: 10.7 | M76: 84.9 | N76: 34.4 | O76: 119.3 | P76: 55.2 | Q76: 2.5 | R76: 57.7 | S76: 1.7 | T76: 2.4 | U76: 4.1 | V76: 6.8 | W76: 1.1 | X76: 7.9 | AA76: 23.4 | AD76: 0.3 | AE76: 11.2 | AF76: 9.3 | AG76: 20.5 | AH76: 187.1 | AI76: 103.3 | AJ76: 290.4
C77: 2016-06-01 | D77: 10.3 | E77: 21.9 | F77: 32.2 | G77: 2.5 | H77: 9.5 | I77: 12 | J77: 9.2 | K77: 1.4 | L77: 10.6 | M77: 110.6 | N77: 46.3 | O77: 156.9 | P77: 74.2 | Q77: 2.6 | R77: 76.8 | S77: 1.9 | T77: 2.1 | U77: 4 | V77: 2.3 | W77: 2 | X77: 4.3 | AA77: 30.3 | AD77: 0.9 | AE77: 15.3 | AF77: 10.7 | AG77: 26 | AH77: 228.2 | AI77: 125.7 | AJ77: 353.9
C78: 2016-09-01 | D78: 12.8 | E78: 22 | F78: 34.8 | G78: 2.9 | H78: 9 | I78: 11.9 | J78: 10.5 | K78: 1.8 | L78: 12.3 | M78: 117.8 | N78: 41.3 | O78: 159.1 | P78: 77.8 | Q78: 2 | R78: 79.8 | S78: 3.7 | T78: 2.5 | U78: 6.2 | V78: 1.4 | W78: 3.5 | X78: 4.9 | AA78: 37.2 | AD78: 0.2 | AE78: 20.6 | AF78: 12.4 | AG78: 33 | AH78: 248.8 | AI78: 130.7 | AJ78: 379.5
C79: 2016-12-01 | D79: 10.6 | E79: 21.5 | F79: 32.1 | G79: 2.9 | H79: 10.5 | I79: 13.4 | J79: 17 | K79: 0.9 | L79: 17.9 | M79: 132.6 | N79: 49.7 | O79: 182.3 | P79: 71.4 | Q79: 2.3 | R79: 73.7 | S79: 2.2 | T79: 2.9 | U79: 5.1 | V79: 5 | W79: 1.3 | X79: 6.3 | AA79: 33.3 | AD79: 0.5 | AE79: 21.8 | AF79: 15 | AG79: 36.8 | AH79: 263.5 | AI79: 139.6 | AJ79: 403.1
C80: 2017-03-01 | D80: 7.4 | E80: 19.3 | F80: 26.7 | G80: 1.7 | H80: 6 | I80: 7.7 | J80: 17.5 | K80: 2.5 | L80: 20 | M80: 117.2 | N80: 38 | O80: 155.2 | P80: 51.2 | Q80: 2.3 | R80: 53.5 | S80: 3.4 | T80: 1.6 | U80: 5 | V80: 1.8 | W80: 3.3 | X80: 5.1 | AA80: 23.9 | AD80: 0.4 | AE80: 24.3 | AF80: 12.8 | AG80: 37.1 | AH80: 225 | AI80: 112.6 | AJ80: 337.6
C81: 2017-06-01 | D81: 10.9 | E81: 31.3 | F81: 42.2 | G81: 2.9 | H81: 18.7 | I81: 21.6 | J81: 22.4 | K81: 8 | L81: 30.4 | M81: 141.9 | N81: 50.7 | O81: 192.6 | P81: 81.2 | Q81: 3.1 | R81: 84.3 | S81: 1.9 | T81: 1.9 | U81: 3.8 | V81: 4.1 | W81: 1.1 | X81: 5.2 | AA81: 26 | AD81: 0.6 | AE81: 25.4 | AF81: 12.9 | AG81: 38.3 | AH81: 291 | AI81: 153.9 | AJ81: 444.9
C82: 2017-09-01 | D82: 14.5 | E82: 30 | F82: 44.5 | G82: 2.9 | H82: 24.7 | I82: 27.6 | J82: 25.7 | K82: 14 | L82: 39.7 | M82: 137 | N82: 55.9 | O82: 192.9 | P82: 81.5 | Q82: 2.3 | R82: 83.8 | S82: 3.2 | T82: 2.8 | U82: 6 | V82: 5.1 | W82: 1.5 | X82: 6.6 | Y82: 0.8 | Z82: 34.3 | AA82: 35.1 | AB82: 0.7 | AC82: 0.3 | AD82: 1 | AE82: 23.1 | AF82: 14.9 | AG82: 38 | AH82: 294.2 | AI82: 181 | AJ82: 475.2
C83: 2017-12-01 | D83: 13.6 | E83: 28.8 | F83: 42.4 | G83: 6.5 | H83: 22.8 | I83: 29.3 | J83: 28.7 | K83: 20.2 | L83: 48.9 | M83: 154.3 | N83: 54.6 | O83: 208.9 | P83: 66.3 | Q83: 2.6 | R83: 68.9 | S83: 1.7 | T83: 4.3 | U83: 6 | V83: 0.4 | W83: 2.5 | X83: 2.9 | Y83: 0.2 | Z83: 38.8 | AA83: 39 | AB83: 2.5 | AC83: 1 | AD83: 3.5 | AE83: 24.5 | AF83: 21 | AG83: 45.5 | AH83: 298.5 | AI83: 197.6 | AJ83: 496.1
C84: 2018-03-01 | D84: 11.3 | E84: 34.9 | F84: 46.2 | G84: 3.7 | H84: 14.9 | I84: 18.6 | J84: 27.6 | K84: 18.4 | L84: 46 | M84: 137.8 | N84: 49.6 | O84: 187.4 | P84: 47.5 | Q84: 2.6 | R84: 50.1 | S84: 2.5 | T84: 3.7 | U84: 6.2 | X84: 1.9 | AA84: 36.4 | AD84: 2 | AE84: 28.8 | AF84: 15 | AG84: 43.8 | AH84: 261 | AI84: 177.7 | AJ84: 438.7
C85: 2018-06-01 | D85: 16.4 | E85: 43.4 | F85: 59.8 | G85: 6.3 | H85: 21.5 | I85: 27.8 | J85: 39.3 | K85: 26.2 | L85: 65.5 | M85: 162.4 | N85: 58.5 | O85: 220.9 | P85: 86.1 | Q85: 2.9 | R85: 89 | U85: 8.9 | V85: 0.2 | W85: 1.4 | X85: 1.6 | AA85: 43.6 | AB85: 1.7 | AC85: 0.2 | AD85: 1.9 | AE85: 33.9 | AF85: 14.9 | AG85: 48.8 | AH85: 349.8 | AI85: 218 | AJ85: 567.8
C86: 2018-09-01 | D86: 27.1 | E86: 46.1 | F86: 73.2 | G86: 6.3 | H86: 19.7 | I86: 26 | J86: 27.8 | K86: 19.2 | L86: 47 | M86: 174 | N86: 65.7 | O86: 239.7 | P86: 84.6 | Q86: 1.7 | R86: 86.3 | U86: 10 | X86: 5.2 | AA86: 43.6 | AB86: 3.2 | AC86: 0.1 | AD86: 3.3 | AE86: 33.8 | AF86: 17.1 | AG86: 50.9 | AH86: 361 | AI86: 223.4 | AJ86: 584.4
C87: 2018-12-01 | D87: 35.1 | E87: 46.5 | F87: 81.6 | G87: 5.8 | H87: 20.2 | I87: 26 | J87: 29.1 | K87: 21.1 | L87: 50.2 | M87: 167.3 | N87: 76.8 | O87: 244.1 | P87: 71.3 | Q87: 4.2 | R87: 75.5 | S87: 2.2 | T87: 7.2 | U87: 9.4 | V87: 0.4 | W87: 3.2 | X87: 3.6 | AA87: 50 | AD87: 2.2 | AE87: 32.4 | AF87: 17.5 | AG87: 49.9 | AH87: 346.3 | AI87: 246.4 | AJ87: 592.7
C88: 2019-03-01 | D88: 34.3 | E88: 30.7 | F88: 65 | G88: 4.5 | H88: 10.3 | I88: 14.8 | J88: 25.7 | K88: 22.6 | L88: 48.3 | M88: 158.5 | N88: 64.5 | O88: 223 | P88: 64 | Q88: 3.4 | R88: 67.4 | S88: 1.9 | T88: 4.9 | U88: 6.8 | X88: 2.3 | AA88: 36 | AD88: 1.2 | AE88: 27.9 | AF88: 11.8 | AG88: 39.7 | AH88: 319.5 | AI88: 186.2 | AJ88: 505.7
C89: 2019-06-01 | D89: 61.3 | E89: 47.7 | F89: 109 | G89: 7.5 | H89: 14.9 | I89: 22.4 | J89: 34.2 | K89: 23 | L89: 57.2 | M89: 175.7 | N89: 84.1 | O89: 259.8 | P89: 91.5 | Q89: 3.3 | R89: 94.8 | S89: 2.8 | T89: 6.7 | U89: 9.5 | X89: 3.1 | AA89: 52.5 | AB89: 2.3 | AC89: 0.4 | AD89: 2.7 | AE89: 39 | AF89: 14.9 | AG89: 53.9 | AH89: 415.1 | AI89: 249.7 | AJ89: 664.8
C90: 2019-09-01 | D90: 70.4 | E90: 46.7 | F90: 117.1 | G90: 7 | H90: 20.3 | I90: 27.3 | J90: 42.8 | K90: 21.6 | L90: 64.4 | M90: 193 | N90: 88.3 | O90: 281.3 | P90: 100 | Q90: 2.8 | R90: 102.8 | S90: 1.4 | T90: 6.1 | U90: 7.5 | X90: 2.5 | AA90: 63.2 | AD90: 2.1 | AE90: 43.2 | AF90: 13.7 | AG90: 56.9 | AH90: 459.7 | AI90: 265.1 | AJ90: 724.8
C91: 2019-12-01 | D91: 67.9 | E91: 55.9 | F91: 123.8 | G91: 3.7 | H91: 12.3 | I91: 16 | J91: 42.9 | K91: 16.9 | L91: 59.8 | M91: 199.9 | N91: 104 | O91: 303.9 | P91: 81 | Q91: 3.6 | R91: 84.6 | S91: 2.3 | T91: 8.6 | U91: 10.9 | X91: 2.3 | AA91: 77.6 | AB91: 1.6 | AC91: 0.2 | AD91: 1.8 | AE91: 53.9 | AF91: 18.6 | AG91: 72.5 | AH91: 453.9 | AI91: 299.2 | AJ91: 753.1
C92: 2020-03-01 | D92: 50.9 | E92: 45 | F92: 95.9 | G92: 1.8 | H92: 5 | I92: 6.8 | J92: 29.5 | K92: 7.3 | L92: 36.8 | M92: 183.3 | N92: 89 | O92: 272.3 | P92: 72.3 | Q92: 2.9 | R92: 75.2 | S92: 1.7 | T92: 7.1 | U92: 8.8 | X92: 1.1 | AA92: 75.1 | AD92: 0.5 | AE92: 26.7 | AF92: 11.3 | AG92: 38 | AH92: 367.1 | AI92: 243.5 | AJ92: 610.6
C93: 2020-06-01 | D93: 34.7 | E93: 48.6 | F93: 83.3 | G93: 1.9 | H93: 6.5 | I93: 8.4 | J93: 33.9 | K93: 7.8 | L93: 41.7 | M93: 209.4 | N93: 95 | O93: 304.4 | P93: 96.1 | Q93: 2.6 | R93: 98.7 | S93: 1.4 | T93: 8.6 | U93: 10 | X93: 1.6 | AA93: 87.2 | AD93: 0.5 | AE93: 34 | AF93: 13.4 | AG93: 47.4 | AH93: 412.4 | AI93: 270.9 | AJ93: 683.3
C94: 2020-09-01 | D94: 26.2 | E94: 49.6 | F94: 75.8 | G94: 4.3 | H94: 8.8 | I94: 13.1 | J94: 42.2 | K94: 6.7 | L94: 48.9 | M94: 259.7 | N94: 96.4 | O94: 356.1 | P94: 108.8 | Q94: 2.2 | R94: 111 | S94: 3.1 | T94: 6.1 | U94: 9.2 | X94: 1.8 | AA94: 73.1 | AD94: 1.2 | AE94: 37.3 | AF94: 17.2 | AG94: 54.5 | AH94: 483.3 | AI94: 261.6 | AJ94: 744.9
C95: 2020-12-01 | D95: 24.3 | E95: 54.4 | F95: 78.7 | G95: 7.9 | H95: 15.2 | I95: 23.1 | J95: 47.1 | K95: 6.9 | L95: 54 | M95: 269.2 | N95: 114.3 | O95: 383.5 | P95: 105.9 | Q95: 4.3 | R95: 110.2 | S95: 3.7 | T95: 4.8 | U95: 8.5 | X95: 2.2 | AA95: 56.2 | AD95: 0.8 | AE95: 34.9 | AF95: 18 | AG95: 52.9 | AH95: 494.7 | AI95: 275.3 | AJ95: 770
C96: 2021-03-01 | D96: 51.7 | E96: 51.1 | F96: 102.8 | G96: 4.1 | H96: 9.3 | I96: 13.4 | J96: 40.7 | K96: 5 | L96: 45.7 | M96: 246.9 | N96: 113.3 | O96: 360.2 | P96: 96.4 | Q96: 4.8 | R96: 101.2 | S96: 4.6 | T96: 5.2 | U96: 9.8 | V96: 0.3 | W96: 1.5 | X96: 1.8 | AA96: 50.8 | AD96: 0.5 | AE96: 32.6 | AF96: 16.3 | AG96: 48.9 | AH96: 480.2 | AI96: 254.6 | AJ96: 734.8
C97: 2021-06-01 | D97: 45.3 | E97: 74.3 | F97: 119.6 | G97: 4.7 | H97: 10.3 | I97: 15 | J97: 55.2 | K97: 6.1 | L97: 61.3 | M97: 295.7 | N97: 134.1 | O97: 429.8 | P97: 143.9 | Q97: 6.9 | R97: 150.8 | S97: 2.3 | T97: 7 | U97: 9.3 | X97: 3.9 | AA97: 54.9 | AD97: 1.5 | AE97: 43.6 | AF97: 22.5 | AG97: 66.1 | AH97: 593.9 | AI97: 318.1 | AJ97: 912
C98: 2021-09-01 | D98: 80.5 | E98: 74.8 | F98: 155.3 | G98: 7 | H98: 13 | I98: 20 | J98: 56.6 | K98: 4.9 | L98: 61.5 | M98: 297.1 | N98: 120.8 | O98: 417.9 | P98: 168.3 | Q98: 6.3 | R98: 174.6 | S98: 1.9 | T98: 11.3 | U98: 13.2 | X98: 3.4 | AA98: 66.5 | AD98: 2.2 | AE98: 56.7 | AF98: 26.3 | AG98: 83 | AH98: 670.5 | AI98: 327.1 | AJ98: 997.6
C99: 2021-12-01 | D99: 79.1 | E99: 93.4 | F99: 172.5 | G99: 9.9 | H99: 14.4 | I99: 24.3 | J99: 62.2 | K99: 6 | L99: 68.2 | M99: 276.4 | N99: 114.4 | O99: 390.8 | P99: 118.5 | Q99: 12.3 | R99: 130.8 | S99: 2 | T99: 11.3 | U99: 13.3 | V99: 0.6 | W99: 2.6 | X99: 3.2 | AA99: 54 | AD99: 1.4 | AE99: 57.3 | AF99: 35.9 | AG99: 93.2 | AH99: 606.8 | AI99: 344.9 | AJ99: 951.7
C100: 2022-03-01 | D100: 43.9 | E100: 78.4 | F100: 122.3 | G100: 5.1 | H100: 16.1 | I100: 21.2 | J100: 53.7 | K100: 10.8 | L100: 64.5 | M100: 253 | N100: 110.6 | O100: 363.6 | P100: 123 | Q100: 16.5 | R100: 139.5 | S100: 1.2 | T100: 9.4 | U100: 10.6 | X100: 3.7 | AA100: 43.3 | AD100: 0.7 | AE100: 46.2 | AF100: 39.9 | AG100: 86.1 | AH100: 526.5 | AI100: 328.8 | AJ100: 855.3
C101: 2022-06-01 | D101: 50.4 | E101: 84.2 | F101: 134.6 | G101: 6.3 | H101: 18.8 | I101: 25.1 | J101: 69.5 | K101: 12 | L101: 81.5 | M101: 300.6 | N101: 121.1 | O101: 421.7 | P101: 181.8 | Q101: 19.2 | R101: 201 | S101: 2 | T101: 19.2 | U101: 21.2 | V101: 0.5 | W101: 5.9 | X101: 6.4 | AA101: 61.7 | AD101: 0.9 | AE101: 62.9 | AF101: 40.1 | AG101: 103 | AH101: 674.8 | AI101: 382.5 | AJ101: 1057.3
C102: 2022-09-01 | D102: 59.4 | E102: 106.5 | F102: 165.9 | G102: 7.7 | H102: 21.9 | I102: 29.6 | J102: 69.6 | K102: 9.6 | L102: 79.2 | M102: 286 | N102: 94.5 | O102: 380.5 | P102: 182.4 | Q102: 17.6 | R102: 200 | S102: 1.8 | T102: 16.8 | U102: 18.6 | V102: 0.2 | AA102: 64.8 | AE102: 91.8 | AF102: 56.7 | AG102: 148.5 | AH102: 700.5 | AI102: 398.8 | AJ102: 1099.3
C103: 2022-12-01 | D103: 39.4 | E103: 109 | F103: 148.4 | G103: 5.5 | H103: 20.9 | I103: 26.4 | J103: 76.2 | K103: 14.1 | L103: 90.3 | M103: 264.5 | N103: 94.8 | O103: 359.3 | P103: 161.3 | Q103: 13.2 | R103: 174.5 | S103: 1.5 | T103: 15.4 | U103: 16.9 | X103: 12 | AA103: 71.4 | AD103: 1.1 | AE103: 95 | AF103: 53 | AG103: 148 | AH103: 645 | AI103: 403.2 | AJ103: 1048.2
C104: 2023-03-01 | D104: 39.5 | E104: 96.1 | F104: 135.6 | G104: 4.9 | H104: 16.3 | I104: 21.2 | J104: 68.3 | K104: 10.3 | L104: 78.6 | M104: 191.6 | N104: 83.9 | O104: 275.5 | P104: 129.8 | Q104: 11.6 | R104: 141.4 | S104: 2.7 | T104: 16.2 | U104: 18.9 | X104: 9.2 | AA104: 62.4 | AD104: 0.6 | AE104: 105.2 | AF104: 47.2 | AG104: 152.4 | AH104: 545.5 | AI104: 350.4 | AJ104: 895.9
C105: 2023-06-01 | D105: 49.2 | E105: 126.8 | F105: 176 | G105: 3.7 | H105: 19.2 | I105: 22.9 | J105: 73.3 | K105: 10.6 | L105: 83.9 | M105: 214.1 | N105: 101.1 | O105: 315.2 | P105: 174.7 | Q105: 11.2 | R105: 185.9 | S105: 2 | T105: 17 | U105: 19 | X105: 13.1 | AA105: 80.1 | AD105: 1 | AE105: 127.1 | AF105: 45.7 | AG105: 172.8 | AH105: 648.5 | AI105: 421.4 | AJ105: 1069.9

Sheet Min. Expl. By Commodity
H1: =(LARGE(B10:B471,1)) -> 45078
H2: =MATCH(H1,B10:B471,0)+8 -> 104
H3: =IF(MONTH(INDIRECT(CONCATENATE("B",H2)))=12, "Calendar Year", "Financial year") -> Financial year
B6: Commodity: | C6: Total
B8: =IF(C6="Total", "", C6) & " Mineral Exploration Expenditure" -> Mineral Exploration Expenditure | H8: Last 10 Calendar Years | N8: Last 10 Financial Years
B9: Quarter | C9: Western Australia ($ Million) | D9: Rest Of Australia ($ Million) | E9: Australia ($ Million) | F9: Western Australia Share Of Australia | H9: Year | I9: Western Australia ($ Million) | J9: Rest Of Australia ($ Million) | K9: Australia ($ Million) | L9: Western Australia Share Of Australia | N9: Year | O9: Western Australia ($ Million) | P9: Rest Of Australia ($ Million) | Q9: Australia ($ Million) | R9: Western Australia Share Of Australia
A10: =YEAR(B10) -> 1999 | B10: 1999-09-01 | C10: =IF(ISBLANK(OFFSET('Min. Expl. By Commodity (Data)'!D10, 0, VLOOKUP($C$6, 'Min. Expl. By Commodity (Data)'!$A$9:$B$19, 2, FALSE))), "", OFFSET('Min. Expl. By Commodity (Data)'!D10, 0, VLOOKUP($C$6, 'Min. Expl. By Commodity (Data)'!$A$9:$B$19, 2, FALSE)) ) -> 107.9 | D10: =IF(ISBLANK(OFFSET('Min. Expl. By Commodity (Data)'!E10, 0, VLOOKUP($C$6, 'Min. Expl. By Commodity (Data)'!$A$9:$B$19, 2, FALSE))), "", OFFSET('Min. Expl. By Commodity (Data)'!E10, 0, VLOOKUP($C$6, 'Min. Expl. By Commodity (Data)'!$A$9:$B$19, 2, FALSE)) ) -> 72.2 | E10: =IF(ISBLANK(OFFSET('Min. Expl. By Commodity (Data)'!F10, 0, VLOOKUP($C$6, 'Min. Expl. By Commodity (Data)'!$A$9:$B$19, 2, FALSE))), "", OFFSET('Min. Expl. By Commodity (Data)'!F10, 0, VLOOKUP($C$6, 'Min. Expl. By Commodity (Data)'!$A$9:$B$19, 2, FALSE)) ) -> 180.1 | F10: =IF(OR(C10="", E10=""), "n/a", C10/E10) -> 0.5991116047 | H10: =H11-1 -> 2013 | I10: =SUMIF($A$10:$A$510,$H10,C$10:C$468) -> 1508.2 | J10: =K10-I10 -> 1014.4 | K10: =SUMIF($A$10:$A$510,$H10,E$10:E$468) -> 2522.6 | L10: =IF(K10=0, "n/a", I10/K10) -> 0.5978752081 | N10: =LEFT(N11,4)-1 & "-" & LEFT(N11,4) -> 2013-2014 | O10: =SUMIFS(C:C, $B:$B, ">=" & DATE(LEFT($N10, 4), 7, 1), $B:$B, "<" & DATE(LEFT($N10, 4)+1, 7, 1)) -> 1220 | P10: =Q10-O10 -> 888.4 | Q10: =SUMIFS(E:E, $B:$B, ">=" & DATE(LEFT($N10, 4), 7, 1), $B:$B, "<" & DATE(LEFT($N10, 4)+1, 7, 1)) -> 2108.4 | R10: =IF(Q10=0, "n/a", O10/Q10) -> 0.5786378296
A11: =YEAR(B11) -> 1999 | B11: 1999-12-01 | C11: =IF(ISBLANK(OFFSET('Min. Expl. By Commodity (Data)'!D11, 0, VLOOKUP($C$6, 'Min. Expl. By Commodity (Data)'!$A$9:$B$19, 2, FALSE))), "", OFFSET('Min. Expl. By Commodity (Data)'!D11, 0, VLOOKUP($C$6, 'Min. Expl. By Commodity (Data)'!$A$9:$B$19, 2, FALSE)) ) -> 108.8 | D11: =IF(ISBLANK(OFFSET('Min. Expl. By Commodity (Data)'!E11, 0, VLOOKUP($C$6, 'Min. Expl. By Commodity (Data)'!$A$9:$B$19, 2, FALSE))), "", OFFSET('Min. Expl. By Commodity (Data)'!E11, 0, VLOOKUP($C$6, 'Min. Expl. By Commodity (Data)'!$A$9:$B$19, 2, FALSE)) ) -> 68.1 | E11: =IF(ISBLANK(OFFSET('Min. Expl. By Commodity (Data)'!F11, 0, VLOOKUP($C$6, 'Min. Expl. By Commodity (Data)'!$A$9:$B$19, 2, FALSE))), "", OFFSET('Min. Expl. By Commodity (Data)'!F11, 0, VLOOKUP($C$6, 'Min. Expl. By Commodity (Data)'!$A$9:$B$19, 2, FALSE)) ) -> 176.9 | F11: 0.6150367439 | H11: 2014 | I11: 1045.3 | J11: 794.2 | K11: 1839.5 | L11: 0.5682522425 | N11: 2014-2015 | O11: 917.4 | P11: 661.3 | Q11: 1578.7 | R11: 0.5811110407
A12: 2000 | B12: 2000-03-01 | C12: =IF(ISBLANK(OFFSET('Min. Expl. By Commodity (Data)'!D12, 0, VLOOKUP($C$6, 'Min. Expl. By Commodity (Data)'!$A$9:$B$19, 2, FALSE))), "", OFFSET('Min. Expl. By Commodity (Data)'!D12, 0, VLOOKUP($C$6, 'Min. Expl. By Commodity (Data)'!$A$9:$B$19, 2, FALSE)) ) -> 85 | D12: =IF(ISBLANK(OFFSET('Min. Expl. By Commodity (Data)'!E12, 0, VLOOKUP($C$6, 'Min. Expl. By Commodity (Data)'!$A$9:$B$19, 2, FALSE))), "", OFFSET('Min. Expl. By Commodity (Data)'!E12, 0, VLOOKUP($C$6, 'Min. Expl. By Commodity (Data)'!$A$9:$B$19, 2, FALSE)) ) -> 51.7 | E12: =IF(ISBLANK(OFFSET('Min. Expl. By Commodity (Data)'!F12, 0, VLOOKUP($C$6, 'Min. Expl. By Commodity (Data)'!$A$9:$B$19, 2, FALSE))), "", OFFSET('Min. Expl. By Commodity (Data)'!F12, 0, VLOOKUP($C$6, 'Min. Expl. By Commodity (Data)'!$A$9:$B$19, 2, FALSE)) ) -> 136.7 | F12: 0.6217995611 | H12: 2015 | I12: 843.7 | J12: 594.9 | K12: 1438.6 | L12: 0.5864729598 | N12: 2015-2016 | O12: 871 | P12: 550.1 | Q12: 1421.1 | R12: 0.6129054957
A13: 2000 | B13: 2000-06-01 | C13: =IF(ISBLANK(OFFSET('Min. Expl. By Commodity (Data)'!D13, 0, VLOOKUP($C$6, 'Min. Expl. By Commodity (Data)'!$A$9:$B$19, 2, FALSE))), "", OFFSET('Min. Expl. By Commodity (Data)'!D13, 0, VLOOKUP($C$6, 'Min. Expl. By Commodity (Data)'!$A$9:$B$19, 2, FALSE)) ) -> 113.3 | D13: =IF(ISBLANK(OFFSET('Min. Expl. By Commodity (Data)'!E13, 0, VLOOKUP($C$6, 'Min. Expl. By Commodity (Data)'!$A$9:$B$19, 2, FALSE))), "", OFFSET('Min. Expl. By Commodity (Data)'!E13, 0, VLOOKUP($C$6, 'Min. Expl. By Commodity (Data)'!$A$9:$B$19, 2, FALSE)) ) -> 69.4 | E13: =IF(ISBLANK(OFFSET('Min. Expl. By Commodity (Data)'!F13, 0, VLOOKUP($C$6, 'Min. Expl. By Commodity (Data)'!$A$9:$B$19, 2, FALSE))), "", OFFSET('Min. Expl. By Commodity (Data)'!F13, 0, VLOOKUP($C$6, 'Min. Expl. By Commodity (Data)'!$A$9:$B$19, 2, FALSE)) ) -> 182.7 | F13: 0.6201423098 | H13: 2016 | I13: 927.6 | J13: 499.3 | K13: 1426.9 | L13: 0.6500805943 | N13: 2016-2017 | O13: 1028.3 | P13: 536.8 | Q13: 1565.1 | R13: 0.6570187208
A14: 2000 | B14: 2000-09-01 | C14: =IF(ISBLANK(OFFSET('Min. Expl. By Commodity (Data)'!D14, 0, VLOOKUP($C$6, 'Min. Expl. By Commodity (Data)'!$A$9:$B$19, 2, FALSE))), "", OFFSET('Min. Expl. By Commodity (Data)'!D14, 0, VLOOKUP($C$6, 'Min. Expl. By Commodity (Data)'!$A$9:$B$19, 2, FALSE)) ) -> 104.4 | D14: =IF(ISBLANK(OFFSET('Min. Expl. By Commodity (Data)'!E14, 0, VLOOKUP($C$6, 'Min. Expl. By Commodity (Data)'!$A$9:$B$19, 2, FALSE))), "", OFFSET('Min. Expl. By Commodity (Data)'!E14, 0, VLOOKUP($C$6, 'Min. Expl. By Commodity (Data)'!$A$9:$B$19, 2, FALSE)) ) -> 65.4 | E14: =IF(ISBLANK(OFFSET('Min. Expl. By Commodity (Data)'!F14, 0, VLOOKUP($C$6, 'Min. Expl. By Commodity (Data)'!$A$9:$B$19, 2, FALSE))), "", OFFSET('Min. Expl. By Commodity (Data)'!F14, 0, VLOOKUP($C$6, 'Min. Expl. By Commodity (Data)'!$A$9:$B$19, 2, FALSE)) ) -> 169.8 | F14: 0.6148409894 | H14: 2017 | I14: 1108.7 | J14: 645.1 | K14: 1753.8 | L14: 0.6321701448 | N14: 2017-2018 | O14: 1203.5 | P14: 774.3 | Q14: 1977.8 | R14: 0.6085043988
A15: 2000 | B15: 2000-12-01 | C15: =IF(ISBLANK(OFFSET('Min. Expl. By Commodity (Data)'!D15, 0, VLOOKUP($C$6, 'Min. Expl. By Commodity (Data)'!$A$9:$B$19, 2, FALSE))), "", OFFSET('Min. Expl. By Commodity (Data)'!D15, 0, VLOOKUP($C$6, 'Min. Expl. By Commodity (Data)'!$A$9:$B$19, 2, FALSE)) ) -> 118 | D15: =IF(ISBLANK(OFFSET('Min. Expl. By Commodity (Data)'!E15, 0, VLOOKUP($C$6, 'Min. Expl. By Commodity (Data)'!$A$9:$B$19, 2, FALSE))), "", OFFSET('Min. Expl. By Commodity (Data)'!E15, 0, VLOOKUP($C$6, 'Min. Expl. By Commodity (Data)'!$A$9:$B$19, 2, FALSE)) ) -> 69.2 | E15: =IF(ISBLANK(OFFSET('Min. Expl. By Commodity (Data)'!F15, 0, VLOOKUP($C$6, 'Min. Expl. By Commodity (Data)'!$A$9:$B$19, 2, FALSE))), "", OFFSET('Min. Expl. By Commodity (Data)'!F15, 0, VLOOKUP($C$6, 'Min. Expl. By Commodity (Data)'!$A$9:$B$19, 2, FALSE)) ) -> 187.2 | F15: 0.6303418803 | H15: 2018 | I15: 1318.1 | J15: 865.5 | K15: 2183.6 | L15: 0.6036361971 | N15: 2018-2019 | O15: 1441.9 | P15: 905.7 | Q15: 2347.6 | R15: 0.6142017379
A16: 2001 | B16: 2001-03-01 | C16: =IF(ISBLANK(OFFSET('Min. Expl. By Commodity (Data)'!D16, 0, VLOOKUP($C$6, 'Min. Expl. By Commodity (Data)'!$A$9:$B$19, 2, FALSE))), "", OFFSET('Min. Expl. By Commodity (Data)'!D16, 0, VLOOKUP($C$6, 'Min. Expl. By Commodity (Data)'!$A$9:$B$19, 2, FALSE)) ) -> 90.8 | D16: =IF(ISBLANK(OFFSET('Min. Expl. By Commodity (Data)'!E16, 0, VLOOKUP($C$6, 'Min. Expl. By Commodity (Data)'!$A$9:$B$19, 2, FALSE))), "", OFFSET('Min. Expl. By Commodity (Data)'!E16, 0, VLOOKUP($C$6, 'Min. Expl. By Commodity (Data)'!$A$9:$B$19, 2, FALSE)) ) -> 52.7 | E16: =IF(ISBLANK(OFFSET('Min. Expl. By Commodity (Data)'!F16, 0, VLOOKUP($C$6, 'Min. Expl. By Commodity (Data)'!$A$9:$B$19, 2, FALSE))), "", OFFSET('Min. Expl. By Commodity (Data)'!F16, 0, VLOOKUP($C$6, 'Min. Expl. By Commodity (Data)'!$A$9:$B$19, 2, FALSE)) ) -> 143.5 | F16: 0.6327526132 | H16: 2019 | I16: 1648.2 | J16: 1000.2 | K16: 2648.4 | L16: 0.6223380154 | N16: 2019-2020 | O16: 1693.1 | P16: 1078.7 | Q16: 2771.8 | R16: 0.6108305073
A17: 2001 | B17: 2001-06-01 | C17: =IF(ISBLANK(OFFSET('Min. Expl. By Commodity (Data)'!D17, 0, VLOOKUP($C$6, 'Min. Expl. By Commodity (Data)'!$A$9:$B$19, 2, FALSE))), "", OFFSET('Min. Expl. By Commodity (Data)'!D17, 0, VLOOKUP($C$6, 'Min. Expl. By Commodity (Data)'!$A$9:$B$19, 2, FALSE)) ) -> 110.9 | D17: =IF(ISBLANK(OFFSET('Min. Expl. By Commodity (Data)'!E17, 0, VLOOKUP($C$6, 'Min. Expl. By Commodity (Data)'!$A$9:$B$19, 2, FALSE))), "", OFFSET('Min. Expl. By Commodity (Data)'!E17, 0, VLOOKUP($C$6, 'Min. Expl. By Commodity (Data)'!$A$9:$B$19, 2, FALSE)) ) -> 71.9 | E17: =IF(ISBLANK(OFFSET('Min. Expl. By Commodity (Data)'!F17, 0, VLOOKUP($C$6, 'Min. Expl. By Commodity (Data)'!$A$9:$B$19, 2, FALSE))), "", OFFSET('Min. Expl. By Commodity (Data)'!F17, 0, VLOOKUP($C$6, 'Min. Expl. By Commodity (Data)'!$A$9:$B$19, 2, FALSE)) ) -> 182.8 | F17: 0.6066739606 | H17: 2020 | I17: 1757.5 | J17: 1051.3 | K17: 2808.8 | L17: 0.6257120478 | N17: 2020-2021 | O17: 2052.1 | P17: 1109.6 | Q17: 3161.7 | R17: 0.6490495619
A18: 2001 | B18: 2001-09-01 | C18: =IF(ISBLANK(OFFSET('Min. Expl. By Commodity (Data)'!D18, 0, VLOOKUP($C$6, 'Min. Expl. By Commodity (Data)'!$A$9:$B$19, 2, FALSE))), "", OFFSET('Min. Expl. By Commodity (Data)'!D18, 0, VLOOKUP($C$6, 'Min. Expl. By Commodity (Data)'!$A$9:$B$19, 2, FALSE)) ) -> 103.3 | D18: =IF(ISBLANK(OFFSET('Min. Expl. By Commodity (Data)'!E18, 0, VLOOKUP($C$6, 'Min. Expl. By Commodity (Data)'!$A$9:$B$19, 2, FALSE))), "", OFFSET('Min. Expl. By Commodity (Data)'!E18, 0, VLOOKUP($C$6, 'Min. Expl. By Commodity (Data)'!$A$9:$B$19, 2, FALSE)) ) -> 64.1 | E18: =IF(ISBLANK(OFFSET('Min. Expl. By Commodity (Data)'!F18, 0, VLOOKUP($C$6, 'Min. Expl. By Commodity (Data)'!$A$9:$B$19, 2, FALSE))), "", OFFSET('Min. Expl. By Commodity (Data)'!F18, 0, VLOOKUP($C$6, 'Min. Expl. By Commodity (Data)'!$A$9:$B$19, 2, FALSE)) ) -> 167.4 | F18: 0.6170848268 | H18: =H19-1 -> 2021 | I18: 2351.4 | J18: 1244.7 | K18: 3596.1 | L18: 0.6538750313 | N18: =LEFT(N19,4)-1 & "-" & LEFT(N19,4) -> 2021-2022 | O18: 2478.6 | P18: 1383.3 | Q18: 3861.9 | R18: 0.6418084363
A19: 2001 | B19: 2001-12-01 | C19: =IF(ISBLANK(OFFSET('Min. Expl. By Commodity (Data)'!D19, 0, VLOOKUP($C$6, 'Min. Expl. By Commodity (Data)'!$A$9:$B$19, 2, FALSE))), "", OFFSET('Min. Expl. By Commodity (Data)'!D19, 0, VLOOKUP($C$6, 'Min. Expl. By Commodity (Data)'!$A$9:$B$19, 2, FALSE)) ) -> 103.5 | D19: =IF(ISBLANK(OFFSET('Min. Expl. By Commodity (Data)'!E19, 0, VLOOKUP($C$6, 'Min. Expl. By Commodity (Data)'!$A$9:$B$19, 2, FALSE))), "", OFFSET('Min. Expl. By Commodity (Data)'!E19, 0, VLOOKUP($C$6, 'Min. Expl. By Commodity (Data)'!$A$9:$B$19, 2, FALSE)) ) -> 67.2 | E19: =IF(ISBLANK(OFFSET('Min. Expl. By Commodity (Data)'!F19, 0, VLOOKUP($C$6, 'Min. Expl. By Commodity (Data)'!$A$9:$B$19, 2, FALSE))), "", OFFSET('Min. Expl. By Commodity (Data)'!F19, 0, VLOOKUP($C$6, 'Min. Expl. By Commodity (Data)'!$A$9:$B$19, 2, FALSE)) ) -> 170.7 | F19: 0.6063268893 | H19: =YEAR(LARGE(B:B,4)) -> 2022 | I19: 2546.8 | J19: 1513.3 | K19: 4060.1 | L19: 0.6272751903 | N19: =IF(MONTH(LARGE(B:B,4))>=7, YEAR(LARGE(B:B,4)) & "-" & YEAR(LARGE(B:B,4))+1, YEAR(LARGE(B:B,4))-1 & "-" & YEAR(LARGE(B:B,4)) ) -> 2022-2023 | O19: 2539.5 | P19: 1573.8 | Q19: 4113.3 | R19: 0.6173874991
A20: 2002 | B20: 2002-03-01 | C20: =IF(ISBLANK(OFFSET('Min. Expl. By Commodity (Data)'!D20, 0, VLOOKUP($C$6, 'Min. Expl. By Commodity (Data)'!$A$9:$B$19, 2, FALSE))), "", OFFSET('Min. Expl. By Commodity (Data)'!D20, 0, VLOOKUP($C$6, 'Min. Expl. By Commodity (Data)'!$A$9:$B$19, 2, FALSE)) ) -> 82.5 | D20: =IF(ISBLANK(OFFSET('Min. Expl. By Commodity (Data)'!E20, 0, VLOOKUP($C$6, 'Min. Expl. By Commodity (Data)'!$A$9:$B$19, 2, FALSE))), "", OFFSET('Min. Expl. By Commodity (Data)'!E20, 0, VLOOKUP($C$6, 'Min. Expl. By Commodity (Data)'!$A$9:$B$19, 2, FALSE)) ) -> 51.7 | E20: =IF(ISBLANK(OFFSET('Min. Expl. By Commodity (Data)'!F20, 0, VLOOKUP($C$6, 'Min. Expl. By Commodity (Data)'!$A$9:$B$19, 2, FALSE))), "", OFFSET('Min. Expl. By Commodity (Data)'!F20, 0, VLOOKUP($C$6, 'Min. Expl. By Commodity (Data)'!$A$9:$B$19, 2, FALSE)) ) -> 134.2 | F20: 0.6147540984
A21: 2002 | B21: 2002-06-01 | C21: =IF(ISBLANK(OFFSET('Min. Expl. By Commodity (Data)'!D21, 0, VLOOKUP($C$6, 'Min. Expl. By Commodity (Data)'!$A$9:$B$19, 2, FALSE))), "", OFFSET('Min. Expl. By Commodity (Data)'!D21, 0, VLOOKUP($C$6, 'Min. Expl. By Commodity (Data)'!$A$9:$B$19, 2, FALSE)) ) -> 91.8 | D21: =IF(ISBLANK(OFFSET('Min. Expl. By Commodity (Data)'!E21, 0, VLOOKUP($C$6, 'Min. Expl. By Commodity (Data)'!$A$9:$B$19, 2, FALSE))), "", OFFSET('Min. Expl. By Commodity (Data)'!E21, 0, VLOOKUP($C$6, 'Min. Expl. By Commodity (Data)'!$A$9:$B$19, 2, FALSE)) ) -> 76.5 | E21: =IF(ISBLANK(OFFSET('Min. Expl. By Commodity (Data)'!F21, 0, VLOOKUP($C$6, 'Min. Expl. By Commodity (Data)'!$A$9:$B$19, 2, FALSE))), "", OFFSET('Min. Expl. By Commodity (Data)'!F21, 0, VLOOKUP($C$6, 'Min. Expl. By Commodity (Data)'!$A$9:$B$19, 2, FALSE)) ) -> 168.3 | F21: 0.5454545455
A22: 2002 | B22: 2002-09-01 | C22: =IF(ISBLANK(OFFSET('Min. Expl. By Commodity (Data)'!D22, 0, VLOOKUP($C$6, 'Min. Expl. By Commodity (Data)'!$A$9:$B$19, 2, FALSE))), "", OFFSET('Min. Expl. By Commodity (Data)'!D22, 0, VLOOKUP($C$6, 'Min. Expl. By Commodity (Data)'!$A$9:$B$19, 2, FALSE)) ) -> 110.1 | D22: =IF(ISBLANK(OFFSET('Min. Expl. By Commodity (Data)'!E22, 0, VLOOKUP($C$6, 'Min. Expl. By Commodity (Data)'!$A$9:$B$19, 2, FALSE))), "", OFFSET('Min. Expl. By Commodity (Data)'!E22, 0, VLOOKUP($C$6, 'Min. Expl. By Commodity (Data)'!$A$9:$B$19, 2, FALSE)) ) -> 72.8 | E22: =IF(ISBLANK(OFFSET('Min. Expl. By Commodity (Data)'!F22, 0, VLOOKUP($C$6, 'Min. Expl. By Commodity (Data)'!$A$9:$B$19, 2, FALSE))), "", OFFSET('Min. Expl. By Commodity (Data)'!F22, 0, VLOOKUP($C$6, 'Min. Expl. By Commodity (Data)'!$A$9:$B$19, 2, FALSE)) ) -> 182.9 | F22: 0.6019682887
A23: 2002 | B23: 2002-12-01 | C23: =IF(ISBLANK(OFFSET('Min. Expl. By Commodity (Data)'!D23, 0, VLOOKUP($C$6, 'Min. Expl. By Commodity (Data)'!$A$9:$B$19, 2, FALSE))), "", OFFSET('Min. Expl. By Commodity (Data)'!D23, 0, VLOOKUP($C$6, 'Min. Expl. By Commodity (Data)'!$A$9:$B$19, 2, FALSE)) ) -> 111.1 | D23: =IF(ISBLANK(OFFSET('Min. Expl. By Commodity (Data)'!E23, 0, VLOOKUP($C$6, 'Min. Expl. By Commodity (Data)'!$A$9:$B$19, 2, FALSE))), "", OFFSET('Min. Expl. By Commodity (Data)'!E23, 0, VLOOKUP($C$6, 'Min. Expl. By Commodity (Data)'!$A$9:$B$19, 2, FALSE)) ) -> 81.7 | E23: =IF(ISBLANK(OFFSET('Min. Expl. By Commodity (Data)'!F23, 0, VLOOKUP($C$6, 'Min. Expl. By Commodity (Data)'!$A$9:$B$19, 2, FALSE))), "", OFFSET('Min. Expl. By Commodity (Data)'!F23, 0, VLOOKUP($C$6, 'Min. Expl. By Commodity (Data)'!$A$9:$B$19, 2, FALSE)) ) -> 192.8 | F23: 0.5762448133
A24: 2003 | B24: 2003-03-01 | C24: =IF(ISBLANK(OFFSET('Min. Expl. By Commodity (Data)'!D24, 0, VLOOKUP($C$6, 'Min. Expl. By Commodity (Data)'!$A$9:$B$19, 2, FALSE))), "", OFFSET('Min. Expl. By Commodity (Data)'!D24, 0, VLOOKUP($C$6, 'Min. Expl. By Commodity (Data)'!$A$9:$B$19, 2, FALSE)) ) -> 90.8 | D24: =IF(ISBLANK(OFFSET('Min. Expl. By Commodity (Data)'!E24, 0, VLOOKUP($C$6, 'Min. Expl. By Commodity (Data)'!$A$9:$B$19, 2, FALSE))), "", OFFSET('Min. Expl. By Commodity (Data)'!E24, 0, VLOOKUP($C$6, 'Min. Expl. By Commodity (Data)'!$A$9:$B$19, 2, FALSE)) ) -> 62.6 | E24: =IF(ISBLANK(OFFSET('Min. Expl. By Commodity (Data)'!F24, 0, VLOOKUP($C$6, 'Min. Expl. By Commodity (Data)'!$A$9:$B$19, 2, FALSE))), "", OFFSET('Min. Expl. By Commodity (Data)'!F24, 0, VLOOKUP($C$6, 'Min. Expl. By Commodity (Data)'!$A$9:$B$19, 2, FALSE)) ) -> 153.4 | F24: 0.591916558
A25: 2003 | B25: 2003-06-01 | C25: =IF(ISBLANK(OFFSET('Min. Expl. By Commodity (Data)'!D25, 0, VLOOKUP($C$6, 'Min. Expl. By Commodity (Data)'!$A$9:$B$19, 2, FALSE))), "", OFFSET('Min. Expl. By Commodity (Data)'!D25, 0, VLOOKUP($C$6, 'Min. Expl. By Commodity (Data)'!$A$9:$B$19, 2, FALSE)) ) -> 111.6 | D25: =IF(ISBLANK(OFFSET('Min. Expl. By Commodity (Data)'!E25, 0, VLOOKUP($C$6, 'Min. Expl. By Commodity (Data)'!$A$9:$B$19, 2, FALSE))), "", OFFSET('Min. Expl. By Commodity (Data)'!E25, 0, VLOOKUP($C$6, 'Min. Expl. By Commodity (Data)'!$A$9:$B$19, 2, FALSE)) ) -> 92.1 | E25: =IF(ISBLANK(OFFSET('Min. Expl. By Commodity (Data)'!F25, 0, VLOOKUP($C$6, 'Min. Expl. By Commodity (Data)'!$A$9:$B$19, 2, FALSE))), "", OFFSET('Min. Expl. By Commodity (Data)'!F25, 0, VLOOKUP($C$6, 'Min. Expl. By Commodity (Data)'!$A$9:$B$19, 2, FALSE)) ) -> 203.7 | F25: 0.5478645066
A26: 2003 | B26: 2003-09-01 | C26: =IF(ISBLANK(OFFSET('Min. Expl. By Commodity (Data)'!D26, 0, VLOOKUP($C$6, 'Min. Expl. By Commodity (Data)'!$A$9:$B$19, 2, FALSE))), "", OFFSET('Min. Expl. By Commodity (Data)'!D26, 0, VLOOKUP($C$6, 'Min. Expl. By Commodity (Data)'!$A$9:$B$19, 2, FALSE)) ) -> 108.5 | D26: =IF(ISBLANK(OFFSET('Min. Expl. By Commodity (Data)'!E26, 0, VLOOKUP($C$6, 'Min. Expl. By Commodity (Data)'!$A$9:$B$19, 2, FALSE))), "", OFFSET('Min. Expl. By Commodity (Data)'!E26, 0, VLOOKUP($C$6, 'Min. Expl. By Commodity (Data)'!$A$9:$B$19, 2, FALSE)) ) -> 71.2 | E26: =IF(ISBLANK(OFFSET('Min. Expl. By Commodity (Data)'!F26, 0, VLOOKUP($C$6, 'Min. Expl. By Commodity (Data)'!$A$9:$B$19, 2, FALSE))), "", OFFSET('Min. Expl. By Commodity (Data)'!F26, 0, VLOOKUP($C$6, 'Min. Expl. By Commodity (Data)'!$A$9:$B$19, 2, FALSE)) ) -> 179.7 | F26: 0.6037840846
A27: 2003 | B27: 2003-12-01 | C27: =IF(ISBLANK(OFFSET('Min. Expl. By Commodity (Data)'!D27, 0, VLOOKUP($C$6, 'Min. Expl. By Commodity (Data)'!$A$9:$B$19, 2, FALSE))), "", OFFSET('Min. Expl. By Commodity (Data)'!D27, 0, VLOOKUP($C$6, 'Min. Expl. By Commodity (Data)'!$A$9:$B$19, 2, FALSE)) ) -> 122 | D27: =IF(ISBLANK(OFFSET('Min. Expl. By Commodity (Data)'!E27, 0, VLOOKUP($C$6, 'Min. Expl. By Commodity (Data)'!$A$9:$B$19, 2, FALSE))), "", OFFSET('Min. Expl. By Commodity (Data)'!E27, 0, VLOOKUP($C$6, 'Min. Expl. By Commodity (Data)'!$A$9:$B$19, 2, FALSE)) ) -> 77.5 | E27: =IF(ISBLANK(OFFSET('Min. Expl. By Commodity (Data)'!F27, 0, VLOOKUP($C$6, 'Min. Expl. By Commodity (Data)'!$A$9:$B$19, 2, FALSE))), "", OFFSET('Min. Expl. By Commodity (Data)'!F27, 0, VLOOKUP($C$6, 'Min. Expl. By Commodity (Data)'!$A$9:$B$19, 2, FALSE)) ) -> 199.5 | F27: 0.6115288221
A28: 2004 | B28: 2004-03-01 | C28: =IF(ISBLANK(OFFSET('Min. Expl. By Commodity (Data)'!D28, 0, VLOOKUP($C$6, 'Min. Expl. By Commodity (Data)'!$A$9:$B$19, 2, FALSE))), "", OFFSET('Min. Expl. By Commodity (Data)'!D28, 0, VLOOKUP($C$6, 'Min. Expl. By Commodity (Data)'!$A$9:$B$19, 2, FALSE)) ) -> 96.5 | D28: =IF(ISBLANK(OFFSET('Min. Expl. By Commodity (Data)'!E28, 0, VLOOKUP($C$6, 'Min. Expl. By Commodity (Data)'!$A$9:$B$19, 2, FALSE))), "", OFFSET('Min. Expl. By Commodity (Data)'!E28, 0, VLOOKUP($C$6, 'Min. Expl. By Commodity (Data)'!$A$9:$B$19, 2, FALSE)) ) -> 70.8 | E28: =IF(ISBLANK(OFFSET('Min. Expl. By Commodity (Data)'!F28, 0, VLOOKUP($C$6, 'Min. Expl. By Commodity (Data)'!$A$9:$B$19, 2, FALSE))), "", OFFSET('Min. Expl. By Commodity (Data)'!F28, 0, VLOOKUP($C$6, 'Min. Expl. By Commodity (Data)'!$A$9:$B$19, 2, FALSE)) ) -> 167.3 | F28: 0.5768081291
A29: 2004 | B29: 2004-06-01 | C29: =IF(ISBLANK(OFFSET('Min. Expl. By Commodity (Data)'!D29, 0, VLOOKUP($C$6, 'Min. Expl. By Commodity (Data)'!$A$9:$B$19, 2, FALSE))), "", OFFSET('Min. Expl. By Commodity (Data)'!D29, 0, VLOOKUP($C$6, 'Min. Expl. By Commodity (Data)'!$A$9:$B$19, 2, FALSE)) ) -> 138.8 | D29: =IF(ISBLANK(OFFSET('Min. Expl. By Commodity (Data)'!E29, 0, VLOOKUP($C$6, 'Min. Expl. By Commodity (Data)'!$A$9:$B$19, 2, FALSE))), "", OFFSET('Min. Expl. By Commodity (Data)'!E29, 0, VLOOKUP($C$6, 'Min. Expl. By Commodity (Data)'!$A$9:$B$19, 2, FALSE)) ) -> 101.4 | E29: =IF(ISBLANK(OFFSET('Min. Expl. By Commodity (Data)'!F29, 0, VLOOKUP($C$6, 'Min. Expl. By Commodity (Data)'!$A$9:$B$19, 2, FALSE))), "", OFFSET('Min. Expl. By Commodity (Data)'!F29, 0, VLOOKUP($C$6, 'Min. Expl. By Commodity (Data)'!$A$9:$B$19, 2, FALSE)) ) -> 240.2 | F29: 0.5778517902
A30: 2004 | B30: 2004-09-01 | C30: =IF(ISBLANK(OFFSET('Min. Expl. By Commodity (Data)'!D30, 0, VLOOKUP($C$6, 'Min. Expl. By Commodity (Data)'!$A$9:$B$19, 2, FALSE))), "", OFFSET('Min. Expl. By Commodity (Data)'!D30, 0, VLOOKUP($C$6, 'Min. Expl. By Commodity (Data)'!$A$9:$B$19, 2, FALSE)) ) -> 147.9 | D30: =IF(ISBLANK(OFFSET('Min. Expl. By Commodity (Data)'!E30, 0, VLOOKUP($C$6, 'Min. Expl. By Commodity (Data)'!$A$9:$B$19, 2, FALSE))), "", OFFSET('Min. Expl. By Commodity (Data)'!E30, 0, VLOOKUP($C$6, 'Min. Expl. By Commodity (Data)'!$A$9:$B$19, 2, FALSE)) ) -> 103.2 | E30: =IF(ISBLANK(OFFSET('Min. Expl. By Commodity (Data)'!F30, 0, VLOOKUP($C$6, 'Min. Expl. By Commodity (Data)'!$A$9:$B$19, 2, FALSE))), "", OFFSET('Min. Expl. By Commodity (Data)'!F30, 0, VLOOKUP($C$6, 'Min. Expl. By Commodity (Data)'!$A$9:$B$19, 2, FALSE)) ) -> 251.1 | F30: 0.5890083632
A31: 2004 | B31: 2004-12-01 | C31: =IF(ISBLANK(OFFSET('Min. Expl. By Commodity (Data)'!D31, 0, VLOOKUP($C$6, 'Min. Expl. By Commodity (Data)'!$A$9:$B$19, 2, FALSE))), "", OFFSET('Min. Expl. By Commodity (Data)'!D31, 0, VLOOKUP($C$6, 'Min. Expl. By Commodity (Data)'!$A$9:$B$19, 2, FALSE)) ) -> 156.7 | D31: =IF(ISBLANK(OFFSET('Min. Expl. By Commodity (Data)'!E31, 0, VLOOKUP($C$6, 'Min. Expl. By Commodity (Data)'!$A$9:$B$19, 2, FALSE))), "", OFFSET('Min. Expl. By Commodity (Data)'!E31, 0, VLOOKUP($C$6, 'Min. Expl. By Commodity (Data)'!$A$9:$B$19, 2, FALSE)) ) -> 104.1 | E31: =IF(ISBLANK(OFFSET('Min. Expl. By Commodity (Data)'!F31, 0, VLOOKUP($C$6, 'Min. Expl. By Commodity (Data)'!$A$9:$B$19, 2, FALSE))), "", OFFSET('Min. Expl. By Commodity (Data)'!F31, 0, VLOOKUP($C$6, 'Min. Expl. By Commodity (Data)'!$A$9:$B$19, 2, FALSE)) ) -> 260.8 | F31: 0.6008435583
A32: 2005 | B32: 2005-03-01 | C32: =IF(ISBLANK(OFFSET('Min. Expl. By Commodity (Data)'!D32, 0, VLOOKUP($C$6, 'Min. Expl. By Commodity (Data)'!$A$9:$B$19, 2, FALSE))), "", OFFSET('Min. Expl. By Commodity (Data)'!D32, 0, VLOOKUP($C$6, 'Min. Expl. By Commodity (Data)'!$A$9:$B$19, 2, FALSE)) ) -> 134.4 | D32: =IF(ISBLANK(OFFSET('Min. Expl. By Commodity (Data)'!E32, 0, VLOOKUP($C$6, 'Min. Expl. By Commodity (Data)'!$A$9:$B$19, 2, FALSE))), "", OFFSET('Min. Expl. By Commodity (Data)'!E32, 0, VLOOKUP($C$6, 'Min. Expl. By Commodity (Data)'!$A$9:$B$19, 2, FALSE)) ) -> 91.4 | E32: =IF(ISBLANK(OFFSET('Min. Expl. By Commodity (Data)'!F32, 0, VLOOKUP($C$6, 'Min. Expl. By Commodity (Data)'!$A$9:$B$19, 2, FALSE))), "", OFFSET('Min. Expl. By Commodity (Data)'!F32, 0, VLOOKUP($C$6, 'Min. Expl. By Commodity (Data)'!$A$9:$B$19, 2, FALSE)) ) -> 225.8 | F32: 0.5952170062
A33: 2005 | B33: 2005-06-01 | C33: =IF(ISBLANK(OFFSET('Min. Expl. By Commodity (Data)'!D33, 0, VLOOKUP($C$6, 'Min. Expl. By Commodity (Data)'!$A$9:$B$19, 2, FALSE))), "", OFFSET('Min. Expl. By Commodity (Data)'!D33, 0, VLOOKUP($C$6, 'Min. Expl. By Commodity (Data)'!$A$9:$B$19, 2, FALSE)) ) -> 167 | D33: =IF(ISBLANK(OFFSET('Min. Expl. By Commodity (Data)'!E33, 0, VLOOKUP($C$6, 'Min. Expl. By Commodity (Data)'!$A$9:$B$19, 2, FALSE))), "", OFFSET('Min. Expl. By Commodity (Data)'!E33, 0, VLOOKUP($C$6, 'Min. Expl. By Commodity (Data)'!$A$9:$B$19, 2, FALSE)) ) -> 123.7 | E33: =IF(ISBLANK(OFFSET('Min. Expl. By Commodity (Data)'!F33, 0, VLOOKUP($C$6, 'Min. Expl. By Commodity (Data)'!$A$9:$B$19, 2, FALSE))), "", OFFSET('Min. Expl. By Commodity (Data)'!F33, 0, VLOOKUP($C$6, 'Min. Expl. By Commodity (Data)'!$A$9:$B$19, 2, FALSE)) ) -> 290.7 | F33: 0.5744754042
A34: 2005 | B34: 2005-09-01 | C34: =IF(ISBLANK(OFFSET('Min. Expl. By Commodity (Data)'!D34, 0, VLOOKUP($C$6, 'Min. Expl. By Commodity (Data)'!$A$9:$B$19, 2, FALSE))), "", OFFSET('Min. Expl. By Commodity (Data)'!D34, 0, VLOOKUP($C$6, 'Min. Expl. By Commodity (Data)'!$A$9:$B$19, 2, FALSE)) ) -> 154.4 | D34: =IF(ISBLANK(OFFSET('Min. Expl. By Commodity (Data)'!E34, 0, VLOOKUP($C$6, 'Min. Expl. By Commodity (Data)'!$A$9:$B$19, 2, FALSE))), "", OFFSET('Min. Expl. By Commodity (Data)'!E34, 0, VLOOKUP($C$6, 'Min. Expl. By Commodity (Data)'!$A$9:$B$19, 2, FALSE)) ) -> 137.6 | E34: =IF(ISBLANK(OFFSET('Min. Expl. By Commodity (Data)'!F34, 0, VLOOKUP($C$6, 'Min. Expl. By Commodity (Data)'!$A$9:$B$19, 2, FALSE))), "", OFFSET('Min. Expl. By Commodity (Data)'!F34, 0, VLOOKUP($C$6, 'Min. Expl. By Commodity (Data)'!$A$9:$B$19, 2, FALSE)) ) -> 292 | F34: 0.5287671233
A35: 2005 | B35: 2005-12-01 | C35: =IF(ISBLANK(OFFSET('Min. Expl. By Commodity (Data)'!D35, 0, VLOOKUP($C$6, 'Min. Expl. By Commodity (Data)'!$A$9:$B$19, 2, FALSE))), "", OFFSET('Min. Expl. By Commodity (Data)'!D35, 0, VLOOKUP($C$6, 'Min. Expl. By Commodity (Data)'!$A$9:$B$19, 2, FALSE)) ) -> 158 | D35: =IF(ISBLANK(OFFSET('Min. Expl. By Commodity (Data)'!E35, 0, VLOOKUP($C$6, 'Min. Expl. By Commodity (Data)'!$A$9:$B$19, 2, FALSE))), "", OFFSET('Min. Expl. By Commodity (Data)'!E35, 0, VLOOKUP($C$6, 'Min. Expl. By Commodity (Data)'!$A$9:$B$19, 2, FALSE)) ) -> 169.6 | E35: =IF(ISBLANK(OFFSET('Min. Expl. By Commodity (Data)'!F35, 0, VLOOKUP($C$6, 'Min. Expl. By Commodity (Data)'!$A$9:$B$19, 2, FALSE))), "", OFFSET('Min. Expl. By Commodity (Data)'!F35, 0, VLOOKUP($C$6, 'Min. Expl. By Commodity (Data)'!$A$9:$B$19, 2, FALSE)) ) -> 327.6 | F35: 0.4822954823
A36: 2006 | B36: 2006-03-01 | C36: =IF(ISBLANK(OFFSET('Min. Expl. By Commodity (Data)'!D36, 0, VLOOKUP($C$6, 'Min. Expl. By Commodity (Data)'!$A$9:$B$19, 2, FALSE))), "", OFFSET('Min. Expl. By Commodity (Data)'!D36, 0, VLOOKUP($C$6, 'Min. Expl. By Commodity (Data)'!$A$9:$B$19, 2, FALSE)) ) -> 121.5 | D36: =IF(ISBLANK(OFFSET('Min. Expl. By Commodity (Data)'!E36, 0, VLOOKUP($C$6, 'Min. Expl. By Commodity (Data)'!$A$9:$B$19, 2, FALSE))), "", OFFSET('Min. Expl. By Commodity (Data)'!E36, 0, VLOOKUP($C$6, 'Min. Expl. By Commodity (Data)'!$A$9:$B$19, 2, FALSE)) ) -> 142.2 | E36: =IF(ISBLANK(OFFSET('Min. Expl. By Commodity (Data)'!F36, 0, VLOOKUP($C$6, 'Min. Expl. By Commodity (Data)'!$A$9:$B$19, 2, FALSE))), "", OFFSET('Min. Expl. By Commodity (Data)'!F36, 0, VLOOKUP($C$6, 'Min. Expl. By Commodity (Data)'!$A$9:$B$19, 2, FALSE)) ) -> 263.7 | F36: 0.4607508532
A37: 2006 | B37: 2006-06-01 | C37: =IF(ISBLANK(OFFSET('Min. Expl. By Commodity (Data)'!D37, 0, VLOOKUP($C$6, 'Min. Expl. By Commodity (Data)'!$A$9:$B$19, 2, FALSE))), "", OFFSET('Min. Expl. By Commodity (Data)'!D37, 0, VLOOKUP($C$6, 'Min. Expl. By Commodity (Data)'!$A$9:$B$19, 2, FALSE)) ) -> 156.3 | D37: =IF(ISBLANK(OFFSET('Min. Expl. By Commodity (Data)'!E37, 0, VLOOKUP($C$6, 'Min. Expl. By Commodity (Data)'!$A$9:$B$19, 2, FALSE))), "", OFFSET('Min. Expl. By Commodity (Data)'!E37, 0, VLOOKUP($C$6, 'Min. Expl. By Commodity (Data)'!$A$9:$B$19, 2, FALSE)) ) -> 201.1 | E37: =IF(ISBLANK(OFFSET('Min. Expl. By Commodity (Data)'!F37, 0, VLOOKUP($C$6, 'Min. Expl. By Commodity (Data)'!$A$9:$B$19, 2, FALSE))), "", OFFSET('Min. Expl. By Commodity (Data)'!F37, 0, VLOOKUP($C$6, 'Min. Expl. By Commodity (Data)'!$A$9:$B$19, 2, FALSE)) ) -> 357.4 | F37: 0.4373251259
A38: 2006 | B38: 2006-09-01 | C38: =IF(ISBLANK(OFFSET('Min. Expl. By Commodity (Data)'!D38, 0, VLOOKUP($C$6, 'Min. Expl. By Commodity (Data)'!$A$9:$B$19, 2, FALSE))), "", OFFSET('Min. Expl. By Commodity (Data)'!D38, 0, VLOOKUP($C$6, 'Min. Expl. By Commodity (Data)'!$A$9:$B$19, 2, FALSE)) ) -> 190.2 | D38: =IF(ISBLANK(OFFSET('Min. Expl. By Commodity (Data)'!E38, 0, VLOOKUP($C$6, 'Min. Expl. By Commodity (Data)'!$A$9:$B$19, 2, FALSE))), "", OFFSET('Min. Expl. By Commodity (Data)'!E38, 0, VLOOKUP($C$6, 'Min. Expl. By Commodity (Data)'!$A$9:$B$19, 2, FALSE)) ) -> 204.4 | E38: =IF(ISBLANK(OFFSET('Min. Expl. By Commodity (Data)'!F38, 0, VLOOKUP($C$6, 'Min. Expl. By Commodity (Data)'!$A$9:$B$19, 2, FALSE))), "", OFFSET('Min. Expl. By Commodity (Data)'!F38, 0, VLOOKUP($C$6, 'Min. Expl. By Commodity (Data)'!$A$9:$B$19, 2, FALSE)) ) -> 394.6 | F38: 0.4820070958
A39: 2006 | B39: 2006-12-01 | C39: =IF(ISBLANK(OFFSET('Min. Expl. By Commodity (Data)'!D39, 0, VLOOKUP($C$6, 'Min. Expl. By Commodity (Data)'!$A$9:$B$19, 2, FALSE))), "", OFFSET('Min. Expl. By Commodity (Data)'!D39, 0, VLOOKUP($C$6, 'Min. Expl. By Commodity (Data)'!$A$9:$B$19, 2, FALSE)) ) -> 217.3 | D39: =IF(ISBLANK(OFFSET('Min. Expl. By Commodity (Data)'!E39, 0, VLOOKUP($C$6, 'Min. Expl. By Commodity (Data)'!$A$9:$B$19, 2, FALSE))), "", OFFSET('Min. Expl. By Commodity (Data)'!E39, 0, VLOOKUP($C$6, 'Min. Expl. By Commodity (Data)'!$A$9:$B$19, 2, FALSE)) ) -> 230.9 | E39: =IF(ISBLANK(OFFSET('Min. Expl. By Commodity (Data)'!F39, 0, VLOOKUP($C$6, 'Min. Expl. By Commodity (Data)'!$A$9:$B$19, 2, FALSE))), "", OFFSET('Min. Expl. By Commodity (Data)'!F39, 0, VLOOKUP($C$6, 'Min. Expl. By Commodity (Data)'!$A$9:$B$19, 2, FALSE)) ) -> 448.2 | F39: 0.4848282017
A40: 2007 | B40: 2007-03-01 | C40: =IF(ISBLANK(OFFSET('Min. Expl. By Commodity (Data)'!D40, 0, VLOOKUP($C$6, 'Min. Expl. By Commodity (Data)'!$A$9:$B$19, 2, FALSE))), "", OFFSET('Min. Expl. By Commodity (Data)'!D40, 0, VLOOKUP($C$6, 'Min. Expl. By Commodity (Data)'!$A$9:$B$19, 2, FALSE)) ) -> 179.9 | D40: =IF(ISBLANK(OFFSET('Min. Expl. By Commodity (Data)'!E40, 0, VLOOKUP($C$6, 'Min. Expl. By Commodity (Data)'!$A$9:$B$19, 2, FALSE))), "", OFFSET('Min. Expl. By Commodity (Data)'!E40, 0, VLOOKUP($C$6, 'Min. Expl. By Commodity (Data)'!$A$9:$B$19, 2, FALSE)) ) -> 189.4 | E40: =IF(ISBLANK(OFFSET('Min. Expl. By Commodity (Data)'!F40, 0, VLOOKUP($C$6, 'Min. Expl. By Commodity (Data)'!$A$9:$B$19, 2, FALSE))), "", OFFSET('Min. Expl. By Commodity (Data)'!F40, 0, VLOOKUP($C$6, 'Min. Expl. By Commodity (Data)'!$A$9:$B$19, 2, FALSE)) ) -> 369.3 | F40: 0.4871378283
A41: 2007 | B41: 2007-06-01 | C41: =IF(ISBLANK(OFFSET('Min. Expl. By Commodity (Data)'!D41, 0, VLOOKUP($C$6, 'Min. Expl. By Commodity (Data)'!$A$9:$B$19, 2, FALSE))), "", OFFSET('Min. Expl. By Commodity (Data)'!D41, 0, VLOOKUP($C$6, 'Min. Expl. By Commodity (Data)'!$A$9:$B$19, 2, FALSE)) ) -> 251.8 | D41: =IF(ISBLANK(OFFSET('Min. Expl. By Commodity (Data)'!E41, 0, VLOOKUP($C$6, 'Min. Expl. By Commodity (Data)'!$A$9:$B$19, 2, FALSE))), "", OFFSET('Min. Expl. By Commodity (Data)'!E41, 0, VLOOKUP($C$6, 'Min. Expl. By Commodity (Data)'!$A$9:$B$19, 2, FALSE)) ) -> 250.7 | E41: =IF(ISBLANK(OFFSET('Min. Expl. By Commodity (Data)'!F41, 0, VLOOKUP($C$6, 'Min. Expl. By Commodity (Data)'!$A$9:$B$19, 2, FALSE))), "", OFFSET('Min. Expl. By Commodity (Data)'!F41, 0, VLOOKUP($C$6, 'Min. Expl. By Commodity (Data)'!$A$9:$B$19, 2, FALSE)) ) -> 502.5 | F41: 0.5010945274
A42: 2007 | B42: 2007-09-01 | C42: =IF(ISBLANK(OFFSET('Min. Expl. By Commodity (Data)'!D42, 0, VLOOKUP($C$6, 'Min. Expl. By Commodity (Data)'!$A$9:$B$19, 2, FALSE))), "", OFFSET('Min. Expl. By Commodity (Data)'!D42, 0, VLOOKUP($C$6, 'Min. Expl. By Commodity (Data)'!$A$9:$B$19, 2, FALSE)) ) -> 293.3 | D42: =IF(ISBLANK(OFFSET('Min. Expl. By Commodity (Data)'!E42, 0, VLOOKUP($C$6, 'Min. Expl. By Commodity (Data)'!$A$9:$B$19, 2, FALSE))), "", OFFSET('Min. Expl. By Commodity (Data)'!E42, 0, VLOOKUP($C$6, 'Min. Expl. By Commodity (Data)'!$A$9:$B$19, 2, FALSE)) ) -> 270.1 | E42: =IF(ISBLANK(OFFSET('Min. Expl. By Commodity (Data)'!F42, 0, VLOOKUP($C$6, 'Min. Expl. By Commodity (Data)'!$A$9:$B$19, 2, FALSE))), "", OFFSET('Min. Expl. By Commodity (Data)'!F42, 0, VLOOKUP($C$6, 'Min. Expl. By Commodity (Data)'!$A$9:$B$19, 2, FALSE)) ) -> 563.4 | F42: =IF(OR(C42="", E42=""), "n/a", C42/E42) -> 0.5205892794
A43: 2007 | B43: 2007-12-01 | C43: =IF(ISBLANK(OFFSET('Min. Expl. By Commodity (Data)'!D43, 0, VLOOKUP($C$6, 'Min. Expl. By Commodity (Data)'!$A$9:$B$19, 2, FALSE))), "", OFFSET('Min. Expl. By Commodity (Data)'!D43, 0, VLOOKUP($C$6, 'Min. Expl. By Commodity (Data)'!$A$9:$B$19, 2, FALSE)) ) -> 313.8 | D43: =IF(ISBLANK(OFFSET('Min. Expl. By Commodity (Data)'!E43, 0, VLOOKUP($C$6, 'Min. Expl. By Commodity (Data)'!$A$9:$B$19, 2, FALSE))), "", OFFSET('Min. Expl. By Commodity (Data)'!E43, 0, VLOOKUP($C$6, 'Min. Expl. By Commodity (Data)'!$A$9:$B$19, 2, FALSE)) ) -> 312.1 | E43: =IF(ISBLANK(OFFSET('Min. Expl. By Commodity (Data)'!F43, 0, VLOOKUP($C$6, 'Min. Expl. By Commodity (Data)'!$A$9:$B$19, 2, FALSE))), "", OFFSET('Min. Expl. By Commodity (Data)'!F43, 0, VLOOKUP($C$6, 'Min. Expl. By Commodity (Data)'!$A$9:$B$19, 2, FALSE)) ) -> 625.9 | F43: 0.5013580444
A44: 2008 | B44: 2008-03-01 | C44: =IF(ISBLANK(OFFSET('Min. Expl. By Commodity (Data)'!D44, 0, VLOOKUP($C$6, 'Min. Expl. By Commodity (Data)'!$A$9:$B$19, 2, FALSE))), "", OFFSET('Min. Expl. By Commodity (Data)'!D44, 0, VLOOKUP($C$6, 'Min. Expl. By Commodity (Data)'!$A$9:$B$19, 2, FALSE)) ) -> 271.4 | D44: =IF(ISBLANK(OFFSET('Min. Expl. By Commodity (Data)'!E44, 0, VLOOKUP($C$6, 'Min. Expl. By Commodity (Data)'!$A$9:$B$19, 2, FALSE))), "", OFFSET('Min. Expl. By Commodity (Data)'!E44, 0, VLOOKUP($C$6, 'Min. Expl. By Commodity (Data)'!$A$9:$B$19, 2, FALSE)) ) -> 272.6 | E44: =IF(ISBLANK(OFFSET('Min. Expl. By Commodity (Data)'!F44, 0, VLOOKUP($C$6, 'Min. Expl. By Commodity (Data)'!$A$9:$B$19, 2, FALSE))), "", OFFSET('Min. Expl. By Commodity (Data)'!F44, 0, VLOOKUP($C$6, 'Min. Expl. By Commodity (Data)'!$A$9:$B$19, 2, FALSE)) ) -> 544 | F44: 0.4988970588
A45: 2008 | B45: 2008-06-01 | C45: =IF(ISBLANK(OFFSET('Min. Expl. By Commodity (Data)'!D45, 0, VLOOKUP($C$6, 'Min. Expl. By Commodity (Data)'!$A$9:$B$19, 2, FALSE))), "", OFFSET('Min. Expl. By Commodity (Data)'!D45, 0, VLOOKUP($C$6, 'Min. Expl. By Commodity (Data)'!$A$9:$B$19, 2, FALSE)) ) -> 381.2 | D45: =IF(ISBLANK(OFFSET('Min. Expl. By Commodity (Data)'!E45, 0, VLOOKUP($C$6, 'Min. Expl. By Commodity (Data)'!$A$9:$B$19, 2, FALSE))), "", OFFSET('Min. Expl. By Commodity (Data)'!E45, 0, VLOOKUP($C$6, 'Min. Expl. By Commodity (Data)'!$A$9:$B$19, 2, FALSE)) ) -> 346.9 | E45: =IF(ISBLANK(OFFSET('Min. Expl. By Commodity (Data)'!F45, 0, VLOOKUP($C$6, 'Min. Expl. By Commodity (Data)'!$A$9:$B$19, 2, FALSE))), "", OFFSET('Min. Expl. By Commodity (Data)'!F45, 0, VLOOKUP($C$6, 'Min. Expl. By Commodity (Data)'!$A$9:$B$19, 2, FALSE)) ) -> 728.1 | F45: 0.5235544568
A46: 2008 | B46: 2008-09-01 | C46: =IF(ISBLANK(OFFSET('Min. Expl. By Commodity (Data)'!D46, 0, VLOOKUP($C$6, 'Min. Expl. By Commodity (Data)'!$A$9:$B$19, 2, FALSE))), "", OFFSET('Min. Expl. By Commodity (Data)'!D46, 0, VLOOKUP($C$6, 'Min. Expl. By Commodity (Data)'!$A$9:$B$19, 2, FALSE)) ) -> 383.8 | D46: =IF(ISBLANK(OFFSET('Min. Expl. By Commodity (Data)'!E46, 0, VLOOKUP($C$6, 'Min. Expl. By Commodity (Data)'!$A$9:$B$19, 2, FALSE))), "", OFFSET('Min. Expl. By Commodity (Data)'!E46, 0, VLOOKUP($C$6, 'Min. Expl. By Commodity (Data)'!$A$9:$B$19, 2, FALSE)) ) -> 303.9 | E46: =IF(ISBLANK(OFFSET('Min. Expl. By Commodity (Data)'!F46, 0, VLOOKUP($C$6, 'Min. Expl. By Commodity (Data)'!$A$9:$B$19, 2, FALSE))), "", OFFSET('Min. Expl. By Commodity (Data)'!F46, 0, VLOOKUP($C$6, 'Min. Expl. By Commodity (Data)'!$A$9:$B$19, 2, FALSE)) ) -> 687.7 | F46: 0.5580921914
A47: 2008 | B47: 2008-12-01 | C47: =IF(ISBLANK(OFFSET('Min. Expl. By Commodity (Data)'!D47, 0, VLOOKUP($C$6, 'Min. Expl. By Commodity (Data)'!$A$9:$B$19, 2, FALSE))), "", OFFSET('Min. Expl. By Commodity (Data)'!D47, 0, VLOOKUP($C$6, 'Min. Expl. By Commodity (Data)'!$A$9:$B$19, 2, FALSE)) ) -> 364 | D47: =IF(ISBLANK(OFFSET('Min. Expl. By Commodity (Data)'!E47, 0, VLOOKUP($C$6, 'Min. Expl. By Commodity (Data)'!$A$9:$B$19, 2, FALSE))), "", OFFSET('Min. Expl. By Commodity (Data)'!E47, 0, VLOOKUP($C$6, 'Min. Expl. By Commodity (Data)'!$A$9:$B$19, 2, FALSE)) ) -> 284.5 | E47: =IF(ISBLANK(OFFSET('Min. Expl. By Commodity (Data)'!F47, 0, VLOOKUP($C$6, 'Min. Expl. By Commodity (Data)'!$A$9:$B$19, 2, FALSE))), "", OFFSET('Min. Expl. By Commodity (Data)'!F47, 0, VLOOKUP($C$6, 'Min. Expl. By Commodity (Data)'!$A$9:$B$19, 2, FALSE)) ) -> 648.5 | F47: 0.5612952968
A48: 2009 | B48: 2009-03-01 | C48: =IF(ISBLANK(OFFSET('Min. Expl. By Commodity (Data)'!D48, 0, VLOOKUP($C$6, 'Min. Expl. By Commodity (Data)'!$A$9:$B$19, 2, FALSE))), "", OFFSET('Min. Expl. By Commodity (Data)'!D48, 0, VLOOKUP($C$6, 'Min. Expl. By Commodity (Data)'!$A$9:$B$19, 2, FALSE)) ) -> 224.2 | D48: =IF(ISBLANK(OFFSET('Min. Expl. By Commodity (Data)'!E48, 0, VLOOKUP($C$6, 'Min. Expl. By Commodity (Data)'!$A$9:$B$19, 2, FALSE))), "", OFFSET('Min. Expl. By Commodity (Data)'!E48, 0, VLOOKUP($C$6, 'Min. Expl. By Commodity (Data)'!$A$9:$B$19, 2, FALSE)) ) -> 179.3 | E48: =IF(ISBLANK(OFFSET('Min. Expl. By Commodity (Data)'!F48, 0, VLOOKUP($C$6, 'Min. Expl. By Commodity (Data)'!$A$9:$B$19, 2, FALSE))), "", OFFSET('Min. Expl. By Commodity (Data)'!F48, 0, VLOOKUP($C$6, 'Min. Expl. By Commodity (Data)'!$A$9:$B$19, 2, FALSE)) ) -> 403.5 | F48: 0.555638166
A49: 2009 | B49: 2009-06-01 | C49: =IF(ISBLANK(OFFSET('Min. Expl. By Commodity (Data)'!D49, 0, VLOOKUP($C$6, 'Min. Expl. By Commodity (Data)'!$A$9:$B$19, 2, FALSE))), "", OFFSET('Min. Expl. By Commodity (Data)'!D49, 0, VLOOKUP($C$6, 'Min. Expl. By Commodity (Data)'!$A$9:$B$19, 2, FALSE)) ) -> 274.8 | D49: =IF(ISBLANK(OFFSET('Min. Expl. By Commodity (Data)'!E49, 0, VLOOKUP($C$6, 'Min. Expl. By Commodity (Data)'!$A$9:$B$19, 2, FALSE))), "", OFFSET('Min. Expl. By Commodity (Data)'!E49, 0, VLOOKUP($C$6, 'Min. Expl. By Commodity (Data)'!$A$9:$B$19, 2, FALSE)) ) -> 208.7 | E49: =IF(ISBLANK(OFFSET('Min. Expl. By Commodity (Data)'!F49, 0, VLOOKUP($C$6, 'Min. Expl. By Commodity (Data)'!$A$9:$B$19, 2, FALSE))), "", OFFSET('Min. Expl. By Commodity (Data)'!F49, 0, VLOOKUP($C$6, 'Min. Expl. By Commodity (Data)'!$A$9:$B$19, 2, FALSE)) ) -> 483.5 | F49: 0.5683557394
A50: 2009 | B50: 2009-09-01 | C50: =IF(ISBLANK(OFFSET('Min. Expl. By Commodity (Data)'!D50, 0, VLOOKUP($C$6, 'Min. Expl. By Commodity (Data)'!$A$9:$B$19, 2, FALSE))), "", OFFSET('Min. Expl. By Commodity (Data)'!D50, 0, VLOOKUP($C$6, 'Min. Expl. By Commodity (Data)'!$A$9:$B$19, 2, FALSE)) ) -> 298.9 | D50: =IF(ISBLANK(OFFSET('Min. Expl. By Commodity (Data)'!E50, 0, VLOOKUP($C$6, 'Min. Expl. By Commodity (Data)'!$A$9:$B$19, 2, FALSE))), "", OFFSET('Min. Expl. By Commodity (Data)'!E50, 0, VLOOKUP($C$6, 'Min. Expl. By Commodity (Data)'!$A$9:$B$19, 2, FALSE)) ) -> 258.5 | E50: =IF(ISBLANK(OFFSET('Min. Expl. By Commodity (Data)'!F50, 0, VLOOKUP($C$6, 'Min. Expl. By Commodity (Data)'!$A$9:$B$19, 2, FALSE))), "", OFFSET('Min. Expl. By Commodity (Data)'!F50, 0, VLOOKUP($C$6, 'Min. Expl. By Commodity (Data)'!$A$9:$B$19, 2, FALSE)) ) -> 557.4 | F50: 0.5362396842
A51: 2009 | B51: 2009-12-01 | C51: =IF(ISBLANK(OFFSET('Min. Expl. By Commodity (Data)'!D51, 0, VLOOKUP($C$6, 'Min. Expl. By Commodity (Data)'!$A$9:$B$19, 2, FALSE))), "", OFFSET('Min. Expl. By Commodity (Data)'!D51, 0, VLOOKUP($C$6, 'Min. Expl. By Commodity (Data)'!$A$9:$B$19, 2, FALSE)) ) -> 321.7 | D51: =IF(ISBLANK(OFFSET('Min. Expl. By Commodity (Data)'!E51, 0, VLOOKUP($C$6, 'Min. Expl. By Commodity (Data)'!$A$9:$B$19, 2, FALSE))), "", OFFSET('Min. Expl. By Commodity (Data)'!E51, 0, VLOOKUP($C$6, 'Min. Expl. By Commodity (Data)'!$A$9:$B$19, 2, FALSE)) ) -> 257.1 | E51: =IF(ISBLANK(OFFSET('Min. Expl. By Commodity (Data)'!F51, 0, VLOOKUP($C$6, 'Min. Expl. By Commodity (Data)'!$A$9:$B$19, 2, FALSE))), "", OFFSET('Min. Expl. By Commodity (Data)'!F51, 0, VLOOKUP($C$6, 'Min. Expl. By Commodity (Data)'!$A$9:$B$19, 2, FALSE)) ) -> 578.8 | F51: 0.555805114
A52: 2010 | B52: 2010-03-01 | C52: =IF(ISBLANK(OFFSET('Min. Expl. By Commodity (Data)'!D52, 0, VLOOKUP($C$6, 'Min. Expl. By Commodity (Data)'!$A$9:$B$19, 2, FALSE))), "", OFFSET('Min. Expl. By Commodity (Data)'!D52, 0, VLOOKUP($C$6, 'Min. Expl. By Commodity (Data)'!$A$9:$B$19, 2, FALSE)) ) -> 257.1 | D52: =IF(ISBLANK(OFFSET('Min. Expl. By Commodity (Data)'!E52, 0, VLOOKUP($C$6, 'Min. Expl. By Commodity (Data)'!$A$9:$B$19, 2, FALSE))), "", OFFSET('Min. Expl. By Commodity (Data)'!E52, 0, VLOOKUP($C$6, 'Min. Expl. By Commodity (Data)'!$A$9:$B$19, 2, FALSE)) ) -> 202.2 | E52: =IF(ISBLANK(OFFSET('Min. Expl. By Commodity (Data)'!F52, 0, VLOOKUP($C$6, 'Min. Expl. By Commodity (Data)'!$A$9:$B$19, 2, FALSE))), "", OFFSET('Min. Expl. By Commodity (Data)'!F52, 0, VLOOKUP($C$6, 'Min. Expl. By Commodity (Data)'!$A$9:$B$19, 2, FALSE)) ) -> 459.3 | F52: 0.5597648596
A53: 2010 | B53: 2010-06-01 | C53: =IF(ISBLANK(OFFSET('Min. Expl. By Commodity (Data)'!D53, 0, VLOOKUP($C$6, 'Min. Expl. By Commodity (Data)'!$A$9:$B$19, 2, FALSE))), "", OFFSET('Min. Expl. By Commodity (Data)'!D53, 0, VLOOKUP($C$6, 'Min. Expl. By Commodity (Data)'!$A$9:$B$19, 2, FALSE)) ) -> 366.3 | D53: =IF(ISBLANK(OFFSET('Min. Expl. By Commodity (Data)'!E53, 0, VLOOKUP($C$6, 'Min. Expl. By Commodity (Data)'!$A$9:$B$19, 2, FALSE))), "", OFFSET('Min. Expl. By Commodity (Data)'!E53, 0, VLOOKUP($C$6, 'Min. Expl. By Commodity (Data)'!$A$9:$B$19, 2, FALSE)) ) -> 270.8 | E53: =IF(ISBLANK(OFFSET('Min. Expl. By Commodity (Data)'!F53, 0, VLOOKUP($C$6, 'Min. Expl. By Commodity (Data)'!$A$9:$B$19, 2, FALSE))), "", OFFSET('Min. Expl. By Commodity (Data)'!F53, 0, VLOOKUP($C$6, 'Min. Expl. By Commodity (Data)'!$A$9:$B$19, 2, FALSE)) ) -> 637.1 | F53: 0.5749489876
A54: 2010 | B54: 2010-09-01 | C54: =IF(ISBLANK(OFFSET('Min. Expl. By Commodity (Data)'!D54, 0, VLOOKUP($C$6, 'Min. Expl. By Commodity (Data)'!$A$9:$B$19, 2, FALSE))), "", OFFSET('Min. Expl. By Commodity (Data)'!D54, 0, VLOOKUP($C$6, 'Min. Expl. By Commodity (Data)'!$A$9:$B$19, 2, FALSE)) ) -> 384.6 | D54: =IF(ISBLANK(OFFSET('Min. Expl. By Commodity (Data)'!E54, 0, VLOOKUP($C$6, 'Min. Expl. By Commodity (Data)'!$A$9:$B$19, 2, FALSE))), "", OFFSET('Min. Expl. By Commodity (Data)'!E54, 0, VLOOKUP($C$6, 'Min. Expl. By Commodity (Data)'!$A$9:$B$19, 2, FALSE)) ) -> 284.8 | E54: =IF(ISBLANK(OFFSET('Min. Expl. By Commodity (Data)'!F54, 0, VLOOKUP($C$6, 'Min. Expl. By Commodity (Data)'!$A$9:$B$19, 2, FALSE))), "", OFFSET('Min. Expl. By Commodity (Data)'!F54, 0, VLOOKUP($C$6, 'Min. Expl. By Commodity (Data)'!$A$9:$B$19, 2, FALSE)) ) -> 669.4 | F54: 0.5745443681
A55: 2010 | B55: 2010-12-01 | C55: =IF(ISBLANK(OFFSET('Min. Expl. By Commodity (Data)'!D55, 0, VLOOKUP($C$6, 'Min. Expl. By Commodity (Data)'!$A$9:$B$19, 2, FALSE))), "", OFFSET('Min. Expl. By Commodity (Data)'!D55, 0, VLOOKUP($C$6, 'Min. Expl. By Commodity (Data)'!$A$9:$B$19, 2, FALSE)) ) -> 393.7 | D55: =IF(ISBLANK(OFFSET('Min. Expl. By Commodity (Data)'!E55, 0, VLOOKUP($C$6, 'Min. Expl. By Commodity (Data)'!$A$9:$B$19, 2, FALSE))), "", OFFSET('Min. Expl. By Commodity (Data)'!E55, 0, VLOOKUP($C$6, 'Min. Expl. By Commodity (Data)'!$A$9:$B$19, 2, FALSE)) ) -> 330.7 | E55: =IF(ISBLANK(OFFSET('Min. Expl. By Commodity (Data)'!F55, 0, VLOOKUP($C$6, 'Min. Expl. By Commodity (Data)'!$A$9:$B$19, 2, FALSE))), "", OFFSET('Min. Expl. By Commodity (Data)'!F55, 0, VLOOKUP($C$6, 'Min. Expl. By Commodity (Data)'!$A$9:$B$19, 2, FALSE)) ) -> 724.4 | F55: 0.5434842628
A56: 2011 | B56: 2011-03-01 | C56: =IF(ISBLANK(OFFSET('Min. Expl. By Commodity (Data)'!D56, 0, VLOOKUP($C$6, 'Min. Expl. By Commodity (Data)'!$A$9:$B$19, 2, FALSE))), "", OFFSET('Min. Expl. By Commodity (Data)'!D56, 0, VLOOKUP($C$6, 'Min. Expl. By Commodity (Data)'!$A$9:$B$19, 2, FALSE)) ) -> 362.2 | D56: =IF(ISBLANK(OFFSET('Min. Expl. By Commodity (Data)'!E56, 0, VLOOKUP($C$6, 'Min. Expl. By Commodity (Data)'!$A$9:$B$19, 2, FALSE))), "", OFFSET('Min. Expl. By Commodity (Data)'!E56, 0, VLOOKUP($C$6, 'Min. Expl. By Commodity (Data)'!$A$9:$B$19, 2, FALSE)) ) -> 287.9 | E56: =IF(ISBLANK(OFFSET('Min. Expl. By Commodity (Data)'!F56, 0, VLOOKUP($C$6, 'Min. Expl. By Commodity (Data)'!$A$9:$B$19, 2, FALSE))), "", OFFSET('Min. Expl. By Commodity (Data)'!F56, 0, VLOOKUP($C$6, 'Min. Expl. By Commodity (Data)'!$A$9:$B$19, 2, FALSE)) ) -> 650.1 | F56: 0.5571450546
A57: 2011 | B57: 2011-06-01 | C57: =IF(ISBLANK(OFFSET('Min. Expl. By Commodity (Data)'!D57, 0, VLOOKUP($C$6, 'Min. Expl. By Commodity (Data)'!$A$9:$B$19, 2, FALSE))), "", OFFSET('Min. Expl. By Commodity (Data)'!D57, 0, VLOOKUP($C$6, 'Min. Expl. By Commodity (Data)'!$A$9:$B$19, 2, FALSE)) ) -> 449.6 | D57: =IF(ISBLANK(OFFSET('Min. Expl. By Commodity (Data)'!E57, 0, VLOOKUP($C$6, 'Min. Expl. By Commodity (Data)'!$A$9:$B$19, 2, FALSE))), "", OFFSET('Min. Expl. By Commodity (Data)'!E57, 0, VLOOKUP($C$6, 'Min. Expl. By Commodity (Data)'!$A$9:$B$19, 2, FALSE)) ) -> 457.8 | E57: =IF(ISBLANK(OFFSET('Min. Expl. By Commodity (Data)'!F57, 0, VLOOKUP($C$6, 'Min. Expl. By Commodity (Data)'!$A$9:$B$19, 2, FALSE))), "", OFFSET('Min. Expl. By Commodity (Data)'!F57, 0, VLOOKUP($C$6, 'Min. Expl. By Commodity (Data)'!$A$9:$B$19, 2, FALSE)) ) -> 907.4 | F57: 0.4954815958
A58: 2011 | B58: 2011-09-01 | C58: =IF(ISBLANK(OFFSET('Min. Expl. By Commodity (Data)'!D58, 0, VLOOKUP($C$6, 'Min. Expl. By Commodity (Data)'!$A$9:$B$19, 2, FALSE))), "", OFFSET('Min. Expl. By Commodity (Data)'!D58, 0, VLOOKUP($C$6, 'Min. Expl. By Commodity (Data)'!$A$9:$B$19, 2, FALSE)) ) -> 481.6 | D58: =IF(ISBLANK(OFFSET('Min. Expl. By Commodity (Data)'!E58, 0, VLOOKUP($C$6, 'Min. Expl. By Commodity (Data)'!$A$9:$B$19, 2, FALSE))), "", OFFSET('Min. Expl. By Commodity (Data)'!E58, 0, VLOOKUP($C$6, 'Min. Expl. By Commodity (Data)'!$A$9:$B$19, 2, FALSE)) ) -> 501.8 | E58: =IF(ISBLANK(OFFSET('Min. Expl. By Commodity (Data)'!F58, 0, VLOOKUP($C$6, 'Min. Expl. By Commodity (Data)'!$A$9:$B$19, 2, FALSE))), "", OFFSET('Min. Expl. By Commodity (Data)'!F58, 0, VLOOKUP($C$6, 'Min. Expl. By Commodity (Data)'!$A$9:$B$19, 2, FALSE)) ) -> 983.4 | F58: 0.4897295099
A59: 2011 | B59: 2011-12-01 | C59: =IF(ISBLANK(OFFSET('Min. Expl. By Commodity (Data)'!D59, 0, VLOOKUP($C$6, 'Min. Expl. By Commodity (Data)'!$A$9:$B$19, 2, FALSE))), "", OFFSET('Min. Expl. By Commodity (Data)'!D59, 0, VLOOKUP($C$6, 'Min. Expl. By Commodity (Data)'!$A$9:$B$19, 2, FALSE)) ) -> 531.9 | D59: =IF(ISBLANK(OFFSET('Min. Expl. By Commodity (Data)'!E59, 0, VLOOKUP($C$6, 'Min. Expl. By Commodity (Data)'!$A$9:$B$19, 2, FALSE))), "", OFFSET('Min. Expl. By Commodity (Data)'!E59, 0, VLOOKUP($C$6, 'Min. Expl. By Commodity (Data)'!$A$9:$B$19, 2, FALSE)) ) -> 500.5 | E59: =IF(ISBLANK(OFFSET('Min. Expl. By Commodity (Data)'!F59, 0, VLOOKUP($C$6, 'Min. Expl. By Commodity (Data)'!$A$9:$B$19, 2, FALSE))), "", OFFSET('Min. Expl. By Commodity (Data)'!F59, 0, VLOOKUP($C$6, 'Min. Expl. By Commodity (Data)'!$A$9:$B$19, 2, FALSE)) ) -> 1032.4 | F59: 0.515207284
A60: 2012 | B60: 2012-03-01 | C60: =IF(ISBLANK(OFFSET('Min. Expl. By Commodity (Data)'!D60, 0, VLOOKUP($C$6, 'Min. Expl. By Commodity (Data)'!$A$9:$B$19, 2, FALSE))), "", OFFSET('Min. Expl. By Commodity (Data)'!D60, 0, VLOOKUP($C$6, 'Min. Expl. By Commodity (Data)'!$A$9:$B$19, 2, FALSE)) ) -> 490.1 | D60: =IF(ISBLANK(OFFSET('Min. Expl. By Commodity (Data)'!E60, 0, VLOOKUP($C$6, 'Min. Expl. By Commodity (Data)'!$A$9:$B$19, 2, FALSE))), "", OFFSET('Min. Expl. By Commodity (Data)'!E60, 0, VLOOKUP($C$6, 'Min. Expl. By Commodity (Data)'!$A$9:$B$19, 2, FALSE)) ) -> 386 | E60: =IF(ISBLANK(OFFSET('Min. Expl. By Commodity (Data)'!F60, 0, VLOOKUP($C$6, 'Min. Expl. By Commodity (Data)'!$A$9:$B$19, 2, FALSE))), "", OFFSET('Min. Expl. By Commodity (Data)'!F60, 0, VLOOKUP($C$6, 'Min. Expl. By Commodity (Data)'!$A$9:$B$19, 2, FALSE)) ) -> 876.1 | F60: 0.5594110261
A61: 2012 | B61: 2012-06-01 | C61: =IF(ISBLANK(OFFSET('Min. Expl. By Commodity (Data)'!D61, 0, VLOOKUP($C$6, 'Min. Expl. By Commodity (Data)'!$A$9:$B$19, 2, FALSE))), "", OFFSET('Min. Expl. By Commodity (Data)'!D61, 0, VLOOKUP($C$6, 'Min. Expl. By Commodity (Data)'!$A$9:$B$19, 2, FALSE)) ) -> 603.2 | D61: =IF(ISBLANK(OFFSET('Min. Expl. By Commodity (Data)'!E61, 0, VLOOKUP($C$6, 'Min. Expl. By Commodity (Data)'!$A$9:$B$19, 2, FALSE))), "", OFFSET('Min. Expl. By Commodity (Data)'!E61, 0, VLOOKUP($C$6, 'Min. Expl. By Commodity (Data)'!$A$9:$B$19, 2, FALSE)) ) -> 457.9 | E61: =IF(ISBLANK(OFFSET('Min. Expl. By Commodity (Data)'!F61, 0, VLOOKUP($C$6, 'Min. Expl. By Commodity (Data)'!$A$9:$B$19, 2, FALSE))), "", OFFSET('Min. Expl. By Commodity (Data)'!F61, 0, VLOOKUP($C$6, 'Min. Expl. By Commodity (Data)'!$A$9:$B$19, 2, FALSE)) ) -> 1061.1 | F61: 0.5684666855
A62: 2012 | B62: 2012-09-01 | C62: =IF(ISBLANK(OFFSET('Min. Expl. By Commodity (Data)'!D62, 0, VLOOKUP($C$6, 'Min. Expl. By Commodity (Data)'!$A$9:$B$19, 2, FALSE))), "", OFFSET('Min. Expl. By Commodity (Data)'!D62, 0, VLOOKUP($C$6, 'Min. Expl. By Commodity (Data)'!$A$9:$B$19, 2, FALSE)) ) -> 488.6 | D62: =IF(ISBLANK(OFFSET('Min. Expl. By Commodity (Data)'!E62, 0, VLOOKUP($C$6, 'Min. Expl. By Commodity (Data)'!$A$9:$B$19, 2, FALSE))), "", OFFSET('Min. Expl. By Commodity (Data)'!E62, 0, VLOOKUP($C$6, 'Min. Expl. By Commodity (Data)'!$A$9:$B$19, 2, FALSE)) ) -> 406.1 | E62: =IF(ISBLANK(OFFSET('Min. Expl. By Commodity (Data)'!F62, 0, VLOOKUP($C$6, 'Min. Expl. By Commodity (Data)'!$A$9:$B$19, 2, FALSE))), "", OFFSET('Min. Expl. By Commodity (Data)'!F62, 0, VLOOKUP($C$6, 'Min. Expl. By Commodity (Data)'!$A$9:$B$19, 2, FALSE)) ) -> 894.7 | F62: 0.5461048396
A63: 2012 | B63: 2012-12-01 | C63: =IF(ISBLANK(OFFSET('Min. Expl. By Commodity (Data)'!D63, 0, VLOOKUP($C$6, 'Min. Expl. By Commodity (Data)'!$A$9:$B$19, 2, FALSE))), "", OFFSET('Min. Expl. By Commodity (Data)'!D63, 0, VLOOKUP($C$6, 'Min. Expl. By Commodity (Data)'!$A$9:$B$19, 2, FALSE)) ) -> 470.7 | D63: =IF(ISBLANK(OFFSET('Min. Expl. By Commodity (Data)'!E63, 0, VLOOKUP($C$6, 'Min. Expl. By Commodity (Data)'!$A$9:$B$19, 2, FALSE))), "", OFFSET('Min. Expl. By Commodity (Data)'!E63, 0, VLOOKUP($C$6, 'Min. Expl. By Commodity (Data)'!$A$9:$B$19, 2, FALSE)) ) -> 353.2 | E63: =IF(ISBLANK(OFFSET('Min. Expl. By Commodity (Data)'!F63, 0, VLOOKUP($C$6, 'Min. Expl. By Commodity (Data)'!$A$9:$B$19, 2, FALSE))), "", OFFSET('Min. Expl. By Commodity (Data)'!F63, 0, VLOOKUP($C$6, 'Min. Expl. By Commodity (Data)'!$A$9:$B$19, 2, FALSE)) ) -> 823.9 | F63: 0.5713071975
A64: 2013 | B64: 2013-03-01 | C64: =IF(ISBLANK(OFFSET('Min. Expl. By Commodity (Data)'!D64, 0, VLOOKUP($C$6, 'Min. Expl. By Commodity (Data)'!$A$9:$B$19, 2, FALSE))), "", OFFSET('Min. Expl. By Commodity (Data)'!D64, 0, VLOOKUP($C$6, 'Min. Expl. By Commodity (Data)'!$A$9:$B$19, 2, FALSE)) ) -> 421.8 | D64: =IF(ISBLANK(OFFSET('Min. Expl. By Commodity (Data)'!E64, 0, VLOOKUP($C$6, 'Min. Expl. By Commodity (Data)'!$A$9:$B$19, 2, FALSE))), "", OFFSET('Min. Expl. By Commodity (Data)'!E64, 0, VLOOKUP($C$6, 'Min. Expl. By Commodity (Data)'!$A$9:$B$19, 2, FALSE)) ) -> 250.4 | E64: =IF(ISBLANK(OFFSET('Min. Expl. By Commodity (Data)'!F64, 0, VLOOKUP($C$6, 'Min. Expl. By Commodity (Data)'!$A$9:$B$19, 2, FALSE))), "", OFFSET('Min. Expl. By Commodity (Data)'!F64, 0, VLOOKUP($C$6, 'Min. Expl. By Commodity (Data)'!$A$9:$B$19, 2, FALSE)) ) -> 672.2 | F64: 0.6274918179
A65: 2013 | B65: 2013-06-01 | C65: =IF(ISBLANK(OFFSET('Min. Expl. By Commodity (Data)'!D65, 0, VLOOKUP($C$6, 'Min. Expl. By Commodity (Data)'!$A$9:$B$19, 2, FALSE))), "", OFFSET('Min. Expl. By Commodity (Data)'!D65, 0, VLOOKUP($C$6, 'Min. Expl. By Commodity (Data)'!$A$9:$B$19, 2, FALSE)) ) -> 382.3 | D65: =IF(ISBLANK(OFFSET('Min. Expl. By Commodity (Data)'!E65, 0, VLOOKUP($C$6, 'Min. Expl. By Commodity (Data)'!$A$9:$B$19, 2, FALSE))), "", OFFSET('Min. Expl. By Commodity (Data)'!E65, 0, VLOOKUP($C$6, 'Min. Expl. By Commodity (Data)'!$A$9:$B$19, 2, FALSE)) ) -> 282.3 | E65: =IF(ISBLANK(OFFSET('Min. Expl. By Commodity (Data)'!F65, 0, VLOOKUP($C$6, 'Min. Expl. By Commodity (Data)'!$A$9:$B$19, 2, FALSE))), "", OFFSET('Min. Expl. By Commodity (Data)'!F65, 0, VLOOKUP($C$6, 'Min. Expl. By Commodity (Data)'!$A$9:$B$19, 2, FALSE)) ) -> 664.6 | F65: 0.575233223
A66: 2013 | B66: 2013-09-01 | C66: =IF(ISBLANK(OFFSET('Min. Expl. By Commodity (Data)'!D66, 0, VLOOKUP($C$6, 'Min. Expl. By Commodity (Data)'!$A$9:$B$19, 2, FALSE))), "", OFFSET('Min. Expl. By Commodity (Data)'!D66, 0, VLOOKUP($C$6, 'Min. Expl. By Commodity (Data)'!$A$9:$B$19, 2, FALSE)) ) -> 395.8 | D66: =IF(ISBLANK(OFFSET('Min. Expl. By Commodity (Data)'!E66, 0, VLOOKUP($C$6, 'Min. Expl. By Commodity (Data)'!$A$9:$B$19, 2, FALSE))), "", OFFSET('Min. Expl. By Commodity (Data)'!E66, 0, VLOOKUP($C$6, 'Min. Expl. By Commodity (Data)'!$A$9:$B$19, 2, FALSE)) ) -> 242.6 | E66: =IF(ISBLANK(OFFSET('Min. Expl. By Commodity (Data)'!F66, 0, VLOOKUP($C$6, 'Min. Expl. By Commodity (Data)'!$A$9:$B$19, 2, FALSE))), "", OFFSET('Min. Expl. By Commodity (Data)'!F66, 0, VLOOKUP($C$6, 'Min. Expl. By Commodity (Data)'!$A$9:$B$19, 2, FALSE)) ) -> 638.4 | F66: 0.6199874687
A67: 2013 | B67: 2013-12-01 | C67: =IF(ISBLANK(OFFSET('Min. Expl. By Commodity (Data)'!D67, 0, VLOOKUP($C$6, 'Min. Expl. By Commodity (Data)'!$A$9:$B$19, 2, FALSE))), "", OFFSET('Min. Expl. By Commodity (Data)'!D67, 0, VLOOKUP($C$6, 'Min. Expl. By Commodity (Data)'!$A$9:$B$19, 2, FALSE)) ) -> 308.3 | D67: =IF(ISBLANK(OFFSET('Min. Expl. By Commodity (Data)'!E67, 0, VLOOKUP($C$6, 'Min. Expl. By Commodity (Data)'!$A$9:$B$19, 2, FALSE))), "", OFFSET('Min. Expl. By Commodity (Data)'!E67, 0, VLOOKUP($C$6, 'Min. Expl. By Commodity (Data)'!$A$9:$B$19, 2, FALSE)) ) -> 239.1 | E67: =IF(ISBLANK(OFFSET('Min. Expl. By Commodity (Data)'!F67, 0, VLOOKUP($C$6, 'Min. Expl. By Commodity (Data)'!$A$9:$B$19, 2, FALSE))), "", OFFSET('Min. Expl. By Commodity (Data)'!F67, 0, VLOOKUP($C$6, 'Min. Expl. By Commodity (Data)'!$A$9:$B$19, 2, FALSE)) ) -> 547.4 | F67: 0.5632078919
A68: 2014 | B68: 2014-03-01 | C68: =IF(ISBLANK(OFFSET('Min. Expl. By Commodity (Data)'!D68, 0, VLOOKUP($C$6, 'Min. Expl. By Commodity (Data)'!$A$9:$B$19, 2, FALSE))), "", OFFSET('Min. Expl. By Commodity (Data)'!D68, 0, VLOOKUP($C$6, 'Min. Expl. By Commodity (Data)'!$A$9:$B$19, 2, FALSE)) ) -> 206.2 | D68: =IF(ISBLANK(OFFSET('Min. Expl. By Commodity (Data)'!E68, 0, VLOOKUP($C$6, 'Min. Expl. By Commodity (Data)'!$A$9:$B$19, 2, FALSE))), "", OFFSET('Min. Expl. By Commodity (Data)'!E68, 0, VLOOKUP($C$6, 'Min. Expl. By Commodity (Data)'!$A$9:$B$19, 2, FALSE)) ) -> 201.4 | E68: =IF(ISBLANK(OFFSET('Min. Expl. By Commodity (Data)'!F68, 0, VLOOKUP($C$6, 'Min. Expl. By Commodity (Data)'!$A$9:$B$19, 2, FALSE))), "", OFFSET('Min. Expl. By Commodity (Data)'!F68, 0, VLOOKUP($C$6, 'Min. Expl. By Commodity (Data)'!$A$9:$B$19, 2, FALSE)) ) -> 407.6 | F68: 0.5058881256
A69: 2014 | B69: 2014-06-01 | C69: =IF(ISBLANK(OFFSET('Min. Expl. By Commodity (Data)'!D69, 0, VLOOKUP($C$6, 'Min. Expl. By Commodity (Data)'!$A$9:$B$19, 2, FALSE))), "", OFFSET('Min. Expl. By Commodity (Data)'!D69, 0, VLOOKUP($C$6, 'Min. Expl. By Commodity (Data)'!$A$9:$B$19, 2, FALSE)) ) -> 309.7 | D69: =IF(ISBLANK(OFFSET('Min. Expl. By Commodity (Data)'!E69, 0, VLOOKUP($C$6, 'Min. Expl. By Commodity (Data)'!$A$9:$B$19, 2, FALSE))), "", OFFSET('Min. Expl. By Commodity (Data)'!E69, 0, VLOOKUP($C$6, 'Min. Expl. By Commodity (Data)'!$A$9:$B$19, 2, FALSE)) ) -> 205.3 | E69: =IF(ISBLANK(OFFSET('Min. Expl. By Commodity (Data)'!F69, 0, VLOOKUP($C$6, 'Min. Expl. By Commodity (Data)'!$A$9:$B$19, 2, FALSE))), "", OFFSET('Min. Expl. By Commodity (Data)'!F69, 0, VLOOKUP($C$6, 'Min. Expl. By Commodity (Data)'!$A$9:$B$19, 2, FALSE)) ) -> 515 | F69: 0.6013592233
A70: 2014 | B70: 2014-09-01 | C70: =IF(ISBLANK(OFFSET('Min. Expl. By Commodity (Data)'!D70, 0, VLOOKUP($C$6, 'Min. Expl. By Commodity (Data)'!$A$9:$B$19, 2, FALSE))), "", OFFSET('Min. Expl. By Commodity (Data)'!D70, 0, VLOOKUP($C$6, 'Min. Expl. By Commodity (Data)'!$A$9:$B$19, 2, FALSE)) ) -> 267.1 | D70: =IF(ISBLANK(OFFSET('Min. Expl. By Commodity (Data)'!E70, 0, VLOOKUP($C$6, 'Min. Expl. By Commodity (Data)'!$A$9:$B$19, 2, FALSE))), "", OFFSET('Min. Expl. By Commodity (Data)'!E70, 0, VLOOKUP($C$6, 'Min. Expl. By Commodity (Data)'!$A$9:$B$19, 2, FALSE)) ) -> 190.6 | E70: =IF(ISBLANK(OFFSET('Min. Expl. By Commodity (Data)'!F70, 0, VLOOKUP($C$6, 'Min. Expl. By Commodity (Data)'!$A$9:$B$19, 2, FALSE))), "", OFFSET('Min. Expl. By Commodity (Data)'!F70, 0, VLOOKUP($C$6, 'Min. Expl. By Commodity (Data)'!$A$9:$B$19, 2, FALSE)) ) -> 457.7 | F70: 0.583570024
A71: 2014 | B71: 2014-12-01 | C71: =IF(ISBLANK(OFFSET('Min. Expl. By Commodity (Data)'!D71, 0, VLOOKUP($C$6, 'Min. Expl. By Commodity (Data)'!$A$9:$B$19, 2, FALSE))), "", OFFSET('Min. Expl. By Commodity (Data)'!D71, 0, VLOOKUP($C$6, 'Min. Expl. By Commodity (Data)'!$A$9:$B$19, 2, FALSE)) ) -> 262.3 | D71: =IF(ISBLANK(OFFSET('Min. Expl. By Commodity (Data)'!E71, 0, VLOOKUP($C$6, 'Min. Expl. By Commodity (Data)'!$A$9:$B$19, 2, FALSE))), "", OFFSET('Min. Expl. By Commodity (Data)'!E71, 0, VLOOKUP($C$6, 'Min. Expl. By Commodity (Data)'!$A$9:$B$19, 2, FALSE)) ) -> 196.9 | E71: =IF(ISBLANK(OFFSET('Min. Expl. By Commodity (Data)'!F71, 0, VLOOKUP($C$6, 'Min. Expl. By Commodity (Data)'!$A$9:$B$19, 2, FALSE))), "", OFFSET('Min. Expl. By Commodity (Data)'!F71, 0, VLOOKUP($C$6, 'Min. Expl. By Commodity (Data)'!$A$9:$B$19, 2, FALSE)) ) -> 459.2 | F71: 0.5712108014
A72: 2015 | B72: 2015-03-01 | C72: =IF(ISBLANK(OFFSET('Min. Expl. By Commodity (Data)'!D72, 0, VLOOKUP($C$6, 'Min. Expl. By Commodity (Data)'!$A$9:$B$19, 2, FALSE))), "", OFFSET('Min. Expl. By Commodity (Data)'!D72, 0, VLOOKUP($C$6, 'Min. Expl. By Commodity (Data)'!$A$9:$B$19, 2, FALSE)) ) -> 183.2 | D72: =IF(ISBLANK(OFFSET('Min. Expl. By Commodity (Data)'!E72, 0, VLOOKUP($C$6, 'Min. Expl. By Commodity (Data)'!$A$9:$B$19, 2, FALSE))), "", OFFSET('Min. Expl. By Commodity (Data)'!E72, 0, VLOOKUP($C$6, 'Min. Expl. By Commodity (Data)'!$A$9:$B$19, 2, FALSE)) ) -> 134.5 | E72: =IF(ISBLANK(OFFSET('Min. Expl. By Commodity (Data)'!F72, 0, VLOOKUP($C$6, 'Min. Expl. By Commodity (Data)'!$A$9:$B$19, 2, FALSE))), "", OFFSET('Min. Expl. By Commodity (Data)'!F72, 0, VLOOKUP($C$6, 'Min. Expl. By Commodity (Data)'!$A$9:$B$19, 2, FALSE)) ) -> 317.7 | F72: 0.5766446333
A73: 2015 | B73: 2015-06-01 | C73: =IF(ISBLANK(OFFSET('Min. Expl. By Commodity (Data)'!D73, 0, VLOOKUP($C$6, 'Min. Expl. By Commodity (Data)'!$A$9:$B$19, 2, FALSE))), "", OFFSET('Min. Expl. By Commodity (Data)'!D73, 0, VLOOKUP($C$6, 'Min. Expl. By Commodity (Data)'!$A$9:$B$19, 2, FALSE)) ) -> 204.8 | D73: =IF(ISBLANK(OFFSET('Min. Expl. By Commodity (Data)'!E73, 0, VLOOKUP($C$6, 'Min. Expl. By Commodity (Data)'!$A$9:$B$19, 2, FALSE))), "", OFFSET('Min. Expl. By Commodity (Data)'!E73, 0, VLOOKUP($C$6, 'Min. Expl. By Commodity (Data)'!$A$9:$B$19, 2, FALSE)) ) -> 139.3 | E73: =IF(ISBLANK(OFFSET('Min. Expl. By Commodity (Data)'!F73, 0, VLOOKUP($C$6, 'Min. Expl. By Commodity (Data)'!$A$9:$B$19, 2, FALSE))), "", OFFSET('Min. Expl. By Commodity (Data)'!F73, 0, VLOOKUP($C$6, 'Min. Expl. By Commodity (Data)'!$A$9:$B$19, 2, FALSE)) ) -> 344.1 | F73: 0.595175821
A74: 2015 | B74: 2015-09-01 | C74: =IF(ISBLANK(OFFSET('Min. Expl. By Commodity (Data)'!D74, 0, VLOOKUP($C$6, 'Min. Expl. By Commodity (Data)'!$A$9:$B$19, 2, FALSE))), "", OFFSET('Min. Expl. By Commodity (Data)'!D74, 0, VLOOKUP($C$6, 'Min. Expl. By Commodity (Data)'!$A$9:$B$19, 2, FALSE)) ) -> 233.1 | D74: =IF(ISBLANK(OFFSET('Min. Expl. By Commodity (Data)'!E74, 0, VLOOKUP($C$6, 'Min. Expl. By Commodity (Data)'!$A$9:$B$19, 2, FALSE))), "", OFFSET('Min. Expl. By Commodity (Data)'!E74, 0, VLOOKUP($C$6, 'Min. Expl. By Commodity (Data)'!$A$9:$B$19, 2, FALSE)) ) -> 160.9 | E74: =IF(ISBLANK(OFFSET('Min. Expl. By Commodity (Data)'!F74, 0, VLOOKUP($C$6, 'Min. Expl. By Commodity (Data)'!$A$9:$B$19, 2, FALSE))), "", OFFSET('Min. Expl. By Commodity (Data)'!F74, 0, VLOOKUP($C$6, 'Min. Expl. By Commodity (Data)'!$A$9:$B$19, 2, FALSE)) ) -> 394 | F74: =IF(OR(C74="", E74=""), "n/a", C74/E74) -> 0.5916243655
A75: =YEAR(B75) -> 2015 | B75: 2015-12-01 | C75: =IF(ISBLANK(OFFSET('Min. Expl. By Commodity (Data)'!D75, 0, VLOOKUP($C$6, 'Min. Expl. By Commodity (Data)'!$A$9:$B$19, 2, FALSE))), "", OFFSET('Min. Expl. By Commodity (Data)'!D75, 0, VLOOKUP($C$6, 'Min. Expl. By Commodity (Data)'!$A$9:$B$19, 2, FALSE)) ) -> 222.6 | D75: =IF(ISBLANK(OFFSET('Min. Expl. By Commodity (Data)'!E75, 0, VLOOKUP($C$6, 'Min. Expl. By Commodity (Data)'!$A$9:$B$19, 2, FALSE))), "", OFFSET('Min. Expl. By Commodity (Data)'!E75, 0, VLOOKUP($C$6, 'Min. Expl. By Commodity (Data)'!$A$9:$B$19, 2, FALSE)) ) -> 160.2 | E75: =IF(ISBLANK(OFFSET('Min. Expl. By Commodity (Data)'!F75, 0, VLOOKUP($C$6, 'Min. Expl. By Commodity (Data)'!$A$9:$B$19, 2, FALSE))), "", OFFSET('Min. Expl. By Commodity (Data)'!F75, 0, VLOOKUP($C$6, 'Min. Expl. By Commodity (Data)'!$A$9:$B$19, 2, FALSE)) ) -> 382.8 | F75: 0.5815047022
A76: 2016 | B76: 2016-03-01 | C76: =IF(ISBLANK(OFFSET('Min. Expl. By Commodity (Data)'!D76, 0, VLOOKUP($C$6, 'Min. Expl. By Commodity (Data)'!$A$9:$B$19, 2, FALSE))), "", OFFSET('Min. Expl. By Commodity (Data)'!D76, 0, VLOOKUP($C$6, 'Min. Expl. By Commodity (Data)'!$A$9:$B$19, 2, FALSE)) ) -> 187.1 | D76: =IF(ISBLANK(OFFSET('Min. Expl. By Commodity (Data)'!E76, 0, VLOOKUP($C$6, 'Min. Expl. By Commodity (Data)'!$A$9:$B$19, 2, FALSE))), "", OFFSET('Min. Expl. By Commodity (Data)'!E76, 0, VLOOKUP($C$6, 'Min. Expl. By Commodity (Data)'!$A$9:$B$19, 2, FALSE)) ) -> 103.3 | E76: =IF(ISBLANK(OFFSET('Min. Expl. By Commodity (Data)'!F76, 0, VLOOKUP($C$6, 'Min. Expl. By Commodity (Data)'!$A$9:$B$19, 2, FALSE))), "", OFFSET('Min. Expl. By Commodity (Data)'!F76, 0, VLOOKUP($C$6, 'Min. Expl. By Commodity (Data)'!$A$9:$B$19, 2, FALSE)) ) -> 290.4 | F76: 0.6442837466
A77: 2016 | B77: 2016-06-01 | C77: =IF(ISBLANK(OFFSET('Min. Expl. By Commodity (Data)'!D77, 0, VLOOKUP($C$6, 'Min. Expl. By Commodity (Data)'!$A$9:$B$19, 2, FALSE))), "", OFFSET('Min. Expl. By Commodity (Data)'!D77, 0, VLOOKUP($C$6, 'Min. Expl. By Commodity (Data)'!$A$9:$B$19, 2, FALSE)) ) -> 228.2 | D77: =IF(ISBLANK(OFFSET('Min. Expl. By Commodity (Data)'!E77, 0, VLOOKUP($C$6, 'Min. Expl. By Commodity (Data)'!$A$9:$B$19, 2, FALSE))), "", OFFSET('Min. Expl. By Commodity (Data)'!E77, 0, VLOOKUP($C$6, 'Min. Expl. By Commodity (Data)'!$A$9:$B$19, 2, FALSE)) ) -> 125.7 | E77: =IF(ISBLANK(OFFSET('Min. Expl. By Commodity (Data)'!F77, 0, VLOOKUP($C$6, 'Min. Expl. By Commodity (Data)'!$A$9:$B$19, 2, FALSE))), "", OFFSET('Min. Expl. By Commodity (Data)'!F77, 0, VLOOKUP($C$6, 'Min. Expl. By Commodity (Data)'!$A$9:$B$19, 2, FALSE)) ) -> 353.9 | F77: 0.6448149195
A78: 2016 | B78: 2016-09-01 | C78: =IF(ISBLANK(OFFSET('Min. Expl. By Commodity (Data)'!D78, 0, VLOOKUP($C$6, 'Min. Expl. By Commodity (Data)'!$A$9:$B$19, 2, FALSE))), "", OFFSET('Min. Expl. By Commodity (Data)'!D78, 0, VLOOKUP($C$6, 'Min. Expl. By Commodity (Data)'!$A$9:$B$19, 2, FALSE)) ) -> 248.8 | D78: =IF(ISBLANK(OFFSET('Min. Expl. By Commodity (Data)'!E78, 0, VLOOKUP($C$6, 'Min. Expl. By Commodity (Data)'!$A$9:$B$19, 2, FALSE))), "", OFFSET('Min. Expl. By Commodity (Data)'!E78, 0, VLOOKUP($C$6, 'Min. Expl. By Commodity (Data)'!$A$9:$B$19, 2, FALSE)) ) -> 130.7 | E78: =IF(ISBLANK(OFFSET('Min. Expl. By Commodity (Data)'!F78, 0, VLOOKUP($C$6, 'Min. Expl. By Commodity (Data)'!$A$9:$B$19, 2, FALSE))), "", OFFSET('Min. Expl. By Commodity (Data)'!F78, 0, VLOOKUP($C$6, 'Min. Expl. By Commodity (Data)'!$A$9:$B$19, 2, FALSE)) ) -> 379.5 | F78: 0.655599473
A79: 2016 | B79: 2016-12-01 | C79: =IF(ISBLANK(OFFSET('Min. Expl. By Commodity (Data)'!D79, 0, VLOOKUP($C$6, 'Min. Expl. By Commodity (Data)'!$A$9:$B$19, 2, FALSE))), "", OFFSET('Min. Expl. By Commodity (Data)'!D79, 0, VLOOKUP($C$6, 'Min. Expl. By Commodity (Data)'!$A$9:$B$19, 2, FALSE)) ) -> 263.5 | D79: =IF(ISBLANK(OFFSET('Min. Expl. By Commodity (Data)'!E79, 0, VLOOKUP($C$6, 'Min. Expl. By Commodity (Data)'!$A$9:$B$19, 2, FALSE))), "", OFFSET('Min. Expl. By Commodity (Data)'!E79, 0, VLOOKUP($C$6, 'Min. Expl. By Commodity (Data)'!$A$9:$B$19, 2, FALSE)) ) -> 139.6 | E79: =IF(ISBLANK(OFFSET('Min. Expl. By Commodity (Data)'!F79, 0, VLOOKUP($C$6, 'Min. Expl. By Commodity (Data)'!$A$9:$B$19, 2, FALSE))), "", OFFSET('Min. Expl. By Commodity (Data)'!F79, 0, VLOOKUP($C$6, 'Min. Expl. By Commodity (Data)'!$A$9:$B$19, 2, FALSE)) ) -> 403.1 | F79: 0.6536839494
A80: 2017 | B80: 2017-03-01 | C80: =IF(ISBLANK(OFFSET('Min. Expl. By Commodity (Data)'!D80, 0, VLOOKUP($C$6, 'Min. Expl. By Commodity (Data)'!$A$9:$B$19, 2, FALSE))), "", OFFSET('Min. Expl. By Commodity (Data)'!D80, 0, VLOOKUP($C$6, 'Min. Expl. By Commodity (Data)'!$A$9:$B$19, 2, FALSE)) ) -> 225 | D80: =IF(ISBLANK(OFFSET('Min. Expl. By Commodity (Data)'!E80, 0, VLOOKUP($C$6, 'Min. Expl. By Commodity (Data)'!$A$9:$B$19, 2, FALSE))), "", OFFSET('Min. Expl. By Commodity (Data)'!E80, 0, VLOOKUP($C$6, 'Min. Expl. By Commodity (Data)'!$A$9:$B$19, 2, FALSE)) ) -> 112.6 | E80: =IF(ISBLANK(OFFSET('Min. Expl. By Commodity (Data)'!F80, 0, VLOOKUP($C$6, 'Min. Expl. By Commodity (Data)'!$A$9:$B$19, 2, FALSE))), "", OFFSET('Min. Expl. By Commodity (Data)'!F80, 0, VLOOKUP($C$6, 'Min. Expl. By Commodity (Data)'!$A$9:$B$19, 2, FALSE)) ) -> 337.6 | F80: 0.6664691943
A81: 2017 | B81: 2017-06-01 | C81: =IF(ISBLANK(OFFSET('Min. Expl. By Commodity (Data)'!D81, 0, VLOOKUP($C$6, 'Min. Expl. By Commodity (Data)'!$A$9:$B$19, 2, FALSE))), "", OFFSET('Min. Expl. By Commodity (Data)'!D81, 0, VLOOKUP($C$6, 'Min. Expl. By Commodity (Data)'!$A$9:$B$19, 2, FALSE)) ) -> 291 | D81: =IF(ISBLANK(OFFSET('Min. Expl. By Commodity (Data)'!E81, 0, VLOOKUP($C$6, 'Min. Expl. By Commodity (Data)'!$A$9:$B$19, 2, FALSE))), "", OFFSET('Min. Expl. By Commodity (Data)'!E81, 0, VLOOKUP($C$6, 'Min. Expl. By Commodity (Data)'!$A$9:$B$19, 2, FALSE)) ) -> 153.9 | E81: =IF(ISBLANK(OFFSET('Min. Expl. By Commodity (Data)'!F81, 0, VLOOKUP($C$6, 'Min. Expl. By Commodity (Data)'!$A$9:$B$19, 2, FALSE))), "", OFFSET('Min. Expl. By Commodity (Data)'!F81, 0, VLOOKUP($C$6, 'Min. Expl. By Commodity (Data)'!$A$9:$B$19, 2, FALSE)) ) -> 444.9 | F81: 0.6540795684
A82: 2017 | B82: 2017-09-01 | C82: =IF(ISBLANK(OFFSET('Min. Expl. By Commodity (Data)'!D82, 0, VLOOKUP($C$6, 'Min. Expl. By Commodity (Data)'!$A$9:$B$19, 2, FALSE))), "", OFFSET('Min. Expl. By Commodity (Data)'!D82, 0, VLOOKUP($C$6, 'Min. Expl. By Commodity (Data)'!$A$9:$B$19, 2, FALSE)) ) -> 294.2 | D82: =IF(ISBLANK(OFFSET('Min. Expl. By Commodity (Data)'!E82, 0, VLOOKUP($C$6, 'Min. Expl. By Commodity (Data)'!$A$9:$B$19, 2, FALSE))), "", OFFSET('Min. Expl. By Commodity (Data)'!E82, 0, VLOOKUP($C$6, 'Min. Expl. By Commodity (Data)'!$A$9:$B$19, 2, FALSE)) ) -> 181 | E82: =IF(ISBLANK(OFFSET('Min. Expl. By Commodity (Data)'!F82, 0, VLOOKUP($C$6, 'Min. Expl. By Commodity (Data)'!$A$9:$B$19, 2, FALSE))), "", OFFSET('Min. Expl. By Commodity (Data)'!F82, 0, VLOOKUP($C$6, 'Min. Expl. By Commodity (Data)'!$A$9:$B$19, 2, FALSE)) ) -> 475.2 | F82: 0.6191077441
A83: 2017 | B83: 2017-12-01 | C83: =IF(ISBLANK(OFFSET('Min. Expl. By Commodity (Data)'!D83, 0, VLOOKUP($C$6, 'Min. Expl. By Commodity (Data)'!$A$9:$B$19, 2, FALSE))), "", OFFSET('Min. Expl. By Commodity (Data)'!D83, 0, VLOOKUP($C$6, 'Min. Expl. By Commodity (Data)'!$A$9:$B$19, 2, FALSE)) ) -> 298.5 | D83: =IF(ISBLANK(OFFSET('Min. Expl. By Commodity (Data)'!E83, 0, VLOOKUP($C$6, 'Min. Expl. By Commodity (Data)'!$A$9:$B$19, 2, FALSE))), "", OFFSET('Min. Expl. By Commodity (Data)'!E83, 0, VLOOKUP($C$6, 'Min. Expl. By Commodity (Data)'!$A$9:$B$19, 2, FALSE)) ) -> 197.6 | E83: =IF(ISBLANK(OFFSET('Min. Expl. By Commodity (Data)'!F83, 0, VLOOKUP($C$6, 'Min. Expl. By Commodity (Data)'!$A$9:$B$19, 2, FALSE))), "", OFFSET('Min. Expl. By Commodity (Data)'!F83, 0, VLOOKUP($C$6, 'Min. Expl. By Commodity (Data)'!$A$9:$B$19, 2, FALSE)) ) -> 496.1 | F83: 0.601693207
A84: 2018 | B84: 2018-03-01 | C84: =IF(ISBLANK(OFFSET('Min. Expl. By Commodity (Data)'!D84, 0, VLOOKUP($C$6, 'Min. Expl. By Commodity (Data)'!$A$9:$B$19, 2, FALSE))), "", OFFSET('Min. Expl. By Commodity (Data)'!D84, 0, VLOOKUP($C$6, 'Min. Expl. By Commodity (Data)'!$A$9:$B$19, 2, FALSE)) ) -> 261 | D84: =IF(ISBLANK(OFFSET('Min. Expl. By Commodity (Data)'!E84, 0, VLOOKUP($C$6, 'Min. Expl. By Commodity (Data)'!$A$9:$B$19, 2, FALSE))), "", OFFSET('Min. Expl. By Commodity (Data)'!E84, 0, VLOOKUP($C$6, 'Min. Expl. By Commodity (Data)'!$A$9:$B$19, 2, FALSE)) ) -> 177.7 | E84: =IF(ISBLANK(OFFSET('Min. Expl. By Commodity (Data)'!F84, 0, VLOOKUP($C$6, 'Min. Expl. By Commodity (Data)'!$A$9:$B$19, 2, FALSE))), "", OFFSET('Min. Expl. By Commodity (Data)'!F84, 0, VLOOKUP($C$6, 'Min. Expl. By Commodity (Data)'!$A$9:$B$19, 2, FALSE)) ) -> 438.7 | F84: 0.5949395943
A85: 2018 | B85: 2018-06-01 | C85: =IF(ISBLANK(OFFSET('Min. Expl. By Commodity (Data)'!D85, 0, VLOOKUP($C$6, 'Min. Expl. By Commodity (Data)'!$A$9:$B$19, 2, FALSE))), "", OFFSET('Min. Expl. By Commodity (Data)'!D85, 0, VLOOKUP($C$6, 'Min. Expl. By Commodity (Data)'!$A$9:$B$19, 2, FALSE)) ) -> 349.8 | D85: =IF(ISBLANK(OFFSET('Min. Expl. By Commodity (Data)'!E85, 0, VLOOKUP($C$6, 'Min. Expl. By Commodity (Data)'!$A$9:$B$19, 2, FALSE))), "", OFFSET('Min. Expl. By Commodity (Data)'!E85, 0, VLOOKUP($C$6, 'Min. Expl. By Commodity (Data)'!$A$9:$B$19, 2, FALSE)) ) -> 218 | E85: =IF(ISBLANK(OFFSET('Min. Expl. By Commodity (Data)'!F85, 0, VLOOKUP($C$6, 'Min. Expl. By Commodity (Data)'!$A$9:$B$19, 2, FALSE))), "", OFFSET('Min. Expl. By Commodity (Data)'!F85, 0, VLOOKUP($C$6, 'Min. Expl. By Commodity (Data)'!$A$9:$B$19, 2, FALSE)) ) -> 567.8 | F85: 0.6160619937
A86: 2018 | B86: 2018-09-01 | C86: =IF(ISBLANK(OFFSET('Min. Expl. By Commodity (Data)'!D86, 0, VLOOKUP($C$6, 'Min. Expl. By Commodity (Data)'!$A$9:$B$19, 2, FALSE))), "", OFFSET('Min. Expl. By Commodity (Data)'!D86, 0, VLOOKUP($C$6, 'Min. Expl. By Commodity (Data)'!$A$9:$B$19, 2, FALSE)) ) -> 361 | D86: =IF(ISBLANK(OFFSET('Min. Expl. By Commodity (Data)'!E86, 0, VLOOKUP($C$6, 'Min. Expl. By Commodity (Data)'!$A$9:$B$19, 2, FALSE))), "", OFFSET('Min. Expl. By Commodity (Data)'!E86, 0, VLOOKUP($C$6, 'Min. Expl. By Commodity (Data)'!$A$9:$B$19, 2, FALSE)) ) -> 223.4 | E86: =IF(ISBLANK(OFFSET('Min. Expl. By Commodity (Data)'!F86, 0, VLOOKUP($C$6, 'Min. Expl. By Commodity (Data)'!$A$9:$B$19, 2, FALSE))), "", OFFSET('Min. Expl. By Commodity (Data)'!F86, 0, VLOOKUP($C$6, 'Min. Expl. By Commodity (Data)'!$A$9:$B$19, 2, FALSE)) ) -> 584.4 | F86: 0.6177275838
A87: 2018 | B87: 2018-12-01 | C87: =IF(ISBLANK(OFFSET('Min. Expl. By Commodity (Data)'!D87, 0, VLOOKUP($C$6, 'Min. Expl. By Commodity (Data)'!$A$9:$B$19, 2, FALSE))), "", OFFSET('Min. Expl. By Commodity (Data)'!D87, 0, VLOOKUP($C$6, 'Min. Expl. By Commodity (Data)'!$A$9:$B$19, 2, FALSE)) ) -> 346.3 | D87: =IF(ISBLANK(OFFSET('Min. Expl. By Commodity (Data)'!E87, 0, VLOOKUP($C$6, 'Min. Expl. By Commodity (Data)'!$A$9:$B$19, 2, FALSE))), "", OFFSET('Min. Expl. By Commodity (Data)'!E87, 0, VLOOKUP($C$6, 'Min. Expl. By Commodity (Data)'!$A$9:$B$19, 2, FALSE)) ) -> 246.4 | E87: =IF(ISBLANK(OFFSET('Min. Expl. By Commodity (Data)'!F87, 0, VLOOKUP($C$6, 'Min. Expl. By Commodity (Data)'!$A$9:$B$19, 2, FALSE))), "", OFFSET('Min. Expl. By Commodity (Data)'!F87, 0, VLOOKUP($C$6, 'Min. Expl. By Commodity (Data)'!$A$9:$B$19, 2, FALSE)) ) -> 592.7 | F87: 0.5842753501
A88: 2019 | B88: 2019-03-01 | C88: =IF(ISBLANK(OFFSET('Min. Expl. By Commodity (Data)'!D88, 0, VLOOKUP($C$6, 'Min. Expl. By Commodity (Data)'!$A$9:$B$19, 2, FALSE))), "", OFFSET('Min. Expl. By Commodity (Data)'!D88, 0, VLOOKUP($C$6, 'Min. Expl. By Commodity (Data)'!$A$9:$B$19, 2, FALSE)) ) -> 319.5 | D88: =IF(ISBLANK(OFFSET('Min. Expl. By Commodity (Data)'!E88, 0, VLOOKUP($C$6, 'Min. Expl. By Commodity (Data)'!$A$9:$B$19, 2, FALSE))), "", OFFSET('Min. Expl. By Commodity (Data)'!E88, 0, VLOOKUP($C$6, 'Min. Expl. By Commodity (Data)'!$A$9:$B$19, 2, FALSE)) ) -> 186.2 | E88: =IF(ISBLANK(OFFSET('Min. Expl. By Commodity (Data)'!F88, 0, VLOOKUP($C$6, 'Min. Expl. By Commodity (Data)'!$A$9:$B$19, 2, FALSE))), "", OFFSET('Min. Expl. By Commodity (Data)'!F88, 0, VLOOKUP($C$6, 'Min. Expl. By Commodity (Data)'!$A$9:$B$19, 2, FALSE)) ) -> 505.7 | F88: 0.6317975084
A89: 2019 | B89: 2019-06-01 | C89: =IF(ISBLANK(OFFSET('Min. Expl. By Commodity (Data)'!D89, 0, VLOOKUP($C$6, 'Min. Expl. By Commodity (Data)'!$A$9:$B$19, 2, FALSE))), "", OFFSET('Min. Expl. By Commodity (Data)'!D89, 0, VLOOKUP($C$6, 'Min. Expl. By Commodity (Data)'!$A$9:$B$19, 2, FALSE)) ) -> 415.1 | D89: =IF(ISBLANK(OFFSET('Min. Expl. By Commodity (Data)'!E89, 0, VLOOKUP($C$6, 'Min. Expl. By Commodity (Data)'!$A$9:$B$19, 2, FALSE))), "", OFFSET('Min. Expl. By Commodity (Data)'!E89, 0, VLOOKUP($C$6, 'Min. Expl. By Commodity (Data)'!$A$9:$B$19, 2, FALSE)) ) -> 249.7 | E89: =IF(ISBLANK(OFFSET('Min. Expl. By Commodity (Data)'!F89, 0, VLOOKUP($C$6, 'Min. Expl. By Commodity (Data)'!$A$9:$B$19, 2, FALSE))), "", OFFSET('Min. Expl. By Commodity (Data)'!F89, 0, VLOOKUP($C$6, 'Min. Expl. By Commodity (Data)'!$A$9:$B$19, 2, FALSE)) ) -> 664.8 | F89: 0.6243983153
A90: 2019 | B90: 2019-09-01 | C90: =IF(ISBLANK(OFFSET('Min. Expl. By Commodity (Data)'!D90, 0, VLOOKUP($C$6, 'Min. Expl. By Commodity (Data)'!$A$9:$B$19, 2, FALSE))), "", OFFSET('Min. Expl. By Commodity (Data)'!D90, 0, VLOOKUP($C$6, 'Min. Expl. By Commodity (Data)'!$A$9:$B$19, 2, FALSE)) ) -> 459.7 | D90: =IF(ISBLANK(OFFSET('Min. Expl. By Commodity (Data)'!E90, 0, VLOOKUP($C$6, 'Min. Expl. By Commodity (Data)'!$A$9:$B$19, 2, FALSE))), "", OFFSET('Min. Expl. By Commodity (Data)'!E90, 0, VLOOKUP($C$6, 'Min. Expl. By Commodity (Data)'!$A$9:$B$19, 2, FALSE)) ) -> 265.1 | E90: =IF(ISBLANK(OFFSET('Min. Expl. By Commodity (Data)'!F90, 0, VLOOKUP($C$6, 'Min. Expl. By Commodity (Data)'!$A$9:$B$19, 2, FALSE))), "", OFFSET('Min. Expl. By Commodity (Data)'!F90, 0, VLOOKUP($C$6, 'Min. Expl. By Commodity (Data)'!$A$9:$B$19, 2, FALSE)) ) -> 724.8 | F90: 0.6342439294
A91: 2019 | B91: 2019-12-01 | C91: =IF(ISBLANK(OFFSET('Min. Expl. By Commodity (Data)'!D91, 0, VLOOKUP($C$6, 'Min. Expl. By Commodity (Data)'!$A$9:$B$19, 2, FALSE))), "", OFFSET('Min. Expl. By Commodity (Data)'!D91, 0, VLOOKUP($C$6, 'Min. Expl. By Commodity (Data)'!$A$9:$B$19, 2, FALSE)) ) -> 453.9 | D91: =IF(ISBLANK(OFFSET('Min. Expl. By Commodity (Data)'!E91, 0, VLOOKUP($C$6, 'Min. Expl. By Commodity (Data)'!$A$9:$B$19, 2, FALSE))), "", OFFSET('Min. Expl. By Commodity (Data)'!E91, 0, VLOOKUP($C$6, 'Min. Expl. By Commodity (Data)'!$A$9:$B$19, 2, FALSE)) ) -> 299.2 | E91: =IF(ISBLANK(OFFSET('Min. Expl. By Commodity (Data)'!F91, 0, VLOOKUP($C$6, 'Min. Expl. By Commodity (Data)'!$A$9:$B$19, 2, FALSE))), "", OFFSET('Min. Expl. By Commodity (Data)'!F91, 0, VLOOKUP($C$6, 'Min. Expl. By Commodity (Data)'!$A$9:$B$19, 2, FALSE)) ) -> 753.1 | F91: 0.6027088036
A92: 2020 | B92: 2020-03-01 | C92: =IF(ISBLANK(OFFSET('Min. Expl. By Commodity (Data)'!D92, 0, VLOOKUP($C$6, 'Min. Expl. By Commodity (Data)'!$A$9:$B$19, 2, FALSE))), "", OFFSET('Min. Expl. By Commodity (Data)'!D92, 0, VLOOKUP($C$6, 'Min. Expl. By Commodity (Data)'!$A$9:$B$19, 2, FALSE)) ) -> 367.1 | D92: =IF(ISBLANK(OFFSET('Min. Expl. By Commodity (Data)'!E92, 0, VLOOKUP($C$6, 'Min. Expl. By Commodity (Data)'!$A$9:$B$19, 2, FALSE))), "", OFFSET('Min. Expl. By Commodity (Data)'!E92, 0, VLOOKUP($C$6, 'Min. Expl. By Commodity (Data)'!$A$9:$B$19, 2, FALSE)) ) -> 243.5 | E92: =IF(ISBLANK(OFFSET('Min. Expl. By Commodity (Data)'!F92, 0, VLOOKUP($C$6, 'Min. Expl. By Commodity (Data)'!$A$9:$B$19, 2, FALSE))), "", OFFSET('Min. Expl. By Commodity (Data)'!F92, 0, VLOOKUP($C$6, 'Min. Expl. By Commodity (Data)'!$A$9:$B$19, 2, FALSE)) ) -> 610.6 | F92: 0.6012119227
A93: 2020 | B93: 2020-06-01 | C93: =IF(ISBLANK(OFFSET('Min. Expl. By Commodity (Data)'!D93, 0, VLOOKUP($C$6, 'Min. Expl. By Commodity (Data)'!$A$9:$B$19, 2, FALSE))), "", OFFSET('Min. Expl. By Commodity (Data)'!D93, 0, VLOOKUP($C$6, 'Min. Expl. By Commodity (Data)'!$A$9:$B$19, 2, FALSE)) ) -> 412.4 | D93: =IF(ISBLANK(OFFSET('Min. Expl. By Commodity (Data)'!E93, 0, VLOOKUP($C$6, 'Min. Expl. By Commodity (Data)'!$A$9:$B$19, 2, FALSE))), "", OFFSET('Min. Expl. By Commodity (Data)'!E93, 0, VLOOKUP($C$6, 'Min. Expl. By Commodity (Data)'!$A$9:$B$19, 2, FALSE)) ) -> 270.9 | E93: =IF(ISBLANK(OFFSET('Min. Expl. By Commodity (Data)'!F93, 0, VLOOKUP($C$6, 'Min. Expl. By Commodity (Data)'!$A$9:$B$19, 2, FALSE))), "", OFFSET('Min. Expl. By Commodity (Data)'!F93, 0, VLOOKUP($C$6, 'Min. Expl. By Commodity (Data)'!$A$9:$B$19, 2, FALSE)) ) -> 683.3 | F93: 0.6035416362
A94: 2020 | B94: 2020-09-01 | C94: =IF(ISBLANK(OFFSET('Min. Expl. By Commodity (Data)'!D94, 0, VLOOKUP($C$6, 'Min. Expl. By Commodity (Data)'!$A$9:$B$19, 2, FALSE))), "", OFFSET('Min. Expl. By Commodity (Data)'!D94, 0, VLOOKUP($C$6, 'Min. Expl. By Commodity (Data)'!$A$9:$B$19, 2, FALSE)) ) -> 483.3 | D94: =IF(ISBLANK(OFFSET('Min. Expl. By Commodity (Data)'!E94, 0, VLOOKUP($C$6, 'Min. Expl. By Commodity (Data)'!$A$9:$B$19, 2, FALSE))), "", OFFSET('Min. Expl. By Commodity (Data)'!E94, 0, VLOOKUP($C$6, 'Min. Expl. By Commodity (Data)'!$A$9:$B$19, 2, FALSE)) ) -> 261.6 | E94: =IF(ISBLANK(OFFSET('Min. Expl. By Commodity (Data)'!F94, 0, VLOOKUP($C$6, 'Min. Expl. By Commodity (Data)'!$A$9:$B$19, 2, FALSE))), "", OFFSET('Min. Expl. By Commodity (Data)'!F94, 0, VLOOKUP($C$6, 'Min. Expl. By Commodity (Data)'!$A$9:$B$19, 2, FALSE)) ) -> 744.9 | F94: 0.6488119211
A95: 2020 | B95: 2020-12-01 | C95: =IF(ISBLANK(OFFSET('Min. Expl. By Commodity (Data)'!D95, 0, VLOOKUP($C$6, 'Min. Expl. By Commodity (Data)'!$A$9:$B$19, 2, FALSE))), "", OFFSET('Min. Expl. By Commodity (Data)'!D95, 0, VLOOKUP($C$6, 'Min. Expl. By Commodity (Data)'!$A$9:$B$19, 2, FALSE)) ) -> 494.7 | D95: =IF(ISBLANK(OFFSET('Min. Expl. By Commodity (Data)'!E95, 0, VLOOKUP($C$6, 'Min. Expl. By Commodity (Data)'!$A$9:$B$19, 2, FALSE))), "", OFFSET('Min. Expl. By Commodity (Data)'!E95, 0, VLOOKUP($C$6, 'Min. Expl. By Commodity (Data)'!$A$9:$B$19, 2, FALSE)) ) -> 275.3 | E95: =IF(ISBLANK(OFFSET('Min. Expl. By Commodity (Data)'!F95, 0, VLOOKUP($C$6, 'Min. Expl. By Commodity (Data)'!$A$9:$B$19, 2, FALSE))), "", OFFSET('Min. Expl. By Commodity (Data)'!F95, 0, VLOOKUP($C$6, 'Min. Expl. By Commodity (Data)'!$A$9:$B$19, 2, FALSE)) ) -> 770 | F95: 0.6424675325
A96: 2021 | B96: 2021-03-01 | C96: =IF(ISBLANK(OFFSET('Min. Expl. By Commodity (Data)'!D96, 0, VLOOKUP($C$6, 'Min. Expl. By Commodity (Data)'!$A$9:$B$19, 2, FALSE))), "", OFFSET('Min. Expl. By Commodity (Data)'!D96, 0, VLOOKUP($C$6, 'Min. Expl. By Commodity (Data)'!$A$9:$B$19, 2, FALSE)) ) -> 480.2 | D96: =IF(ISBLANK(OFFSET('Min. Expl. By Commodity (Data)'!E96, 0, VLOOKUP($C$6, 'Min. Expl. By Commodity (Data)'!$A$9:$B$19, 2, FALSE))), "", OFFSET('Min. Expl. By Commodity (Data)'!E96, 0, VLOOKUP($C$6, 'Min. Expl. By Commodity (Data)'!$A$9:$B$19, 2, FALSE)) ) -> 254.6 | E96: =IF(ISBLANK(OFFSET('Min. Expl. By Commodity (Data)'!F96, 0, VLOOKUP($C$6, 'Min. Expl. By Commodity (Data)'!$A$9:$B$19, 2, FALSE))), "", OFFSET('Min. Expl. By Commodity (Data)'!F96, 0, VLOOKUP($C$6, 'Min. Expl. By Commodity (Data)'!$A$9:$B$19, 2, FALSE)) ) -> 734.8 | F96: 0.6535111595
A97: 2021 | B97: 2021-06-01 | C97: =IF(ISBLANK(OFFSET('Min. Expl. By Commodity (Data)'!D97, 0, VLOOKUP($C$6, 'Min. Expl. By Commodity (Data)'!$A$9:$B$19, 2, FALSE))), "", OFFSET('Min. Expl. By Commodity (Data)'!D97, 0, VLOOKUP($C$6, 'Min. Expl. By Commodity (Data)'!$A$9:$B$19, 2, FALSE)) ) -> 593.9 | D97: =IF(ISBLANK(OFFSET('Min. Expl. By Commodity (Data)'!E97, 0, VLOOKUP($C$6, 'Min. Expl. By Commodity (Data)'!$A$9:$B$19, 2, FALSE))), "", OFFSET('Min. Expl. By Commodity (Data)'!E97, 0, VLOOKUP($C$6, 'Min. Expl. By Commodity (Data)'!$A$9:$B$19, 2, FALSE)) ) -> 318.1 | E97: =IF(ISBLANK(OFFSET('Min. Expl. By Commodity (Data)'!F97, 0, VLOOKUP($C$6, 'Min. Expl. By Commodity (Data)'!$A$9:$B$19, 2, FALSE))), "", OFFSET('Min. Expl. By Commodity (Data)'!F97, 0, VLOOKUP($C$6, 'Min. Expl. By Commodity (Data)'!$A$9:$B$19, 2, FALSE)) ) -> 912 | F97: 0.6512061404
A98: 2021 | B98: 2021-09-01 | C98: =IF(ISBLANK(OFFSET('Min. Expl. By Commodity (Data)'!D98, 0, VLOOKUP($C$6, 'Min. Expl. By Commodity (Data)'!$A$9:$B$19, 2, FALSE))), "", OFFSET('Min. Expl. By Commodity (Data)'!D98, 0, VLOOKUP($C$6, 'Min. Expl. By Commodity (Data)'!$A$9:$B$19, 2, FALSE)) ) -> 670.5 | D98: =IF(ISBLANK(OFFSET('Min. Expl. By Commodity (Data)'!E98, 0, VLOOKUP($C$6, 'Min. Expl. By Commodity (Data)'!$A$9:$B$19, 2, FALSE))), "", OFFSET('Min. Expl. By Commodity (Data)'!E98, 0, VLOOKUP($C$6, 'Min. Expl. By Commodity (Data)'!$A$9:$B$19, 2, FALSE)) ) -> 327.1 | E98: =IF(ISBLANK(OFFSET('Min. Expl. By Commodity (Data)'!F98, 0, VLOOKUP($C$6, 'Min. Expl. By Commodity (Data)'!$A$9:$B$19, 2, FALSE))), "", OFFSET('Min. Expl. By Commodity (Data)'!F98, 0, VLOOKUP($C$6, 'Min. Expl. By Commodity (Data)'!$A$9:$B$19, 2, FALSE)) ) -> 997.6 | F98: 0.6721130714
A99: 2021 | B99: 2021-12-01 | C99: =IF(ISBLANK(OFFSET('Min. Expl. By Commodity (Data)'!D99, 0, VLOOKUP($C$6, 'Min. Expl. By Commodity (Data)'!$A$9:$B$19, 2, FALSE))), "", OFFSET('Min. Expl. By Commodity (Data)'!D99, 0, VLOOKUP($C$6, 'Min. Expl. By Commodity (Data)'!$A$9:$B$19, 2, FALSE)) ) -> 606.8 | D99: =IF(ISBLANK(OFFSET('Min. Expl. By Commodity (Data)'!E99, 0, VLOOKUP($C$6, 'Min. Expl. By Commodity (Data)'!$A$9:$B$19, 2, FALSE))), "", OFFSET('Min. Expl. By Commodity (Data)'!E99, 0, VLOOKUP($C$6, 'Min. Expl. By Commodity (Data)'!$A$9:$B$19, 2, FALSE)) ) -> 344.9 | E99: =IF(ISBLANK(OFFSET('Min. Expl. By Commodity (Data)'!F99, 0, VLOOKUP($C$6, 'Min. Expl. By Commodity (Data)'!$A$9:$B$19, 2, FALSE))), "", OFFSET('Min. Expl. By Commodity (Data)'!F99, 0, VLOOKUP($C$6, 'Min. Expl. By Commodity (Data)'!$A$9:$B$19, 2, FALSE)) ) -> 951.7 | F99: 0.6375958811
A100: 2022 | B100: 2022-03-01 | C100: =IF(ISBLANK(OFFSET('Min. Expl. By Commodity (Data)'!D100, 0, VLOOKUP($C$6, 'Min. Expl. By Commodity (Data)'!$A$9:$B$19, 2, FALSE))), "", OFFSET('Min. Expl. By Commodity (Data)'!D100, 0, VLOOKUP($C$6, 'Min. Expl. By Commodity (Data)'!$A$9:$B$19, 2, FALSE)) ) -> 526.5 | D100: =IF(ISBLANK(OFFSET('Min. Expl. By Commodity (Data)'!E100, 0, VLOOKUP($C$6, 'Min. Expl. By Commodity (Data)'!$A$9:$B$19, 2, FALSE))), "", OFFSET('Min. Expl. By Commodity (Data)'!E100, 0, VLOOKUP($C$6, 'Min. Expl. By Commodity (Data)'!$A$9:$B$19, 2, FALSE)) ) -> 328.8 | E100: =IF(ISBLANK(OFFSET('Min. Expl. By Commodity (Data)'!F100, 0, VLOOKUP($C$6, 'Min. Expl. By Commodity (Data)'!$A$9:$B$19, 2, FALSE))), "", OFFSET('Min. Expl. By Commodity (Data)'!F100, 0, VLOOKUP($C$6, 'Min. Expl. By Commodity (Data)'!$A$9:$B$19, 2, FALSE)) ) -> 855.3 | F100: 0.615573483
A101: 2022 | B101: 2022-06-01 | C101: =IF(ISBLANK(OFFSET('Min. Expl. By Commodity (Data)'!D101, 0, VLOOKUP($C$6, 'Min. Expl. By Commodity (Data)'!$A$9:$B$19, 2, FALSE))), "", OFFSET('Min. Expl. By Commodity (Data)'!D101, 0, VLOOKUP($C$6, 'Min. Expl. By Commodity (Data)'!$A$9:$B$19, 2, FALSE)) ) -> 674.8 | D101: =IF(ISBLANK(OFFSET('Min. Expl. By Commodity (Data)'!E101, 0, VLOOKUP($C$6, 'Min. Expl. By Commodity (Data)'!$A$9:$B$19, 2, FALSE))), "", OFFSET('Min. Expl. By Commodity (Data)'!E101, 0, VLOOKUP($C$6, 'Min. Expl. By Commodity (Data)'!$A$9:$B$19, 2, FALSE)) ) -> 382.5 | E101: =IF(ISBLANK(OFFSET('Min. Expl. By Commodity (Data)'!F101, 0, VLOOKUP($C$6, 'Min. Expl. By Commodity (Data)'!$A$9:$B$19, 2, FALSE))), "", OFFSET('Min. Expl. By Commodity (Data)'!F101, 0, VLOOKUP($C$6, 'Min. Expl. By Commodity (Data)'!$A$9:$B$19, 2, FALSE)) ) -> 1057.3 | F101: 0.6382294524
A102: 2022 | B102: 2022-09-01 | C102: =IF(ISBLANK(OFFSET('Min. Expl. By Commodity (Data)'!D102, 0, VLOOKUP($C$6, 'Min. Expl. By Commodity (Data)'!$A$9:$B$19, 2, FALSE))), "", OFFSET('Min. Expl. By Commodity (Data)'!D102, 0, VLOOKUP($C$6, 'Min. Expl. By Commodity (Data)'!$A$9:$B$19, 2, FALSE)) ) -> 700.5 | D102: =IF(ISBLANK(OFFSET('Min. Expl. By Commodity (Data)'!E102, 0, VLOOKUP($C$6, 'Min. Expl. By Commodity (Data)'!$A$9:$B$19, 2, FALSE))), "", OFFSET('Min. Expl. By Commodity (Data)'!E102, 0, VLOOKUP($C$6, 'Min. Expl. By Commodity (Data)'!$A$9:$B$19, 2, FALSE)) ) -> 398.8 | E102: =IF(ISBLANK(OFFSET('Min. Expl. By Commodity (Data)'!F102, 0, VLOOKUP($C$6, 'Min. Expl. By Commodity (Data)'!$A$9:$B$19, 2, FALSE))), "", OFFSET('Min. Expl. By Commodity (Data)'!F102, 0, VLOOKUP($C$6, 'Min. Expl. By Commodity (Data)'!$A$9:$B$19, 2, FALSE)) ) -> 1099.3 | F102: 0.6372236878
A103: 2022 | B103: 2022-12-01 | C103: =IF(ISBLANK(OFFSET('Min. Expl. By Commodity (Data)'!D103, 0, VLOOKUP($C$6, 'Min. Expl. By Commodity (Data)'!$A$9:$B$19, 2, FALSE))), "", OFFSET('Min. Expl. By Commodity (Data)'!D103, 0, VLOOKUP($C$6, 'Min. Expl. By Commodity (Data)'!$A$9:$B$19, 2, FALSE)) ) -> 645 | D103: =IF(ISBLANK(OFFSET('Min. Expl. By Commodity (Data)'!E103, 0, VLOOKUP($C$6, 'Min. Expl. By Commodity (Data)'!$A$9:$B$19, 2, FALSE))), "", OFFSET('Min. Expl. By Commodity (Data)'!E103, 0, VLOOKUP($C$6, 'Min. Expl. By Commodity (Data)'!$A$9:$B$19, 2, FALSE)) ) -> 403.2 | E103: =IF(ISBLANK(OFFSET('Min. Expl. By Commodity (Data)'!F103, 0, VLOOKUP($C$6, 'Min. Expl. By Commodity (Data)'!$A$9:$B$19, 2, FALSE))), "", OFFSET('Min. Expl. By Commodity (Data)'!F103, 0, VLOOKUP($C$6, 'Min. Expl. By Commodity (Data)'!$A$9:$B$19, 2, FALSE)) ) -> 1048.2 | F103: 0.6153405839
A104: 2023 | B104: 2023-03-01 | C104: =IF(ISBLANK(OFFSET('Min. Expl. By Commodity (Data)'!D104, 0, VLOOKUP($C$6, 'Min. Expl. By Commodity (Data)'!$A$9:$B$19, 2, FALSE))), "", OFFSET('Min. Expl. By Commodity (Data)'!D104, 0, VLOOKUP($C$6, 'Min. Expl. By Commodity (Data)'!$A$9:$B$19, 2, FALSE)) ) -> 545.5 | D104: =IF(ISBLANK(OFFSET('Min. Expl. By Commodity (Data)'!E104, 0, VLOOKUP($C$6, 'Min. Expl. By Commodity (Data)'!$A$9:$B$19, 2, FALSE))), "", OFFSET('Min. Expl. By Commodity (Data)'!E104, 0, VLOOKUP($C$6, 'Min. Expl. By Commodity (Data)'!$A$9:$B$19, 2, FALSE)) ) -> 350.4 | E104: =IF(ISBLANK(OFFSET('Min. Expl. By Commodity (Data)'!F104, 0, VLOOKUP($C$6, 'Min. Expl. By Commodity (Data)'!$A$9:$B$19, 2, FALSE))), "", OFFSET('Min. Expl. By Commodity (Data)'!F104, 0, VLOOKUP($C$6, 'Min. Expl. By Commodity (Data)'!$A$9:$B$19, 2, FALSE)) ) -> 895.9 | F104: 0.6088849202
A105: 2023 | B105: 2023-06-01 | C105: =IF(ISBLANK(OFFSET('Min. Expl. By Commodity (Data)'!D105, 0, VLOOKUP($C$6, 'Min. Expl. By Commodity (Data)'!$A$9:$B$19, 2, FALSE))), "", OFFSET('Min. Expl. By Commodity (Data)'!D105, 0, VLOOKUP($C$6, 'Min. Expl. By Commodity (Data)'!$A$9:$B$19, 2, FALSE)) ) -> 648.5 | D105: =IF(ISBLANK(OFFSET('Min. Expl. By Commodity (Data)'!E105, 0, VLOOKUP($C$6, 'Min. Expl. By Commodity (Data)'!$A$9:$B$19, 2, FALSE))), "", OFFSET('Min. Expl. By Commodity (Data)'!E105, 0, VLOOKUP($C$6, 'Min. Expl. By Commodity (Data)'!$A$9:$B$19, 2, FALSE)) ) -> 421.4 | E105: =IF(ISBLANK(OFFSET('Min. Expl. By Commodity (Data)'!F105, 0, VLOOKUP($C$6, 'Min. Expl. By Commodity (Data)'!$A$9:$B$19, 2, FALSE))), "", OFFSET('Min. Expl. By Commodity (Data)'!F105, 0, VLOOKUP($C$6, 'Min. Expl. By Commodity (Data)'!$A$9:$B$19, 2, FALSE)) ) -> 1069.9 | F105: 0.6061314142
A106: =YEAR(#REF!) -> 
A107: =YEAR(#REF!) -> 
A108: =YEAR(#REF!) -> 
A109: =YEAR(#REF!) -> 
A110: =YEAR(#REF!) -> 
A111: =YEAR(#REF!) -> 
A112: =YEAR(#REF!) -> 
A113: =YEAR(#REF!) -> 
A114: =YEAR(#REF!) -> 
A115: =YEAR(#REF!) -> 
A116: =YEAR(#REF!) -> 
A117: =YEAR(#REF!) -> 
A118: =YEAR(#REF!) -> 
A119: =YEAR(#REF!) -> 
A120: =YEAR(#REF!) -> 
A121: =YEAR(#REF!) -> 
A122: =YEAR(#REF!) -> 
A123: =YEAR(#REF!) -> 
A124: =YEAR(#REF!) -> 
A125: =YEAR(#REF!) -> 
A126: =YEAR(#REF!) -> 
A127: =YEAR(#REF!) -> 
A128: =YEAR(#REF!) -> 
A129: =YEAR(#REF!) -> 
A130: =YEAR(#REF!) -> 
A131: =YEAR(#REF!) -> 
A132: =YEAR(#REF!) -> 
A133: =YEAR(#REF!) -> 
A134: =YEAR(#REF!) -> 
A135: =YEAR(#REF!) -> 
A136: =YEAR(#REF!) -> 
A137: =YEAR(#REF!) -> 
A138: =YEAR(#REF!) -> 
A139: =YEAR(#REF!) -> 
A140: =YEAR(#REF!) -> 
A141: =YEAR(#REF!) -> 
A142: =YEAR(#REF!) -> 
A143: =YEAR(#REF!) -> 
A144: =YEAR(#REF!) -> 
A145: =YEAR(#REF!) -> 
A146: =YEAR(#REF!) -> 
A147: =YEAR(#REF!) -> 
A148: =YEAR(B106) -> 1900
A149: 1900
A150: 1900
A151: 1900
A152: 1900
A153: 1900
A154: 1900
A155: 1900
A156: 1900
A157: 1900
A158: 1900
A159: 1900
A160: 1900
A161: 1900
A162: 1900
A163: 1900
A164: 1900
A165: 1900
A166: 1900
A167: 1900
A168: 1900
A169: 1900
A170: 1900
A171: 1900
A172: 1900
A173: 1900
A174: 1900
A175: 1900
A176: 1900
A177: 1900
A178: 1900
A179: 1900
A180: 1900
A181: 1900
A182: 1900
A183: 1900
A184: 1900
A185: 1900
A186: 1900
A187: 1900
A188: 1900
A189: 1900
A190: 1900
A191: 1900
A192: 1900
A193: 1900
A194: 1900
A195: 1900
A196: 1900
A197: 1900
A198: 1900
A199: 1900
A200: 1900
A201: 1900
A202: 1900
A203: 1900
... 307 more rows

Sheet Min. Expl. By Type
M1: =(LARGE(B8:B455,1)) -> 2023-06-01
M2: =MATCH(M1,B8:B455,0)+6 -> 1900-03-26
M3: =IF(MONTH(INDIRECT(CONCATENATE("B",M2)))=12, "Calendar Year", "Financial year") -> Financial year
B6: Mineral Exploration Expenditure By Type | M6: Last 10 Calendar Years | X6: Last 10 Financial Years
B7: Quarter | C7: Western Australia New Deposits ($ Million) | D7: Rest Of Australia New Deposits ($ Million) | E7: Australia New Deposits ($ Million) | F7: Western Australia Existing Deposits ($ Million) | G7: Rest Of Australia Existing Deposits ($ Million) | H7: Australia Existing Deposits ($ Million) | I7: Western Australia Share Of Australia New Deposits | J7: Western Australia Share Of Australia Existing Deposits | K7: New Deposits Share Of Western Australia | M7: Year | N7: Western Australia New Deposits ($ Million) | O7: Rest Of Australia New Deposits ($ Million) | P7: Australia New Deposits ($ Million) | Q7: Western Australia Existing Deposits ($ Million) | R7: Rest Of Australia Existing Deposits ($ Million) | S7: Australia Existing Deposits ($ Million) | T7: Western Australia Share Of Australia New Deposits | U7: Western Australia Share Of Australia Existing Deposits | V7: New Deposits Share Of Western Australia | X7: Year | Y7: Western Australia New Deposits ($ Million) | Z7: Rest Of Australia New Deposits ($ Million) | AA7: Australia New Deposits ($ Million) | AB7: Western Australia Existing Deposits ($ Million) | AC7: Rest Of Australia Existing Deposits ($ Million) | AD7: Australia Existing Deposits ($ Million) | AE7: Western Australia Share Of Australia New Deposits | AF7: Western Australia Share Of Australia Existing Deposits | AG7: New Deposits Share Of Western Australia
A8: =YEAR(B8) -> 2003 | B8: 2003-09-01 | C8: 37.4 | D8: =E8-C8 -> 26.2 | E8: 63.6 | F8: 71.1 | G8: =H8-F8 -> 44.8 | H8: 115.9 | I8: =C8/E8 -> 0.5880503145 | J8: =F8/H8 -> 0.6134598792 | K8: =C8/(C8+F8) -> 0.3447004608 | M8: =M9-1 -> 2013 | N8: =SUMIF($A$8:$A$571,$M8,C$8:C$573) -> 484.6 | O8: =P8-N8 -> 384.9 | P8: =SUMIF($A$8:$A$571,$M8,E$8:E$573) -> 869.5 | Q8: =SUMIF($A$8:$A$571,$M8,F$8:F$573) -> 1023.6 | R8: =S8-Q8 -> 629.5 | S8: =SUMIF($A$8:$A$571,$M8,H$8:H$573) -> 1653.1 | T8: =N8/P8 -> 0.5573317999 | U8: =Q8/S8 -> 0.6192002904 | V8: =N8/(Q8+N8) -> 0.3213101711 | X8: =LEFT(X9,4)-1 & "-" & LEFT(X9,4) -> 2013-2014 | Y8: =SUMIFS(C:C, $B:$B, ">=" & DATE(LEFT($X8, 4), 7, 1), $B:$B, "<" & DATE(LEFT($X8, 4)+1, 7, 1)) -> 381 | Z8: =AA8-Y8 -> 300.9 | AA8: =SUMIFS(E:E, $B:$B, ">=" & DATE(LEFT($X8, 4), 7, 1), $B:$B, "<" & DATE(LEFT($X8, 4)+1, 7, 1)) -> 681.9 | AB8: =SUMIFS(F:F, $B:$B, ">=" & DATE(LEFT($X8, 4), 7, 1), $B:$B, "<" & DATE(LEFT($X8, 4)+1, 7, 1)) -> 839.1 | AC8: =AD8-AB8 -> 587 | AD8: =SUMIFS(H:H, $B:$B, ">=" & DATE(LEFT($X8, 4), 7, 1), $B:$B, "<" & DATE(LEFT($X8, 4)+1, 7, 1)) -> 1426.1 | AE8: =Y8/AA8 -> 0.558732952 | AF8: =AB8/AD8 -> 0.5883879111 | AG8: =Y8/(AB8+Y8) -> 0.3122694861
A9: =YEAR(B9) -> 2003 | B9: 2003-12-01 | C9: 54.1 | D9: =E9-C9 -> 30 | E9: 84.1 | F9: 67.9 | G9: =H9-F9 -> 47.5 | H9: 115.4 | I9: 0.6432818074 | J9: =F9/H9 -> 0.5883882149 | K9: =C9/(C9+F9) -> 0.443442623 | M9: 2014 | N9: 290 | O9: =P9-N9 -> 254.9 | P9: 544.9 | Q9: 755.4 | R9: =S9-Q9 -> 539 | S9: 1294.4 | T9: 0.5322077445 | U9: 0.5835908529 | V9: 0.2774057777 | X9: 2014-2015 | Y9: =SUMIFS(C:C, $B:$B, ">=" & DATE(LEFT($X9, 4), 7, 1), $B:$B, "<" & DATE(LEFT($X9, 4)+1, 7, 1)) -> 250.8 | Z9: =AA9-Y9 -> 235.3 | AA9: 486.1 | AB9: 666.5 | AC9: 426.8 | AD9: 1093.3 | AE9: 0.5159432216 | AF9: 0.6096222446 | AG9: 0.2734110978
A10: 2004 | B10: 2004-03-01 | C10: 37.6 | D10: 22.5 | E10: 60.1 | F10: 59 | G10: 48.1 | H10: 107.1 | I10: 0.6256239601 | J10: 0.5508870215 | K10: 0.3892339545 | M10: 2015 | N10: 230.4 | O10: 195.7 | P10: 426.1 | Q10: 613.2 | R10: 399.9 | S10: 1013.1 | T10: 0.5407181413 | U10: 0.6052709505 | V10: 0.2731152205 | X10: 2015-2016 | Y10: 241.4 | Z10: 170.3 | AA10: 411.7 | AB10: 629.6 | AC10: 379.8 | AD10: 1009.4 | AE10: 0.5863492835 | AF10: 0.6237368734 | AG10: 0.277152698
A11: 2004 | B11: 2004-06-01 | C11: 66.7 | D11: 36.6 | E11: 103.3 | F11: 72.1 | G11: 65 | H11: 137.1 | I11: 0.6456921588 | J11: 0.5258935084 | K11: 0.4805475504 | M11: 2016 | N11: 267.5 | O11: 168.4 | P11: 435.9 | Q11: 660.1 | R11: 330.8 | S11: 990.9 | T11: 0.6136728607 | U11: 0.6661620749 | V11: 0.2883786115 | X11: 2016-2017 | Y11: 295.3 | Z11: 188.2 | AA11: 483.5 | AB11: 733.1 | AC11: =AD11-AB11 -> 348.5 | AD11: 1081.6 | AE11: 0.6107549121 | AF11: 0.6777921598 | AG11: 0.2871450797
A12: 2004 | B12: 2004-09-01 | C12: 68.1 | D12: 30 | E12: 98.1 | F12: 79.8 | G12: 73.2 | H12: 153 | I12: 0.6941896024 | J12: 0.5215686275 | K12: 0.4604462475 | M12: 2017 | N12: 339.1 | O12: 221.3 | P12: 560.4 | Q12: 769.9 | R12: 423.5 | S12: 1193.4 | T12: 0.6051034975 | U12: 0.6451315569 | V12: 0.3057709648 | X12: 2017-2018 | Y12: 405.9 | Z12: 259 | AA12: 664.9 | AB12: 797.8 | AC12: 515.1 | AD12: 1312.9 | AE12: =Y12/AA12 -> 0.6104677395 | AF12: =AB12/AD12 -> 0.6076624267 | AG12: =Y12/(AB12+Y12) -> 0.3372102683
A13: 2004 | B13: 2004-12-01 | C13: 74.7 | D13: 32.8 | E13: 107.5 | F13: 82 | G13: 71.3 | H13: 153.3 | I13: 0.6948837209 | J13: 0.5348988911 | K13: 0.4767070836 | M13: 2018 | N13: 501.7 | O13: 298.6 | P13: 800.3 | Q13: 816.7 | R13: 567.2 | S13: 1383.9 | T13: 0.6268899163 | U13: 0.5901437965 | V13: 0.3805370146 | X13: 2018-2019 | Y13: 598.5 | Z13: 308.9 | AA13: 907.4 | AB13: 843.6 | AC13: 597.2 | AD13: 1440.8 | AE13: 0.6595768129 | AF13: 0.5855080511 | AG13: 0.4150197628
A14: 2005 | B14: 2005-03-01 | C14: 60.2 | D14: 23.6 | E14: 83.8 | F14: 74.2 | G14: 67.8 | H14: 142 | I14: 0.7183770883 | J14: 0.5225352113 | K14: 0.4479166667 | M14: 2019 | N14: 696 | O14: 360.7 | P14: 1056.7 | Q14: 952.2 | R14: 639.5 | S14: 1591.7 | T14: 0.6586543011 | U14: 0.5982283094 | V14: 0.4222788497 | X14: 2019-2020 | Y14: 651.4 | Z14: 407.6 | AA14: 1059 | AB14: 1041.8 | AC14: 670.9 | AD14: 1712.7 | AE14: 0.615108593 | AF14: 0.608279325 | AG14: 0.3847153319
A15: 2005 | B15: 2005-06-01 | C15: 80.2 | D15: 35 | E15: 115.2 | F15: 86.8 | G15: 88.7 | H15: 175.5 | I15: 0.6961805556 | J15: 0.4945868946 | K15: 0.480239521 | M15: 2020 | N15: 577.4 | O15: 379.4 | P15: 956.8 | Q15: 1180.2 | R15: 671.7 | S15: 1851.9 | T15: 0.6034698997 | U15: 0.6372914304 | V15: 0.3285161584 | X15: 2020-2021 | Y15: 683.3 | Z15: 383.6 | AA15: 1066.9 | AB15: 1368.8 | AC15: 726 | AD15: 2094.8 | AE15: 0.6404536508 | AF15: 0.6534275348 | AG15: 0.3329759758
A16: 2005 | B16: 2005-09-01 | C16: 64.2 | D16: 41.3 | E16: 105.5 | F16: 90.2 | G16: 96.4 | H16: 186.6 | I16: 0.6085308057 | J16: 0.4833869239 | K16: 0.4158031088 | M16: 2021 | N16: 780.2 | O16: 428.1 | P16: 1208.3 | Q16: 1571 | R16: 816.8 | S16: 2387.8 | T16: 0.6457005711 | U16: 0.6579277996 | V16: 0.3318305546 | X16: =LEFT(X17,4)-1 & "-" & LEFT(X17,4) -> 2021-2022 | Y16: 758.5 | Z16: 461.7 | AA16: 1220.2 | AB16: 1720 | AC16: 921.7 | AD16: 2641.7 | AE16: =Y16/AA16 -> 0.6216194067 | AF16: =AB16/AD16 -> 0.6510958852 | AG16: =Y16/(AB16+Y16) -> 0.3060318741
A17: 2005 | B17: 2005-12-01 | C17: 70.8 | D17: 47 | E17: 117.8 | F17: 87.2 | G17: 122.6 | H17: 209.8 | I17: 0.6010186757 | J17: 0.4156339371 | K17: 0.4481012658 | M17: =YEAR(LARGE(B:B, 4)) -> 2022 | N17: 794 | O17: 475.2 | P17: 1269.2 | Q17: 1752.9 | R17: 1038 | S17: 2790.9 | T17: =N17/P17 -> 0.6255909234 | U17: =Q17/S17 -> 0.6280769644 | V17: =N17/(Q17+N17) -> 0.3117515411 | X17: =IF(MONTH(LARGE(B:B,4))>=7, YEAR(LARGE(B:B,4)) & "-" & YEAR(LARGE(B:B,4))+1, YEAR(LARGE(B:B,4))-1 & "-" & YEAR(LARGE(B:B,4)) ) -> 2022-2023 | Y17: 813.8 | Z17: 475.1 | AA17: 1288.9 | AB17: 1725.7 | AC17: 1098.7 | AD17: 2824.4 | AE17: 0.6313911087 | AF17: 0.6109970259 | AG17: 0.3204567828
A18: 2006 | B18: 2006-03-01 | C18: 60.4 | D18: 44.1 | E18: 104.5 | F18: 61.1 | G18: 98.2 | H18: 159.3 | I18: 0.5779904306 | J18: 0.3835530446 | K18: 0.4971193416
A19: 2006 | B19: 2006-06-01 | C19: 73.2 | D19: 56.5 | E19: 129.7 | F19: 83.1 | G19: 144.6 | H19: 227.7 | I19: 0.5643793369 | J19: 0.3649538867 | K19: 0.4683301344
A20: 2006 | B20: 2006-09-01 | C20: 77.1 | D20: 61.4 | E20: 138.5 | F20: 113.1 | G20: 143 | H20: 256.1 | I20: 0.5566787004 | J20: 0.4416243655 | K20: 0.405362776
A21: 2006 | B21: 2006-12-01 | C21: 86.4 | D21: 73.8 | E21: 160.2 | F21: 130.8 | G21: 157.2 | H21: 288 | I21: 0.5393258427 | J21: 0.4541666667 | K21: 0.3977900552
A22: 2007 | B22: 2007-03-01 | C22: 74.1 | D22: 58.4 | E22: 132.5 | F22: 105.7 | G22: 131.1 | H22: 236.8 | I22: 0.559245283 | J22: 0.4463682432 | K22: 0.4121245829
A23: 2007 | B23: 2007-06-01 | C23: 94.4 | D23: 84.3 | E23: 178.7 | F23: 157.4 | G23: 166.3 | H23: 323.7 | I23: 0.528259653 | J23: 0.4862527031 | K23: 0.3749007149
A24: 2007 | B24: 2007-09-01 | C24: 110.9 | D24: 98.6 | E24: 209.5 | F24: 182.5 | G24: 171.4 | H24: 353.9 | I24: 0.5293556086 | J24: 0.5156823962 | K24: 0.3779822768
A25: 2007 | B25: 2007-12-01 | C25: 135 | D25: 139.2 | E25: 274.2 | F25: 178.8 | G25: 172.9 | H25: 351.7 | I25: 0.4923413567 | J25: 0.5083878305 | K25: 0.430210325
A26: 2008 | B26: 2008-03-01 | C26: 117.4 | D26: 106.2 | E26: 223.6 | F26: 154 | G26: 166.3 | H26: 320.3 | I26: 0.5250447227 | J26: 0.4807992507 | K26: 0.4325718497
A27: 2008 | B27: 2008-06-01 | C27: 173.6 | D27: 131.8 | E27: 305.4 | F27: 207.6 | G27: 215.1 | H27: 422.7 | I27: 0.5684348396 | J27: 0.4911284599 | K27: 0.4554039874
A28: 2008 | B28: 2008-09-01 | C28: 157.3 | D28: 113.3 | E28: 270.6 | F28: 226.5 | G28: 190.6 | H28: 417.1 | I28: 0.581300813 | J28: 0.5430352433 | K28: 0.4098488796
A29: 2008 | B29: 2008-12-01 | C29: 128.1 | D29: 109.6 | E29: 237.7 | F29: 235.9 | G29: 174.9 | H29: 410.8 | I29: 0.5389145982 | J29: 0.5742453749 | K29: 0.3519230769
A30: 2009 | B30: 2009-03-01 | C30: 84.4 | D30: 64.4 | E30: 148.8 | F30: 139.9 | G30: 114.7 | H30: 254.6 | I30: 0.5672043011 | J30: 0.5494893951 | K30: 0.3762817655
A31: 2009 | B31: 2009-06-01 | C31: 96 | D31: 86.1 | E31: 182.1 | F31: 178.8 | G31: 122.6 | H31: 301.4 | I31: 0.5271828666 | J31: 0.5932315859 | K31: 0.3493449782
A32: 2009 | B32: 2009-09-01 | C32: 97.9 | D32: 103.9 | E32: 201.8 | F32: 201 | G32: 154.5 | H32: 355.5 | I32: 0.4851337958 | J32: 0.5654008439 | K32: 0.3275342924
A33: 2009 | B33: 2009-12-01 | C33: 135.8 | D33: 93.2 | E33: 229 | F33: 185.9 | G33: 163.8 | H33: 349.7 | I33: 0.5930131004 | J33: 0.531598513 | K33: 0.4221324215
A34: 2010 | B34: 2010-03-01 | C34: 101.8 | D34: 71.6 | E34: 173.4 | F34: 155.3 | G34: 130.6 | H34: 285.9 | I34: 0.5870818916 | J34: 0.543196922 | K34: 0.3959548814
A35: 2010 | B35: 2010-06-01 | C35: 147.7 | D35: 101.5 | E35: 249.2 | F35: 218.5 | G35: 169.4 | H35: 387.9 | I35: 0.5926966292 | J35: 0.5632895076 | K35: 0.4033315128
A36: 2010 | B36: 2010-09-01 | C36: 135.4 | D36: 105.5 | E36: 240.9 | F36: 249.2 | G36: 179.3 | H36: 428.5 | I36: 0.5620589456 | J36: 0.5815635939 | K36: 0.3520540822
A37: 2010 | B37: 2010-12-01 | C37: 166 | D37: 123.5 | E37: 289.5 | F37: 227.7 | G37: 207.2 | H37: 434.9 | I37: 0.573402418 | J37: 0.5235686365 | K37: 0.4216408433
A38: 2011 | B38: 2011-03-01 | C38: 119 | D38: 96 | E38: 215 | F38: 243.2 | G38: 191.9 | H38: 435.1 | I38: 0.5534883721 | J38: 0.5589519651 | K38: 0.3285477637
A39: 2011 | B39: 2011-06-01 | C39: 146 | D39: 146.1 | E39: 292.1 | F39: 303.6 | G39: 311.7 | H39: 615.3 | I39: 0.4998288257 | J39: 0.493417845 | K39: 0.3247330961
A40: 2011 | B40: 2011-09-01 | C40: 144.8 | D40: 168.3 | E40: 313.1 | F40: 336.9 | G40: 333.4 | H40: 670.3 | I40: =C40/E40 -> 0.4624720537 | J40: 0.5026107713 | K40: 0.3006020345
A41: 2011 | B41: 2011-12-01 | C41: 152.2 | D41: 171.4 | E41: 323.6 | F41: 379.7 | G41: 329.1 | H41: 708.8 | I41: 0.4703337454 | J41: 0.5356941309 | K41: 0.286144012
A42: 2012 | B42: 2012-03-01 | C42: 126.5 | D42: 122.1 | E42: 248.6 | F42: 363.6 | G42: 263.9 | H42: 627.5 | I42: 0.5088495575 | J42: 0.5794422311 | K42: 0.2581105897
A43: 2012 | B43: 2012-06-01 | C43: 213.5 | D43: 144.2 | E43: 357.7 | F43: 389.7 | G43: 313.7 | H43: 703.4 | I43: 0.5968688845 | J43: 0.5540233153 | K43: 0.3539456233
A44: 2012 | B44: 2012-09-01 | C44: 179.5 | D44: 123.5 | E44: 303 | F44: 309.1 | G44: 282.6 | H44: 591.7 | I44: 0.5924092409 | J44: 0.5223931046 | K44: 0.3673761768
A45: 2012 | B45: 2012-12-01 | C45: 144.5 | D45: 118.9 | E45: 263.4 | F45: 326.2 | G45: 234.4 | H45: 560.6 | I45: 0.5485952923 | J45: 0.5818765608 | K45: 0.30698959
A46: 2013 | B46: 2013-03-01 | C46: 91.3 | D46: 85 | E46: 176.3 | F46: 330.5 | G46: 165.4 | H46: 495.9 | I46: 0.5178672717 | J46: 0.6664650131 | K46: 0.2164532954
A47: 2013 | B47: 2013-06-01 | C47: 158.5 | D47: 117.2 | E47: 275.7 | F47: 223.8 | G47: 165.1 | H47: 388.9 | I47: 0.5749002539 | J47: 0.5754692723 | K47: 0.4145958671
A48: 2013 | B48: 2013-09-01 | C48: 148 | D48: 93.9 | E48: 241.9 | F48: 247.8 | G48: 148.7 | H48: 396.5 | I48: 0.6118230674 | J48: 0.6249684741 | K48: 0.3739262254
A49: 2013 | B49: 2013-12-01 | C49: 86.8 | D49: 88.8 | E49: 175.6 | F49: 221.5 | G49: 150.3 | H49: 371.8 | I49: 0.4943052392 | J49: 0.5957504034 | K49: 0.2815439507
A50: 2014 | B50: 2014-03-01 | C50: 53.3 | D50: 67.5 | E50: 120.8 | F50: 153 | G50: 133.8 | H50: 286.8 | I50: 0.4412251656 | J50: 0.5334728033 | K50: 0.2583616093
A51: 2014 | B51: 2014-06-01 | C51: 92.9 | D51: 50.7 | E51: 143.6 | F51: 216.8 | G51: 154.2 | H51: 371 | I51: 0.6469359331 | J51: 0.5843665768 | K51: 0.2999677107
A52: 2014 | B52: 2014-09-01 | C52: 69.9 | D52: 59.8 | E52: 129.7 | F52: 197.2 | G52: 130.9 | H52: 328.1 | I52: 0.5389360062 | J52: 0.6010362694 | K52: 0.2616997379
A53: 2014 | B53: 2014-12-01 | C53: 73.9 | D53: 76.9 | E53: 150.8 | F53: 188.4 | G53: 120.1 | H53: 308.5 | I53: 0.4900530504 | J53: 0.6106969206 | K53: 0.2817384674
A54: 2015 | B54: 2015-03-01 | C54: 43.3 | D54: 47.8 | E54: 91.1 | F54: 139.9 | G54: 86.7 | H54: 226.6 | I54: 0.4753018661 | J54: 0.6173874669 | K54: 0.2363537118
A55: 2015 | B55: 2015-06-01 | C55: 63.7 | D55: 50.8 | E55: 114.5 | F55: 141 | G55: 89.1 | H55: 230.1 | I55: 0.5563318777 | J55: 0.6127770535 | K55: 0.3111871031
A56: 2015 | B56: 2015-09-01 | C56: 60.6 | D56: 54.3 | E56: 114.9 | F56: 172.5 | G56: 106.6 | H56: 279.1 | I56: 0.5274151436 | J56: 0.6180580437 | K56: 0.25997426
A57: 2015 | B57: 2015-12-01 | C57: 62.8 | D57: 42.8 | E57: 105.6 | F57: 159.8 | G57: 117.5 | H57: 277.3 | I57: 0.5946969697 | J57: 0.5762711864 | K57: 0.2821203953
A58: 2016 | B58: 2016-03-01 | C58: 52.7 | D58: 34.4 | E58: 87.1 | F58: 134.4 | G58: 68.8 | H58: 203.2 | I58: 0.6050516648 | J58: 0.6614173228 | K58: 0.2816675575
A59: 2016 | B59: 2016-06-01 | C59: 65.3 | D59: 38.8 | E59: 104.1 | F59: 162.9 | G59: 86.9 | H59: 249.8 | I59: 0.6272814601 | J59: 0.6521216974 | K59: 0.2861524978
A60: 2016 | B60: 2016-09-01 | C60: 71.2 | D60: 42.6 | E60: 113.8 | F60: 177.6 | G60: 88 | H60: 265.6 | I60: 0.625659051 | J60: 0.6686746988 | K60: 0.2861736334
A61: 2016 | B61: 2016-12-01 | C61: 78.3 | D61: 52.6 | E61: 130.9 | F61: 185.2 | G61: 87.1 | H61: 272.3 | I61: 0.5981665393 | J61: 0.6801322071 | K61: 0.2971537002
A62: 2017 | B62: 2017-03-01 | C62: 62.5 | D62: 40.4 | E62: 102.9 | F62: 162.6 | G62: 72.2 | H62: 234.8 | I62: 0.6073858115 | J62: 0.6925042589 | K62: 0.2776543758
A63: 2017 | B63: 2017-06-01 | C63: 83.3 | D63: 52.6 | E63: 135.9 | F63: 207.7 | G63: 101.2 | H63: 308.9 | I63: 0.612950699 | J63: 0.6723858854 | K63: 0.2862542955
A64: 2017 | B64: 2017-09-01 | C64: 94.8 | D64: 64.1 | E64: 158.9 | F64: 199.5 | G64: 116.8 | H64: 316.3 | I64: 0.5966016362 | J64: 0.6307303193 | K64: 0.3221202854
A65: 2017 | B65: 2017-12-01 | C65: 98.5 | D65: 64.2 | E65: 162.7 | F65: 200.1 | G65: 133.3 | H65: 333.4 | I65: 0.6054087277 | J65: 0.600179964 | K65: 0.3298727395
A66: 2018 | B66: 2018-03-01 | C66: 88.9 | D66: 56.5 | E66: 145.4 | F66: 172.1 | G66: 121.2 | H66: 293.3 | I66: 0.6114167813 | J66: 0.586771224 | K66: 0.3406130268
A67: 2018 | B67: 2018-06-01 | C67: 123.7 | D67: 74.2 | E67: 197.9 | F67: 226.1 | G67: 143.8 | H67: 369.9 | I67: 0.6250631632 | J67: 0.6112462828 | K67: 0.3536306461
A68: 2018 | B68: 2018-09-01 | C68: 142 | D68: 81.5 | E68: 223.5 | F68: 219.4 | G68: 142 | H68: 361.4 | I68: 0.6353467562 | J68: 0.6070835639 | K68: 0.3929164361
A69: 2018 | B69: 2018-12-01 | C69: 147.1 | D69: 86.4 | E69: 233.5 | F69: 199.1 | G69: 160.2 | H69: 359.3 | I69: 0.6299785867 | J69: 0.5541330365 | K69: 0.4248989024
A70: 2019 | B70: 2019-03-01 | C70: 125.5 | D70: 49.8 | E70: 175.3 | F70: 193.9 | G70: 136.5 | H70: 330.4 | I70: 0.7159155733 | J70: 0.5868644068 | K70: 0.3929242329
A71: 2019 | B71: 2019-06-01 | C71: 183.9 | D71: 91.2 | E71: 275.1 | F71: 231.2 | G71: 158.5 | H71: 389.7 | I71: 0.6684841876 | J71: 0.5932768797 | K71: 0.4430257769
A72: 2019 | B72: 2019-09-01 | C72: 207.6 | D72: 94.8 | E72: 302.4 | F72: 252.2 | G72: 170.2 | H72: 422.4 | I72: 0.6865079365 | J72: 0.5970643939 | K72: 0.4515006525
A73: 2019 | B73: 2019-12-01 | C73: 179 | D73: =E73-C73 -> 124.9 | E73: 303.9 | F73: 274.9 | G73: =H73-F73 -> 174.3 | H73: 449.2 | I73: 0.5890095426 | J73: =F73/H73 -> 0.6119768477 | K73: =C73/(C73+F73) -> 0.3943599912
A74: =YEAR(B74) -> 2020 | B74: 2020-03-01 | C74: 131.4 | D74: 92.3 | E74: 223.7 | F74: 235.7 | G74: 151.1 | H74: 386.8 | I74: 0.587393831 | J74: 0.6093588418 | K74: 0.3579406156
A75: 2020 | B75: 2020-06-01 | C75: 133.4 | D75: 95.6 | E75: 229 | F75: 279 | G75: 175.3 | H75: 454.3 | I75: 0.5825327511 | J75: 0.6141316311 | K75: 0.3234723569
A76: 2020 | B76: 2020-09-01 | C76: 163.9 | D76: =E76-C76 -> 93.6 | E76: 257.5 | F76: 319.5 | G76: =H76-F76 -> 167.9 | H76: 487.4 | I76: =C76/E76 -> 0.6365048544 | J76: =F76/H76 -> 0.6555190808 | K76: 0.3390566818
A77: 2020 | B77: 2020-12-01 | C77: 148.7 | D77: 97.9 | E77: 246.6 | F77: 346 | G77: 177.4 | H77: 523.4 | I77: 0.603000811 | J77: 0.6610622851 | K77: 0.3005862139
A78: 2021 | B78: 2021-03-01 | C78: 169.3 | D78: 83 | E78: 252.3 | F78: 310.9 | G78: 171.6 | H78: 482.5 | I78: 0.6710265557 | J78: 0.6443523316 | K78: 0.3525614327
A79: 2021 | B79: 2021-06-01 | C79: 201.4 | D79: 109.1 | E79: 310.5 | F79: 392.4 | G79: 209.1 | H79: 601.5 | I79: 0.6486312399 | J79: 0.6523690773 | K79: 0.3391714382
A80: 2021 | B80: 2021-09-01 | C80: 215.2 | D80: =E80-C80 -> 123.1 | E80: 338.3 | F80: 455.3 | G80: =H80-F80 -> 204 | H80: 659.3 | I80: =C80/E80 -> 0.6361217854 | J80: =F80/H80 -> 0.6905809192 | K80: 0.3209545116
A81: 2021 | B81: 2021-12-01 | C81: 194.3 | D81: 112.9 | E81: 307.2 | F81: 412.4 | G81: 232.1 | H81: 644.5 | I81: 0.6324869792 | J81: 0.6398758728 | K81: 0.3202571287
A82: 2022 | B82: 2022-03-01 | C82: 150.5 | D82: 109.8 | E82: 260.3 | F82: 376 | G82: 219 | H82: 595 | I82: =C82/E82 -> 0.5781790242 | J82: =F82/H82 -> 0.6319327731 | K82: 0.2858499525
A83: 2022 | B83: 2022-06-01 | C83: 198.5 | D83: 115.9 | E83: 314.4 | F83: 476.3 | G83: 266.6 | H83: 742.9 | I83: 0.6313613232 | J83: 0.6411360883 | K83: 0.294161233
A84: 2022 | B84: 2022-09-01 | C84: 227.7 | D84: =E84-C84 -> 113.8 | E84: 341.5 | F84: 472.9 | G84: =H84-F84 -> 284.9 | H84: 757.8 | I84: =C84/E84 -> 0.6667642753 | J84: =F84/H84 -> 0.6240432832 | K84: 0.3250071367
A85: 2022 | B85: 2022-12-01 | C85: 217.3 | D85: 135.7 | E85: 353 | F85: 427.7 | G85: 267.5 | H85: 695.2 | I85: 0.6155807365 | J85: 0.6152186421 | K85: 0.3368992248
A86: 2023 | B86: 2023-03-01 | C86: 172.1 | D86: 104 | E86: 276.1 | F86: 373.4 | G86: 246.4 | H86: 619.8 | I86: =C86/E86 -> 0.6233248823 | J86: =F86/H86 -> 0.602452404 | K86: 0.3154903758
A87: 2023 | B87: 2023-06-01 | C87: 196.7 | D87: 121.6 | E87: 318.3 | F87: 451.7 | G87: 299.9 | H87: 751.6 | I87: 0.6179704681 | J87: 0.6009845663 | K87: 0.3033621221
A88: 1900
A89: 1900
A90: 1900
A91: 1900
A92: 1900
A93: 1900
A94: 1900
A95: 1900
A96: 1900
A97: 1900
A98: 1900
A99: 1900
A100: 1900
A101: 1900
A102: 1900
A103: 1900
A104: 1900
A105: 1900
A106: 1900
A107: 1900
A108: 1900
A109: 1900
A110: 1900
A111: 1900
A112: 1900
A113: 1900
A114: 1900
A115: 1900
A116: 1900
A117: 1900
A118: 1900
A119: 1900
A120: 1900
A121: 1900
A122: 1900
A123: 1900
A124: 1900
A125: 1900
A126: 1900
A127: 1900
A128: 1900
A129: 1900
A130: 1900
A131: 1900
A132: 1900
A133: 1900
A134: 1900
A135: 1900
A136: 1900
A137: 1900
A138: =YEAR(B138) -> 1900
A139: 1900
A140: 1900
A141: 1900
A142: 1900
A143: 1900
A144: 1900
A145: 1900
A146: 1900
A147: 1900
A148: 1900
A149: 1900
A150: 1900
A151: 1900
A152: 1900
A153: 1900
A154: 1900
A155: 1900
A156: 1900
A157: 1900
A158: 1900
A159: 1900
A160: 1900
A161: 1900
A162: 1900
A163: 1900
A164: 1900
A165: 1900
A166: 1900
A167: 1900
A168: 1900
A169: 1900
A170: 1900
A171: 1900
A172: 1900
A173: 1900
A174: 1900
A175: 1900
A176: 1900
A177: 1900
A178: 1900
A179: 1900
A180: 1900
A181: 1900
A182: 1900
A183: 1900
A184: 1900
A185: 1900
A186: 1900
A187: 1900
A188: 1900
A189: 1900
A190: 1900
A191: 1900
A192: 1900
A193: 1900
A194: 1900
A195: 1900
A196: 1900
A197: 1900
A198: 1900
A199: 1900
A200: 1900
A201: 1900
A202: =YEAR(B202) -> 1900
... 369 more rows

Sheet Min. Expl. Metres Drilled
C6: Mineral Exploration Metres Drilled | G6: Total | H6: New | I6: Existing
C7: Quarter | D7: Australia New Deposits Metres Drilled ('000) | E7: Australia Existing Deposits Metres Drilled ('000) | F7: Australia Total Deposits Metres Drilled ('000)
A8: =YEAR(C8) -> 2003 | B8: =IF(MONTH(C8)<4,"1",IF(MONTH(C8)<7,"2",IF(MONTH(C8)<10,"3","4"))) -> 3 | C8: 2003-09-01 | D8: 646 | E8: 758 | F8: 1404
A9: 2003 | B9: 4 | C9: 2003-12-01 | D9: 636 | E9: 690 | F9: 1326
A10: 2004 | B10: 1 | C10: 2004-03-01 | D10: 508 | E10: 596 | F10: 1104
A11: 2004 | B11: 2 | C11: 2004-06-01 | D11: 891 | E11: 956.6 | F11: 1847.1 | R11: Annual Average (Financial Year)
A12: 2004 | B12: 3 | C12: 2004-09-01 | D12: 897.7 | E12: 1023.9 | F12: 1921.6 | R12: Annual Average (Calendar Year)
A13: 2004 | B13: 4 | C13: 2004-12-01 | D13: 602.8 | E13: 1045.6 | F13: 1648.5
A14: 2005 | B14: 1 | C14: 2005-03-01 | D14: 532.8 | E14: 898.7 | F14: 1431.4
A15: 2005 | B15: 2 | C15: 2005-06-01 | D15: 750.1 | E15: 1032.8 | F15: 1782.9
A16: 2005 | B16: 3 | C16: 2005-09-01 | D16: 735.1 | E16: 1099.9 | F16: 1835
A17: 2005 | B17: 4 | C17: 2005-12-01 | D17: 581.8 | E17: 1036.7 | F17: 1618.6
A18: 2006 | B18: 1 | C18: 2006-03-01 | D18: 522.8 | E18: 944.4 | F18: 1467.1
A19: 2006 | B19: 2 | C19: 2006-06-01 | D19: 778 | E19: 1138.1 | F19: 1916.1
A20: 2006 | B20: 3 | C20: 2006-09-01 | D20: 812.4 | E20: 1438.6 | F20: 2251
A21: 2006 | B21: 4 | C21: 2006-12-01 | D21: 900.4 | E21: 1199.3 | F21: 2099.7
A22: 2007 | B22: 1 | C22: 2007-03-01 | D22: 713.2 | E22: 1071 | F22: 1784.2
A23: 2007 | B23: 2 | C23: 2007-06-01 | D23: 814.1 | E23: 1505.6 | F23: 2319.7
A24: 2007 | B24: 3 | C24: 2007-09-01 | D24: 1055.8 | E24: 1500.8 | F24: 2556.7
A25: 2007 | B25: 4 | C25: 2007-12-01 | D25: 970.1 | E25: 1476 | F25: 2446.1
A26: 2008 | B26: 1 | C26: 2008-03-01 | D26: 737.1 | E26: 1275.4 | F26: 2012.5
A27: 2008 | B27: 2 | C27: 2008-06-01 | D27: 1157 | E27: 1583.2 | F27: 2740.3
A28: 2008 | B28: 3 | C28: 2008-09-01 | D28: 1068.9 | E28: 1636 | F28: 2704.8
A29: 2008 | B29: 4 | C29: 2008-12-01 | D29: 792.1 | E29: 1444.4 | F29: 2236.5
A30: 2009 | B30: 1 | C30: 2009-03-01 | D30: 338.2 | E30: 888.3 | F30: 1226.5
A31: 2009 | B31: 2 | C31: 2009-06-01 | D31: 521.2 | E31: 1198.7 | F31: 1719.9
A32: 2009 | B32: 3 | C32: 2009-09-01 | D32: 719 | E32: 1422 | F32: 2141
A33: 2009 | B33: 4 | C33: 2009-12-01 | D33: 857.6 | E33: 1436.6 | F33: 2294.1
A34: 2010 | B34: 1 | C34: 2010-03-01 | D34: 547.5 | E34: 995.8 | F34: 1543.3
A35: 2010 | B35: 2 | C35: 2010-06-01 | D35: 930.4 | E35: 1390.1 | F35: 2320.5
A36: 2010 | B36: 3 | C36: 2010-09-01 | D36: 907.4 | E36: 1555.8 | F36: 2463.2
A37: 2010 | B37: 4 | C37: 2010-12-01 | D37: 932.7 | E37: 1449.3 | F37: 2382
A38: 2011 | B38: 1 | C38: 2011-03-01 | D38: 617.2 | E38: 1361.7 | F38: 1978.9
A39: 2011 | B39: 2 | C39: 2011-06-01 | D39: 979 | E39: 1896.3 | F39: 2875.2
A40: 2011 | B40: 3 | C40: 2011-09-01 | D40: 1037.7 | E40: 2120.3 | F40: 3157.9
A41: 2011 | B41: 4 | C41: 2011-12-01 | D41: 1008.4 | E41: 1947.2 | F41: 2955.6
A42: 2012 | B42: 1 | C42: 2012-03-01 | D42: 582.8 | E42: 1688.8 | F42: 2271.6
A43: 2012 | B43: 2 | C43: 2012-06-01 | D43: 1071.2 | E43: 1952.4 | F43: 3023.5
A44: 2012 | B44: 3 | C44: 2012-09-01 | D44: 943.1 | E44: 1771.1 | F44: 2714.2
A45: 2012 | B45: 4 | C45: 2012-12-01 | D45: 677.4 | E45: 1501.6 | F45: 2179
A46: 2013 | B46: 1 | C46: 2013-03-01 | D46: 416.7 | E46: 1117.6 | F46: 1534.3
A47: 2013 | B47: 2 | C47: 2013-06-01 | D47: 692.5 | E47: 1300 | F47: 1992.5 | M47: New Deposits (Quarterly average over
A48: 2013 | B48: 3 | C48: 2013-09-01 | D48: 592.7 | E48: 1253.6 | F48: 1846.3 | M48: Existing Deposits (Quarterly average over
A49: 2013 | B49: 4 | C49: 2013-12-01 | D49: 396.1 | E49: 1368.1 | F49: 1764.1 | M49: Total (Quarterly average over
A50: 2014 | B50: 1 | C50: 2014-03-01 | D50: 300 | E50: 848.1 | F50: 1148.1
A51: 2014 | B51: 2 | C51: 2014-06-01 | D51: 308.8 | E51: 1386 | F51: 1694.8
A52: 2014 | B52: 3 | C52: 2014-09-01 | D52: 397.2 | E52: 1271.8 | F52: 1669
A53: 2014 | B53: 4 | C53: 2014-12-01 | D53: 491.9 | E53: 1121.2 | F53: 1613.1
A54: 2015 | B54: 1 | C54: 2015-03-01 | D54: 242.1 | E54: 898.6 | F54: 1140.7
A55: 2015 | B55: 2 | C55: 2015-06-01 | D55: 438.1 | E55: 1103.3 | F55: 1540.2
A56: 2015 | B56: 3 | C56: 2015-09-01 | D56: 341.1 | E56: 1232.7 | F56: 1573.5
A57: 2015 | B57: 4 | C57: 2015-12-01 | D57: 442.4 | E57: 1240.2 | F57: 1682.3
A58: 2016 | B58: 1 | C58: 2016-03-01 | D58: 306.6 | E58: 994.8 | F58: 1301.3
A59: =YEAR(C59) -> 2016 | B59: =IF(MONTH(C59)<4,"1",IF(MONTH(C59)<7,"2",IF(MONTH(C59)<10,"3","4"))) -> 2 | C59: 2016-06-01 | D59: 418.2 | E59: 1376.4 | F59: 1794.6
A60: 2016 | B60: 3 | C60: 2016-09-01 | D60: 539.1 | E60: 1257.9 | F60: 1796.9
A61: 2016 | B61: 4 | C61: 2016-12-01 | D61: 658.7 | E61: 1183.9 | F61: 1842.6
A62: 2017 | B62: 1 | C62: 2017-03-01 | D62: 484 | E62: 1117.5 | F62: 1591.2
A63: 2017 | B63: 2 | C63: 2017-06-01 | D63: 682.6 | E63: 1616.2 | F63: 2298.7
A64: 2017 | B64: 3 | C64: 2017-09-01 | D64: 841.6 | E64: 1452.4 | F64: 2294
A65: 2017 | B65: 4 | C65: 2017-12-01 | D65: 766.1 | E65: 1409.8 | F65: 2175.9
A66: 2018 | B66: 1 | C66: 2018-03-01 | D66: 631.7 | E66: 1221.9 | F66: 1853.6
A67: 2018 | B67: 2 | C67: 2018-06-01 | D67: 971.8 | E67: 1701 | F67: 2672.8
A68: 2018 | B68: 3 | C68: 2018-09-01 | D68: 1041.7 | E68: 1778.6 | F68: 2811.6
A69: 2018 | B69: 4 | C69: 2018-12-01 | D69: 949.3 | E69: 1545.2 | F69: 2494.5
A70: 2019 | B70: 1 | C70: 2019-03-01 | D70: 755.4 | E70: 1460.4 | F70: 2215.8
A71: 2019 | B71: 2 | C71: 2019-06-01 | D71: 923.8 | E71: 1755.9 | F71: 2679.7
A72: 2019 | B72: 3 | C72: 2019-09-01 | D72: 1115.8 | E72: 1664.5 | F72: 2780.3
A73: 2019 | B73: 4 | C73: 2019-12-01 | D73: 917.2 | E73: 1798 | F73: 2715.2
A74: 2020 | B74: 1 | C74: 2020-03-01 | D74: 805.7 | E74: 1447 | F74: 2252.7
A75: 2020 | B75: 2 | C75: 2020-06-01 | D75: 850.6 | E75: 1644.8 | F75: 2495.4
A76: 2020 | B76: 3 | C76: 2020-09-01 | D76: 1048.5 | E76: 1916.3 | F76: 2964.8
A77: 2020 | B77: 4 | C77: 2020-12-01 | D77: 1031.7 | E77: 1958.4 | F77: 2990.2
A78: 2021 | B78: 1 | C78: 2021-03-01 | D78: 878.4 | E78: 1915.4 | F78: 2793.8
A79: 2021 | B79: 2 | C79: 2021-06-01 | D79: 1107.4 | E79: 2536.5 | F79: 3644
A80: 2021 | B80: 3 | C80: 2021-09-01 | D80: 1160.3 | E80: 2462.3 | F80: 3622.6
A81: 2021 | B81: 4 | C81: 2021-12-01 | D81: 974.4 | E81: 2175.9 | F81: 3150.3
A82: 2022 | B82: 1 | C82: 2022-03-01 | D82: 830.2 | E82: 1824.6 | F82: 2654.8
A83: 2022 | B83: 2 | C83: 2022-06-01 | D83: 869.1 | E83: 2232.7 | F83: 3101.8
A84: 2022 | B84: 3 | C84: 2022-09-01 | D84: 943.3 | E84: 2133.6 | F84: 3076.9
A85: 2022 | B85: 4 | C85: 2022-12-01 | D85: 793.5 | E85: 2057.5 | F85: 2851
A86: =YEAR(C88) -> 1900 | B86: =IF(MONTH(C88)<4,"1",IF(MONTH(C88)<7,"2",IF(MONTH(C88)<10,"3","4"))) -> 1 | C86: 2023-03-01 | D86: 609.8 | E86: 1822.9 | F86: 2432.7
A87: 1900 | B87: 1 | C87: 2023-06-01 | D87: 793.3 | E87: 2047.3 | F87: 2840.5
A88: 1900 | B88: 1
A89: 1900 | B89: 1
A90: 1900 | B90: 1
A91: 1900 | B91: 1
A92: 1900 | B92: 1
A93: 1900 | B93: 1
A94: 1900 | B94: 1
A95: 1900 | B95: 1
A96: 1900 | B96: 1
A97: 1900 | B97: 1
A98: 1900 | B98: 1
A99: 1900 | B99: 1
A100: 1900 | B100: 1
A101: 1900 | B101: 1
A102: 1900 | B102: 1
A103: 1900 | B103: 1
A104: 1900 | B104: 1
A105: 1900 | B105: 1
A106: 1900 | B106: 1
A107: 1900 | B107: 1
A108: 1900 | B108: 1
A109: 1900 | B109: 1
A110: 1900 | B110: 1
A111: 1900 | B111: 1
A112: 1900 | B112: 1
A113: 1900 | B113: 1
A114: 1900 | B114: 1
A115: 1900 | B115: 1
A116: 1900 | B116: 1
A117: 1900 | B117: 1
A118: 1900 | B118: 1
A119: 1900 | B119: 1
A120: 1900 | B120: 1
A121: 1900 | B121: 1
A122: 1900 | B122: 1
A123: 1900 | B123: 1
A124: 1900 | B124: 1
A125: 1900 | B125: 1
A126: 1900 | B126: 1
A127: 1900 | B127: 1
A128: 1900 | B128: 1
A129: 1900 | B129: 1
A130: 1900 | B130: 1
A131: 1900 | B131: 1
A132: 1900 | B132: 1
A133: 1900 | B133: 1
A134: 1900 | B134: 1
A135: 1900 | B135: 1
A136: 1900 | B136: 1
A137: 1900 | B137: 1
A138: 1900 | B138: 1
A139: 1900 | B139: 1
A140: 1900 | B140: 1
A141: 1900 | B141: 1
A142: 1900 | B142: 1
A143: =YEAR(C145) -> 1900 | B143: =IF(MONTH(C145)<4,"1",IF(MONTH(C145)<7,"2",IF(MONTH(C145)<10,"3","4"))) -> 1
A144: 1900 | B144: 1
A145: 1900 | B145: 1
A146: 1900 | B146: 1
A147: 1900 | B147: 1
A148: 1900 | B148: 1
A149: 1900 | B149: 1
B235: 63.54
B236: 63.86
B237: 63.7
B238: 64.67
B239: 65.03
B240: 64.67
B241: 65.26
B242: 66.6
B243: 66.28
B244: 65.11
B245: 64.04
B246: 64.57

Sheet Pet. Exploration Expenditure
H1: =(LARGE(B8:B489,1)) -> 45078
H2: =MATCH(H1,B8:B489,0)+8 -> 124
H3: =IF(MONTH(INDIRECT(CONCATENATE("B",H2)))=12, "Calendar Year", "Financial year") -> Financial year
B6: Petroleum Exploration Expenditure | H6: Last 10 Calendar Years | N6: Last 10 Financial Years
B7: Quarter | C7: Western Australia ($ Million) | D7: Rest Of Australia ($ Million) | E7: Australia ($ Million) | F7: Western Australia Share Of Australia | H7: Year | I7: Western Australia ($ Million) | J7: Rest Of Australia ($ Million) | K7: Australia ($ Million) | L7: Western Australia Share Of Australia | N7: Year | O7: Western Australia ($ Million) | P7: Rest Of Australia ($ Million) | Q7: Australia ($ Million) | R7: Western Australia Share Of Australia
A8: =YEAR(B8) -> 1994 | B8: 1994-09-01 | C8: 99.1 | D8: =E8-C8 -> 81.4 | E8: 180.5 | F8: =C8/E8 -> 0.5490304709 | H8: =H9-1 -> 2013 | I8: =SUMIF($A$8:$A$508,$H8,C$8:C$510) -> 2984.2 | J8: =K8-I8 -> 1545.2 | K8: =SUMIF($A$8:$A$508,$H8,E$8:E$510) -> 4529.4 | L8: =I8/K8 -> 0.658851062 | N8: =LEFT(N9,4)-1 & "-" & LEFT(N9,4) -> 2013-2014 | O8: =SUMIFS(C:C, $B:$B, ">=" & DATE(LEFT($N8, 4), 7, 1), $B:$B, "<" & DATE(LEFT($N8, 4)+1, 7, 1)) -> 2990.6 | P8: =Q8-O8 -> 1833.9 | Q8: 4824.5 | R8: =O8/Q8 -> 0.6198777075
A9: 1994 | B9: 1994-12-01 | C9: 91 | D9: 86.4 | E9: 177.4 | F9: 0.5129650507 | H9: 2014 | I9: 2757.9 | J9: 1981 | K9: 4738.9 | L9: 0.5819704995 | N9: 2014-2015 | O9: =SUMIFS(C:C, $B:$B, ">=" & DATE(LEFT($N9, 4), 7, 1), $B:$B, "<" & DATE(LEFT($N9, 4)+1, 7, 1)) -> 2068.9 | P9: 1722.5 | Q9: 3791.4 | R9: 0.5456823337
A10: 1995 | B10: 1995-03-01 | C10: 65.6 | D10: 53.8 | E10: 119.4 | F10: 0.5494137353 | H10: 2015 | I10: 1617.1 | J10: 1106.2 | K10: 2723.3 | L10: 0.5938016377 | N10: 2015-2016 | O10: =SUMIFS(C:C, $B:$B, ">=" & DATE(LEFT($N10, 4), 7, 1), $B:$B, "<" & DATE(LEFT($N10, 4)+1, 7, 1)) -> 1297.4 | P10: 478.8 | Q10: 1776.2 | R10: 0.7304357617
A11: 1995 | B11: 1995-06-01 | C11: 89.2 | D11: 106.2 | E11: 195.4 | F11: 0.4564994882 | H11: 2016 | I11: 996 | J11: 405.7 | K11: 1401.7 | L11: 0.7105657416 | N11: 2016-2017 | O11: 651.5 | P11: 724.5 | Q11: 1376 | R11: 0.4734738372
A12: 1995 | B12: 1995-09-01 | C12: 88.5 | D12: 104.6 | E12: 193.1 | F12: 0.4583117556 | H12: 2017 | I12: 492.5 | J12: 721.7 | K12: 1214.2 | L12: 0.4056168671 | N12: 2017-2018 | O12: 562.3 | P12: 465.7 | Q12: 1028 | R12: 0.5469844358
A13: 1995 | B13: 1995-12-01 | C13: 75.7 | D13: 115.9 | E13: 191.6 | F13: 0.3950939457 | H13: 2018 | I13: 672.3 | J13: 487.4 | K13: 1159.7 | L13: 0.5797188928 | N13: 2018-2019 | O13: 734.3 | P13: 526.2 | Q13: 1260.5 | R13: 0.5825466085
A14: 1996 | B14: 1996-03-01 | C14: 74.6 | D14: 64.4 | E14: 139 | F14: 0.5366906475 | H14: 2019 | I14: 749.3 | J14: 635.4 | K14: 1384.7 | L14: 0.5411280422 | N14: 2019-2020 | O14: 595.5 | P14: 667.3 | Q14: 1262.8 | R14: 0.4715711118
A15: 1996 | B15: 1996-06-01 | C15: 80.3 | D15: 84.6 | E15: 164.9 | F15: 0.486961795 | H15: 2020 | I15: 416.7 | J15: 578 | K15: 994.7 | L15: 0.4189202775 | N15: 2020-2021 | O15: 441.9 | P15: 557.7 | Q15: 999.6 | R15: 0.4420768307
A16: 1996 | B16: 1996-09-01 | C16: 130.7 | D16: 72.1 | E16: 202.8 | F16: 0.6444773176 | H16: =H17-1 -> 2021 | I16: 488.8 | J16: 642.3 | K16: 1131.1 | L16: 0.4321456989 | N16: =LEFT(N17,4)-1 & "-" & LEFT(N17,4) -> 2021-2022 | O16: 567 | P16: 581 | Q16: 1148 | R16: 0.493902439
A17: 1996 | B17: 1996-12-01 | C17: 132.6 | D17: 108.6 | E17: 241.2 | F17: 0.5497512438 | H17: =YEAR(LARGE(B:B, 4)) -> 2022 | I17: =SUMIF($A$8:$A$508,$H17,C$8:C$510) -> 445.4 | J17: 525.4 | K17: 970.8 | L17: 0.4587968686 | N17: =IF(MONTH(LARGE(B:B,4))>=7, YEAR(LARGE(B:B,4)) & "-" & YEAR(LARGE(B:B,4))+1, YEAR(LARGE(B:B,4))-1 & "-" & YEAR(LARGE(B:B,4)) ) -> 2022-2023 | O17: 352.4 | P17: 554.9 | Q17: 907.3 | R17: =O17/Q17 -> 0.3884051582
A18: 1997 | B18: 1997-03-01 | C18: 78.6 | D18: 83.6 | E18: 162.2 | F18: 0.4845869297
A19: 1997 | B19: 1997-06-01 | C19: 97.2 | D19: 105.2 | E19: 202.4 | F19: 0.4802371542
A20: 1997 | B20: 1997-09-01 | C20: 46.8 | D20: 77.4 | E20: 124.2 | F20: 0.3768115942
A21: 1997 | B21: 1997-12-01 | C21: 106.9 | D21: 108.8 | E21: 215.7 | F21: 0.4955957348
A22: 1998 | B22: 1998-03-01 | C22: 165 | D22: 91 | E22: 256 | F22: 0.64453125
A23: 1998 | B23: 1998-06-01 | C23: 145.2 | D23: 177.1 | E23: 322.3 | F23: 0.4505119454
A24: 1998 | B24: 1998-09-01 | C24: 90.8 | D24: 94.9 | E24: 185.7 | F24: 0.4889606893
A25: 1998 | B25: 1998-12-01 | C25: 148.5 | D25: 100.3 | E25: 248.8 | F25: 0.5968649518
A26: 1999 | B26: 1999-03-01 | C26: 164.1 | D26: 62.3 | E26: 226.4 | F26: 0.7248233216
A27: 1999 | B27: 1999-06-01 | C27: 127.2 | D27: 63.6 | E27: 190.8 | F27: 0.6666666667
A28: 1999 | B28: 1999-09-01 | C28: 112 | D28: 85.2 | E28: 197.2 | F28: 0.5679513185
A29: 1999 | B29: 1999-12-01 | C29: 96.9 | D29: 82.3 | E29: 179.2 | F29: 0.5407366071
A30: 2000 | B30: 2000-03-01 | C30: 121.2 | D30: 38.8 | E30: 160 | F30: 0.7575
A31: 2000 | B31: 2000-06-01 | C31: 113.9 | D31: 50.4 | E31: 164.3 | F31: 0.6932440657
A32: 2000 | B32: 2000-09-01 | C32: 148.8 | D32: 69.5 | E32: 218.3 | F32: 0.6816307833
A33: 2000 | B33: 2000-12-01 | C33: 166.3 | D33: 75.4 | E33: 241.7 | F33: 0.6880430285
A34: 2001 | B34: 2001-03-01 | C34: 216.4 | D34: 82.4 | E34: 298.8 | F34: 0.7242302544
A35: 2001 | B35: 2001-06-01 | C35: 156 | D35: 110 | E35: 266 | F35: 0.5864661654
A36: 2001 | B36: 2001-09-01 | C36: 136.3 | D36: 95.4 | E36: 231.7 | F36: 0.5882606819
A37: 2001 | B37: 2001-12-01 | C37: 141.7 | D37: 125.7 | E37: 267.4 | F37: 0.5299177263
A38: 2002 | B38: 2002-03-01 | C38: 119.7 | D38: 83.3 | E38: 203 | F38: 0.5896551724
A39: 2002 | B39: 2002-06-01 | C39: 82 | D39: 98.5 | E39: 180.5 | F39: 0.4542936288
A40: 2002 | B40: 2002-09-01 | C40: 85.3 | D40: 132.7 | E40: 218 | F40: 0.3912844037
A41: 2002 | B41: 2002-12-01 | C41: 170.2 | D41: 100.2 | E41: 270.4 | F41: 0.6294378698
A42: 2003 | B42: 2003-03-01 | C42: 191.5 | D42: 75 | E42: 266.5 | F42: 0.7185741088
A43: 2003 | B43: 2003-06-01 | C43: 151.3 | D43: 88.8 | E43: 240.1 | F43: 0.6301541025
A44: 2003 | B44: 2003-09-01 | C44: 177.9 | D44: 52.8 | E44: 230.7 | F44: 0.7711313394
A45: 2003 | B45: 2003-12-01 | C45: 188.2 | D45: 99.9 | E45: 288.1 | F45: 0.6532454009
A46: 2004 | B46: 2004-03-01 | C46: 106.9 | D46: 61.9 | E46: 168.8 | F46: 0.6332938389
A47: 2004 | B47: 2004-06-01 | C47: 197.5 | D47: 58.9 | E47: 256.4 | F47: 0.7702808112
A48: 2004 | B48: 2004-09-01 | C48: 129.7 | D48: 80.8 | E48: 210.5 | F48: 0.616152019
A49: 2004 | B49: 2004-12-01 | C49: 113.1 | D49: 173.5 | E49: 286.6 | F49: 0.3946266574
A50: 2005 | B50: 2005-03-01 | C50: 154.3 | D50: 114.9 | E50: 269.2 | F50: 0.573179792
A51: 2005 | B51: 2005-06-01 | C51: 129.4 | D51: 149.1 | E51: 278.5 | F51: 0.4646319569
A52: 2005 | B52: 2005-09-01 | C52: 135.1 | D52: 146.9 | E52: 282 | F52: 0.4790780142
A53: 2005 | B53: 2005-12-01 | C53: 152.8 | D53: 173.7 | E53: 326.5 | F53: 0.4679938744
A54: 2006 | B54: 2006-03-01 | C54: 137 | D54: 136.6 | E54: 273.6 | F54: 0.5007309942
A55: 2006 | B55: 2006-06-01 | C55: 168.7 | D55: 211.2 | E55: 379.9 | F55: 0.4440642274
A56: 2006 | B56: 2006-09-01 | C56: 289.9 | D56: 198.7 | E56: 488.6 | F56: 0.5933278756
A57: 2006 | B57: 2006-12-01 | C57: 346.1 | D57: 198.4 | E57: 544.5 | F57: 0.6356290174
A58: 2007 | B58: 2007-03-01 | C58: 319.5 | D58: 140.8 | E58: 460.3 | F58: 0.6941125353
A59: 2007 | B59: 2007-06-01 | C59: 525.4 | D59: 206.7 | E59: 732.1 | F59: 0.7176615217
A60: 2007 | B60: 2007-09-01 | C60: 546.5 | D60: 151.8 | E60: 698.3 | F60: 0.782614922
A61: 2007 | B61: 2007-12-01 | C61: 512.7 | D61: 257.3 | E61: 770 | F61: 0.6658441558
A62: 2008 | B62: 2008-03-01 | C62: 498.7 | D62: 210.7 | E62: 709.4 | F62: 0.7029884409
A63: 2008 | B63: 2008-06-01 | C63: 616.9 | D63: 240.3 | E63: 857.2 | F63: 0.7196686888
A64: 2008 | B64: 2008-09-01 | C64: 539.5 | D64: 241.8 | E64: 781.3 | F64: 0.690515807
A65: 2008 | B65: 2008-12-01 | C65: 798.9 | D65: 214.5 | E65: 1013.4 | F65: 0.7883362937
A66: 2009 | B66: 2009-03-01 | C66: 789.4 | D66: 209.2 | E66: 998.6 | F66: 0.7905067094
A67: 2009 | B67: 2009-06-01 | C67: 817.4 | D67: 200 | E67: 1017.4 | F67: 0.8034204836
A68: 2009 | B68: 2009-09-01 | C68: 603.9 | D68: 193.8 | E68: 797.7 | F68: 0.7570515231
A69: 2009 | B69: 2009-12-01 | C69: 541.7 | D69: 285.3 | E69: 827 | F69: 0.6550181378
A70: 2010 | B70: 2010-03-01 | C70: 646.7 | D70: 216.8 | E70: 863.5 | F70: 0.7489287782
A71: 2010 | B71: 2010-06-01 | C71: 692.3 | D71: 313.6 | E71: 1005.9 | F71: 0.6882393876
A72: =YEAR(B72) -> 2010 | B72: 2010-09-01 | C72: 597.1 | D72: =E72-C72 -> 253.3 | E72: 850.4 | F72: =C72/E72 -> 0.7021401693
A73: 2010 | B73: 2010-12-01 | C73: 559.2 | D73: 290.4 | E73: 849.6 | F73: 0.6581920904
A74: 2011 | B74: 2011-03-01 | C74: 607 | D74: 159.1 | E74: 766.1 | F74: 0.7923247618
A75: 2011 | B75: 2011-06-01 | C75: 639 | D75: 210.3 | E75: 849.3 | F75: 0.7523843165
A76: 2011 | B76: 2011-09-01 | C76: 487.9 | D76: 292.3 | E76: 780.2 | F76: 0.6253524737
A77: 2011 | B77: 2011-12-01 | C77: 611.9 | D77: 285.1 | E77: 897 | F77: 0.6821627648
A78: 2012 | B78: 2012-03-01 | C78: 393.2 | D78: 202.8 | E78: 596 | F78: 0.6597315436
A79: 2012 | B79: 2012-06-01 | C79: 624.2 | D79: 299.6 | E79: 923.8 | F79: 0.6756873782
A80: 2012 | B80: 2012-09-01 | C80: 753.9 | D80: 330.1 | E80: 1084 | F80: 0.6954797048
A81: 2012 | B81: 2012-12-01 | C81: 985.3 | D81: 413.3 | E81: 1398.6 | F81: 0.7044902045
A82: 2013 | B82: 2013-03-01 | C82: 713.4 | D82: 296.3 | E82: 1009.7 | F82: 0.706546499
A83: 2013 | B83: 2013-06-01 | C83: 841.2 | D83: 459.9 | E83: 1301.1 | F83: 0.6465298593
A84: 2013 | B84: 2013-09-01 | C84: 752.2 | D84: 363.1 | E84: 1115.3 | F84: 0.6744373711
A85: 2013 | B85: 2013-12-01 | C85: 677.4 | D85: 425.9 | E85: 1103.3 | F85: 0.6139762531
A86: 2014 | B86: 2014-03-01 | C86: 737.1 | D86: 335 | E86: 1072.1 | F86: 0.6875291484
A87: 2014 | B87: 2014-06-01 | C87: 823.9 | D87: 709.9 | E87: 1533.8 | F87: 0.5371626027
A88: 2014 | B88: 2014-09-01 | C88: 591.5 | D88: 388.4 | E88: 979.9 | F88: 0.6036330238
A89: 2014 | B89: 2014-12-01 | C89: 605.4 | D89: 547.7 | E89: 1153.1 | F89: 0.5250195126
A90: 2015 | B90: 2015-03-01 | C90: 439.3 | D90: 521.3 | E90: 960.6 | F90: 0.4573183427
A91: 2015 | B91: 2015-06-01 | C91: 432.7 | D91: 265.1 | E91: 697.8 | F91: 0.6200917168
A92: 2015 | B92: 2015-09-01 | C92: 407.5 | D92: 175.4 | E92: 582.9 | F92: 0.6990907531
A93: 2015 | B93: 2015-12-01 | C93: 337.6 | D93: 144.4 | E93: 482 | F93: 0.7004149378
A94: 2016 | B94: 2016-03-01 | C94: 340.1 | D94: 87.8 | E94: 427.9 | F94: 0.7948118719
A95: 2016 | B95: 2016-06-01 | C95: 212.2 | D95: 71.2 | E95: 283.4 | F95: 0.7487649965
A96: 2016 | B96: 2016-09-01 | C96: 229.8 | D96: 125.4 | E96: 355.2 | F96: 0.6469594595
A97: 2016 | B97: 2016-12-01 | C97: 213.9 | D97: 121.3 | E97: 335.2 | F97: 0.6381264916
A98: 2017 | B98: 2017-03-01 | C98: 100 | D98: 250 | E98: 350 | F98: 0.2857142857
A99: 2017 | B99: 2017-06-01 | C99: 107.8 | D99: 227.8 | E99: 335.6 | F99: 0.321215733
A100: 2017 | B100: 2017-09-01 | C100: 157.2 | D100: 126.3 | E100: 283.5 | F100: 0.5544973545
A101: 2017 | B101: 2017-12-01 | C101: 127.5 | D101: 117.6 | E101: 245.1 | F101: 0.5201958384
A102: 2018 | B102: 2018-03-01 | C102: 75.2 | D102: 108.1 | E102: 183.3 | F102: 0.4102564103
A103: 2018 | B103: 2018-06-01 | C103: 202.4 | D103: 113.7 | E103: 316.1 | F103: 0.6403037014
A104: 2018 | B104: 2018-09-01 | C104: 193.1 | D104: 114.8 | E104: 307.9 | F104: 0.6271516726
A105: 2018 | B105: 2018-12-01 | C105: 201.6 | D105: 150.8 | E105: 352.4 | F105: 0.572077185
A106: 2019 | B106: 2019-03-01 | C106: 82 | D106: 140.5 | E106: 222.5 | F106: 0.3685393258
A107: 2019 | B107: 2019-06-01 | C107: 257.6 | D107: 120.1 | E107: 377.7 | F107: 0.6820227694
A108: 2019 | B108: 2019-09-01 | C108: 219.6 | D108: 150.7 | E108: 370.3 | F108: 0.5930326762
A109: 2019 | B109: 2019-12-01 | C109: 190.1 | D109: 224.1 | E109: 414.2 | F109: 0.4589570256
A110: 2020 | B110: 2020-03-01 | C110: 104.5 | D110: 136.9 | E110: 241.4 | F110: 0.4328914664
A111: 2020 | B111: 2020-06-01 | C111: 81.3 | D111: 155.6 | E111: 236.9 | F111: 0.3431827775
A112: 2020 | B112: 2020-09-01 | C112: 78.5 | D112: 145.5 | E112: 224 | F112: 0.3504464286
A113: 2020 | B113: 2020-12-01 | C113: 152.4 | D113: 139.9 | E113: 292.4 | F113: 0.4509419152
A114: 2021 | B114: 2021-03-01 | C114: 85.7 | D114: 116.9 | E114: 202.6 | F114: 0.4230009872
A115: 2021 | B115: 2021-06-01 | C115: 125.3 | D115: 155.3 | E115: 280.6 | F115: 0.4465431219
A116: 2021 | B116: 2021-09-01 | C116: 123.8 | D116: 172.5 | E116: 296.3 | F116: 0.4178197773
A117: 2021 | B117: 2021-12-01 | C117: 154 | D117: 197.6 | E117: 351.6 | F117: 0.4379977247
A118: 2022 | B118: 2022-03-01 | C118: 164.4 | D118: 90.6 | E118: 255 | F118: 0.6447058824
A119: 2022 | B119: 2022-06-01 | C119: 124.8 | D119: 120.3 | E119: 245.1 | F119: 0.5091799266
A120: =YEAR(B120) -> 2022 | B120: 2022-09-01 | C120: 75.7 | D120: 150.4 | E120: 226.1 | F120: 0.3348076073
A121: 2022 | B121: 2022-12-01 | C121: 80.5 | D121: 164.1 | E121: 244.6 | F121: 0.329108749
A122: 2023 | B122: 2023-03-01 | C122: 96.7 | D122: 110.1 | E122: 206.8 | F122: 0.4676015474
A123: 2023 | B123: 2023-06-01 | C123: 99.5 | D123: 130.3 | E123: 229.8 | F123: 0.4329852045
A124: 1900
A125: 1900
A126: 1900
A127: 1900
A128: 1900
A129: 1900
A130: 1900
A131: 1900
A132: 1900
A133: 1900
A134: 1900
A135: 1900
A136: =YEAR(B136) -> 1900
A137: 1900
A138: 1900
A139: 1900
A140: 1900
A141: 1900
A142: 1900
A143: 1900
A144: 1900
A145: 1900
A146: 1900
A147: 1900
A148: 1900
A149: 1900
A150: 1900
A151: 1900
A152: 1900
A153: 1900
A154: 1900
A155: 1900
A156: 1900
A157: 1900
A158: 1900
A159: 1900
A160: 1900
A161: 1900
A162: 1900
A163: 1900
A164: 1900
A165: 1900
A166: 1900
A167: 1900
A168: 1900
A169: 1900
A170: 1900
A171: 1900
A172: 1900
A173: 1900
A174: 1900
A175: 1900
A176: 1900
A177: 1900
A178: 1900
A179: 1900
A180: 1900
A181: 1900
A182: 1900
A183: 1900
A184: 1900
A185: 1900
A186: 1900
A187: 1900
A188: 1900
A189: 1900
A190: 1900
A191: 1900
A192: 1900
A193: 1900
A194: 1900
A195: 1900
A196: 1900
A197: 1900
A198: 1900
A199: 1900
A200: =YEAR(B200) -> 1900
A201: 1900
A202: 1900
... 306 more rows

Sheet Pet. Expl. By Location
N1: =(LARGE(A190:A279,1)) -> 1900
N2: =COUNTIF($A$190:$A$268,N1) -> 79
N3: =IF(N2=2,"Financial Year","Calendar Year") -> Calendar Year
D6: Petroleum Exploration Expenditure By Location | N6: Last 10 Calendar Years | W6: Last 10 Financial Years
D7: Quarter | E7: Australia Onshore Drilling ($ Million) | F7: Australia Onshore Other ($ Million) | G7: Australian Onshore Total ($ Million) | H7: Australia Offshore Drilling ($ Million) | I7: Australia Offshore Other ($ Million) | J7: Australia Offshore Total ($ Million) | K7: Australia Total ($ Million) | L7: Onshore Share of Australia | N7: Year | O7: Australia Onshore Drilling ($ Million) | P7: Australia Onshore Other ($ Million) | Q7: Australian Onshore Total ($ Million) | R7: Australia Offshore Drilling ($ Million) | S7: Australia Offshore Other ($ Million) | T7: Australia Offshore Total ($ Million) | U7: Onshore Share Of Australia | V7: Australia total (A$ Million) | W7: Year | X7: Australia Onshore Drilling ($ Million) | Y7: Australia Onshore Other ($ Million) | Z7: Australian Onshore Total ($ Million) | AA7: Australia Offshore Drilling ($ Million) | AB7: Australia Offshore Other ($ Million) | AC7: Australia Offshore Total ($ Million) | AD7: Onshore Share Of Australia
A8: =YEAR(D8) -> 1978 | B8: =IF(MONTH(D8)<4,"1",IF(MONTH(D8)<7,"2",IF(MONTH(D8)<10,"3","4"))) -> 2 | C8: =_xlfn.NUMBERVALUE(CONCATENATE(A8,B8)) -> 19782 | D8: 1978-06-01 | E8: 2.2 | F8: 3.8 | G8: 6 | H8: 15.1 | I8: 5.2 | J8: 20.9 | K8: =SUM(J8,G8) -> 26.9 | L8: =G8/K8 -> 0.2230483271 | N8: =N9-1 -> 2013 | O8: =SUM(E147:E150) -> 931.6 | P8: =SUM(F147:F150) -> 420.7 | Q8: 1352.4 | R8: 2557 | S8: 621.6 | T8: 3178.9 | U8: =Q8/(T8+Q8) -> 0.2984573963 | W8: =LEFT(W9,4)-1 & "-" & LEFT(W9,4) -> 2013-2014 | X8: =SUMIFS(E:E, $D:$D, ">=" & DATE(LEFT($W8, 4), 7, 1), $D:$D, "<" & DATE(LEFT($W8, 4)+1, 7, 1)) -> 720.3 | Y8: =SUMIFS(F:F, $D:$D, ">=" & DATE(LEFT($W8, 4), 7, 1), $D:$D, "<" & DATE(LEFT($W8, 4)+1, 7, 1)) -> 596 | Z8: =SUMIFS(G:G, $D:$D, ">=" & DATE(LEFT($W8, 4), 7, 1), $D:$D, "<" & DATE(LEFT($W8, 4)+1, 7, 1)) -> 1316.2 | AA8: =SUMIFS(H:H, $D:$D, ">=" & DATE(LEFT($W8, 4), 7, 1), $D:$D, "<" & DATE(LEFT($W8, 4)+1, 7, 1)) -> 2785.8 | AB8: =SUMIFS(I:I, $D:$D, ">=" & DATE(LEFT($W8, 4), 7, 1), $D:$D, "<" & DATE(LEFT($W8, 4)+1, 7, 1)) -> 737 | AC8: =SUMIFS(J:J, $D:$D, ">=" & DATE(LEFT($W8, 4), 7, 1), $D:$D, "<" & DATE(LEFT($W8, 4)+1, 7, 1)) -> 3523 | AD8: =Z8/(AC8+Z8) -> 0.2719871053
A9: 1978 | B9: 3 | C9: =_xlfn.NUMBERVALUE(CONCATENATE(A9,B9)) -> 19783 | D9: 1978-09-01 | E9: 2.2 | F9: 4.3 | G9: 6.7 | H9: 17.4 | I9: 5.5 | J9: 23.1 | K9: =SUM(J9,G9) -> 29.8 | L9: =G9/K9 -> 0.2248322148 | N9: 2014 | O9: =SUM(E151:E154) -> 764.5 | P9: =SUM(F151:F154) -> 662.8 | Q9: 1427.4 | R9: 2618.2 | S9: 694.7 | T9: 3313 | U9: 0.3011138301 | W9: 2014-2015 | X9: =SUMIFS(E:E, $D:$D, ">=" & DATE(LEFT($W9, 4), 7, 1), $D:$D, "<" & DATE(LEFT($W9, 4)+1, 7, 1)) -> 761.7 | Y9: 478.6 | Z9: 1240.4 | AA9: 1964 | AB9: 582.5 | AC9: 2546.6 | AD9: =Z9/(AC9+Z9) -> 0.3275415896
A10: 1978 | B10: 4 | C10: 19784 | D10: 1978-12-01 | E10: 2.9 | F10: 5.5 | G10: 8.5 | H10: 14.1 | I10: 10.6 | J10: 25.4 | K10: 33.9 | L10: 0.2507374631 | N10: 2015 | O10: =SUM(E155:E158) -> 521.4 | P10: =SUM(F155:F158) -> 382.1 | Q10: 903.4 | R10: 1264.7 | S10: 574.8 | T10: 1839.6 | U10: 0.3293474298 | W10: 2015-2016 | X10: 240.5 | Y10: 248.9 | Z10: 489.3 | AA10: 888.3 | AB10: 397.4 | AC10: 1285.7 | AD10: 0.2756619718
A11: 1979 | B11: 1 | C11: 19791 | D11: 1979-03-01 | E11: 1.6 | F11: 5 | G11: 6.5 | H11: 29.7 | I11: 10.2 | J11: 38.7 | K11: 45.2 | L11: 0.1438053097 | N11: 2016 | O11: =SUM(E159:E162) -> 156.8 | P11: =SUM(F159:F162) -> 164.5 | Q11: 321.2 | R11: 696 | S11: 386.5 | T11: 1082.5 | U11: 0.2288238228 | W11: 2016-2017 | X11: 244.7 | Y11: 190.4 | Z11: 435 | AA11: 540.4 | AB11: 405.5 | AC11: 946 | AD11: 0.3149891383
A12: 1979 | B12: 2 | C12: 19792 | D12: 1979-06-01 | E12: 2.4 | F12: 6.1 | G12: 8.3 | H12: 34.9 | I12: 9.5 | J12: 45.5 | K12: 53.8 | L12: 0.1542750929 | N12: 2017 | O12: =SUM(E163:E166) -> 244.7 | P12: =SUM(F163:F166) -> 187.5 | Q12: 432.1 | R12: 421.5 | S12: 366.6 | T12: 788.2 | U12: 0.3540932558 | W12: 2017-2018 | X12: 206.4 | Y12: 144.5 | Z12: 350.9 | AA12: 314.2 | AB12: 358.5 | AC12: 672.8 | AD12: 0.342776204
A13: 1979 | B13: 3 | C13: 19793 | D13: 1979-09-01 | E13: 4.7 | F13: 7.3 | G13: 12.5 | H13: 38.9 | I13: 8.7 | J13: 47.9 | K13: 60.4 | L13: 0.2069536424 | N13: 2018 | O13: =SUM(E167:E170) -> 277.9 | P13: =SUM(F167:F170) -> 115.6 | Q13: 393.5 | R13: 374.5 | S13: 371.6 | T13: 746.3 | U13: 0.3452360063 | W13: 2018-2019 | X13: 298.4 | Y13: 141.4 | Z13: 439.8 | AA13: 395.1 | AB13: 416.6 | AC13: 811.7 | AD13: 0.351418298
A14: 1979 | B14: 4 | C14: 19794 | D14: 1979-12-01 | E14: 7.3 | F14: 10.5 | G14: 18 | H14: 36.3 | I14: 11.3 | J14: 47.3 | K14: 65.3 | L14: 0.2756508423 | N14: 2019 | O14: =SUM(E171:E174) -> 389.8 | P14: =SUM(F171:F174) -> 189 | Q14: 578.8 | R14: 386.3 | S14: 398.5 | T14: 784.8 | U14: 0.4244646524 | W14: 2019-2020 | X14: 473.7 | Y14: 195.4 | Z14: 669.2 | AA14: 236.7 | AB14: 350.1 | AC14: 587 | AD14: 0.5327177201
A15: 1980 | B15: 1 | C15: 19801 | D15: 1980-03-01 | E15: 10.8 | F15: 10.9 | G15: 21.4 | H15: 43.6 | I15: 7 | J15: 50.2 | K15: 71.6 | L15: 0.2988826816 | N15: 2020 | O15: =SUM(E175:E178) -> 386.4 | P15: =SUM(F175:F178) -> 217.4 | Q15: 603.9 | R15: 83.5 | S15: 311.7 | T15: 395.5 | U15: 0.6042625575 | W15: 2020-2021 | X15: 389.3 | Y15: 240.5 | Z15: 629.9 | AA15: 77.4 | AB15: 292.3 | AC15: 370 | AD15: 0.6299629963
A16: 1980 | B16: 2 | C16: 19802 | D16: 1980-06-01 | E16: 13.3 | F16: 21.3 | G16: 32.8 | H16: 51.4 | I16: 12.1 | J16: 65 | K16: 97.8 | L16: 0.3353783231 | N16: 2021 | O16: =SUM(E179:E182) -> 478.6 | P16: =SUM(F179:F182) -> 243.7 | Q16: 722.4 | R16: 116.7 | S16: 282.2 | T16: 399.1 | U16: 0.6441373161 | W16: =LEFT(W17,4)-1 & "-" & LEFT(W17,4) -> 2021-2022 | X16: 443.7 | Y16: 239.4 | Z16: 683.1 | AA16: 215.7 | AB16: 250.1 | AC16: 465.9 | AD16: 0.5945169713
A17: 1980 | B17: 3 | C17: 19803 | D17: 1980-09-01 | E17: 13.9 | F17: 16.5 | G17: 32 | H17: 52.6 | I17: 15.6 | J17: 67.3 | K17: 99.3 | L17: 0.3222557905 | N17: =YEAR(LARGE(D:D, 4)) -> 2022 | O17: =SUM(E183:E186) -> 370 | P17: =SUM(F183:F186) -> 228.7 | Q17: 598.7 | R17: 167.1 | S17: 219.4 | T17: 386.5 | U17: =Q17/(T17+Q17) -> 0.6076938693 | W17: =IF(MONTH(LARGE(D:D,4))>=7, YEAR(LARGE(D:D,4)) & "-" & YEAR(LARGE(D:D,4))+1, YEAR(LARGE(D:D,4))-1 & "-" & YEAR(LARGE(D:D,4)) ) -> 2022-2023 | X17: 344.6 | Y17: 253 | Z17: 597.7 | AA17: 87.2 | AB17: 228.6 | AC17: 315.8 | AD17: 0.6542966612
A18: 1980 | B18: 4 | C18: 19804 | D18: 1980-12-01 | E18: 14.1 | F18: 21.2 | G18: 35.1 | H18: 40.4 | I18: 12.5 | J18: 53.4 | K18: 88.5 | L18: 0.3966101695
A19: 1981 | B19: 1 | C19: 19811 | D19: 1981-03-01 | E19: 19.9 | F19: 26.1 | G19: 46.6 | H19: 23 | I19: 17.4 | J19: 39.1 | K19: 85.7 | L19: 0.5437572929
A20: 1981 | B20: 2 | C20: 19812 | D20: 1981-06-01 | E20: 30.6 | F20: 32.6 | G20: 58.8 | H20: 24 | I20: 14.6 | J20: 38.9 | K20: 97.7 | L20: 0.6018423746
A21: 1981 | B21: 3 | C21: 19813 | D21: 1981-09-01 | E21: 21.4 | F21: 40.6 | G21: 66.1 | H21: 34.2 | I21: 17.7 | J21: 50.9 | K21: 117 | L21: 0.564957265
A22: 1981 | B22: 4 | C22: 19814 | D22: 1981-12-01 | E22: 42.5 | F22: 46.5 | G22: 88.3 | H22: 70.8 | I22: 26.8 | J22: 99.8 | K22: 188.1 | L22: 0.4694311536
A23: 1982 | B23: 1 | C23: 19821 | D23: 1982-03-01 | E23: 61 | F23: 61.2 | G23: 124 | H23: 111.9 | I23: 22.9 | J23: 135.3 | K23: 259.3 | L23: 0.4782105669
A24: 1982 | B24: 2 | C24: 19822 | D24: 1982-06-01 | E24: 59.7 | F24: 56.3 | G24: 108.8 | H24: 113.8 | I24: 23.5 | J24: 138.2 | K24: 247 | L24: 0.44048583
A25: 1982 | B25: 3 | C25: 19823 | D25: 1982-09-01 | E25: 63.4 | F25: 63.2 | G25: 133.2 | H25: 99.8 | I25: 26.8 | J25: 122.6 | K25: 255.8 | L25: 0.520719312
A26: 1982 | B26: 4 | C26: 19824 | D26: 1982-12-01 | E26: 44.3 | F26: 43.3 | G26: 87.2 | H26: 144.4 | I26: 15.5 | J26: 164.1 | K26: 251.3 | L26: 0.3469956228
A27: 1983 | B27: 1 | C27: 19831 | D27: 1983-03-01 | E27: 33 | F27: 31.2 | G27: 64.4 | H27: 144.6 | I27: 14.5 | J27: 158.8 | K27: 223.2 | L27: 0.2885304659
A28: 1983 | B28: 2 | C28: 19832 | D28: 1983-06-01 | E28: 28.9 | F28: 24.6 | G28: 51.2 | H28: 121.9 | I28: 15.1 | J28: 136.6 | K28: 187.8 | L28: 0.2726304579
A29: 1983 | B29: 3 | C29: 19833 | D29: 1983-09-01 | E29: 26.4 | F29: 27.8 | G29: 56.5 | H29: 143.7 | I29: 16.9 | J29: 161.6 | K29: 218.1 | L29: 0.2590554791
A30: 1983 | B30: 4 | C30: 19834 | D30: 1983-12-01 | E30: 39.4 | F30: 30.4 | G30: 69.9 | H30: 117.1 | I30: 15.8 | J30: 131.9 | K30: 201.8 | L30: 0.346382557
A31: 1984 | B31: 1 | C31: 19841 | D31: 1984-03-01 | E31: 33.7 | F31: 38.3 | G31: 71.6 | H31: 96.7 | I31: 16.1 | J31: 111.3 | K31: 182.9 | L31: 0.391470749
A32: 1984 | B32: 2 | C32: 19842 | D32: 1984-06-01 | E32: 39.2 | F32: 47.6 | G32: 85.5 | H32: 114.4 | I32: 18.3 | J32: 134.4 | K32: 219.9 | L32: 0.3888130969
A33: 1984 | B33: 3 | C33: 19843 | D33: 1984-09-01 | E33: 57.1 | F33: 43.4 | G33: 103.1 | H33: 84.4 | I33: 14 | J33: 101 | K33: 204.1 | L33: 0.505144537
A34: 1984 | B34: 4 | C34: 19844 | D34: 1984-12-01 | E34: 47.8 | F34: 46.5 | G34: 93.3 | H34: 60.5 | I34: 19.3 | J34: 76.9 | K34: 170.2 | L34: 0.5481786134
A35: 1985 | B35: 1 | C35: 19851 | D35: 1985-03-01 | E35: 52.4 | F35: 49.6 | G35: 100.7 | H35: 61.8 | I35: 25.4 | J35: 89.2 | K35: 189.9 | L35: 0.5302790943
A36: 1985 | B36: 2 | C36: 19852 | D36: 1985-06-01 | E36: 66.7 | F36: 55.2 | G36: 121.7 | H36: 77.4 | I36: 28.5 | J36: 106.1 | K36: 227.8 | L36: 0.5342405619
A37: 1985 | B37: 3 | C37: 19853 | D37: 1985-09-01 | E37: 54 | F37: 61.6 | G37: 118.3 | H37: 90.2 | I37: 25.6 | J37: 119.4 | K37: 237.7 | L37: 0.497686159
A38: 1985 | B38: 4 | C38: 19854 | D38: 1985-12-01 | E38: 33.3 | F38: 60.5 | G38: 90.9 | H38: 53.1 | I38: 23.5 | J38: 73.3 | K38: 164.2 | L38: 0.553593179
A39: 1986 | B39: 1 | C39: 19861 | D39: 1986-03-01 | E39: 42.2 | F39: 53.8 | G39: 95 | H39: 96.6 | I39: 49.4 | J39: 153.7 | K39: 248.7 | L39: 0.3819863289
A40: 1986 | B40: 2 | C40: 19862 | D40: 1986-06-01 | E40: 21.4 | F40: 41.2 | G40: 64.1 | H40: 44.2 | I40: 23 | J40: 66.6 | K40: 130.7 | L40: 0.4904361132
A41: 1986 | B41: 3 | C41: 19863 | D41: 1986-09-01 | E41: 11.5 | F41: 25.1 | G41: 37.4 | H41: 26.3 | I41: 17.1 | J41: 42.9 | K41: 80.3 | L41: 0.4657534247
A42: 1986 | B42: 4 | C42: 19864 | D42: 1986-12-01 | E42: 12.3 | F42: 25.4 | G42: 36.4 | H42: 16.7 | I42: 14.5 | J42: 30.5 | K42: 66.9 | L42: 0.5440956652
A43: 1987 | B43: 1 | C43: 19871 | D43: 1987-03-01 | E43: 18.3 | F43: 21.4 | G43: 39.3 | H43: 15.3 | I43: 11.9 | J43: 28.9 | K43: 68.2 | L43: 0.5762463343
A44: 1987 | B44: 2 | C44: 19872 | D44: 1987-06-01 | E44: 29.2 | F44: 27.9 | G44: 58 | H44: 19.4 | I44: 13.1 | J44: 32.1 | K44: 90.1 | L44: 0.6437291898
A45: 1987 | B45: 3 | C45: 19873 | D45: 1987-09-01 | E45: 33.1 | F45: 30.4 | G45: 63.8 | H45: 28 | I45: 16.8 | J45: 43.8 | K45: 107.6 | L45: 0.592936803
A46: 1987 | B46: 4 | C46: 19874 | D46: 1987-12-01 | E46: 43.8 | F46: 32.7 | G46: 75.7 | H46: 34.8 | I46: 19.7 | J46: 54.1 | K46: 129.8 | L46: 0.5832049307
A47: 1988 | B47: 1 | C47: 19881 | D47: 1988-03-01 | E47: 40 | F47: 30.5 | G47: 70.2 | H47: 21.5 | I47: 23.6 | J47: 48.5 | K47: 118.7 | L47: 0.5914069082
A48: 1988 | B48: 2 | C48: 19882 | D48: 1988-06-01 | E48: 37.4 | F48: 23.8 | G48: 61.6 | H48: 50 | I48: 25.5 | J48: 75.5 | K48: 137.1 | L48: 0.4493070751
A49: 1988 | B49: 3 | C49: 19883 | D49: 1988-09-01 | E49: 43.8 | F49: 23.9 | G49: 67.3 | H49: 59.3 | I49: 28.8 | J49: 85.9 | K49: 153.2 | L49: 0.4392950392
A50: 1988 | B50: 4 | C50: 19884 | D50: 1988-12-01 | E50: 39.4 | F50: 27.1 | G50: 66.2 | H50: 80.9 | I50: 27.9 | J50: 107.5 | K50: 173.7 | L50: 0.3811168682
A51: 1989 | B51: 1 | C51: 19891 | D51: 1989-03-01 | E51: 26.4 | F51: 19.8 | G51: 46.2 | H51: 73.9 | I51: 24.7 | J51: 105.5 | K51: 151.7 | L51: 0.3045484509
A52: 1989 | B52: 2 | C52: 19892 | D52: 1989-06-01 | E52: 23.3 | F52: 20.3 | G52: 44.7 | H52: 83.7 | I52: 22.6 | J52: 107.1 | K52: 151.8 | L52: 0.2944664032
A53: 1989 | B53: 3 | C53: 19893 | D53: 1989-09-01 | E53: 19.1 | F53: 18.3 | G53: 36.8 | H53: 75.9 | I53: 23 | J53: 97.2 | K53: 134 | L53: 0.2746268657
A54: 1989 | B54: 4 | C54: 19894 | D54: 1989-12-01 | E54: 17.6 | F54: 17 | G54: 34.4 | H54: 79.2 | I54: 20.6 | J54: 95.1 | K54: 129.5 | L54: 0.2656370656
A55: 1990 | B55: 1 | C55: 19901 | D55: 1990-03-01 | E55: 19.7 | F55: 20.6 | G55: 40 | H55: 114.8 | I55: 26.4 | J55: 153.5 | K55: 193.5 | L55: 0.2067183463
A56: 1990 | B56: 2 | C56: 19902 | D56: 1990-06-01 | E56: 18.1 | F56: 14.6 | G56: 33.4 | H56: 84.2 | I56: 20 | J56: 101.3 | K56: 134.7 | L56: 0.2479584261
A57: 1990 | B57: 3 | C57: 19903 | D57: 1990-09-01 | E57: 24.5 | F57: 23.5 | G57: 46.9 | H57: 82.5 | I57: 36.9 | J57: 120.2 | K57: 167.1 | L57: 0.2806702573
A58: 1990 | B58: 4 | C58: 19904 | D58: 1990-12-01 | E58: 30.2 | F58: 17.5 | G58: 48.1 | H58: 60.4 | I58: 25.1 | J58: 81.5 | K58: 129.6 | L58: 0.3711419753
A59: 1991 | B59: 1 | C59: 19911 | D59: 1991-03-01 | E59: 45.6 | F59: 22.1 | G59: 67.9 | H59: 59.2 | I59: 16 | J59: 80.3 | K59: 148.2 | L59: 0.4581646424
A60: 1991 | B60: 2 | C60: 19912 | D60: 1991-06-01 | E60: 31.5 | F60: 25.6 | G60: 58.5 | H60: 55.4 | I60: 31.3 | J60: 84.2 | K60: 142.7 | L60: 0.409950946
A61: 1991 | B61: 3 | C61: 19913 | D61: 1991-09-01 | E61: 16.5 | F61: 18 | G61: 33.7 | H61: 30.2 | I61: 35.6 | J61: 64.8 | K61: 98.5 | L61: 0.3421319797
A62: 1991 | B62: 4 | C62: 19914 | D62: 1991-12-01 | E62: 18.4 | F62: 22.3 | G62: 40.4 | H62: 61.2 | I62: 52.8 | J62: 112.4 | K62: 152.8 | L62: 0.2643979058
A63: 1992 | B63: 1 | C63: 19921 | D63: 1992-03-01 | E63: 13.8 | F63: 19.9 | G63: 33 | H63: 17 | I63: 56.2 | J63: 79.8 | K63: 112.8 | L63: 0.2925531915
A64: 1992 | B64: 2 | C64: 19922 | D64: 1992-06-01 | E64: 10.3 | F64: 14.9 | G64: 26.7 | H64: 30.4 | I64: 50 | J64: 77.8 | K64: 104.5 | L64: 0.2555023923
A65: 1992 | B65: 3 | C65: 19923 | D65: 1992-09-01 | E65: 15.8 | F65: 17 | G65: 31.9 | H65: 51.6 | I65: 53.8 | J65: 104.3 | K65: 136.2 | L65: 0.2342143906
A66: 1992 | B66: 4 | C66: 19924 | D66: 1992-12-01 | E66: 16.6 | F66: 13.3 | G66: 29.7 | H66: 68 | I66: 66.3 | J66: 134.4 | K66: 164.1 | L66: 0.1809872029
A67: 1993 | B67: 1 | C67: 19931 | D67: 1993-03-01 | E67: 15 | F67: 10.3 | G67: 25.1 | H67: 73.2 | I67: 53.2 | J67: 129.6 | K67: 154.7 | L67: 0.1622495152
A68: 1993 | B68: 2 | C68: 19932 | D68: 1993-06-01 | E68: 14.9 | F68: 11.6 | G68: 27.3 | H68: 96.6 | I68: 37 | J68: 128.7 | K68: 156 | L68: 0.175
A69: 1993 | B69: 3 | C69: 19933 | D69: 1993-09-01 | E69: 20.3 | F69: 11.6 | G69: 32.1 | H69: 60.2 | I69: 40.4 | J69: 102.1 | K69: 134.2 | L69: 0.239195231
A70: 1993 | B70: 4 | C70: 19934 | D70: 1993-12-01 | E70: 14.8 | F70: 12.2 | G70: 27 | H70: 51.1 | I70: 36.4 | J70: 88.3 | K70: 115.3 | L70: 0.2341717259
A71: 1994 | B71: 1 | C71: 19941 | D71: 1994-03-01 | E71: 19.9 | F71: 22.8 | G71: 42.7 | H71: 51.2 | I71: 41.4 | J71: 94.1 | K71: 136.8 | L71: 0.3121345029
A72: =YEAR(D72) -> 1994 | B72: =IF(MONTH(D72)<4,"1",IF(MONTH(D72)<7,"2",IF(MONTH(D72)<10,"3","4"))) -> 2 | C72: 19942 | D72: 1994-06-01 | E72: 29.9 | F72: 15.3 | G72: 45.2 | H72: 43 | I72: 33.7 | J72: 76.7 | K72: 121.9 | L72: 0.3707957342
A73: 1994 | B73: 3 | C73: =_xlfn.NUMBERVALUE(CONCATENATE(A73,B73)) -> 19943 | D73: 1994-09-01 | E73: 22.8 | F73: 16.4 | G73: 39.1 | H73: 98.8 | I73: 38.2 | J73: 137 | K73: =SUM(J73,G73) -> 176.1 | L73: =G73/K73 -> 0.2220329358
A74: 1994 | B74: 4 | C74: 19944 | D74: 1994-12-01 | E74: 15.4 | F74: 21.9 | G74: 37.3 | H74: 89.5 | I74: 31 | J74: 120.5 | K74: 157.8 | L74: 0.2363751584
A75: 1995 | B75: 1 | C75: 19951 | D75: 1995-03-01 | E75: 17.2 | F75: 20.8 | G75: 38 | H75: 80 | I75: 26.2 | J75: 106.2 | K75: 144.2 | L75: 0.2635228849
A76: 1995 | B76: 2 | C76: 19952 | D76: 1995-06-01 | E76: 31.8 | F76: 23.2 | G76: 55 | H76: 96.2 | I76: 37.5 | J76: 133.7 | K76: 188.7 | L76: 0.2914679385
A77: 1995 | B77: 3 | C77: 19953 | D77: 1995-09-01 | E77: 28.5 | F77: 19.5 | G77: 47.9 | H77: 100.8 | I77: 41.5 | J77: 142.3 | K77: 190.2 | L77: 0.2518401682
A78: 1995 | B78: 4 | C78: 19954 | D78: 1995-12-01 | E78: 23.8 | F78: 22.2 | G78: 46 | H78: 88.5 | I78: 38.9 | J78: 127.4 | K78: 173.4 | L78: 0.2652825836
A79: 1996 | B79: 1 | C79: 19961 | D79: 1996-03-01 | E79: 19.6 | F79: 18.1 | G79: 37.7 | H79: 76.7 | I79: 49.9 | J79: 126.6 | K79: 164.3 | L79: 0.229458308
A80: 1996 | B80: 2 | C80: 19962 | D80: 1996-06-01 | E80: 21.7 | F80: 18.8 | G80: 40.5 | H80: 69.2 | I80: 47.4 | J80: 116.6 | K80: 157.1 | L80: 0.2577975812
A81: 1996 | B81: 3 | C81: 19963 | D81: 1996-09-01 | E81: 38.4 | F81: 22.7 | G81: 61.1 | H81: 111.7 | I81: 30.8 | J81: 142.4 | K81: 203.5 | L81: 0.3002457002
A82: 1996 | B82: 4 | C82: 19964 | D82: 1996-12-01 | E82: 52.2 | F82: 15 | G82: 67.2 | H82: 112.2 | I82: 42.7 | J82: 155 | K82: 222.2 | L82: 0.302430243
A83: 1997 | B83: 1 | C83: 19971 | D83: 1997-03-01 | E83: 29.8 | F83: 9.8 | G83: 39.5 | H83: 96.7 | I83: 47.1 | J83: 143.8 | K83: 183.3 | L83: 0.2154937261
A84: 1997 | B84: 2 | C84: 19972 | D84: 1997-06-01 | E84: 53.9 | F84: 23.7 | G84: 77.6 | H84: 68.4 | I84: 48.8 | J84: 117.2 | K84: 194.8 | L84: 0.3983572895
A85: 1997 | B85: 3 | C85: 19973 | D85: 1997-09-01 | E85: 39.6 | F85: 15.3 | G85: 54.9 | H85: 43.3 | I85: 27.7 | J85: 71 | K85: 125.9 | L85: 0.4360603654
A86: 1997 | B86: 4 | C86: 19974 | D86: 1997-12-01 | E86: 37.8 | F86: 14.8 | G86: 52.5 | H86: 82.2 | I86: 67.3 | J86: 149.5 | K86: 202 | L86: 0.2599009901
A87: 1998 | B87: 1 | C87: 19981 | D87: 1998-03-01 | E87: 48 | F87: 12.8 | G87: 60.9 | H87: 136.6 | I87: 78.6 | J87: 215.1 | K87: 276 | L87: 0.2206521739
A88: 1998 | B88: 2 | C88: 19982 | D88: 1998-06-01 | E88: 51.3 | F88: 14.7 | G88: 66 | H88: 196 | I88: 53.5 | J88: 249.5 | K88: 315.5 | L88: 0.2091917591
A89: 1998 | B89: 3 | C89: 19983 | D89: 1998-09-01 | E89: 35.9 | F89: 22.4 | G89: 58.3 | H89: 71.7 | I89: 59.9 | J89: 131.6 | K89: 189.9 | L89: 0.3070036862
A90: 1998 | B90: 4 | C90: 19984 | D90: 1998-12-01 | E90: 34.4 | F90: 16.2 | G90: 50.6 | H90: 124.7 | I90: 60.7 | J90: 185.4 | K90: 236 | L90: 0.2144067797
A91: 1999 | B91: 1 | C91: 19991 | D91: 1999-03-01 | E91: 25.7 | F91: 19.7 | G91: 45.4 | H91: 123.7 | I91: 64.1 | J91: 187.8 | K91: 233.2 | L91: 0.1946826758
A92: 1999 | B92: 2 | C92: 19992 | D92: 1999-06-01 | E92: 13.6 | F92: 13 | G92: 26.6 | H92: 100.2 | I92: 65.2 | J92: 165.5 | K92: 192.1 | L92: 0.1384695471
A93: 1999 | B93: 3 | C93: 19993 | D93: 1999-09-01 | E93: 11.4 | F93: 10.1 | G93: 21.4 | H93: 97.4 | I93: 83.5 | J93: 180.8 | K93: 202.2 | L93: 0.1058358061
A94: 1999 | B94: 4 | C94: 19994 | D94: 1999-12-01 | E94: 17.5 | F94: 15.8 | G94: 33.4 | H94: 92 | I94: 45.1 | J94: 137.1 | K94: 170.5 | L94: 0.1958944282
A95: 2000 | B95: 1 | C95: 20001 | D95: 2000-03-01 | E95: 13.1 | F95: 14.5 | G95: 27.6 | H95: 98.6 | I95: 33.6 | J95: 132.1 | K95: 159.7 | L95: 0.1728240451
A96: 2000 | B96: 2 | C96: 20002 | D96: 2000-06-01 | E96: 10.3 | F96: 15.8 | G96: 26.1 | H96: 84.5 | I96: 59.6 | J96: 144 | K96: 170.1 | L96: 0.1534391534
A97: 2000 | B97: 3 | C97: 20003 | D97: 2000-09-01 | E97: 17.9 | F97: 17.4 | G97: 35.3 | H97: 121.1 | I97: 67.9 | J97: 189 | K97: 224.3 | L97: 0.1573785109
A98: 2000 | B98: 4 | C98: 20004 | D98: 2000-12-01 | E98: 19.5 | F98: 19 | G98: 38.6 | H98: 102.5 | I98: 86.9 | J98: 189.3 | K98: 227.9 | L98: 0.1693725318
A99: 2001 | B99: 1 | C99: 20011 | D99: 2001-03-01 | E99: 34 | F99: 22.7 | G99: 56.7 | H99: 139 | I99: 98.9 | J99: 237.9 | K99: 294.6 | L99: 0.1924643585
A100: 2001 | B100: 2 | C100: 20012 | D100: 2001-06-01 | E100: 30.4 | F100: 18.4 | G100: 48.7 | H100: 163.9 | I100: 68.7 | J100: 232.6 | K100: 281.3 | L100: 0.1731247778
A101: 2001 | B101: 3 | C101: 20013 | D101: 2001-09-01 | E101: 29.6 | F101: 14.9 | G101: 44.5 | H101: 132.3 | I101: 61.5 | J101: 193.9 | K101: 238.4 | L101: 0.1866610738
A102: 2001 | B102: 4 | C102: 20014 | D102: 2001-12-01 | E102: 17 | F102: 13.7 | G102: 30.7 | H102: 155.8 | I102: 62.6 | J102: 218.4 | K102: 249.1 | L102: 0.1232436772
A103: 2002 | B103: 1 | C103: 20021 | D103: 2002-03-01 | E103: 20.8 | F103: 19.7 | G103: 40.5 | H103: 85.4 | I103: 74.6 | J103: 160 | K103: 200.5 | L103: 0.2019950125
A104: 2002 | B104: 2 | C104: 20022 | D104: 2002-06-01 | E104: 34.2 | F104: 17.8 | G104: 52 | H104: 79 | I104: 60.6 | J104: 139.6 | K104: 191.6 | L104: 0.2713987474
A105: 2002 | B105: 3 | C105: 20023 | D105: 2002-09-01 | E105: 31.6 | F105: 21 | G105: 52.6 | H105: 120.3 | I105: 53.7 | J105: 174 | K105: 226.6 | L105: 0.2321270962
A106: 2002 | B106: 4 | C106: 20024 | D106: 2002-12-01 | E106: 31 | F106: 26.2 | G106: 57.2 | H106: 132.7 | I106: 57.4 | J106: 190.1 | K106: 247.3 | L106: 0.2312980186
A107: 2003 | B107: 1 | C107: 20031 | D107: 2003-03-01 | E107: 12.1 | F107: 22.5 | G107: 34.7 | H107: 176.5 | I107: 56.9 | J107: 233.4 | K107: 268.1 | L107: 0.1294293174
A108: 2003 | B108: 2 | C108: 20032 | D108: 2003-06-01 | E108: 19.9 | F108: 23.7 | G108: 43.6 | H108: 135.1 | I108: 72.3 | J108: 207.3 | K108: 250.9 | L108: 0.1737744121
A109: 2003 | B109: 3 | C109: 20033 | D109: 2003-09-01 | E109: 12.4 | F109: 27.9 | G109: 40.4 | H109: 123.6 | I109: 78.5 | J109: 202.1 | K109: 242.5 | L109: 0.1665979381
A110: 2003 | B110: 4 | C110: 20034 | D110: 2003-12-01 | E110: 35.9 | F110: 30.2 | G110: 66 | H110: 94.9 | I110: 100.3 | J110: 195.2 | K110: 261.2 | L110: 0.2526799387
A111: 2004 | B111: 1 | C111: 20041 | D111: 2004-03-01 | E111: 37.5 | F111: 23.6 | G111: 61.1 | H111: 61.5 | I111: 50.1 | J111: 111.6 | K111: 172.7 | L111: 0.3537927041
A112: 2004 | B112: 2 | C112: 20042 | D112: 2004-06-01 | E112: 37.9 | F112: 22.5 | G112: 60.4 | J112: 202.3 | K112: 262.7 | L112: 0.2299200609
A113: 2004 | B113: 3 | C113: 20043 | D113: 2004-09-01 | E113: 40 | F113: 35.9 | G113: 75.9 | H113: 70 | I113: 76.6 | J113: 146.5 | K113: 222.4 | L113: 0.3412769784
A114: 2004 | B114: 4 | C114: 20044 | D114: 2004-12-01 | E114: 38.3 | F114: 23 | G114: 61.3 | H114: 140.6 | I114: 57.8 | J114: 198.4 | K114: 259.7 | L114: 0.2360415864
A115: 2005 | B115: 1 | C115: 20051 | D115: 2005-03-01 | E115: 40.4 | F115: 22.3 | G115: 62.7 | H115: 133.6 | I115: 84.4 | J115: 218 | K115: 280.7 | L115: 0.2233701461
A116: 2005 | B116: 2 | C116: 20052 | D116: 2005-06-01 | E116: 34.2 | F116: 37.4 | G116: 71.6 | H116: 158.7 | I116: 47.5 | J116: 206.3 | K116: 277.9 | L116: 0.2576466355
A117: 2005 | B117: 3 | C117: 20053 | D117: 2005-09-01 | E117: 51.2 | F117: 30.1 | G117: 81.3 | H117: 134.3 | I117: 83.4 | J117: 217.7 | K117: 299 | L117: 0.2719063545
A118: 2005 | B118: 4 | C118: 20054 | D118: 2005-12-01 | E118: 52.1 | F118: 29.5 | G118: 81.6 | H118: 125.4 | I118: 92.5 | J118: 217.9 | K118: 299.5 | L118: 0.2724540902
A119: 2006 | B119: 1 | C119: 20061 | D119: 2006-03-01 | E119: 60.3 | F119: 37.1 | G119: 97.4 | H119: 105 | I119: 85.2 | J119: 190.2 | K119: 287.6 | L119: 0.3386648122
A120: 2006 | B120: 2 | C120: 20062 | D120: 2006-06-01 | E120: 67.9 | F120: 29.7 | G120: 97.5 | H120: 125.5 | I120: 147.3 | J120: 272.8 | K120: 370.3 | L120: 0.263300027
A121: 2006 | B121: 3 | C121: 20063 | D121: 2006-09-01 | E121: 62.8 | F121: 46.4 | G121: 109.2 | H121: 257 | I121: 153 | J121: 410.1 | K121: 519.3 | L121: 0.2102830734
A122: 2006 | B122: 4 | C122: 20064 | D122: 2006-12-01 | E122: 71.8 | F122: 48.4 | G122: 120.2 | H122: 255.6 | I122: 130.6 | J122: 386.2 | K122: 506.4 | L122: 0.2373617694
A123: 2007 | B123: 1 | C123: 20071 | D123: 2007-03-01 | E123: 84.9 | F123: 48.3 | G123: 133.2 | H123: 211.7 | I123: 141.7 | J123: 353.3 | K123: 486.5 | L123: 0.2737923947
A124: 2007 | B124: 2 | C124: 20072 | D124: 2007-06-01 | E124: 92.5 | F124: 44.8 | G124: 137.2 | H124: 386.2 | I124: 175.3 | J124: 561.4 | K124: 698.6 | L124: 0.1963927856
A125: 2007 | B125: 3 | C125: 20073 | D125: 2007-09-01 | E125: 88.9 | F125: 25.3 | G125: 114.1 | H125: 436.7 | I125: 192.2 | J125: 629 | K125: 743.1 | L125: 0.1535459561
A126: 2007 | B126: 4 | C126: 20074 | D126: 2007-12-01 | E126: 100 | F126: 33.2 | G126: 133.1 | H126: 404.6 | I126: 190.4 | J126: 595 | K126: 728.1 | L126: 0.1828045598
A127: 2008 | B127: 1 | C127: 20081 | D127: 2008-03-01 | E127: 79.6 | F127: 37.1 | G127: 116.7 | H127: 395.5 | I127: 235.1 | J127: 630.6 | K127: 747.3 | L127: 0.1561621839
A128: 2008 | B128: 2 | C128: 20082 | D128: 2008-06-01 | E128: 99.6 | F128: 26.8 | G128: 126.4 | H128: 498.3 | I128: 185.8 | J128: 684.1 | K128: 810.5 | L128: 0.1559531154
A129: 2008 | B129: 3 | C129: 20083 | D129: 2008-09-01 | E129: 83.9 | F129: 37.3 | G129: 121.2 | H129: 498.9 | I129: 207.7 | J129: 706.6 | K129: 827.8 | L129: 0.1464121769
A130: 2008 | B130: 4 | C130: 20084 | D130: 2008-12-01 | E130: 73.6 | F130: 39.1 | G130: 112.7 | H130: 538.3 | I130: 319.9 | J130: 858.2 | K130: 970.9 | L130: 0.1160778659
A131: 2009 | B131: 1 | C131: 20091 | D131: 2009-03-01 | E131: 68.1 | F131: 38.9 | G131: 107 | H131: 631.5 | I131: 311.5 | J131: 943 | K131: 1050 | L131: 0.1019047619
A132: 2009 | B132: 2 | C132: 20092 | D132: 2009-06-01 | E132: 90.6 | F132: 60.6 | G132: 151.2 | H132: 499.9 | I132: 307.1 | J132: 807 | K132: 958.2 | L132: 0.1577958673
A133: 2009 | B133: 3 | C133: 20093 | D133: 2009-09-01 | E133: 115.9 | F133: 31.8 | G133: 147.7 | H133: 478.6 | I133: 216.7 | J133: 695.3 | K133: 843 | L133: 0.1752075919
A134: 2009 | B134: 4 | C134: 20094 | D134: 2009-12-01 | E134: 131.1 | F134: 49 | G134: 180.2 | H134: 483.9 | I134: 129.4 | J134: 613.4 | K134: 793.6 | L134: 0.2270665323
A135: 2010 | B135: 1 | C135: 20101 | D135: 2010-03-01 | E135: 162.3 | F135: 53.6 | G135: 215.9 | H135: 574.6 | I135: 118.5 | J135: 693.1 | K135: 909 | L135: 0.2375137514
A136: =YEAR(D136) -> 2010 | B136: =IF(MONTH(D136)<4,"1",IF(MONTH(D136)<7,"2",IF(MONTH(D136)<10,"3","4"))) -> 2 | C136: 20102 | D136: 2010-06-01 | E136: 162.4 | F136: 50.3 | G136: 212.7 | H136: 629.6 | I136: 111.2 | J136: 740.8 | K136: 953.5 | L136: 0.2230728894
A137: 2010 | B137: 3 | C137: =_xlfn.NUMBERVALUE(CONCATENATE(A137,B137)) -> 20103 | D137: 2010-09-01 | E137: 171.7 | F137: 35.3 | G137: 207 | H137: 578.7 | I137: 104.5 | J137: 683.2 | K137: =SUM(J137,G137) -> 890.2 | L137: =G137/K137 -> 0.2325320153
A138: 2010 | B138: 4 | C138: 20104 | D138: 2010-12-01 | E138: 150.8 | F138: 26.2 | G138: 177 | H138: 525.8 | I138: 110.7 | J138: 636.6 | K138: 813.6 | L138: 0.2175516224
A139: 2011 | B139: 1 | C139: 20111 | D139: 2011-03-01 | E139: 153.1 | F139: 28.1 | G139: 181.3 | H139: 527.8 | I139: 99.7 | J139: 627.5 | K139: 808.8 | L139: 0.2241592483
A140: 2011 | B140: 2 | C140: 20112 | D140: 2011-06-01 | E140: 148.7 | F140: 44.6 | G140: 193.3 | H140: 497.3 | I140: 121.5 | J140: 618.8 | K140: 812.1 | L140: 0.2380248738
A141: 2011 | B141: 3 | C141: 20113 | D141: 2011-09-01 | E141: 179.2 | F141: 64.8 | G141: 244 | H141: 429 | I141: 139.2 | J141: 568.1 | K141: 812.1 | L141: 0.3004556089
A142: 2011 | B142: 4 | C142: 20114 | D142: 2011-12-01 | E142: 168 | F142: 73.6 | G142: 241.6 | H142: 457.3 | I142: 153.3 | J142: 610.6 | K142: 852.2 | L142: 0.2835015255
A143: 2012 | B143: 1 | C143: 20121 | D143: 2012-03-01 | E143: 136.5 | F143: 50.4 | G143: 186.9 | H143: 277.1 | I143: 165.1 | J143: 442.2 | K143: 629.1 | L143: 0.2970910825
A144: 2012 | B144: 2 | C144: 20122 | D144: 2012-06-01 | E144: 145 | F144: 97.2 | G144: 242.2 | H144: 493.1 | I144: 162.9 | J144: 656.1 | K144: 898.3 | L144: 0.2696203941
A145: 2012 | B145: 3 | C145: 20123 | D145: 2012-09-01 | E145: 165 | F145: 105.2 | G145: 270.2 | H145: 623.9 | I145: 222 | J145: 845.9 | K145: 1116.1 | L145: 0.2420930024
A146: 2012 | B146: 4 | C146: 20124 | D146: 2012-12-01 | E146: 212.3 | F146: 93.2 | G146: 305.5 | H146: 775.8 | I146: 243.6 | J146: 1019.4 | K146: 1324.9 | L146: 0.2305834403
A147: 2013 | B147: 1 | C147: 20131 | D147: 2013-03-01 | E147: 219.5 | F147: 97.9 | G147: 317.4 | H147: 571.2 | I147: 170.3 | J147: 741.6 | K147: 1059 | L147: 0.2997167139
A148: 2013 | B148: 2 | C148: 20132 | D148: 2013-06-01 | E148: 347 | F148: 124.7 | G148: 471.8 | H148: 659 | I148: 159.7 | J148: 818.8 | K148: 1290.6 | L148: 0.3655664032
A149: 2013 | B149: 3 | C149: 20133 | D149: 2013-09-01 | E149: 201 | F149: 101 | G149: 302 | H149: 698.6 | I149: 134.3 | J149: 833 | K149: 1135 | L149: 0.2660792952
A150: 2013 | B150: 4 | C150: 20134 | D150: 2013-12-01 | E150: 164.1 | F150: 97.1 | G150: 261.2 | H150: 628.2 | I150: 157.3 | J150: 785.5 | K150: 1046.7 | L150: 0.2495461928
A151: 2014 | B151: 1 | C151: 20141 | D151: 2014-03-01 | E151: 184 | F151: 117.6 | G151: 301.6 | H151: 606.1 | I151: 207 | J151: 813.1 | K151: 1114.7 | L151: 0.2705660716
A152: 2014 | B152: 2 | C152: 20142 | D152: 2014-06-01 | E152: 171.2 | F152: 280.3 | G152: 451.4 | H152: 852.9 | I152: 238.4 | J152: 1091.4 | K152: 1542.8 | L152: 0.2925849106
A153: 2014 | B153: 3 | C153: 20143 | D153: 2014-09-01 | E153: 172.8 | F153: 124.9 | G153: 297.8 | H153: 563.4 | I153: 119.8 | J153: 683.2 | K153: 981 | L153: 0.303567788
A154: 2014 | B154: 4 | C154: 20144 | D154: 2014-12-01 | E154: 236.5 | F154: 140 | G154: 376.6 | H154: 595.8 | I154: 129.5 | J154: 725.3 | K154: 1101.9 | L154: 0.3417733007
A155: 2015 | B155: 1 | C155: 20151 | D155: 2015-03-01 | E155: 178.8 | F155: 124.3 | G155: 303.1 | H155: 510.4 | I155: 185.3 | J155: 695.8 | K155: 998.9 | L155: 0.3034337772
A156: 2015 | B156: 2 | C156: 20152 | D156: 2015-06-01 | E156: 173.6 | F156: 89.4 | G156: 262.9 | H156: 294.4 | I156: 147.9 | J156: 442.3 | K156: 705.2 | L156: 0.372802042
A157: 2015 | B157: 3 | C157: 20153 | D157: 2015-09-01 | E157: 110.8 | F157: 89.1 | G157: 199.9 | H157: 250 | I157: 128.5 | J157: 378.5 | K157: 578.4 | L157: 0.3456085754
A158: 2015 | B158: 4 | C158: 20154 | D158: 2015-12-01 | E158: 58.2 | F158: 79.3 | G158: 137.5 | H158: 209.9 | I158: 113.1 | J158: 323 | K158: 460.5 | L158: 0.2985884908
A159: 2016 | B159: 1 | C159: 20161 | D159: 2016-03-01 | E159: 39.8 | F159: 47.1 | G159: 86.8 | H159: 283.7 | I159: 81.5 | J159: 365.2 | K159: 452 | L159: 0.1920353982
A160: 2016 | B160: 2 | C160: 20162 | D160: 2016-06-01 | E160: 31.7 | F160: 33.4 | G160: 65.1 | H160: 144.7 | I160: 74.3 | J160: 219 | K160: 284.1 | L160: 0.2291446674
A161: 2016 | B161: 3 | C161: 20163 | D161: 2016-09-01 | E161: 43.5 | F161: 53.3 | G161: 96.8 | H161: 129.2 | I161: 124.9 | J161: 254.1 | K161: 350.9 | L161: 0.275862069
A162: 2016 | B162: 4 | C162: 20164 | D162: 2016-12-01 | E162: 41.8 | F162: 30.7 | G162: 72.5 | H162: 138.4 | I162: 105.8 | J162: 244.2 | K162: 316.7 | L162: 0.2289232712
A163: 2017 | B163: 1 | C163: 20171 | D163: 2017-03-01 | E163: 78.1 | F163: 68.4 | G163: 146.5 | H163: 149.2 | I163: 86 | J163: 235.2 | K163: 381.7 | L163: 0.3838092743
A164: 2017 | B164: 2 | C164: 20172 | D164: 2017-06-01 | E164: 81.3 | F164: 38 | G164: 119.2 | H164: 123.6 | I164: 88.8 | J164: 212.5 | K164: 331.7 | L164: 0.3593608683
A165: 2017 | B165: 3 | C165: 20173 | D165: 2017-09-01 | E165: 41.7 | F165: 50.8 | G165: 92.5 | H165: 90.9 | I165: 97.5 | J165: 188.4 | K165: 280.9 | L165: 0.3292986828
A166: 2017 | B166: 4 | C166: 20174 | D166: 2017-12-01 | E166: 43.6 | F166: 30.3 | G166: 73.9 | H166: 57.8 | I166: 94.3 | J166: 152.1 | K166: 226 | L166: 0.3269911504
A167: 2018 | B167: 1 | C167: 20181 | D167: 2018-03-01 | E167: 59.1 | F167: 26.6 | G167: 85.7 | H167: 36 | I167: 86.5 | J167: 122.6 | K167: 208.3 | L167: 0.4114258281
A168: 2018 | B168: 2 | C168: 20182 | D168: 2018-06-01 | E168: 62 | F168: 36.8 | G168: 98.8 | H168: 129.5 | I168: 80.2 | J168: 209.7 | K168: 308.5 | L168: 0.3202593193
A169: =YEAR(D169) -> 2018 | B169: =IF(MONTH(D169)<4,"1",IF(MONTH(D169)<7,"2",IF(MONTH(D169)<10,"3","4"))) -> 3 | C169: =_xlfn.NUMBERVALUE(CONCATENATE(A169,B169)) -> 20183 | D169: 2018-09-01 | E169: 78 | F169: 21.8 | G169: 99.8 | H169: 103.8 | I169: 103.2 | J169: 207.1 | K169: 306.9 | L169: 0.3251873574
A170: 2018 | B170: 4 | C170: 20184 | D170: 2018-12-01 | E170: 78.8 | F170: 30.4 | G170: 109.2 | H170: 105.2 | I170: 101.7 | J170: 206.9 | K170: 316.1 | L170: 0.3454602974
A171: 2019 | B171: 1 | C171: 20191 | D171: 2019-03-01 | E171: 67 | F171: 43.1 | G171: 110.1 | H171: 82 | I171: 70.3 | J171: 152.2 | K171: 262.3 | L171: 0.4197483797
A172: 2019 | B172: 2 | C172: 20192 | D172: 2019-06-01 | E172: 74.6 | F172: 46.1 | G172: 120.7 | H172: 104.1 | I172: 141.4 | J172: 245.5 | K172: 366.2 | L172: 0.3296013108
A173: 2019 | B173: 3 | C173: 20193 | D173: 2019-09-01 | E173: 111.2 | F173: 34.7 | G173: 145.9 | H173: 124.2 | I173: 102.1 | J173: 226.3 | K173: =SUM(J173,G173) -> 372.2 | L173: 0.3919935519
A174: 2019 | B174: 4 | C174: 20194 | D174: 2019-12-01 | E174: 137 | F174: 65.1 | G174: 202.1 | H174: 76 | I174: 84.7 | J174: 160.8 | K174: 362.9 | L174: 0.556902728
A175: 2020 | B175: 1 | C175: 20201 | D175: 2020-03-01 | E175: 126.4 | F175: 35.2 | G175: 161.7 | H175: 33.7 | I175: 94.1 | J175: 127.8 | K175: 289.5 | L175: 0.5585492228
A176: =YEAR(D176) -> 2020 | B176: =IF(MONTH(D176)<4,"1",IF(MONTH(D176)<7,"2",IF(MONTH(D176)<10,"3","4"))) -> 2 | C176: 20202 | D176: 2020-06-01 | E176: 99.1 | F176: 60.4 | G176: 159.5 | H176: 2.8 | I176: 69.2 | J176: 72.1 | K176: 231.6 | L176: 0.6886873921
A177: =YEAR(D177) -> 2020 | B177: =IF(MONTH(D177)<4,"1",IF(MONTH(D177)<7,"2",IF(MONTH(D177)<10,"3","4"))) -> 3 | C177: 20203 | D177: 2020-09-01 | E177: 87.4 | F177: 64 | G177: 151.4 | H177: 2 | I177: 72.2 | J177: 74.3 | K177: =SUM(J177,G177) -> 225.7 | L177: =G177/K177 -> 0.6708019495
A178: =YEAR(D178) -> 2020 | B178: =IF(MONTH(D178)<4,"1",IF(MONTH(D178)<7,"2",IF(MONTH(D178)<10,"3","4"))) -> 4 | C178: 20204 | D178: 2020-12-01 | E178: 73.5 | F178: 57.8 | G178: 131.3 | H178: 45 | I178: 76.2 | J178: 121.3 | K178: 252.6 | L178: 0.5197941409
A179: =YEAR(D179) -> 2021 | B179: =IF(MONTH(D179)<4,"1",IF(MONTH(D179)<7,"2",IF(MONTH(D179)<10,"3","4"))) -> 1 | C179: =_xlfn.NUMBERVALUE(CONCATENATE(A179,B179)) -> 20211 | D179: 2021-03-01 | E179: 99.3 | F179: 61.1 | G179: 160.5 | H179: 6.7 | I179: 75.1 | J179: 81.9 | K179: 242.4 | L179: =G179/K179 -> 0.6621287129
A180: 2021 | B180: 2 | C180: 20212 | D180: 2021-06-01 | E180: 129.1 | F180: 57.6 | G180: 186.7 | H180: 23.7 | I180: 68.8 | J180: 92.5 | K180: 279.2 | L180: =G180/K180 -> 0.6686962751
A181: 2021 | B181: 3 | C181: 20213 | D181: 2021-09-01 | E181: 108.2 | F181: 80.3 | G181: 188.5 | H181: 34.6 | I181: 74.1 | J181: 108.7 | K181: =SUM(J181,G181) -> 297.2 | L181: =G181/K181 -> 0.6342530283
A182: 2021 | B182: 4 | C182: 20214 | D182: 2021-12-01 | E182: 142 | F182: 44.7 | G182: 186.7 | H182: 51.7 | I182: 64.2 | J182: 116 | K182: =SUM(J182,G182) -> 302.7 | L182: =G182/K182 -> 0.6167822927
A183: =YEAR(D183) -> 2022 | B183: =IF(MONTH(D183)<4,"1",IF(MONTH(D183)<7,"2",IF(MONTH(D183)<10,"3","4"))) -> 1 | C183: =_xlfn.NUMBERVALUE(CONCATENATE(A183,B183)) -> 20221 | D183: 2022-03-01 | E183: 104.3 | F183: 59 | G183: 163.3 | H183: 80.7 | I183: 57 | J183: 137.7 | K183: =SUM(J183,G183) -> 301 | L183: =G183/K183 -> 0.5425249169
A184: 2022 | B184: 2 | C184: 20222 | D184: 2022-06-01 | E184: 89.2 | F184: 55.4 | G184: 144.6 | H184: 48.7 | I184: 54.8 | J184: 103.5 | K184: 248.1 | L184: 0.5828295042
A185: 2022 | B185: 3 | C185: 20223 | D185: 2022-09-01 | E185: 103.8 | F185: 48.9 | G185: 152.7 | H185: 19.9 | I185: 53.4 | J185: 73.3 | K185: =SUM(J185,G185) -> 226 | L185: =G185/K185 -> 0.6756637168
A186: 2022 | B186: 4 | C186: 20224 | D186: 2022-12-01 | E186: 72.7 | F186: 65.4 | G186: 138.1 | H186: 17.8 | I186: 54.2 | J186: 72 | K186: 210.1 | L186: 0.6573060447
A187: 2023 | B187: 1 | C187: 20231 | D187: 2023-03-01 | E187: 85.6 | F187: 69.2 | G187: 154.9 | H187: 22.8 | I187: 65.5 | J187: 88.3 | K187: =SUM(J187,G187) -> 243.2 | L187: =G187/K187 -> 0.6369243421
A188: 2023 | B188: 2 | C188: 20232 | D188: 2023-06-01 | E188: 82.5 | F188: 69.5 | G188: 152 | H188: 26.7 | I188: 55.5 | J188: 82.2 | K188: 234.2 | L188: 0.6490179334
A189: 1900 | B189: 1 | C189: 19001
A190: =YEAR(D190) -> 1900 | B190: =IF(MONTH(D190)<4,"1",IF(MONTH(D190)<7,"2",IF(MONTH(D190)<10,"3","4"))) -> 1 | C190: =_xlfn.NUMBERVALUE(CONCATENATE(A190,B190)) -> 19001
A191: 1900 | B191: 1 | C191: 19001
A192: 1900 | B192: 1 | C192: 19001
A193: 1900 | B193: 1 | C193: 19001
A194: 1900 | B194: 1 | C194: 19001
A195: 1900 | B195: 1 | C195: 19001
A196: 1900 | B196: 1 | C196: 19001
A197: 1900 | B197: 1 | C197: 19001
A198: 1900 | B198: 1 | C198: 19001
A199: 1900 | B199: 1 | C199: 19001
A200: 1900 | B200: 1 | C200: 19001
A201: 1900 | B201: 1 | C201: 19001
A202: 1900 | B202: 1 | C202: 19001
... 75 more rows

Sheet Royalties 2-years
D1: Select: | E1: Financial Year | U1: Financial Year | V1: Financial Year
U2: Calendar Year
A6: =CONCATENATE("Royalty Receipts And North West Shelf Grants ",B7," and ",C7) -> Royalty Receipts And North West Shelf Grants 2021-22 and 2022-23
B7: =IF(E1="Calendar Year",LARGE('Royalties Historic'!B25:DE25,2),INDIRECT(CONCATENATE("'Royalties Historic'!",ADDRESS(8,('Royalties Historic'!A3-2),1,)))) -> 2021-22 | C7: =IF(E1="Calendar Year",LARGE('Royalties Historic'!B25:DE25,1),INDIRECT(CONCATENATE("'Royalties Historic'!",ADDRESS(8,('Royalties Historic'!A3-1),1,)))) -> 2022-23 | D7: =CONCATENATE(C7," Growth") -> 2022-23 Growth | T7: =CONCATENATE("Revenue Growth "&CHAR(10)&B7&" to "&C7) -> Revenue Growth 2021-22 to 2022-23 | U7: =CONCATENATE("Royalty Receipts And North West Shelf Grants "&CHAR(10)&C7) -> Royalty Receipts And North West Shelf Grants 2022-23
A8: Commodity | B8: ($ Million) | C8: ($ Million) | D8: ($ Million) | E8: %
A9: Alumina | B9: =IF($E$1="Financial Year", 'Royalties Historic'!AN16,'Royalties Historic'!AM33) -> 101.09 | C9: =IF($E$1="Financial Year", 'Royalties Historic'!AO16,'Royalties Historic'!AN33) -> 113.6467052 | D9: =C9-B9 -> 12.55670525 | E9: =D9/B9 -> 0.1242131294 | J9: ="Royalty Receipts and North West Shelf Grants"&CHAR(10)&C7 -> Royalty Receipts and North West Shelf Grants 2022-23
A10: Copper, Lead & Zinc | B10: =IF($E$1="Financial Year", 'Royalties Historic'!AN18,'Royalties Historic'!AM35) -> 104.58 | C10: =IF($E$1="Financial Year", 'Royalties Historic'!AO18,'Royalties Historic'!AN35) -> 74.81588081 | D10: =C10-B10 -> -29.76411919 | E10: =D10/B10 -> -0.2846062267
A11: Diamonds | B11: =IF($E$1="Financial Year", 'Royalties Historic'!AN14,'Royalties Historic'!AM31) -> 0.46 | C11: =IF($E$1="Financial Year", 'Royalties Historic'!AO14,'Royalties Historic'!AN31) -> 0 | D11: -0.46 | E11: -1
A12: Gold | B12: =IF($E$1="Financial Year", 'Royalties Historic'!AN12,'Royalties Historic'!AM29) -> 412.29 | C12: =IF($E$1="Financial Year", 'Royalties Historic'!AO12,'Royalties Historic'!AN29) -> 436.018716 | D12: 23.72871603 | E12: 0.05755346002
A13: Iron Ore | B13: =IF($E$1="Financial Year", 'Royalties Historic'!AN13,'Royalties Historic'!AM30) -> 10847.96 | C13: =IF($E$1="Financial Year", 'Royalties Historic'!AO13,'Royalties Historic'!AN30) -> 9393.128865 | D13: =C13-B13 -> -1454.831135 | E13: =D13/B13 -> -0.1341110343
A14: Lithium | B14: =IF($E$1="Financial Year", 'Royalties Historic'!AN17,'Royalties Historic'!AM34) -> 150.43 | C14: =IF($E$1="Financial Year", 'Royalties Historic'!AO17,'Royalties Historic'!AN34) -> 929.8652598 | D14: =C14-B14 -> 779.4352598 | E14: =D14/B14 -> 5.181381771
A15: Mineral sands | B15: =IF($E$1="Financial Year", 'Royalties Historic'!AN19,'Royalties Historic'!AM36) -> 44.19 | C15: =IF($E$1="Financial Year", 'Royalties Historic'!AO19,'Royalties Historic'!AN36) -> 46.5876699 | D15: 2.3976699 | E15: 0.05425820095 | M15: =CONCATENATE("Royalty Receipts and North West Shelf Grants ",C7) -> Royalty Receipts and North West Shelf Grants 2022-23
A16: Nickel | B16: =IF($E$1="Financial Year", 'Royalties Historic'!AN15,'Royalties Historic'!AM32) -> 107.58 | C16: =IF($E$1="Financial Year", 'Royalties Historic'!AO15,'Royalties Historic'!AN32) -> 139.69027 | D16: 32.11026995 | E16: 0.2984780624
A17: Petroleum | B17: =IF($E$1="Financial Year", 'Royalties Historic'!AN11,'Royalties Historic'!AM28) -> 8.52 | C17: =IF($E$1="Financial Year", 'Royalties Historic'!AO11,'Royalties Historic'!AN28) -> 15.28556061 | D17: 6.76556061 | E17: 0.7940798838
A18: Other Minerals | B18: =IF($E$1="Financial Year", 'Royalties Historic'!AN10,'Royalties Historic'!AM27) -> 91.6 | C18: =IF($E$1="Financial Year", 'Royalties Historic'!AO10,'Royalties Historic'!AN27) -> 78.6978714 | D18: -12.9021286 | E18: -0.1408529323 | M18: ="Revenue Growth"&CHAR(10)&B7&" to "&C7 -> Revenue Growth 2021-22 to 2022-23
A19: North West Shelf Grants | B19: =IF($E$1="Financial Year", 'Royalties Historic'!AN20,'Royalties Historic'!AM37) -> 959.5 | C19: =IF($E$1="Financial Year", 'Royalties Historic'!AO20,'Royalties Historic'!AN37) -> 1528.377183 | D19: =C19-B19 -> 568.8771827 | E19: =D19/B19 -> 0.5928891951
A20: Total Royalty Receipts | B20: =IF($E$1="Financial Year", 'Royalties Historic'!AN21,'Royalties Historic'!AM38) -> 11868.69 | C20: =IF($E$1="Financial Year", 'Royalties Historic'!AO21,'Royalties Historic'!AN38) -> 11227.7368 | D20: -640.9532015 | E20: -0.0540037023
A21: Total Revenue | B21: =IF($E$1="Financial Year", 'Royalties Historic'!AN22,'Royalties Historic'!AM39) -> 12828.19 | C21: =IF($E$1="Financial Year", 'Royalties Historic'!AO22,'Royalties Historic'!AN39) -> 12756.11398 | D21: -72.07601879 | E21: -0.005618564957
A22: =IF(E1="Calendar Year", "Regulation 86A of the Mining Regulations 1981 requires that royalties be paid within 30 days following the end of a quarter. As a result, the cash receipts are necessarily offset by one quarter, i.e. the "&C7&" calendar year royalty receipts reflect the "&B7&" December quarter, and the "&C7&" March, June and September quarters.", "Regulation 86A of the Mining Regulations 1981 requires that royalties be paid within 30 days following the end of a quarter. As a result, the cash receipts are necessarily offset by one quarter, i.e. the "&C7&" financial year royalty receipts reflect the "&LEFT(C7,4)&" June, September and December quarters, and the "&LEFT(C7,4)+1&" March quarter.") -> Regulation 86A of the Mining Regulations 1981 requires that royalties be paid within 30 days following the end of a quarter. As a result, the cash receipts are necessarily offset by one quarter, i.e. the 2022-23 financial year royalty receipts reflect the 2022 June, September and December quarters, and the 2023 March quarter.
B237: 63.54
B238: 63.86
B239: 63.7
B240: 64.67
B241: 65.03
B242: 64.67
B243: 65.26
B244: 66.6
B245: 66.28
B246: 65.11
B247: 64.04
B248: 64.57

Sheet Royalties Historic
B1: =IFERROR(SUM(LEFT(INDIRECT(ADDRESS(8,COLUMN(),1,0),FALSE),4)),"") -> 1983 | C1: 1984 | D1: 1985 | E1: 1986 | F1: 1987 | G1: 1988 | H1: 1989 | I1: 1990 | J1: 1991 | K1: 1992 | L1: 1993 | M1: 1994 | N1: 1995 | O1: 1996 | P1: 1997 | Q1: 1998 | R1: 1999 | S1: 2000 | T1: 2001 | U1: 2002 | V1: 2003 | W1: 2004 | X1: 2005 | Y1: 2006 | Z1: 2007 | AA1: 2008 | AB1: 2009 | AC1: 2010 | AD1: 2011 | AE1: 2012 | AF1: 2013 | AG1: 2014 | AH1: 2015 | AI1: 2016 | AJ1: 2017 | AK1: 2018 | AN1: =IFERROR(SUM(LEFT(INDIRECT(ADDRESS(8,COLUMN(),1,0),FALSE),4)),"") -> 2021 | AO1: 2022
A2: =ADDRESS(8,(A3-1),1,) -> $AO$8
A3: =MATCH("Cumulative Total",A8:DE8) -> 42
A7: Historic Royalty Receipts and Revenue Financial Year
A8: Commodity | B8: 1983-84 | C8: 1984-85 | D8: 1985-86 | E8: 1986-87 | F8: 1987-88 | G8: 1988-89 | H8: 1989-90 | I8: 1990-91 | J8: 1991-92 | K8: 1992-93 | L8: 1993-94 | M8: 1994-95 | N8: 1995-96 | O8: 1996-97 | P8: 1997-98 | Q8: 1998-99 | R8: 1999-00 | S8: 2000-01 | T8: 2001-02 | U8: 2002-03 | V8: 2003-04 | W8: 2004-05 | X8: 2005-06 | Y8: 2006-07 | Z8: 2007-08 | AA8: 2008-09 | AB8: 2009-10 | AC8: 2010-11 | AD8: 2011-12 | AE8: 2012-13 | AF8: 2013-14 | AG8: 2014-15 | AH8: 2015-16 | AI8: 2016-17 | AJ8: 2017-18 | AK8: 2018-19 | AL8: 2019-20 | AM8: 2020-21 | AN8: 2021-22 | AO8: 2022-23 | AP8: Cumulative Total
B9: ($ Million) | C9: ($ Million) | D9: ($ Million) | E9: ($ Million) | F9: ($ Million) | G9: ($ Million) | H9: ($ Million) | I9: ($ Million) | J9: ($ Million) | K9: ($ Million) | L9: ($ Million) | M9: ($ Million) | N9: ($ Million) | O9: ($ Million) | P9: ($ Million) | Q9: ($ Million) | R9: ($ Million) | S9: ($ Million) | T9: ($ Million) | U9: ($ Million) | V9: ($ Million) | W9: ($ Million) | X9: ($ Million) | Y9: ($ Million) | Z9: ($ Million) | AA9: ($ Million) | AB9: ($ Million) | AC9: ($ Million) | AD9: ($ Million) | AE9: ($ Million) | AF9: ($ Million) | AG9: ($ Million) | AH9: ($ Million) | AI9: ($ Million) | AJ9: ($ Million) | AK9: ($ Million) | AL9: ($ Million) | AM9: ($ Million) | AN9: ($ Million) | AO9: ($ Million) | AP9: ($ Million) | AQ9: Total Share
A10: Other Minerals | B10: 5.561006 | C10: 6.393051 | D10: 8.027132 | E10: 7.909545 | F10: 13.06852 | G10: 20.034945 | H10: 28.046506 | I10: 28.849383 | J10: 33.842217 | K10: 37.293397 | L10: 33.044979 | M10: 36.1074 | N10: 51.626274 | O10: 48.77448 | P10: 49.092109 | Q10: 52.704508 | R10: 59.839576 | S10: 69.64254 | T10: 70.628007 | U10: 74.150046 | V10: 76.273469 | W10: 77.409141 | X10: 101.51466 | Y10: 140.465488 | Z10: 118.234147 | AA10: 104.42389 | AB10: 107.688425 | AC10: 145.174559 | AD10: 116.569262 | AE10: 142.104143 | AF10: 73.008506 | AG10: 72.449831 | AH10: 69.69215394 | AI10: 53.06698745 | AJ10: 69.63606969 | AK10: 86.70170772 | AL10: 78.30499726 | AM10: 73.2714801 | AN10: 91.6 | AO10: 78.6978714 | AP10: =SUM(B10:AO10) -> 2610.92241 | AQ10: =AP10/AP$22 -> 0.02162020772
A11: Petroleum | B11: 18.141972 | C11: 17.555803 | D11: 34.023504 | E11: 27.409626 | F11: 30.044164 | G11: 20.579607 | H11: 51.777319 | I11: 92.427105 | J11: 86.520781 | K11: 79.72805 | L11: 72.886319 | M11: 113.736997 | N11: 159.405226 | O11: 229.746772 | P11: 247.40349 | Q11: 176.949877 | R11: 344.896958 | S11: 526.714875 | T11: 428.286945 | U11: 488.5695 | V11: 416.331506 | W11: 549.660913 | X11: 678.825887 | Y11: 714.091067 | Z11: 811.026024 | AA11: 868.761581 | AB11: 21.925331 | AC11: 21.535059 | AD11: 18.749522 | AE11: 18.187507 | AF11: 11.493467 | AG11: 8.716839 | AH11: 7.23911042 | AI11: 3.43182971 | AJ11: 3.21226157 | AK11: 11.67578568 | AL11: 6.92225434 | AM11: 2.42625553 | AN11: 8.52 | AO11: 15.28556061 | AP11: =SUM(B11:AO11) -> 7444.822651 | AQ11: 0.06164817905
A12: Gold | B12: 0.087825 | C12: 0.100622 | D12: 0.103663 | E12: 0.111974 | F12: 0.122814 | G12: 0.21961 | H12: 0.199362 | I12: 0.291691 | J12: 0.204375 | K12: 0.254115 | L12: 0.286515 | M12: 0.386544 | N12: 0.366368 | O12: 0.464066 | P12: 0.365133 | Q12: 28.296903 | R12: 33.446114 | S12: 65.638722 | T12: 79.808781 | U12: 85.356089 | V12: 79.500095 | W12: 72.914303 | X12: 81.622995 | Y12: 104.885111 | Z12: 99.481977 | AA12: 116.420727 | AB12: 152.528649 | AC12: 197.792516 | AD12: 224.729595 | AE12: 220.130464 | AF12: 215.830725 | AG12: 218.596724 | AH12: 239.5538248 | AI12: 262.8738046 | AJ12: 272.7705282 | AK12: 291.4158016 | AL12: 361.4289491 | AM12: 415.6506635 | AN12: 412.29 | AO12: 436.018716 | AP12: 4772.547455 | AQ12: 0.03951992865
A13: Iron Ore | B13: 78.165503 | C13: 88.531269 | D13: 101.950692 | E13: 92.780315 | F13: 94.80777 | G13: 92.722783 | H13: 112.532211 | I13: 130.935141 | J13: 152.880228 | K13: 152.674073 | L13: 173.900109 | M13: 165.40685 | N13: 181.10211 | O13: 186.819403 | P13: 224.582565 | Q13: 231.977012 | R13: 198.952265 | S13: 270.188217 | T13: 276.089286 | U13: 286.707552 | V13: 293.675166 | W13: 380.332086 | X13: 679.628477 | Y13: 851.069611 | Z13: 964.429941 | AA13: 1946.717875 | AB13: 1495.438193 | AC13: 3358.628676 | AD13: 3831.267729 | AE13: 3654.716731 | AF13: 5307.520551 | AG13: 4389.842803 | AH13: 3472.765664 | AI13: 4619.550947 | AJ13: 4476.870821 | AK13: 4884.196267 | AL13: 7802.720539 | AM13: 9796.786334 | AN13: 10847.96 | AO13: 9393.128865 | AP13: 85740.95263 | AQ13: 0.7099932191
A14: Diamonds | B14: 3.802167 | C14: 3.062632 | D14: 2.864655 | E14: 13.109395 | F14: 12.221752 | G14: 12.05567 | H14: 27.202476 | I14: 27.289552 | J14: 30.985306 | K14: 40.819425 | L14: 40.201662 | M14: 28.551514 | N14: 37.972557 | O14: 35.266731 | P14: 40.086339 | Q14: 54.940672 | R14: 62.496275 | S14: 88.054636 | T14: 62.636372 | U14: 89.292744 | V14: 45.022369 | W14: 32.635115 | X14: 48.225088 | Y14: 20.969209 | Z14: 43.436045 | AA14: 18.838566 | AB14: 19.192682 | AC14: 15.746837 | AD14: 15.183262 | AE14: 15.966746 | AF14: 20.482859 | AG14: 15.40889 | AH14: 18.32433754 | AI14: 13.01965483 | AJ14: 12.09403223 | AK14: 11.62460232 | AL14: 11.33563165 | AM14: 9.43210855 | AN14: 0.46 | AO14: 0 | AP14: 1100.310567 | AQ14: 0.009111317493
A15: Nickel | B15: 4.653828 | C15: 5.712195 | D15: 6.088409 | E15: 4.420788 | F15: 3.827988 | G15: 9.633475 | H15: 10.114608 | I15: 10.724031 | J15: 11.13174 | K15: 9.600594 | L15: 8.304565 | M15: 18.810778 | N15: 25.296065 | O15: 26.009849 | P15: 24.456824 | Q15: 21.464409 | R15: 36.312729 | S15: 60.5738 | T15: 49.266667 | U15: 59.950943 | V15: 72.781351 | W15: 88.353631 | X15: 82.677958 | Y15: 177.750033 | Z15: 158.404647 | AA15: 81.829169 | AB15: 83.359668 | AC15: 112.934304 | AD15: 89.82739 | AE15: 92.81325 | AF15: 78.290452 | AG15: 82.878024 | AH15: 54.09324199 | AI15: 49.16948291 | AJ15: 56.95790097 | AK15: 65.99118193 | AL15: 76.15581698 | AM15: 83.53074911 | AN15: 107.58 | AO15: 139.69027 | AP15: 2241.422806 | AQ15: 0.01856050049
A16: Alumina | B16: 7.69714 | C16: 9.638703 | D16: 9.923606 | E16: 10.540225 | F16: 12.132983 | G16: 20.79743 | H16: 34.349515 | I16: 33.894791 | J16: 29.315958 | K16: 28.715039 | L16: 30.737151 | M16: 27.484829 | N16: 30.194089 | O16: 33.739736 | P16: 36.24758 | Q16: 39.138672 | R16: 40.73837 | S16: 55.512739 | T16: 61.408085 | U16: 54.952314 | V16: 49.998033 | W16: 54.578682 | X16: 64.0907 | Y16: 83.444014 | Z16: 80.535398 | AA16: 75.982728 | AB16: 61.860134 | AC16: 66.136237 | AD16: 68.320773 | AE16: 65.114004 | AF16: 70.419138 | AG16: 77.73839 | AH16: 84.32352593 | AI16: 81.08236093 | AJ16: 99.23186576 | AK16: 135.0038872 | AL16: 113.6025841 | AM16: 92.44623311 | AN16: 101.09 | AO16: 113.6467052 | AP16: 2245.804348 | AQ16: 0.01859678263
A17: Lithium | B17: n/a | C17: n/a | D17: n/a | E17: n/a | F17: n/a | G17: n/a | H17: n/a | I17: n/a | J17: n/a | K17: n/a | L17: n/a | M17: n/a | N17: n/a | O17: n/a | P17: n/a | Q17: n/a | R17: n/a | S17: n/a | T17: n/a | U17: n/a | V17: n/a | W17: n/a | X17: n/a | Y17: n/a | Z17: n/a | AA17: n/a | AB17: n/a | AC17: n/a | AD17: n/a | AE17: n/a | AF17: n/a | AG17: n/a | AH17: n/a | AI17: 15.47430854 | AJ17: 78.71376902 | AK17: 83.24725164 | AL17: 66.31183111 | AM17: 43.32494722 | AN17: 150.43 | AO17: 929.8652598 | AP17: 1367.367367 | AQ17: 0.01132272886
A18: Copper, Lead & Zinc | B18: n/a | C18: n/a | D18: n/a | E18: n/a | F18: n/a | G18: n/a | H18: n/a | I18: n/a | J18: n/a | K18: n/a | L18: n/a | M18: n/a | N18: n/a | O18: n/a | P18: n/a | Q18: n/a | R18: n/a | S18: n/a | T18: n/a | U18: n/a | V18: n/a | W18: n/a | X18: n/a | Y18: n/a | Z18: n/a | AA18: n/a | AB18: n/a | AC18: n/a | AD18: n/a | AE18: n/a | AF18: 77.128089 | AG18: 67.389606 | AH18: 59.23846106 | AI18: 59.91581776 | AJ18: 70.77818375 | AK18: 76.16655516 | AL18: 67.64388463 | AM18: 70.54559728 | AN18: 104.58 | AO18: 74.81588081 | AP18: 728.2020754 | AQ18: 0.006030006897
A19: Mineral Sands | B19: n/a | C19: n/a | D19: n/a | E19: n/a | F19: n/a | G19: n/a | H19: n/a | I19: n/a | J19: n/a | K19: n/a | L19: n/a | M19: n/a | N19: n/a | O19: n/a | P19: n/a | Q19: n/a | R19: n/a | S19: n/a | T19: n/a | U19: n/a | V19: n/a | W19: n/a | X19: n/a | Y19: n/a | Z19: 21.110828 | AA19: 26.681513 | AB19: 22.008559 | AC19: 19.937428 | AD19: 19.220492 | AE19: 27.514333 | AF19: 16.393497 | AG19: 11.965647 | AH19: 16.81839747 | AI19: 14.31715741 | AJ19: 12.29098944 | AK19: 18.55968505 | AL19: 23.00416261 | AM19: 31.04237371 | AN19: 44.19 | AO19: 46.5876699 | AP19: 371.6427326 | AQ19: 0.003077453795
A20: North West Shelf Grants | B20: n/a | C20: n/a | D20: n/a | E20: n/a | F20: n/a | G20: n/a | H20: n/a | I20: n/a | J20: n/a | K20: n/a | L20: n/a | M20: n/a | N20: n/a | O20: n/a | P20: n/a | Q20: n/a | R20: n/a | S20: n/a | T20: n/a | U20: n/a | V20: n/a | W20: n/a | X20: n/a | Y20: n/a | Z20: n/a | AA20: n/a | AB20: 875.1 | AC20: 933.693107 | AD20: 935.598442 | AE20: 1019.886602 | AF20: 1106.892595 | AG20: 943.795896 | AH20: 615.475 | AI20: 573 | AJ20: 681.965 | AK20: 889.356 | AL20: 690.2022839 | AM20: 386.2315346 | AN20: 959.5 | AO20: 1528.377183 | AP20: 12139.07364 | AQ20: 0.1005197599
A21: Total Royalty Receipts | B21: =SUM(B10:B19) -> 118.109441 | C21: 130.994275 | D21: 162.981661 | E21: 156.281868 | F21: 166.225991 | G21: 176.04352 | H21: 264.221997 | I21: 324.411694 | J21: 344.880605 | K21: 349.084693 | L21: 359.3613 | M21: 390.484912 | N21: 485.962689 | O21: 560.821037 | P21: 622.23404 | Q21: 605.472053 | R21: 776.682287 | S21: 1136.325529 | T21: 1028.124143 | U21: 1138.979188 | V21: 1033.581989 | W21: 1255.883871 | X21: 1736.585765 | Y21: 2092.674533 | Z21: 2296.659007 | AA21: 3239.656049 | AB21: 1964.001641 | AC21: 3937.885616 | AD21: 4383.868025 | AE21: 4236.547178 | AF21: 5870.567284 | AG21: 4944.986754 | AH21: 4022.049 | AI21: 5171.902 | AJ21: 5152.556 | AK21: 5664.583 | AL21: 8607.43065 | AM21: 10618.45674 | AN21: 11868.69 | AO21: 11227.7368 | AP21: 108623.9848 | AQ21: n/a
A22: Total Revenue | B22: =SUM(B20:B21) -> 118.109441 | C22: 130.994275 | D22: 162.981661 | E22: 156.281868 | F22: 166.225991 | G22: 176.04352 | H22: =SUM(H20:H21) -> 264.221997 | I22: =SUM(I20:I21) -> 324.411694 | J22: 344.880605 | K22: 349.084693 | L22: 359.3613 | M22: 390.484912 | N22: 485.962689 | O22: 560.821037 | P22: 622.23404 | Q22: 605.472053 | R22: 776.682287 | S22: 1136.325529 | T22: 1028.124143 | U22: 1138.979188 | V22: 1033.581989 | W22: 1255.883871 | X22: 1736.585765 | Y22: 2092.674533 | Z22: 2296.659007 | AA22: 3239.656049 | AB22: 2839.101641 | AC22: 4871.578723 | AD22: 5319.466467 | AE22: 5256.43378 | AF22: 6977.459879 | AG22: 5888.78265 | AH22: 4637.524 | AI22: 5744.902 | AJ22: 5834.521 | AK22: 6553.939 | AL22: 9297.632934 | AM22: 11004.68828 | AN22: 12828.19 | AO22: 12756.11398 | AP22: 120763.0585 | AQ22: =AP22/AP$22 -> 1
A24: Historic Royalty Receipts and Revenue Calendar Year
A25: Commodity | B25: 1984 | C25: 1985 | D25: 1986 | E25: 1987 | F25: 1988 | G25: 1989 | H25: 1990 | I25: 1991 | J25: 1992 | K25: 1993 | L25: 1994 | M25: 1995 | N25: 1996 | O25: 1997 | P25: 1998 | Q25: 1999 | R25: 2000 | S25: 2001 | T25: 2002 | U25: 2003 | V25: 2004 | W25: 2005 | X25: 2006 | Y25: 2007 | Z25: 2008 | AA25: 2009 | AB25: 2010 | AC25: 2011 | AD25: 2012 | AE25: 2013 | AF25: 2014 | AG25: 2015 | AH25: 2016 | AI25: 2017 | AJ25: 2018 | AK25: 2019 | AL25: 2020 | AM25: 2021 | AN25: 2022 | AO25: Cumulative Total
B26: ($ Million) | C26: ($ Million) | D26: ($ Million) | E26: ($ Million) | F26: ($ Million) | G26: ($ Million) | H26: ($ Million) | I26: ($ Million) | J26: ($ Million) | K26: ($ Million) | L26: ($ Million) | M26: ($ Million) | N26: ($ Million) | O26: ($ Million) | P26: ($ Million) | Q26: ($ Million) | R26: ($ Million) | S26: ($ Million) | T26: ($ Million) | U26: ($ Million) | V26: ($ Million) | W26: ($ Million) | X26: ($ Million) | Y26: ($ Million) | Z26: ($ Million) | AA26: ($ Million) | AB26: ($ Million) | AC26: ($ Million) | AD26: ($ Million) | AE26: ($ Million) | AF26: ($ Million) | AG26: ($ Million) | AH26: ($ Million) | AI26: ($ Million) | AJ26: ($ Million) | AK26: ($ Million) | AL26: ($ Million) | AM26: ($ Million) | AN26: ($ Million) | AO26: ($ Million) | AP26: Total Share
A27: Other Minerals | B27: 7.300067 | C27: 8.222952 | D27: 7.894083 | E27: 8.80092 | F27: 17.86293 | G27: 25.917969 | H27: 27.91725 | I27: 31.605571 | J27: 36.102909 | K27: 33.74478 | L27: 33.088425 | M27: 48.087128 | N27: 50.255875 | O27: 48.443001 | P27: 55.097646 | Q27: 56.511277 | R27: 67.244718 | S27: 76.107667 | T27: 75.554355 | U27: 77.110478 | V27: 76.127526 | W27: 84.339598 | X27: 122.036845 | Y27: 183.560324 | Z27: 147.956169 | AA27: 85.733527 | AB27: 106.028016 | AC27: 139.401002 | AD27: 136.911982 | AE27: 142.803504 | AF27: 72.087713 | AG27: 76.16591157 | AH27: 49.19550033 | AI27: 58.92145307 | AJ27: 83.58826751 | AK27: 83.10634881 | AL27: 72.79238499 | AM27: 76.81248054 | AN27: 90.83848973 | AO27: =SUM(B27:AN27) -> 2681.277044 | AP27: =AO27/AO$39 -> 0.02345049621
A28: Petroleum | B28: 17.840906 | C28: 20.821734 | D28: 31.243739 | E28: 29.930963 | F28: 28.430859 | G28: 25.391576 | H28: 85.807862 | I28: 88.29178 | J28: 82.862411 | K28: 77.885557 | L28: 84.194807 | M28: 154.57947 | N28: 166.151815 | O28: 236.835483 | P28: 228.77494 | Q28: 190.128231 | R28: 510.724073 | S28: 494.45032 | T28: 438.497285 | U28: 441.346858 | V28: 489.335936 | W28: 624.690574 | X28: 700.830789 | Y28: 737.114522 | Z28: 929.258722 | AA28: 17.851848 | AB28: 22.882171 | AC28: 21.987488 | AD28: 17.220539 | AE28: 14.427177 | AF28: 11.123224 | AG28: 8.73599583 | AH28: 3.49354496 | AI28: 4.05464057 | AJ28: 8.31745553 | AK28: 10.56820484 | AL28: 2.32779121 | AM28: 5.82367283 | AN28: 14.18202201 | AO28: =SUM(B28:AN28) -> 7078.416987 | AP28: 0.06190795954
A29: Gold | B29: 0.072143 | C29: 0.092987 | D29: 0.100142 | E29: 0.138522 | F29: 0.155534 | G29: 0.212373 | H29: 0.228456 | I29: 0.28479 | J29: 0.212908 | K29: 0.274016 | L29: 0.352127 | M29: 0.372312 | N29: 0.375885 | O29: 0.436012 | P29: 9.270938 | Q29: 35.15299 | R29: 43.86677 | S29: 79.146827 | T29: 81.952569 | U29: 83.599622 | V29: 74.334582 | W29: 74.08103 | X29: 96.783542 | Y29: 100.583204 | Z29: 99.877858 | AA29: 139.58882 | AB29: 175.689113 | AC29: 210.970385 | AD29: 218.918291 | AE29: 222.800476 | AF29: 216.55936 | AG29: 228.700818 | AH29: 254.8335695 | AI29: 267.827957 | AJ29: 279.4147436 | AK29: 312.6747455 | AL29: 410.5740392 | AM29: 399.9164309 | AN29: 428.875083 | AO29: =SUM(B29:AN29) -> 4549.301971 | AP29: 0.0397882751
A30: Iron Ore | B30: 84.053078 | C30: 94.497728 | D30: 102.414688 | E30: 89.274397 | F30: 99.783896 | G30: 102.392765 | H30: 111.80138 | I30: 144.741902 | J30: 151.445144 | K30: 182.859879 | L30: 164.832834 | M30: 179.175207 | N30: 177.677479 | O30: 206.987874 | P30: 235.063437 | Q30: 204.971947 | R30: 232.69293 | S30: 285.627924 | T30: 272.499984 | U30: 290.647904 | V30: 330.194487 | W30: 534.957577 | X30: 774.772795 | Y30: 830.412802 | Z30: 1518.472327 | AA30: 1701.603049 | AB30: 2394.704119 | AC30: 3785.119525 | AD30: 3535.417771 | AE30: 4344.015779 | AF30: 5226.596516 | AG30: 3862.857218 | AH30: 3644.423518 | AI30: 4831.484054 | AJ30: 4470.861285 | AK30: 6953.306518 | AL30: 7812.806357 | AM30: 12403.10804 | AN30: 8700.418497 | AO30: =SUM(B30:AN30) -> 81068.97462 | AP30: 0.7090306788
A31: Diamonds | B31: 3.450883 | C31: 2.156726 | D31: 7.474564 | E31: 14.522383 | F31: 9.971533 | G31: 17.415032 | H31: 31.173757 | I31: 20.363022 | J31: 42.342417 | K31: 40.15229 | L31: 39.937641 | M31: 32.38188 | N31: 34.78169 | O31: 36.098081 | P31: 45.192711 | Q31: 53.713094 | R31: 65.775673 | S31: 84.697851 | T31: 77.10652 | U31: 72.794517 | V31: 36.539966 | W31: 50.335666 | X31: 27.68785 | Y31: 33.182993 | Z31: 30.998568 | AA31: 18.332883 | AB31: 15.818955 | AC31: 13.509606 | AD31: 16.194434 | AE31: 18.137585 | AF31: 19.137696 | AG31: 15.9639685 | AH31: 15.66835617 | AI31: 12.52683866 | AJ31: 11.90194315 | AK31: 12.35870401 | AL31: 9.12008444 | AM31: 6.15995917 | AN31: 0.00057406 | AO31: 1095.078895 | AP31: 0.00957757929
A32: Nickel | B32: 3.968209 | C32: 5.030833 | D32: 5.819275 | E32: 3.364708 | F32: 6.574034 | G32: 10.694293 | H32: 9.909234 | I32: 10.082058 | J32: 10.846182 | K32: 8.157046 | L32: 10.872023 | M32: 22.481707 | N32: 24.375886 | O32: 21.581045 | P32: 24.60351 | Q32: 20.268521 | R32: 51.541488 | S32: 53.134322 | T32: 46.654437 | U32: 63.881419 | V32: 82.189511 | W32: 87.554132 | X32: 117.65648 | Y32: 197.972076 | Z32: 116.720356 | AA32: 67.742963 | AB32: 100.736613 | AC32: 103.02031 | AD32: 94.53205 | AE32: 84.413621 | AF32: 84.339057 | AG32: 66.57276646 | AH32: 47.41326593 | AI32: 51.27491968 | AJ32: 66.71823277 | AK32: 73.10766092 | AL32: 74.74138027 | AM32: 87.40167731 | AN32: 128.1739862 | AO32: 2146.121288 | AP32: 0.01877001456
A33: Alumina | B33: 8.859777 | C33: 9.976515 | D33: 10.368378 | E33: 10.484702 | F33: 15.693844 | G33: 28.799883 | H33: 34.945118 | I33: 30.697526 | J33: 28.084012 | K33: 30.723077 | L33: 29.077739 | M33: 28.353371 | N33: 31.598661 | O33: 34.568199 | P33: 38.281457 | Q33: 39.021615 | R33: 47.244112 | S33: 62.545602 | T33: 57.229192 | U33: 51.081238 | V33: 52.514256 | W33: 57.283452 | X33: 74.832357 | Y33: 85.152337 | Z33: 78.222581 | AA33: 66.62726 | AB33: 64.564846 | AC33: 68.402559 | AD33: 65.293682 | AE33: 66.74477 | AF33: 71.724531 | AG33: 87.73143612 | AH33: 77.25885164 | AI33: 87.38075966 | AJ33: 120.3734979 | AK33: 130.4116536 | AL33: 99.91950358 | AM33: 89.79129074 | AN33: 115.4144207 | AO33: 2187.278063 | AP33: 0.01912997243
A34: Lithium | B34: n/a | C34: n/a | D34: n/a | E34: n/a | F34: n/a | G34: n/a | H34: n/a | I34: n/a | J34: n/a | K34: n/a | L34: n/a | M34: n/a | N34: n/a | O34: n/a | P34: n/a | Q34: n/a | R34: n/a | S34: n/a | T34: n/a | U34: n/a | V34: n/a | W34: n/a | X34: n/a | Y34: n/a | Z34: n/a | AA34: n/a | AB34: n/a | AC34: n/a | AD34: n/a | AE34: n/a | AF34: n/a | AG34: n/a | AH34: 11.7107116 | AI34: 44.40498233 | AJ34: 89.07665071 | AK34: 82.07653889 | AL34: 46.90337701 | AM34: 60.37497563 | AN34: 457.3643267 | AO34: 791.9115628 | AP34: 0.006926072466
A35: Copper, Lead & Zinc | B35: n/a | C35: n/a | D35: n/a | E35: n/a | F35: n/a | G35: n/a | H35: n/a | I35: n/a | J35: n/a | K35: n/a | L35: n/a | M35: n/a | N35: n/a | O35: n/a | P35: n/a | Q35: n/a | R35: n/a | S35: n/a | T35: n/a | U35: n/a | V35: n/a | W35: n/a | X35: n/a | Y35: n/a | Z35: n/a | AA35: n/a | AB35: n/a | AC35: n/a | AD35: n/a | AE35: n/a | AF35: 71.06097 | AG35: 68.11659966 | AH35: 51.63684109 | AI35: 66.07136329 | AJ35: 76.31281235 | AK35: 74.18148896 | AL35: 63.68305143 | AM35: 88.73106823 | AN35: 96.87952358 | AO35: 656.6737186 | AP35: 0.0057432799
A36: Mineral Sands | B36: n/a | C36: n/a | D36: n/a | E36: n/a | F36: n/a | G36: n/a | H36: n/a | I36: n/a | J36: n/a | K36: n/a | L36: n/a | M36: n/a | N36: n/a | O36: n/a | P36: n/a | Q36: n/a | R36: n/a | S36: n/a | T36: n/a | U36: n/a | V36: n/a | W36: n/a | X36: n/a | Y36: n/a | Z36: n/a | AA36: 21.462494 | AB36: 24.355874 | AC36: 19.222523 | AD36: 25.124566 | AE36: 20.032661 | AF36: 13.867439 | AG36: 12.90215765 | AH36: 17.11066182 | AI36: 12.704225 | AJ36: 15.43203693 | AK36: 21.11410173 | AL36: 27.51927909 | AM36: 33.66726276 | AN36: 49.08868308 | AO36: 313.6039651 | AP36: 0.002742785798
A37: North West Shelf Grants | B37: n/a | C37: n/a | D37: n/a | E37: n/a | F37: n/a | G37: n/a | H37: n/a | I37: n/a | J37: n/a | K37: n/a | L37: n/a | M37: n/a | N37: n/a | O37: n/a | P37: n/a | Q37: n/a | R37: n/a | S37: n/a | T37: n/a | U37: n/a | V37: n/a | W37: n/a | X37: n/a | Y37: n/a | Z37: n/a | AA37: 673.843366 | AB37: 962.198317 | AC37: 927.123968 | AD37: 985.832277 | AE37: 1039.190307 | AF37: 1079.461374 | AG37: 742.805828 | AH37: 567.045 | AI37: 622.8143828 | AJ37: 832.39 | AK37: 766.4186648 | AL37: 494.9443358 | AM37: 732.4254072 | AN37: 1342.621656 | AO37: 11769.11488 | AP37: 0.1029328859
A38: Total Royalty Receipts | B38: =SUM(B27:B36) -> 125.545063 | C38: 140.799475 | D38: 165.314869 | E38: 156.516595 | F38: 178.47263 | G38: 210.823891 | H38: 301.783057 | I38: 326.066649 | J38: 351.895983 | K38: 373.796645 | L38: 362.355596 | M38: 465.431075 | N38: 485.217291 | O38: 584.949695 | P38: 636.284639 | Q38: 599.767675 | R38: 1019.089764 | S38: 1135.710513 | T38: 1049.494342 | U38: 1080.462036 | V38: 1141.236264 | W38: 1513.242029 | X38: 1914.600658 | Y38: 2167.978258 | Z38: 2921.506581 | AA38: 2118.942844 | AB38: 2904.779707 | AC38: 4361.633398 | AD38: 4109.613315 | AE38: 4913.375573 | AF38: 5786.496506 | AG38: 4427.746872 | AH38: 4172.744821 | AI38: 5436.651193 | AJ38: 5221.996925 | AK38: 7752.905965 | AL38: 8620.387248 | AM38: 13251.78686 | AN38: =SUM(AN27:AN36) -> 10081.23561 | AO38: =SUM(AO27:AO36) -> 102568.6381 | AP38: n/a
A39: Total Revenue | B39: =SUM(B37:B38) -> 125.545063 | C39: =SUM(C37:C38) -> 140.799475 | D39: 165.314869 | E39: 156.516595 | F39: 178.47263 | G39: 210.823891 | H39: 301.783057 | I39: 326.066649 | J39: 351.895983 | K39: 373.796645 | L39: 362.355596 | M39: 465.431075 | N39: 485.217291 | O39: 584.949695 | P39: 636.284639 | Q39: 599.767675 | R39: 1019.089764 | S39: 1135.710513 | T39: 1049.494342 | U39: 1080.462036 | V39: 1141.236264 | W39: 1513.242029 | X39: 1914.600658 | Y39: 2167.978258 | Z39: 2921.506581 | AA39: 2792.78621 | AB39: 3866.978024 | AC39: 5288.757366 | AD39: 5095.445592 | AE39: 5952.56588 | AF39: 6865.95788 | AG39: 5170.5527 | AH39: 4739.789821 | AI39: 6059.465576 | AJ39: 6054.386925 | AK39: 8519.32463 | AL39: 9115.331584 | AM39: 13984.21227 | AN39: =SUM(AN37:AN38) -> 11423.85726 | AO39: =SUM(AO37:AO38) -> 114337.753 | AP39: =AO39/AO$39 -> 1
B204: 63.54
B205: 63.86
B206: 63.7
B207: 64.67
B208: 65.03
B209: 64.67
B210: 65.26
B211: 66.6
B212: 66.28
B213: 65.11
B214: 64.04
B215: 64.57

Sheet Mining Employment CY
B1: =INDIRECT(ADDRESS(MATCH($P$52,$A$1:$A$22,0),COLUMN(B$2))) -> 604.3085 | C1: 464.2165 | D1: 486.317 | E1: 681.599 | F1: 817 | G1: 988.0615 | H1: 1546.849 | I1: 2556.93 | J1: 2339.665 | K1: 3256.2 | L1: 3661.3115 | M1: 3549.233 | N1: 2402.9135 | O1: 2250.5115 | P1: 1900.0235 | Q1: 1935.867 | R1: 2198.25 | S1: 2677.438 | T1: 3262.285 | U1: 3608.9655 | V1: 4590.9125 | W1: 4543.364 | X1: 0 | Y1: 0 | Z1: 0 | AA1: 0 | AB1: 0 | AC1: 0 | AD1: 0 | AE1: 0 | AF1: 0 | AG1: 0 | AH1: =INDIRECT(ADDRESS(MATCH($P$52,$A$1:$A$22,0),COLUMN(AH$2))) -> 0 | AI1: 0 | AJ1: 0 | AK1: 0 | AL1: 0 | AM1: 0 | AN1: 0 | AO1: 0 | AP1: 0 | AQ1: 0 | AR1: 0 | AS1: 0 | AT1: 0 | AU1: 0 | AV1: 0 | AW1: 0 | AX1: 0 | AY1: 0 | AZ1: 0 | BA1: 0 | BB1: 0 | BC1: 0 | BD1: 0 | BE1: 0 | BF1: 0 | BG1: 0 | BH1: 0 | BI1: 0 | BJ1: 0 | BK1: 0 | BL1: 0 | BM1: 0 | BN1: =INDIRECT(ADDRESS(MATCH($P$52,$A$1:$A$22,0),COLUMN(BN$2))) -> 0 | BO1: 0 | BP1: 0 | BQ1: 0 | BR1: 0 | BS1: 0 | BT1: 0 | BU1: 0 | BV1: 0 | BW1: 0 | BX1: 0 | BY1: 0 | BZ1: 0 | CA1: 0 | CB1: 0 | CC1: 0 | CD1: 0 | CE1: 0 | CF1: 0 | CG1: 0 | CH1: 0 | CI1: 0 | CJ1: 0 | CK1: 0 | CL1: 0 | CM1: 0 | CN1: 0 | CO1: 0 | CP1: 0 | CQ1: 0 | CR1: 0 | CS1: 0 | CT1: =INDIRECT(ADDRESS(MATCH($P$52,$A$1:$A$22,0),COLUMN(CT$2))) -> 0 | CU1: 0 | CV1: 0 | CW1: 0 | CX1: 0 | CY1: 0 | CZ1: 0 | DA1: 0 | DB1: 0 | DC1: 0 | DD1: 0 | DE1: 0 | DF1: 0 | DG1: 0 | DH1: 0 | DI1: 0 | DJ1: 0 | DK1: 0 | DL1: 0 | DM1: 0 | DN1: 0 | DO1: 0 | DP1: 0 | DQ1: 0 | DR1: 0 | DS1: 0 | DT1: 0 | DU1: 0 | DV1: 0 | DW1: 0 | DX1: 0 | DY1: 0 | DZ1: =INDIRECT(ADDRESS(MATCH($P$52,$A$1:$A$22,0),COLUMN(DZ$2))) -> 0 | EA1: 0 | EB1: 0 | EC1: 0 | ED1: 0 | EE1: 0 | EF1: 0 | EG1: 0 | EH1: 0 | EI1: 0 | EJ1: 0 | EK1: 0 | EL1: 0 | EM1: 0 | EN1: 0 | EO1: 0 | EP1: 0 | EQ1: 0 | ER1: 0 | ES1: 0 | ET1: 0 | EU1: 0 | EV1: 0 | EW1: 0 | EX1: 0 | EY1: 0 | EZ1: 0 | FA1: 0 | FB1: 0 | FC1: 0 | FD1: 0 | FE1: 0 | FF1: =INDIRECT(ADDRESS(MATCH($P$52,$A$1:$A$22,0),COLUMN(FF$2))) -> 0 | FG1: 0 | FH1: 0 | FI1: 0 | FJ1: 0 | FK1: 0 | FL1: 0 | FM1: 0 | FN1: 0 | FO1: 0 | FP1: 0 | FQ1: 0 | FR1: 0 | FS1: 0 | FT1: 0 | FU1: 0 | FV1: 0 | FW1: 0 | FX1: 0 | FY1: 0 | FZ1: 0 | GA1: 0 | GB1: 0 | GC1: 0 | GD1: 0 | GE1: 0 | GF1: 0 | GG1: 0 | GH1: 0
A6: Mining And Mineral Exploration FTEs By Calendar Year
A7: Commodity | B7: 2001 | C7: 2002 | D7: 2003 | E7: 2004 | F7: 2005 | G7: 2006 | H7: 2007 | I7: 2008 | J7: 2009 | K7: 2010 | L7: 2011 | M7: 2012 | N7: 2013 | O7: 2014 | P7: 2015 | Q7: 2016 | R7: 2017 | S7: 2018 | T7: 2019 | U7: 2020 | V7: 2021 | W7: 2022
A8: Alumina and Bauxite | B8: 6001.608 | C8: 6259.3465 | D8: 6326.8 | E8: 6904.85 | F8: 8735.382 | G8: 8690.4875 | H8: 8013.0795 | I8: 7866.9805 | J8: 8142.2585 | K8: 9754.556 | L8: 11660.439 | M8: 8213.1075 | N8: 7211.6695 | O8: 7107.665 | P8: 7037.892 | Q8: 6152.485 | R8: 6268.632 | S8: 6624.1795 | T8: 7057.108 | U8: 6746.4605 | V8: 6850.807 | W8: 6843.9085
A9: Coal | B9: 593.5425 | C9: 562.827 | D9: 544.0005 | E9: 544.4025 | F9: 580.244 | G9: 656.614 | H9: 613.418 | I9: 688.039 | J9: 724.8795 | K9: 710.993 | L9: 668.4715 | M9: 737.695 | N9: 703.469 | O9: 770.2835 | P9: 846.5115 | Q9: 800.131 | R9: 750.925 | S9: 739.711 | T9: 707.1165 | U9: 664.726 | V9: 629.0045 | W9: 765.2085
A10: Construction Materials | B10: 676.243 | C10: 397.389 | D10: 292.0435 | E10: 314.9705 | F10: 367.5765 | G10: 468.755 | H10: 576.644 | I10: 630.6235 | J10: 580.2925 | K10: 639.447 | L10: 740.407 | M10: 881.1385 | N10: 908.507 | O10: 934.506 | P10: 739.676 | Q10: 733.1745 | R10: 776.3645 | S10: 774.465 | T10: 738.0385 | U10: 658.1535 | V10: 748.427 | W10: 734.3755
A11: Copper-Lead-Zinc | B11: 1328.421 | C11: 1313.857 | D11: 1376.2065 | E11: 1160.5025 | F11: 1629.901 | G11: 2093.608 | H11: 2463.902 | I11: 2455.6345 | J11: 1476.065 | K11: 1899.7145 | L11: 2301.3575 | M11: 2731.269 | N11: 2467.089 | O11: 2289.9455 | P11: 2093.761 | Q11: 1867.185 | R11: 2039.9565 | S11: 2167.25 | T11: 2284.692 | U11: 1896.9745 | V11: 1984.015 | W11: 2120.1605
A12: Diamond | B12: 1061.5865 | C12: 1227.72 | D12: 1183.4315 | E12: 1461.9895 | F12: 1812.7235 | G12: 1941.0775 | H12: 2350.077 | I12: 2750.149 | J12: 1567.1355 | K12: 1465.954 | L12: 1975.4555 | M12: 2740.7605 | N12: 1938.349 | O12: 1418.5695 | P12: 1063.1895 | Q12: 767.558 | R12: 777.6965 | S12: 823.6855 | T12: 754.96 | U12: 483.182 | V12: 206.6615 | W12: 293.001
A13: Gold | B13: 13567.78 | C13: 13132.1425 | D13: 13248.6005 | E13: 13703.829 | F13: 12291.0015 | G13: 12756.4435 | H13: 14178.1435 | I13: 15555.4685 | J13: 16786.2505 | K13: 16922.73 | L13: 19194.426 | M13: 21714.169 | N13: 20019.31 | O13: 16741.561 | P13: 17939.4615 | Q13: 20778.964 | R13: 22766.6225 | S13: 24868.5345 | T13: 26019.4525 | U13: 26852.01 | V13: 30049.1025 | W13: 30625.246
A14: Iron Ore | B14: 8759.712 | C14: 8445.896 | D14: 10511.7685 | E14: 12507.32 | F14: 13059.015 | G14: 16999.471 | H14: 18603.615 | I14: 22972.7965 | J14: 25926.4925 | K14: 27630.949 | L14: 33915.6465 | M14: 47051.2895 | N14: 56065.1235 | O14: 55251.95 | P14: 49042.3265 | Q14: 42773.5915 | R14: 41828.2205 | S14: 43354.4025 | T14: 48108.037 | U14: 57008.485 | V14: 60960.5915 | W14: 60272.3855
A15: Lithium | B15: 733.4305 | C15: 709.304 | D15: 603.478 | E15: 643.5265 | F15: 760.4905 | G15: 577.4975 | H15: 488.1855 | I15: 560.695 | J15: 276.2495 | K15: 508.403 | L15: 672.185 | M15: 681.373 | N15: 439.721 | O15: 413.876 | P15: 382.053 | Q15: 679.442 | R15: 1833.6395 | S15: 4500.417 | T15: 4149.8505 | U15: 1813.676 | V15: 2513.5845 | W15: 5779.914
A16: Mineral Sands | B16: 2347.162 | C16: 2186.629 | D16: 2134.977 | E16: 2313.0495 | F16: 2238.315 | G16: 2476.745 | H16: 2412.035 | I16: 2291.9185 | J16: 1908.114 | K16: 1447.3055 | L16: 1588.804 | M16: 1879.046 | N16: 1465.8545 | O16: 1354.876 | P16: 1467.7035 | Q16: 1328.3475 | R16: 1341.163 | S16: 1848.487 | T16: 1991.2145 | U16: 1925.076 | V16: 2025.8195 | W16: 2828.8835
A17: Nickel | B17: 5914.9635 | C17: 5612.6265 | D17: 6004.9325 | E17: 6957.587 | F17: 8558.55 | G17: 10703.3305 | H17: 12905.737 | I17: 12554.7445 | J17: 7413.6255 | K17: 7935.128 | L17: 9302.546 | M17: 8229.435 | N17: 6833.3315 | O17: 5823.5865 | P17: 5926.075 | Q17: 5360.2545 | R17: 5805.63 | S17: 5705.952 | T17: 7081.8885 | U17: 7288.4815 | V17: 8069.1585 | W17: 8758.157
A18: Salt | B18: 609.1535 | C18: 564.3545 | D18: 564.4865 | E18: 570.555 | F18: 672.1445 | G18: 670.5025 | H18: 702.438 | I18: 718.7395 | J18: 777.4805 | K18: 785.7765 | L18: 814.9435 | M18: 865.8255 | N18: 968.324 | O18: 762.4455 | P18: 605.2775 | Q18: 527.4285 | R18: 516.1305 | S18: 606.609 | T18: 642.103 | U18: 599.447 | V18: 687.3895 | W18: 984.6795
A19: Other | B19: 1397.6555 | C19: 1352.8505 | D19: 1287.5375 | E19: 1509.0015 | F19: 1743.6325 | G19: 1639.1305 | H19: 1710.4545 | I19: 1991 | J19: 2019.1595 | K19: 2381.604 | L19: 3157.16 | M19: 2870.453 | N19: 2657.04 | O19: 2374.2075 | P19: 2063.582 | Q19: 1731.0715 | R19: 1974.1005 | S19: 2206.6775 | T19: 2258.05 | U19: 2459.7185 | V19: 2935.7015 | W19: 2562.6415
A20: Total Mining | B20: 42991.258 | C20: 41764.9425 | D20: 44078.2625 | E20: 48591.5835 | F20: 52448.976 | G20: 59673.6625 | H20: 65017.729 | I20: 71036.789 | J20: 67598.003 | K20: 72082.5605 | L20: 85991.8415 | M20: 98595.5615 | N20: 101677.788 | O20: 95243.472 | P20: 89207.509 | Q20: 83499.633 | R20: 86679.081 | S20: 94220.3705 | T20: 101792.511 | U20: 108396.3905 | V20: 117660.2625 | W20: 122568.561
A21: Mineral Exploration | B21: 604.3085 | C21: 464.2165 | D21: 486.317 | E21: 681.599 | F21: 817 | G21: 988.0615 | H21: 1546.849 | I21: 2556.93 | J21: 2339.665 | K21: 3256.2 | L21: 3661.3115 | M21: 3549.233 | N21: 2402.9135 | O21: 2250.5115 | P21: 1900.0235 | Q21: 1935.867 | R21: 2198.25 | S21: 2677.438 | T21: 3262.285 | U21: 3608.9655 | V21: 4590.9125 | W21: 4543.364
A22: Total Mining and Mineral Exploration | B22: =B20+B21 -> 43595.5665 | C22: =C20+C21 -> 42229.159 | D22: 44564.5795 | E22: 49273.1825 | F22: 53265.976 | G22: 60661.724 | H22: 66564.578 | I22: 73593.719 | J22: 69937.668 | K22: 75338.7605 | L22: 89653.153 | M22: 102144.7945 | N22: 104080.7015 | O22: 97493.9835 | P22: 91107.5325 | Q22: 85435.5 | R22: 88877.331 | S22: 96897.8085 | T22: 105054.796 | U22: 112005.356 | V22: 122251.175 | W22: 127111.925
A24: FTEs
P51: Column Chart Data
P52: Mineral Exploration | X52: =CONCATENATE(P52, CHAR(10), " Last 10 Calendar Years") -> Mineral Exploration Last 10 Calendar Years
P54: Click above to change column chart data
M102: =LARGE($B$7:$BD$7,10) -> 2013 | N102: =LARGE($B$7:$BD$7,9) -> 2014 | O102: =LARGE($B$7:$BD$7,8) -> 2015 | P102: =LARGE($B$7:$BD$7,7) -> 2016 | Q102: =LARGE($B$7:$BD$7,6) -> 2017 | R102: =LARGE($B$7:$BD$7,5) -> 2018 | S102: =LARGE($B$7:$BD$7,4) -> 2019 | T102: =LARGE($B$7:$BD$7,3) -> 2020 | U102: =LARGE($B$7:$BD$7,2) -> 2021 | V102: =LARGE($B$7:$BD$7,1) -> 2022
M103: =INDEX($A$1:$BC$1,1,MATCH(M102,$A$7:$BD$7,0)) -> 2402.9135 | N103: 2250.5115 | O103: 1900.0235 | P103: 1935.867 | Q103: 2198.25 | R103: 2677.438 | S103: 3262.285 | T103: 3608.9655 | U103: 4590.9125 | V103: 4543.364

Sheet Mining Employment FY
B1: =INDIRECT(ADDRESS(MATCH($O$51,$A$1:$A$22,0),COLUMN(B$2))) -> 42783.1615 | C1: 43409.1465 | D1: 46644.1755 | E1: 50865.746 | F1: 56876.5985 | G1: 63989.3065 | H1: 68968.4885 | I1: 73947.7025 | J1: 70160.727 | K1: 82097.332 | L1: 97623.532 | M1: 104103.285 | N1: 100446.828 | O1: 94730.441 | P1: 87834.3735 | Q1: 86488.2185 | R1: 92300.384 | S1: 101136.67 | T1: 107770.73 | U1: 118089.075 | V1: 123718.832 | W1: 130675.726 | X1: 0 | Y1: 0 | Z1: 0 | AA1: 0 | AB1: 0 | AC1: 0 | AD1: 0 | AE1: 0 | AF1: 0 | AG1: 0 | AH1: =INDIRECT(ADDRESS(MATCH($O$51,$A$1:$A$22,0),COLUMN(AH$2))) -> 0 | AI1: 0 | AJ1: 0 | AK1: 0 | AL1: 0 | AM1: 0 | AN1: 0 | AO1: 0 | AP1: 0 | AQ1: 0 | AR1: 0 | AS1: 0 | AT1: 0 | AU1: 0 | AV1: 0 | AW1: 0 | AX1: 0 | AY1: 0 | AZ1: 0 | BA1: 0 | BB1: 0 | BC1: 0 | BD1: 0 | BE1: 0 | BF1: 0 | BG1: 0 | BH1: 0 | BI1: 0 | BJ1: 0 | BK1: 0 | BL1: 0 | BM1: 0 | BN1: =INDIRECT(ADDRESS(MATCH($O$51,$A$1:$A$22,0),COLUMN(BN$2))) -> 0 | BO1: 0 | BP1: 0 | BQ1: 0 | BR1: 0 | BS1: 0 | BT1: 0 | BU1: 0 | BV1: 0 | BW1: 0 | BX1: 0 | BY1: 0 | BZ1: 0 | CA1: 0 | CB1: 0 | CC1: 0 | CD1: 0 | CE1: 0 | CF1: 0 | CG1: 0 | CH1: 0 | CI1: 0 | CJ1: 0 | CK1: 0 | CL1: 0 | CM1: 0 | CN1: 0 | CO1: 0 | CP1: 0 | CQ1: 0 | CR1: 0 | CS1: 0 | CT1: =INDIRECT(ADDRESS(MATCH($O$51,$A$1:$A$22,0),COLUMN(CT$2))) -> 0 | CU1: 0 | CV1: 0 | CW1: 0 | CX1: 0 | CY1: 0 | CZ1: 0 | DA1: 0 | DB1: 0 | DC1: 0 | DD1: 0
B2: =_xlfn.NUMBERVALUE(LEFT(B7,4)) -> 2001 | C2: 2002 | D2: 2003 | E2: 2004 | F2: 2005 | G2: 2006 | H2: 2007 | I2: 2008 | J2: 2009 | K2: 2010 | L2: 2011 | M2: 2012 | N2: 2013 | O2: 2014 | P2: 2015 | Q2: =_xlfn.NUMBERVALUE(LEFT(Q7,4)) -> 2016 | R2: =_xlfn.NUMBERVALUE(LEFT(R7,4)) -> 2017 | S2: =_xlfn.NUMBERVALUE(LEFT(S7,4)) -> 2018 | T2: =_xlfn.NUMBERVALUE(LEFT(T7,4)) -> 2019 | U2: 2020 | V2: =_xlfn.NUMBERVALUE(LEFT(V7,4)) -> 2021 | W2: =_xlfn.NUMBERVALUE(LEFT(W7,4)) -> 2022 | X2: 0 | Y2: =_xlfn.NUMBERVALUE(LEFT(Z7,4)) -> 0 | Z2: 0 | AA2: 0 | AB2: 0 | AC2: 0 | AD2: 0 | AE2: 0 | AF2: 0 | AG2: 0 | AH2: 0 | AI2: 0 | AJ2: 0 | AK2: 0 | AL2: 0 | AM2: 0 | AN2: 0 | AO2: 0 | AP2: 0 | AQ2: 0 | AR2: 0 | AS2: 0 | AT2: 0 | AU2: 0 | AV2: 0 | AW2: 0 | AX2: 0 | AY2: 0 | AZ2: 0 | BA2: 0 | BB2: 0 | BC2: 0
A6: Mining And Mineral Exploration FTEs By Financial Year
A7: Commodity | B7: 2001-02 | C7: 2002-03 | D7: 2003-04 | E7: 2004-05 | F7: 2005-06 | G7: 2006-07 | H7: 2007-08 | I7: 2008-09 | J7: 2009-10 | K7: 2010-11 | L7: 2011-12 | M7: 2012-13 | N7: 2013-14 | O7: 2014-15 | P7: 2015-16 | Q7: 2016-17 | R7: 2017-18 | S7: 2018-19 | T7: 2019-20 | U7: 2020-21 | V7: 2021-22 | W7: 2022-23
A8: Alumina and Bauxite | B8: 6182.0625 | C8: 6299.2705 | D8: 6433.9185 | E8: 7814.6635 | F8: 9188.9105 | G8: 8072.42 | H8: 7914.6665 | I8: 7953.06 | J8: 8706.1065 | K8: 11094.1025 | L8: 10371.081 | M8: 7249.913 | N8: 7193.5025 | O8: 7016.5155 | P8: 6619.062 | Q8: 6145.0595 | R8: 6481.874 | S8: 6923.7705 | T8: 6764.632 | U8: 6839.779 | V8: 6733.357 | W8: 6995.2255
A9: Coal | B9: 575.9015 | C9: 547.362 | D9: 538.873 | E9: 553.5965 | F9: 637.3515 | G9: 631.9415 | H9: 637.351 | I9: 717.5065 | J9: 739.0655 | K9: 657.1475 | L9: 716.725 | M9: 728.9745 | N9: 714.644 | O9: 805.846 | P9: 848.7845 | Q9: 768.9335 | R9: 753.648 | S9: 711.346 | T9: 700.178 | U9: 642.282 | V9: 675.172 | W9: 823.759
A10: Construction Materials | B10: 595.9915 | C10: 294.702 | D10: 289.322 | E10: 344.7625 | F10: 406.6505 | G10: 528.128 | H10: 620.405 | I10: 624.412 | J10: 584.6975 | K10: 650.3805 | L10: 861.264 | M10: 886.189 | N10: 904.0285 | O10: 872.1195 | P10: 707.126 | Q10: 766.9295 | R10: 766.8315 | S10: 766.2515 | T10: 706.497 | U10: 674.869 | V10: 767.19 | W10: 884.3365
A11: Copper-Lead-Zinc | B11: 1286.2195 | C11: 1427.3335 | D11: 1132.3355 | E11: 1375.2915 | F11: 1902.102 | G11: 2345.0355 | H11: 2511.218 | I11: 1902.488 | J11: 1665.455 | K11: 2041.384 | L11: 2619.991 | M11: 2581.0305 | N11: 2366.745 | O11: 2234.297 | P11: 1959.753 | Q11: 1889.7085 | R11: 2147.335 | S11: 2255.8355 | T11: 2075.163 | U11: 1893.7235 | V11: 2072.4545 | W11: 1994.0165
A12: Diamond | B12: 1173.6835 | C12: 1210.3235 | D12: 1284.814 | E12: 1684.4645 | F12: 1776.1115 | G12: 2154.484 | H12: 2592.822 | I12: 2326.4175 | J12: 1300.8065 | K12: 1736.7825 | L12: 2356.1105 | M12: 2592.077 | N12: 1526.9785 | O12: 1299.405 | P12: 846.2415 | Q12: 762.312 | R12: 788.7 | S12: 836.3495 | T12: 617.8585 | U12: 275.708 | V12: 255.7415 | W12: 357.0375
A13: Gold | B13: 13121.8905 | C13: 13224.8435 | D13: 13737.7045 | E13: 12851.6865 | F13: 12355.648 | G13: 13463.484 | H13: 14888.709 | I13: 16660.0575 | J13: 16380.5235 | K13: 17667.2175 | L13: 20853.113 | M13: 21695.7155 | N13: 17582.1145 | O13: 17152.786 | P13: 19356.7405 | Q13: 21764.202 | R13: 23782.356 | S13: 25660.223 | T13: 26286.661 | U13: 28419.492 | V13: 30764.289 | W13: 29257.3085
A14: Iron Ore | B14: 8450.4265 | C14: 9511.1935 | D14: 11607.1005 | E14: 12451.105 | F14: 14860.212 | G14: 18231.6945 | H14: 19695.2125 | I14: 25546.667 | J14: 25998.334 | K14: 30291.172 | L14: 40384.315 | M14: 52271.3645 | N14: 56267.4865 | O14: 52906.603 | P14: 45586.9325 | Q14: 41955.5825 | R14: 42034.974 | S14: 45115.6805 | T14: 52321.075 | U14: 60488.403 | V14: 59724.3265 | W14: 61202.752
A15: Lithium | B15: 866.7535 | C15: 588.7695 | D15: 644.0595 | E15: 704.143 | F15: 704.638 | G15: 463.3725 | H15: 559.4965 | I15: 418.018 | J15: 358.579 | K15: 564.2075 | L15: 805.6865 | M15: 497.5995 | N15: 414.932 | O15: 396.693 | P15: 458.989 | Q15: 1104.0995 | R15: 3319.9605 | S15: 4855.3645 | T15: 2562.798 | U15: 1846.2475 | V15: 3800.564 | W15: 8091.846
A16: Mineral Sands | B16: 2351.898 | C16: 2039.7985 | D16: 2272.817 | E16: 2210.714 | F16: 2465.585 | G16: 2435.8695 | H16: 2352.567 | I16: 2173.2595 | J16: 1606.469 | K16: 1402.349 | L16: 1879.997 | M16: 1652.2675 | N16: 1406.4645 | O16: 1353.3745 | P16: 1420.4755 | Q16: 1324.863 | R16: 1500.722 | S16: 2053.039 | T16: 1957.465 | U16: 1870.349 | V16: 2418.9225 | W16: 2895.7675
A17: Nickel | B17: 5689.0035 | C17: 5888.742 | D17: 6250.787 | E17: 7825.3925 | F17: 9336.505 | G17: 12135.5035 | H17: 12671.0755 | I17: 10367.668 | J17: 7133.9665 | K17: 8938.698 | L17: 8819.0825 | M17: 7610.412 | N17: 6210.674 | O17: 5838.831 | P17: 5628.376 | Q17: 5674.3185 | R17: 5543.4645 | S17: 6232.3985 | T17: 7500.235 | U17: 7552.967 | V17: 8301.3115 | W17: 9839.2845
A18: Salt | B18: 589.995 | C18: 559.0445 | D18: 565.816 | E18: 622.997 | F18: 661.8535 | G18: 696.261 | H18: 694.139 | I18: 736.5765 | J18: 801.9555 | K18: 768.8105 | L18: 862.939 | M18: 905.6465 | N18: 922.37 | O18: 654.9525 | P18: 569.566 | Q18: 503.129 | R18: 566.7525 | S18: 614.2185 | T18: 645.2395 | U18: 622.158 | V18: 824.1 | W18: 999.0095
A19: Other | B19: 1361.1735 | C19: 1321.883 | D19: 1361.4525 | E19: 1636.097 | F19: 1747.1695 | G19: 1629.894 | H19: 1811.994 | I19: 2103.5645 | J19: 2030.203 | K19: 2852.0475 | L19: 3139.34 | M19: 2693.228 | N19: 2548.4565 | O19: 2176.886 | P19: 1942.4705 | Q19: 1763.9965 | R19: 2125.884 | S19: 2253.4185 | T19: 2278.197 | U19: 2793.459 | V19: 2701.342 | W19: 3140.533
A20: Total Mining | B20: 42244.999 | C20: 42913.266 | D20: 46119 | E20: 50074.9135 | F20: 56042.737 | G20: 62788.088 | H20: 66949.656 | I20: 71529.695 | J20: 67306.1615 | K20: 78664.299 | L20: 93669.6445 | M20: 101364.4175 | N20: 98058.3965 | O20: 92708.309 | P20: 85944.517 | Q20: 84423.134 | R20: 89812.502 | S20: 98277.8955 | T20: 104415.999 | U20: 113919.437 | V20: 119038.7705 | W20: 126480.876
A21: Mineral Exploration | B21: 538.1625 | C21: 495.8805 | D21: 525.1755 | E21: 790.8325 | F21: 833.8615 | G21: 1201.2185 | H21: 2018.8325 | I21: 2418.0075 | J21: 2854.5655 | K21: 3433.033 | L21: 3953.8875 | M21: 2738.8675 | N21: 2388.4315 | O21: 2022.132 | P21: 1889.8565 | Q21: 2065.0845 | R21: 2487.882 | S21: 2858.7745 | T21: 3354.731 | U21: 4169.638 | V21: 4680.0615 | W21: 4194.85
A22: Total Mining and Mineral Exploration | B22: =B20+B21 -> 42783.1615 | C22: =C20+C21 -> 43409.1465 | D22: 46644.1755 | E22: 50865.746 | F22: 56876.5985 | G22: 63989.3065 | H22: 68968.4885 | I22: 73947.7025 | J22: 70160.727 | K22: 82097.332 | L22: 97623.532 | M22: 104103.285 | N22: 100446.828 | O22: 94730.441 | P22: 87834.3735 | Q22: 86488.2185 | R22: 92300.384 | S22: 101136.67 | T22: 107770.73 | U22: 118089.075 | V22: 123718.832 | W22: 130675.726
A24: FTEs
O50: Column Chart Data
O51: Total Mining and Mineral Exploration | X51: =CONCATENATE(O51, CHAR(10), " Last 10 Financial Years") -> Total Mining and Mineral Exploration Last 10 Financial Years
O53: Click above to change column chart data
N101: =INDEX($B$7:$BD$7,1,MATCH(LARGE($B$2:$BC$2,10),$B$2:$BC$2,0)) -> 2013-14 | O101: =INDEX($B$7:$BD$7,1,MATCH(LARGE($B$2:$BC$2,9),$B$2:$BC$2,0)) -> 2014-15 | P101: =INDEX($B$7:$BD$7,1,MATCH(LARGE($B$2:$BC$2,8),$B$2:$BC$2,0)) -> 2015-16 | Q101: =INDEX($B$7:$BD$7,1,MATCH(LARGE($B$2:$BC$2,7),$B$2:$BC$2,0)) -> 2016-17 | R101: =INDEX($B$7:$BD$7,1,MATCH(LARGE($B$2:$BC$2,6),$B$2:$BC$2,0)) -> 2017-18 | S101: =INDEX($B$7:$BD$7,1,MATCH(LARGE($B$2:$BC$2,5),$B$2:$BC$2,0)) -> 2018-19 | T101: =INDEX($B$7:$BD$7,1,MATCH(LARGE($B$2:$BC$2,4),$B$2:$BC$2,0)) -> 2019-20 | U101: =INDEX($B$7:$BD$7,1,MATCH(LARGE($B$2:$BC$2,3),$B$2:$BC$2,0)) -> 2020-21 | V101: =INDEX($B$7:$BD$7,1,MATCH(LARGE($B$2:$BC$2,2),$B$2:$BC$2,0)) -> 2021-22 | W101: =INDEX($B$7:$BD$7,1,MATCH(LARGE($B$2:$BC$2,1),$B$2:$BC$2,0)) -> 2022-23
N102: =INDEX($B$1:$BC$1,1,MATCH(LARGE($B$2:$BC$2,10),$B$2:$BC$2,0)) -> 100446.828 | O102: =INDEX($B$1:$BC$1,1,MATCH(LARGE($B$2:$BC$2,9),$B$2:$BC$2,0)) -> 94730.441 | P102: =INDEX($B$1:$BC$1,1,MATCH(LARGE($B$2:$BC$2,8),$B$2:$BC$2,0)) -> 87834.3735 | Q102: =INDEX($B$1:$BC$1,1,MATCH(LARGE($B$2:$BC$2,7),$B$2:$BC$2,0)) -> 86488.2185 | R102: =INDEX($B$1:$BC$1,1,MATCH(LARGE($B$2:$BC$2,6),$B$2:$BC$2,0)) -> 92300.384 | S102: =INDEX($B$1:$BC$1,1,MATCH(LARGE($B$2:$BC$2,5),$B$2:$BC$2,0)) -> 101136.67 | T102: =INDEX($B$1:$BC$1,1,MATCH(LARGE($B$2:$BC$2,4),$B$2:$BC$2,0)) -> 107770.73 | U102: =INDEX($B$1:$BC$1,1,MATCH(LARGE($B$2:$BC$2,3),$B$2:$BC$2,0)) -> 118089.075 | V102: =INDEX($B$1:$BC$1,1,MATCH(LARGE($B$2:$BC$2,2),$B$2:$BC$2,0)) -> 123718.832 | W102: =INDEX($B$1:$BC$1,1,MATCH(LARGE($B$2:$BC$2,1),$B$2:$BC$2,0)) -> 130675.726

Sheet Mining Employment Report Period
